Workbook

Sheet Drop Downs (hidden)
B5: Worksheet | C5: Section | D5: Options
D7: Yes
D8: No
B10: Application | C10: 4.1 | D10: Family
D11: Elderly
D12: Supportive Housing
C14: 4.1.c | D14: Moderate Rental
D15: Elderly
D16: Congregate
D17: Other (Specify)
C19: 4.1.d | D19: a. Enhance housing mobility and choice across income levels and promote vibrant mixed-income neighborhoods through rental opportunities.
D20: b. Support adaptive reuse of historic and other existing structures for use as residential housing
D21: c. Support local efforts to develop appropriate urban infill housing and neighborhood amenities to make better use of limited urban land.
D22: d. Promote housing and/or affordable housing as part of a mixed used and transit-oriented developments within walking distance of public transportation facilities
D23: e. Revitalize rural villages and main streets by promoting the rehabilitation and appropriate reuse of historic facilities, such as former mills, to allow a concentration of higher density or multiple use development where practical and consistent with historic character
D24: f. Access to parks and recreational opportunities, including trails, greenways and waterways, for affordable and mixed-income housing.
D25: g. Focus on infill development and redevelopment opportunities in areas with existing infrastructure, such as in cities or town centers, which are at an appropriate scale and density for the particular area
D26: h. Promote the continued use or adaptive reuse of existing facilities and developed prosperity, including brownfields in strategic locations.
C28: 4.2.a | D28: Minor
D29: Moderate
D30: Substantial
D31: Gut
C33: 4.6 | D33: Individual
D34: Corporation
D35: Partnership
D36: Other (specify)
C38: 4.7 | D38: Yes
D39: No
D40: Not Required
C42: 4.8.a | D42: WegoWise
D43: Bright Power
D44: EPA
D45: Portfolio Manager
D46: Other
C48: 4.9.c | D48: State Prevailing Wage
D49: Federal Davis Bacon
D50: N/A
C52: 12 | D52: Workforce
D53: Housing Development
D54: Revolving Loan Fund
D55: Supportive Housing
C57: 12 | D57: Elderly
D58: Family
D59: Single Room Occupancy
D60: Supportive Housing
D61: Other
B63: Dev. Team Info | D63: Predevelopment
D64: Application
D65: Construction
D66: Pre-occupancy
D67: Occupied
B69: Existing Debt | D69: 1st
D70: Co-1st
D71: 2nd
D72: 3rd
D73: 4th
D74: Other
D76: To be Paid-off
D77: To be Assumed & Restructured
D78: To be Assumed
D80: Current
D81: Defaulted
B83: Sources of Funds | D83: DOH Grant - State Bond or Federal Funds
D84: DOH Affordable Housing Program - FLEX
D85: DOH Housing Trust Fund
D86: DOH Other [Specify]
D88: DOH Loan - State Bond or Federal Funds
D89: DOH Affordable Housing Program - FLEX
D90: DOH Housing Trust Fund
D91: DOH Other [Specify]
D93: Tax-Exempt Bonds
D94: Taxable Bonds

Sheet Exhibit Checklist
E2: LAST SAVED DATE | F2: 2021-10-12T14:18:27
F5: DEVELOPMENT NAME | G5: =Application!D113 -> 0 | N5: Applicant Name | R5: =Application!D10 -> 0
C6: = Not applicable
B7: N | C7: = Non-Threshold Item - if applicable, required prior to approval. If available, include with application.
B8: T | C8: = Threshold Item - if applicable, required at application submission
B9: P | C9: = Points Item
A11: THIS FORM MUST BE SUBMITTED WITH INITIAL APPLICATION & ALL RESUBMISSIONS | K11: Show All
A12: Show All | I12: CHFA Funding | U12: DOH Funding
A13: Exhibit Number | B13: Core Items | H13: CHFA/ DOH use only | I13: Financing | K13: Supportive Housing | M13: LIHTC | O13: HTCC | S13: Special Programs | U13: DOH Large Project | W13: DOH Fed HOME/CDBG | Y13: DOH Pre Dev | AA13: DOH Small Projects | AC13: DOH Programs
O14: Revolving Loan Fund | Q14: Housing Development
A15: A | B15: Completed Exhibit Checklist (Form Provided) | I15: T | K15: T | M15: T | O15: T | Q15: T | S15: T | U15: T | W15: T | Y15: T | AA15: T | AC15: T
A16: B | B16: Cover Sheet (Form Provided) | I16: T | K16: T | M16: T | O16: T | Q16: T | S16: T | U16: T | W16: T | Y16: T | AA16: T | AC16: T
A17: C | B17: Summary Sheet (Form Provided) | R17: (Self-Generating)
A18: D | B18: Application (Form Provided) | I18: T | K18: T | M18: T | O18: T | Q18: T | S18: T | U18: T | W18: T | Y18: T | AA18: T | AC18: T
B19: =Application!$A$5 -> SECTION I. APPLICANT and CO-SPONSOR
A20: 1.1 | B20: Applicant Info | I20: T | K20: T | M20: T | O20: T | Q20: T | S20: T | U20: T | W20: T | Y20: T | AA20: T | AC20: T
A21: 1.2 | B21: Applicant Type | I21: T | K21: T | M21: T | O21: T | Q21: T | S21: T | U21: T | W21: T | Y21: T | AA21: T | AC21: T
A22: 1.3 | B22: Co-Sponsor Info | I22: T | K22: T | M22: T | O22: T | Q22: T | U22: T | W22: T | AA22: T
A23: 1.4 | B23: Co-Sponsor Type | I23: T | K23: T | M23: T | O23: T | Q23: T | U23: T | W23: T | AA23: T
A24: 1.5 | B24: Organizational Documents | I24: T | K24: T | M24: T | O24: T | Q24: T | U24: T | W24: T
A25: 1.6 | B25: Financial Statements | I25: N | K25: N | M25: N | O25: T | Q25: T | U25: N | W25: N
B26: =Application!$A$74 -> SECTION II. REGULATORY COMPLIANCE
A27: 2.1 | B27: Previous Financial Involvement | I27: T | K27: T | M27: T | U27: T | W27: T
B28: =Application!$A$81 -> SECTION III. DEVELOPMENT TEAM
A29: 3.1.a | B29: Qualified Development Team Contact Information (Form Provided) | I29: T | K29: T | M29: T | O29: T | Q29: T | S29: T | U29: T | W29: T | Y29: T | AA29: T | AC29: T
A30: 3.1.b | B30: Justification for the Selection of Certain Development Team Members | I30: T | K30: T | M30: T | U30: T | W30: T | Y30: T | AA30: T | AC30: T
A31: 3.1.c | B31: Organization Chart | I31: T | K31: T | M31: T | O31: T | Q31: T | S31: T | U31: T | W31: T | Y31: T | AA31: T | AC31: T
A32: 3.2 | B32: Construction Procurement Plan | U32: T | W32: T | AA32: T
A33: 3.3 | B33: Resident Service Coordinator | I33: T | K33: T | M33: T | S33: T | U33: T | W33: T | Y33: T | AA33: T | AC33: T
B34: =Application!$A$109 -> SECTION IV. DEVELOPMENT
A35: 4.1 | B35: Development Info | I35: T | K35: T | M35: T | Q35: T | S35: T | U35: T | W35: T | Y35: T | AA35: T | AC35: N
A36: 4.1.a | B36: Years Affordable | I36: T | K36: T | M36: T | Q36: P | U36: T | W36: T | Y36: T | AA36: T | AC36: T
A37: 4.1.b | B37: Applying to 4% Acquisition Credit | I37: T | K37: T | M37: T | S37: N | U37: T | W37: T | Y37: N | AA37: N | AC37: N
A38: 4.1.c | B38: Part of SSHP | I38: T | K38: T | M38: T | Q38: T | S38: T | U38: T | W38: T | Y38: T | AA38: T | AC38: T
A39: 4.1.d | B39: Conservation and Development Policy | I39: T | K39: T | M39: T | Q39: T | U39: T | W39: T | Y39: T | AA39: T
A40: 4.1.e | B40: Priority Funding Area | I40: T | K40: T | M40: T | Q40: P | U40: T | W40: T | Y40: T | AA40: T
A41: 4.2.a | B41: Development Scope | I41: T | K41: T | M41: T | Q41: T | U41: T | W41: T | Y41: T | AA41: T | AC41: T
A42: 4.2.b | B42: Supportive Housing | I42: T | K42: T | M42: T | Q42: T | U42: T | W42: T | Y42: T | AA42: T | AC42: T
A43: 4.3.a | B43: Project Narrative | I43: T | K43: T | M43: T | S43: T | U43: T | W43: T | Y43: T | AA43: T
A44: 4.3.b | B44: Homeownership Development Projects Narrative | I44: T | K44: T | M44: T | O44: T | Q44: T | S44: T | U44: T | W44: T | Y44: T | AA44: T
A45: 4.3.c | B45: Marketability (Market Assessment Form) | I45: T | K45: T | M45: T | S45: T | U45: T | W45: T | Y45: T | AA45: T | AC45: T
A46: 4.3.d | B46: Program Narrative | AC46: T
A47: 4.4 | B47: Historic Preservation Compliance | I47: T | K47: T | M47: T | S47: N | U47: T | W47: T | Y47: T | AA47: T | AC47: N
A48: 4.5.a | B48: Flood Zone Location | I48: T | K48: T | M48: T | O48: T | Q48: T | S48: N | U48: T | W48: T | Y48: T | AA48: T | AC48: N
A49: 4.5.b | B49: CEPA | I49: T | K49: T | M49: T | S49: N | U49: T | W49: T | Y49: T | AA49: T | AC49: N
A50: 4.6.a | B50: Site Control Documentation | I50: T | K50: T | M50: T | Q50: T | U50: T | W50: T | Y50: T | AA50: T
A51: 4.6.b | B51: Site Information and Dates | I51: T | K51: T | M51: T | Q51: T | U51: T | W51: T | Y51: T | AA51: T
A52: 4.7 | B52: Planning & Zoning Board Approval | I52: T | K52: T | M52: T | Q52: T | U52: T | W52: T | Y52: T | AA52: T | AC52: T
A53: 4.8.a | B53: Unit Information | I53: T | K53: T | M53: T | U53: T | W53: T | AA53: T
A54: 4.8.b | B54: Phase I/II Environmental Site Assessment and Other Site Hazardous Materials Review | I54: T | K54: T | M54: T | S54: N | U54: T | W54: T | AA54: T
A55: 4.8.c | B55: Phase III or Other Recommended Site Investigations | I55: N | K55: N | M55: T | S55: N | U55: N | W55: N | AA55: N
A56: 4.8.d | B56: Capital Needs Assessment Report | I56: T | K56: T | M56: T | S56: N | U56: T | W56: T | AA56: T
A57: 4.8.e | B57: Energy Conservation Plan (Form Provided) | I57: T | K57: T | M57: T | S57: N | U57: T | W57: T
A58: 4.9.a | B58: Site Plan | I58: T | K58: T | M58: T | Q58: T | U58: T | W58: T | AA58: T | AC58: N
A59: 4.9.b | B59: Design Development Drawings and Specifications | I59: T | K59: T | M59: T | U59: T | W59: T | AA59: T
A60: 4.9.c | B60: Exploded Trade Payment Breakdown (Form Provided) | I60: T | K60: T | M60: T | Q60: T | S60: N | U60: T | W60: T | AA60: T
A61: 4.9.d | B61: Prevailing Wages | I61: T | K61: T | M61: T | Q61: T | S61: N | U61: T | W61: T | Y61: T | AA61: T
A62: 4.9.e | B62: Project Cost Summary (Form Provided) | I62: T | K62: T | M62: T | Q62: T | S62: N | U62: T | W62: T | AA62: T
A63: 4.10 | B63: Reduction of Affordable Units | I63: T | K63: T | M63: T | O63: T | Q63: T | S63: T | U63: T | W63: T | Y63: T | AA63: T
A64: 4.11 | B64: Program Guideform: Relocation Assistance Plan | AC64: T
A65: 4.12 | B65: Relocation Information | I65: N | K65: N | M65: T | U65: T | W65: T | AA65: T | AC65: T
B66: =Application!$A$469 -> SECTION V. RENTAL DEVELOPMENTS (N/A for Homeownership Projects)
A67: 5.1.a | B67: Rental Income Calculation Worksheet (Form Provided) | I67: T | K67: T | M67: T | Q67: T | U67: T | W67: T | Y67: T | AA67: T
A68: 5.1.b | B68: Average Income MSA Explanation | I68: T | K68: T | M68: T | U68: T | W68: T | Y68: T | AA68: T
A69: 5.2.a | B69: Detailed Income & Expense Form (Form Provided) | I69: T | K69: T | M69: T | Q69: T | S69: N | U69: T | W69: T | Y69: T | AA69: T
A70: 5.2.b | B70: Line by Line Explanation of Expenses | I70: T | K70: T | M70: T | S70: N | U70: T | W70: T | AA70: T
A71: 5.2.c | B71: Expense Summary (Generated Form) | R71: (Self-Generating)
A72: 5.2.d | B72: Real Estate Taxes | I72: T | K72: T | M72: T | S72: N | U72: T | W72: T | AA72: T
A73: 5.3 | B73: Cash Flow Projection (Generated Form) | R73: (Self-Generating)
B74: =Application!$A$504 -> SECTION VI. FINANCING
A75: 6.1 | B75: Eligible Basis | I75: N | M75: N
A76: 6.2 | B76: Syndication Expenses | I76: T | M76: T
A77: 6.3 | B77: Development Budget (Form Provided) | I77: T | K77: T | M77: T | Q77: T | U77: T | W77: T | Y77: T | AA77: T | AC77: T
A78: 6.4 | B78: LIHTC Calculation (Form Provided) | I78: T | M78: T
A79: 6.5 | B79: Sources of Funds (Form Provided) | I79: T | K79: T | M79: T | O79: T | Q79: T | U79: T | W79: T | Y79: T | AA79: T | AC79: T
A80: 6.6 | B80: Existing Debt (Form Provided) | I80: T | K80: T | M80: T | Q80: T | U80: T | W80: T | Y80: T | AA80: T
A81: 6.7 | B81: Existing Reserves | I81: T | K81: T | M81: T | O81: T | Q81: T | S81: T | U81: T | W81: T | Y81: T | AA81: T | AC81: T
B82: =Application!$A$560 -> SECTION VII. HOMEOWNERSHIP DEVELOPMENTS (N/A for Rental Properties)
A83: 7.1 | B83: Homeownership Unit Descriptions (Form Provided) | U83: T | W83: T | AA83: T
A84: 7.2 | B84: Homeownership Sales Proceeds (Form Provided) | Q84: T | U84: T | W84: T | AA84: T
A85: 7.3.a | B85: Developer/Homebuyer Subsidy Determination Worksheet (Form Provided) | U85: T | W85: T | AA85: T
A86: 7.3.b | B86: Development Cash Flow Analysis for Single Family Housing (Form Provided) | U86: T | W86: T | AA86: T
A87: 7.3.c | B87: Explanation of Resale / Recapture | U87: T | W87: T | AA87: T | AC87: T
A88: 7.3.d | B88: Homebuyer Training Plan | U88: T | W88: T | AA88: T | AC88: T
A89: 7.4 | B89: Documentation of Property Taxes and Insurance | Q89: T | U89: T | W89: T | AA89: T
B90: =Application!$A$587 -> SECTION VIII. DOH FEDERAL PROGRAMS
A91: 8.1.a | B91: NEPA Statutory Checklist (HOME Only) | U91: N | W91: T
A92: 8.1.b | B92: NEPA Environmental Assessment (HOME Only) | U92: N | W92: T
A93: 8.2.a | B93: Section 3 Plan (HOME only) | U93: N | W93: T
A94: 8.2.b | B94: Prior Good Faith Efforts | U94: N | W94: T
B95: =Application!$A$612 -> SECTION IX. AFFIRMATIVE ACTION/FAIR HOUSING AND EQUAL OPPORTUNITY
A96: 9.1 | B96: Fair Housing Impacts Form | I96: T | K96: N | M96: T | S96: N | U96: T | W96: T | AA96: T
A97: 9.2 | B97: Americans with Disabilities Act/Section 504 Notice | U97: T | W97: T | AA97: T
B98: =Application!$A$624 -> SECTION X. CERTIFICATIONS
A99: 10.1 | B99: Certifications | I99: T | K99: T | M99: T | O99: T | Q99: T | S99: T | U99: T | W99: T | Y99: T | AA99: T | AC99: T
A100: 10.2 | B100: SEEC Form 10 Certification | I100: T | K100: T | M100: T | O100: T | Q100: T | S100: T | U100: T | W100: T | Y100: T | AA100: T
A101: 10.3 | B101: Affirmative Action Policy Statement | I101: T | K101: N | M101: T | U101: T | W101: T | Y101: T | AA101: T | AC101: T
A102: 10.4 | B102: Fair Housing Policy Statement | I102: T | K102: N | M102: T | S102: N | U102: T | W102: T | AA102: T | AC102: T
A103: 10.5 | B103: Affirmatively Further Fair Housing | I103: T | K103: N | M103: T | S103: N | U103: T | W103: T | AA103: T
A104: 10.6 | B104: HTCC Certification | O104: T | Q104: T
A105: 10.7 | B105: Architect Certification | I105: T | K105: T | M105: T | U105: T | W105: T | AA105: T
A106: 10.8 | B106: Housing Consultant Certification | O106: T | Q106: T
B107: =Application!$A$658 -> SECTION XI. OTHER
A108: 11.1 | B108: 10-Year Rule Waiver | M108: N
A109: 11.2 | B109: HUD Involvement | I109: T | K109: T | M109: T | U109: T | W109: T | Y109: T | AA109: T | AC109: T
A110: 11.3 | B110: Application Fee | I110: T | M110: T | S110: T
A111: 11.4 | B111: Self Scoring | U111: T | W111: T | AA111: T | AC111: T
B112: =Application!$A$679 -> SECTION XII. HTCC APPLICATION EXHIBITS
A113: 12.1 | B113: Housing Need | O113: T | Q113: T
A114: 12.2 | B114: Sell or Transfer Land | O114: T | Q114: T
A115: 12.3 | B115: Historic Significance | O115: T | Q115: T
A116: 12.4 | B116: Proposal Narrative | O116: T | Q116: T
A117: 12.5 | B117: Loan Fund Confirmation | O117: T
A118: 12.6 | B118: Environmental Concerns | Q118: T
A119: 12.7 | B119: Housing Program Schedule | Q119: T
A120: 12.8 | B120: Consultant Confirmation | O120: T | Q120: T
A121: 12.9 | B121: Administrative Capacity | O121: T | Q121: T
A122: 12.10 | B122: Add'l Rental Income Calculation Information | Q122: T
A123: 12.11 | B123: Non-Profit Board of Directors Authorization | O123: T | Q123: T
B124: =Application!$A$737 -> SECTION XIII. POINTS CALCULATION WORKSHEETS
A125: 13.1 | B125: Points Calculation Worksheet - LIHTC (Form Provided) | M125: T
A126: 13.2 | B126: Points Calculation Worksheet - Revolving Loan Fund with Workforce Housing (Form Provided) | O126: T
A127: 13.3 | B127: Points Calculation Worksheet - Revolving Loan Fund (Form Provided) | O127: T
A128: 13.4 | B128: Points Calculation Worksheet - Housing Development (Form Provided) | Q128: T
A129: 13.5 | B129: Points Calculation Worksheet - Housing Development with Workforce Housing (Form Provided) | Q129: T
B130: =Application!$A$754 -> SECTION XIV. HTCC POINTS DOCUMENTATION
A131: 14.1 | B131: Documentation that the fund is currently established | O131: P
A132: 14.2 | B132: Previous State Housing Tax Credits | O132: P | Q132: P
A133: 14.3 | B133: Documentation of location within a QCT, NRZ, or Priority Funding Area | O133: P | Q133: P
A134: 14.4 | B134: Documentation of Building Permit(s) | Q134: P
A135: 14.5 | B135: Experience | O135: P | Q135: P
A136: 14.6 | B136: Neighborhood Revitalization | O136: P | Q136: P
I139: =COUNTA(I15:I136) -> 64 | K139: =COUNTA(K15:K136) -> 60 | M139: =COUNTA(M15:M136) -> 66 | O139: =COUNTA(O15:O136) -> 35 | Q139: =COUNTA(Q15:Q136) -> 57 | S139: =COUNTA(S15:S136) -> 35 | U139: =COUNTA(U15:U136) -> 74 | W139: =COUNTA(W15:W136) -> 74 | Y139: =COUNTA(Y15:Y136) -> 39 | AA139: =COUNTA(AA15:AA136) -> 66 | AC139: =COUNTA(AC15:AC136) -> 34

Sheet Cover Sheet
A2: COVER SHEET
B5: Date of Application Submission | C5: 2021-01-01
A7: Development Name | C7: =Application!D113 -> 0 | J7: CHFA Preliminary Financing Proposal
J8: CHFA 9% Low-Income Housing Tax Credits
A9: City / Town | C9: =Application!D119 -> 0 | J9: CHFA Tax-Exempt Bond Financing
J10: CHFA 4% Low-Income Housing Tax Credits
A11: Indicate the program this application is for: | J11: CHFA State Housing Tax Credit Contributions
J12: CHFA Other RFP: Specify
A13: =PROPER('Dev Team Info'!A6) -> Applicant | C13: =Application!D10 -> 0 | J13: CT Housing Tax Credit Contribution (HTCC)
J14: DOH Grant Funding
A15: =PROPER('Dev Team Info'!A81) -> Developer | C15: ='Dev Team Info'!C82:J82 -> 0 | J15: DOH Loan Funding
A17: =PROPER('Dev Team Info'!A161) -> Architect | C17: ='Dev Team Info'!C161:J161 -> 0
A19: =PROPER('Dev Team Info'!A235) -> Engineer | C19: ='Dev Team Info'!C235:J235 -> 0
A21: =PROPER('Dev Team Info'!A119) -> Consultant | C21: ='Dev Team Info'!C119:J119 -> 0
A23: =PROPER('Dev Team Info'!A198) -> Contractor | C23: ='Dev Team Info'!C198:J198 -> 0
A25: =PROPER('Dev Team Info'!A245) -> Property Manager | C25: ='Dev Team Info'!C245:J245 -> 0
A27: =PROPER('Dev Team Info'!A273) -> Tax Credit Syndicator | C27: ='Dev Team Info'!C273:J273 -> 0
A29: Site Control | C29: =CONCATENATE(IF(Application!D271>0,Application!C271,""),IF(Application!D272>0,Application!C272,""),IF(Application!D273>0,Application!C273,""),IF(Application!D274>0,Application!C274,""),IF(Application!D275>0,Application!C275,"")) -> 
A31: Zoning | C31: =IF(OR(Application!F322="Yes",Application!F322="Not Required"),"Yes","No") -> No
A33: Affordability | C33: =CONCATENATE(Application!H134," Years") -> Years
A35: Please provide a brief narrative outlining the proposed development below: | H35: (not to exceed space provided)

Sheet Summary Sheet
A2: DEVELOPMENT SUMMARY
A5: DEVELOPMENT NAME | C5: =Application!D113 -> 0 | I5: APPLICANT | J5: =Application!D10 -> 0
A8: SOURCES of FUNDS | E8: Construction | G8: Permanent | I8: FUNDING GAP | K8: Construction | M8: Permanent
A10: CHFA SOURCES | E10: =SUM(E11:E14) -> 0 | G10: =SUM(G11:G14) -> 0 | I10: =D24 -> TOTAL SOURCES | K10: =E24 -> 0 | M10: =G24 -> 0
A11: ='Sources of Funds'!B29&" "&'Sources of Funds'!C29 -> CHFA Loan Taxable Bonds | E11: ='Sources of Funds'!G29 -> 0 | G11: ='Sources of Funds'!I29 -> 0 | I11: =D42 -> TOTAL USES | K11: =E42 -> 0 | M11: =G42 -> 0
A12: ='Sources of Funds'!B30&" "&'Sources of Funds'!C30 -> CHFA Loan - Non-Bond Proceeds [Specify] | E12: ='Sources of Funds'!G30 -> 0 | G12: ='Sources of Funds'!I30 -> 0 | I12: FUNDING GAP | K12: =K10-K11 -> 0 | M12: =M10-M11 -> 0
A13: ='Sources of Funds'!B13&" "&'Sources of Funds'!C13 -> 4 % LIHTC Net Proceeds | E13: ='Sources of Funds'!G13 -> 0 | G13: ='Sources of Funds'!I13 -> 0
A14: ='Sources of Funds'!A16 -> CT Housing Tax Credit Contribution (HTCC) Proceeds | E14: ='Sources of Funds'!G16 -> 0 | G14: ='Sources of Funds'!I16 -> 0 | I14: RESIDENTIAL UNIT MIX
K15: NUMBER | L15: NUMBER OF | M15: TOTAL
A16: DOH SOURCES | E16: =SUM(E17:E19) -> 0 | G16: =SUM(G17:G19) -> 0 | K16: OF RENTAL | L16: HOMEOWNERSHIP | M16: NUMBER OF
A17: ='Sources of Funds'!A10:E10 -> DOH Grant Funding | E17: ='Sources of Funds'!G10 -> 0 | G17: ='Sources of Funds'!I10 -> 0 | K17: UNITS | L17: UNITS | M17: UNITS
A18: ='Sources of Funds'!A31:C31 -> DOH Loan Funding | E18: ='Sources of Funds'!G31 -> 0 | G18: ='Sources of Funds'!I31 -> 0 | J18: 0-BR | K18: =SUMIF('Rental Income Calc Worksheet'!$C$31:$C$49,"=0",'Rental Income Calc Worksheet'!$D$31:$D$49) -> 0 | L18: =SUMIF('HO Unit Descriptions'!$F$9:$F$21,0,'HO Unit Descriptions'!$C$9:$C$21) -> 0 | M18: =SUM(K18:L18) -> 0
J19: 1-BR | K19: =SUMIF('Rental Income Calc Worksheet'!$C$31:$C$49,"=1",'Rental Income Calc Worksheet'!$D$31:$D$49) -> 0 | L19: =SUMIF('HO Unit Descriptions'!$F$9:$F$21,1,'HO Unit Descriptions'!$C$9:$C$21) -> 0 | M19: 0
A20: HOMEOWNERSHIP SALES PROCEEDS | E20: ='Sources of Funds'!G18 -> 0 | G20: ='Sources of Funds'!I18 -> 0 | J20: 2-BR | K20: =SUMIF('Rental Income Calc Worksheet'!$C$31:$C$49,"=2",'Rental Income Calc Worksheet'!$D$31:$D$49) -> 0 | L20: =SUMIF('HO Unit Descriptions'!$F$9:$F$21,2,'HO Unit Descriptions'!$C$9:$C$21) -> 0 | M20: 0
J21: 3-BR | K21: =SUMIF('Rental Income Calc Worksheet'!$C$31:$C$49,"=3",'Rental Income Calc Worksheet'!$D$31:$D$49) -> 0 | L21: =SUMIF('HO Unit Descriptions'!$F$9:$F$21,3,'HO Unit Descriptions'!$C$9:$C$21) -> 0 | M21: 0
A22: OTHER SOURCES | E22: ='Sources of Funds'!G11+'Sources of Funds'!G12+'Sources of Funds'!G14+'Sources of Funds'!G15+'Sources of Funds'!G17+'Sources of Funds'!G19+'Sources of Funds'!G20+'Sources of Funds'!G21+'Sources of Funds'!G22+'Sources of Funds'!G32+'Sources of Funds'!G33+'Sources of Funds'!G34+'Sources of Funds'!G35+'Sources of Funds'!G36+'Sources of Funds'!G37+'Sources of Funds'!G38 -> 0 | G22: ='Sources of Funds'!I11+'Sources of Funds'!I12+'Sources of Funds'!I14+'Sources of Funds'!I15+'Sources of Funds'!I17+'Sources of Funds'!I19+'Sources of Funds'!I20+'Sources of Funds'!I21+'Sources of Funds'!I22+'Sources of Funds'!I32+'Sources of Funds'!I33+'Sources of Funds'!I34+'Sources of Funds'!I35+'Sources of Funds'!I36+'Sources of Funds'!I37+'Sources of Funds'!I38 -> 0 | J22: 4-BR | K22: =SUMIF('Rental Income Calc Worksheet'!$C$31:$C$49,"=4",'Rental Income Calc Worksheet'!$D$31:$D$49) -> 0 | L22: =SUMIF('HO Unit Descriptions'!$F$9:$F$21,4,'HO Unit Descriptions'!$C$9:$C$21) -> 0 | M22: 0
J23: 5-BR | K23: =SUMIF('Rental Income Calc Worksheet'!$C$31:$C$49,"=5",'Rental Income Calc Worksheet'!$D$31:$D$49) -> 0 | L23: =SUMIF('HO Unit Descriptions'!$F$9:$F$21,5,'HO Unit Descriptions'!$C$9:$C$21) -> 0 | M23: 0
D24: TOTAL SOURCES | E24: =E22+E16+E10+E20 -> 0 | G24: =G22+G16+G10+G20 -> 0 | J24: TOTAL UNITS | K24: =SUM(K18:K23) -> 0 | L24: =SUM(L18:L23) -> 0 | M24: 0
J25: Gross Square Feet | K25: =IFERROR('Project Cost Summary'!$I$8*(K24/$M$24),0) -> 0 | L25: =IFERROR('Project Cost Summary'!$I$8*(L24/$M$24),0) -> 0 | M25: 0
A28: USES | D28: Construction | F28: Permanent | I28: OPERATING PROJECTION
D29: % of Total | E29: Uses | F29: % of Total | G29: Uses
A30: Construction Hard Costs | D30: =IFERROR(E30/SUM($E$39:$E$40),0) -> 0 | E30: =DEVBGT!E18+DEVBGT!E19+SUM(DEVBGT!E21:E23) -> 0 | F30: =IF($G$42=0,0,G30/$G$42) -> 0 | G30: =DEVBGT!F18+DEVBGT!F19+SUM(DEVBGT!F21:F23) -> 0 | L30: Proforma Stabilized Year = | M30: =Application!E290 -> 0
A31: Construction Contingency | D31: 0 | E31: =DEVBGT!E24+DEVBGT!E20 -> 0 | F31: 0 | G31: =DEVBGT!F24+DEVBGT!F20 -> 0
A32: Architectural / Engineering | D32: 0 | E32: =DEVBGT!E34 -> 0 | F32: 0 | G32: =DEVBGT!F34 -> 0 | J32: INCOME
A33: Finance and Interim Costs | D33: 0 | E33: =DEVBGT!E48 -> 0 | F33: 0 | G33: =DEVBGT!F48 -> 0 | J33: TOTAL RESIDENTIAL REVENUE | M33: ='Cash Flow'!G10+'Cash Flow'!G13 -> 0
A34: Soft Costs (Fees and Expenses) | D34: 0 | E34: =DEVBGT!E61 -> 0 | F34: 0 | G34: =DEVBGT!F61 -> 0 | J34: TOTAL OTHER REVENUE | M34: =SUM('Detailed Income and Expenses'!C21:D29)+SUM('Detailed Income and Expenses'!C38:D42)+SUM('Detailed Income and Expenses'!C44:D47)+SUM('Detailed Income and Expenses'!C50:D53)+'Detailed Income and Expenses'!C55 -> 0
A35: Developer Allow. / Fee (Overhead+Profit) | D35: 0 | E35: =DEVBGT!E65 -> 0 | F35: 0 | G35: =DEVBGT!F65 -> 0 | L35: GROSS INCOME | M35: =SUM(M33:M34) -> 0
A36: Pre-Develop. Carrying Costs | D36: 0 | E36: =DEVBGT!E66 -> 0 | F36: 0 | G36: =DEVBGT!F66 -> 0 | L36: LESS: Overall Vacancy Loss | M36: ='Detailed Income and Expenses'!G36+'Detailed Income and Expenses'!H36 -> 0
A37: Site Acquisition (Recognized) | D37: 0 | E37: =SUM(DEVBGT!E67:E69) -> 0 | F37: 0 | G37: =SUM(DEVBGT!F67:F69) -> 0 | L37: EFFECTIVE GROSS INCOME (EGI) | M37: =M36+M35 -> 0
A38: Capitalized Reserves | D38: 0 | E38: =DEVBGT!E77 -> 0 | F38: 0 | G38: =DEVBGT!F77 -> 0
C39: Recognized Lending Costs | D39: 0 | E39: =SUM(E30:E38) -> 0 | F39: 0 | G39: =SUM(G30:G38) -> 0 | J39: EXPENSES | M39: ='Expenses Summary'!G63 -> 0
A40: Entity / Syndication / Other Costs | D40: 0 | E40: =DEVBGT!E86 -> 0 | F40: 0 | G40: =DEVBGT!F86 -> 0
D42: TOTAL USES | E42: =SUM(E39,E40) -> 0 | G42: =SUM(G39,G40) -> 0 | L42: ESTIMATED INITIAL NOI | M42: =M37-M39 -> 0

Sheet Application
A2: CHFA & DOH CONSOLIDATED APPLICATION FORM | N2: ="Version "&ImpConAppVersion -> Version 2021.2
A3: General Information and Rental Developments | N3: 2021.2
A5: SECTION I. APPLICANT and CO-SPONSOR
A7: Applicant and Co-Sponsor Information | E7: DEVELOPMENT NAME
B8: 1.1 | C8: Applicant (Owner/Mortgagor) | E8: =$D$113 -> 0
C10: Applicant Name
C12: Applicant Address | K12: HTCC
C14: City | G14: State | I14: Zip
C16: Contact Name | G16: Title
C18: Phone | G18: Fax
C20: Email | G20: FEIN
C22: Website | G22: TIN
C24: If awarded funds pursuant to this application, will the applicant or co-sponsor be the recipient of funds? If no, please indicate type of entity to-be-formed and anticipated name and date formed. | M24: FALSE | N24: =IF(M24,"Housing Authority","") -> 
M25: FALSE | N25: =IF(M25,"Partnership","") -> 
B26: 1.2 | C26: Please check appropriate Applicant type: | M26: FALSE | N26: =IF(M26,"Other","") -> 
M27: FALSE | N27: =IF(M27,"For-Profit Entity","") -> 
M28: FALSE | N28: =IF(M28,"Limited Liability Company","") -> 
M29: FALSE | N29: =IF(M29,"Community Housing Development Corp","") -> 
M30: FALSE | N30: =IF(M30,"Non-Profit Entity","") -> 
C31: If "Other" | F31: *Date Corp. or Partnership was established: | M31: FALSE | N31: =IF(M31,"Municipality","") -> 
E32: **Date of last DOH CHDO Certification or date of submittal of DOH CHDO Certification | M32: FALSE | N32: =IF(M32,"Not Applicable","") -> 
C34: Please attach the Certificate of Incorporation and evidence of current non-profit status (as applicable)
B36: 1.3 | C36: Co-Sponsor (i.e. Co-Owner or Parent if Applicant is a single purpose entity)
C37: Co-Sponsor Name
C39: Co-Sponsor Address
C41: City | G41: State | I41: Zip
C43: Contact Name | G43: Title
C45: Phone | G45: Fax
C47: Email | G47: FEIN
C49: Please attach the Certificate of Incorporation and evidence of current non-profit status (as applicable) | M49: FALSE | N49: =IF(M49,"Housing Authority","") -> 
M50: FALSE | N50: =IF(M50,"Partnership","") -> 
B51: 1.4 | C51: Please check appropriate Co-Sponsor type | M51: FALSE | N51: =IF(M51,"Other","") -> 
M52: FALSE | N52: =IF(M52,"For-Profit Entity","") -> 
M53: FALSE | N53: =IF(M53,"Limited Liability Company","") -> 
M54: FALSE | N54: =IF(M54,"Non-Profit Entity","") -> 
M55: FALSE | N55: =IF(M55,"Municipality","") -> 
C56: If "Other" | F56: *Date Corp. or Partnership was established: | M56: FALSE | N56: =IF(M56,"Not Applicable","") -> 
C58: Explain the role of the non-profit and/or co-sponsor:
C61: Does the proposed project involve a qualified nonprofit organization that will own an interest in the project and materially participate in the development and operation of the project throughout the LIHTC compliance period?
B63: 1.5 | C63: Organizational Documents
C64: If the applicant or co-sponsor is a legally existing organization, submit a copy of the certificate of legal existence for the current year issued by the Office of the Secretary of State of the State of Connecticut. Attach and label as "Exhibit 1.5"
B66: 1.6 | C66: Financial Statements
C67: Attach the last three years' audited financial statements or personal financial statements (include notes and projections) for the applicant, co-sponsors and developer. If the applicant, co-sponsor and/or developer is newly formed with no historical financial statements, then provide financial statements for the parent organization.
C69: A waiver from the requirement to provide financial statements prepared or audited by an independent certified public accountant may be requested in writing by an applicant at the time the application is submitted for consideration by CHFA or DOH.
C71: (HTCC Only) Non-Profit organization must submit last three years' tax returns or annual audited financial statements as outlined above as evidence that the organization has been established for at least that time.
C72: Attach and label as “Exhibit 1.6”
A74: SECTION II. REGULATORY COMPLIANCE
B76: 2.1 | C76: Previous Financial Involvement
C77: Does the Applicant and/or Co-Sponsor have a previous financial involvement with this property?
C78: If yes, please provide a description.
C79: Attach and label as "Exhibit 2.1"
A81: SECTION III. DEVELOPMENT TEAM
B83: 3.1 | C83: Qualified Development Team Contact Information (Form Provided)
C84: 3.1.a. Provide information identifying the proposed qualified development team members on the form provided. If any identity of interest exists between development team members, indicate on the form and provide a certification signed by the applicant describing the relationship.
C85: (HTCC Only) If an architect and/or general contractor are not required, provide an explanation.
C86: Attach and label as "Exhibit 3.1.a"
C88: 3.1.b. DOH requires, and CHFA prefers, that development team members (general contractor, housing consultant, architect, and property manager) be selected through an open and competitive process, consistent with federal procurement standards. For development applications seeking funding from both agencies, the higher standard prevails. Please provide written justification for the selection of the team members noted above. The written justification must include, but not be limited to, a description of the selection process and statements for each selected firm/entity regarding the cost competitiveness of proposed fees and expenses for the services to be provided. If any identity of interest exists between development team members, indicate on the form and provide a certification signed by the applicant describing the relationship.
C89: Attach and label as "Exhibit 3.1.b"
C91: 3.1.c. Provide an Organization Chart identifying it's principals, including the Applicant and any entities with whom they may be affiliated. It should include the names of all entities and a list of all principals for the development entity, the general partnership entity, co-general partnership entities and any affiliated management entities.
C92: Attach and label as "Exhibit 3.1.c"
C94: For additional Qualified Development Team requirements, refer to the:
C95: Construction Guidelines: Project Planning & Technical Review Services
B97: 3.2 | C97: Construction Procurement Plan (DOH Only)
C98: Applicants seeking funds through DOH are required to use, at a minimum, a Request for Proposals Process in selecting their General Contractor. Detailed procurement requirements are located on the DOH Consolidated Application webpage. Applicants must provide a Construction Procurement Plan documenting compliance with DOH Procurement Standards. If the procurement of the general contractor has already been completed, then documentation must be attached to the Construction Procurement Plan documenting how the actual process used to choose a G.C. complied with your plan. The DOH Supplemental Architectural Conditions, as also maintained on the DOH website, should be provided to all parties providing pricing to assure compliance with DOH requirements.
C99: Identity of Interest - If there is an identity of interest between an applicant and/or sponsor and the general contractor, the Construction Procurement Plan must describe in detail the method to be used to comply with procurement requirements, such as bidding all subcontracts, etc.
C100: Attach and label as “Exhibit 3.2"
B102: 3.3 | C102: Resident Service Coordinator
C103: Is a Resident Service Coordinator needed for this property, and if so, do you plan on hiring one? Please explain:
C106: If a Resident Service Coordinator will be hired, an operating budget line item, or evidence of an arrangement with a third party provider specifying the funding source is required.
C107: Attach and label as "Exhibit 3.3"
A109: SECTION IV. DEVELOPMENT
B111: 4.1 | C111: Development Information
B113: Development Name
B115: Development Type | N115: =IF(D115="Family","Family","") -> 
N116: =IF(D115="Elderly","Elderly","") -> 
B117: Development Address | G117: County | N117: =IF(D115="Supportive Housing","Supportive Housing","") -> 
B119: City | G119: State | I119: Zip
B121: Metropolitan Area
C123: Chief Elected Official Name
C125: Chief Elected Official Address
C126: Chief Elected Official Email
C127: Census Tract | G127: Congressional District
C128: State Senate District(s) | G128: State House District(s)
C130: 4.1.a. If this application is for an existing development, are there existing affordability requirements?
C131: If Yes, please describe, including the number of years remaining.
C134: How many years will the project remain affordable?
C136: 4.1.b. Is the Development applying for the 4% LIHTC Acquisition Credit?
C138: 4.1.c. Is the proposed development currently part of the State Sponsored Housing Portfolio (SSHP)? If yes, indicate the year.
C140: Will the development require release from a Connecticut State Housing Program?
C142: If "Yes," which program is the applicant requesting release from?
C144: If "Other", please specify.
C146: Briefly describe the need for the request:
C149: If any transfer of ownership of a property in a Connecticut State Housing Program is contemplated, including transfer to a new tax credit partnership, the current owner must contact the CHFA Asset Manager for additional information and next steps.If an applicant believes an 8-64a approval is required, it is recommended that the owner/applicant meet with DOH and CHFA prior to the submittal of the application to advise DOH/CHFA of the development plans and the projected timeframes for initiating and completing the 8-64a process.
C151: 4.1.d Conservation and Development Policy. Select the policy that your proposed development fulfills:
C153: Briefly describe how your proposed development fulfills this policy
C156: Conservation and Development Policies Plan Map Link
C158: HUD QCT Map Link
C160: HUD DDA Look-Up and Map Link
C162: New Construction in a Regional Center, as defined by the current C&D Policies Plan, and consistent with a municipally approved plan to revitalize a specified location
C163: Located in a Priority Funding Area or Regional Center as defined in the current C&D Policies Plan
C164: Located in a Conservation Area as defined in the current C&D Policies Plan
C165: Located in a Balanced or Village Priority Funding area as defined by the current C&D Policies Plan
C166: Located in a Qualified Census Tract or DDA as defined by the most recent U.S. Census, not including new construction in a Regional Center
C167: Part of and consistent with a municipally approved plan for a Neighborhood Revitalization Zone which designates a specific targeted area
C168: Public housing development activity and is part of, and consistent with, the annual report as required by provisions of C.G.S. Section 8-68d
C170: 4.1.e. If the development is located in Priority Funding Areas, indicate the Criteria Level as defined in the current C&D Policies and Plan.
B173: 4.2 | C173: 4.2.a. Development Scope
C174: Please provide a numerical entry to each of the following categories. Please note that the number of units designated for each category will affect other sections of the Application, including Sections 4.9, and 5.1.
E176: New Construction | F176: Rehab | G176: Total Units
C177: Total number of units | G177: =SUM(E177:F177) -> 0
C178: Number of Supportive Housing Units | G178: =SUM(E178:F178) -> 0
C179: Number of Elderly Age 55+ Units | G179: 0
C180: Number of Elderly Age 62+ Units | G180: 0
C181: Number of Income Restricted Rental Units | D181: 27 | G181: =SUM(E181:F181) -> 0
C182: Number of Income Restricted Homeowner Units | G182: 0
C183: Number of CHFA Restricted Units | G183: 0
C184: Number of DOH Restricted Units | G184: 0
C185: Number of Non-Income Restricted Rental Units | G185: 0
C186: Number of Non-Income Restricted Homeowner Units | G186: =SUM(E186:F186) -> 0
C187: Number of Restricted Units that are co-funded by CHFA and DOH | G187: 0
C189: Number of Buildings
C190: Number of Surface Parking Spaces
C191: Total Project Square Footage (GSF)
C192: Total Living Unit Square Footage (NSF)
C193: Total Commercial Square Footage (NSF)
C194: Acres
C195: Scope of Rehab work
C196: Square footage effected by this scope
C198: If additional levels of rehabilitation are required, please describe including all relative square footages effected
C201: Scope of Construction Work
C202: Type of Construction | H202: Residential Square Footage (GSF) | J202: Commercial Square Footage (NSF)
C203: Minor Rehabilitation | D203: Single building, multiple story minor rehabilitation
D204: Multiple buildings, multiple story minor rehabilitation
C205: Moderate Rehabilitation | D205: Existing single building, multiple story moderate rehabilitation
D206: Existing multiple buildings, multiple story moderate rehabilitation
C207: Substantial Rehabilitation | D207: Existing single building, multiple story substantial rehabilitation
D208: Existing multiple buildings, multiple story substantial rehabilitation
C209: Gut Rehabilitation | D209: Existing single building, multiple story gut rehabilitation
D210: Existing multiple buildings, multiple story gut rehabilitation
D211: Existing single/multiple 19th/early 20th century mill buildings, gut rehab
C212: New Construction | D212: Single building, multiple story (wood frame, vinyl siding)
D213: Multiple buildings, multiple story (wood frame, vinyl siding)
D214: Single/multiple buildings, multiple story (steel frame)
C215: Other | D215: Scope of work falls between two different listed categories | G215: (Specify)
C217: Total | H217: =SUM(H203:I216) -> 0 | J217: =SUM(J203:J216) -> 0
C219: 4.2.b. Supportive Housing
C220: To be considered supportive housing units, the developer must have a written agreement in place with a recognized supportive housing organization identifying the specific number of supportive housing units and such units must be affordable to families earning less than 25% AMI. Chronically homeless units must be affordable to families with $0 income through Section 8, State RAP, or other rental subsidy for each of the development's supportive housing units housing the chronically homeless. In order to qualify, applicants must include a Services Plan and evidence of funding commitments for supportive services. (Reference must be made to the current Supportive Housing Guideline for definitions, service funding criteria and the list of Qualified Service Providers).See CHFA Supportive Housing Guidelines.
C221: Attach and label as "Exhibit 4.2.b"
B223: 4.3 | C223: 4.3.a. - Project Narrative
C224: Complete the form which is available on the SharePoint, CHFA, and DOH websites
C225: Attach and label as "Exhibit 4.3.a"
C227: 4.3.b. - Homeownership Development Projects Narrative
C228: Complete the form which is available on the SharePoint, CHFA, and DOH websites
C229: Attach and label as "Exhibit 4.3.b"
C231: 4.3.c. - Marketability
C232: Describe the market of the development area including the existing mix of real estate, demographic trends, income and employment characteristics. Identify the market areas from which the development intends to draw residents, and any absorption assumptions. For developments applying for DOH funds, applicants must demonstrate marketability through either the use of a 1) Market Study (no more than 6 months old), 2) existing waiting lists, or the 3) DOH Market Assessment Guideform which is available on the SharePoint, CHFA, and DOH websites.
C233: Choose the marketability type being used in conjunction with this proposal:
C235: Attach and label as "Exhibit 4.3.c"
C237: 4.3.d - Program Narrative
C238: Complete the form which is available on the SharePoint, CHFA, and DOH websites. Include any information that is required under the applicable NOFA or necessary to be eligible for points under the applicable Rating and Ranking form, or any other applicable information not otherwise provided.
C239: Attach and label as "Exhibit 4.3.d"
B241: 4.4 | C241: Historic Preservation Compliance
C242: Cultural Resource Review in Connecticut is conducted by the State Historic Preservation Office (SHPO) within the Department of Economic and Community Development (DECD). As required by Section 106 of the National Historic Preservation Act of 1966 and the Connecticut Environmental Policy Act (CEPA), SHPO provides technical guidance and professional advice on the potential impact of federally or state funded, assisted, licensed, or permitted projects to the state’s historic architectural and archaeological resources. This standard requires that all projects proposed to be assisted through DOH and/or CHFA consult with SHPO prior to the initiation of activates to be funded through either agency. The responsibility of SHPO is discharged in two steps: (1) identification of significant historic architectural and archaeological resources; and (2) assistance to promote compatibility between new development and preservation of the state’s cultural heritage. All projects containing structures over 50 years of age (including structures that will attain 50 years of age during the course of the project) and/or projects involving ground disturbing activities are subject to review by SHPO.
C243: Project Review is conducted through the completion of SHPO’s Project Notification Form (PNF). Following submission of a completed PNF and ancillary documents, SHPO will assess if the proposed undertaking will directly or indirectly effect properties listed or eligible for listing on the State or National Register of Historic Places. Based on the submitted scope of work, SHPO will determine if the undertaking constitutes an adverse effect to a historic property. This could include archaeological resources. Where adverse effect are identified, SHPO will assist project proponents in identifying alternatives to avoid, minimize, or mitigate adverse impacts to the historic property. If a project has been reviewed by SHPO within the past 36 months, with a finding of “no adverse effect” or “no historic properties affected”, and the scope of the project is identical to the previous submission, an additional submittal to SHPO is not required.
C244: To assure that applicants meet Cultural Resource Review standards, all applicants must submit a SHPO PNF at least 90 days prior to the application submission deadline (unless otherwise specified) so that a determination of a property’s historic designation or eligibility is identified early in the review process and that any necessary mitigation actions are incorporated into the project design and budget prior to the application deadline. Though the SHPO PNF must be submitted to SHPO at least 90 days prior to the application deadline (unless otherwise specified), it is recommended that SHPO be contacted well in advance of this requirement so that applicants can incorporated SHPO guidance into the project scope and drawings.
C245: If SHPO determines that archaeological resources may be affected, a professional cultural resources assessment survey must be completed prior to construction. The survey should assess all areas of anticipated ground disturbance that are considered to have a moderate/high sensitivity for containing significant archeological deposits, unless sufficient research or fieldwork documents that this level of effort is unwarranted. All work should be in compliance with the Environmental Review Primer for Connecticut’s Archaeological Resources and no construction or other project-related ground disturbance should be initiated until SHPO has had an opportunity to review and comment upon the requested survey. A list of qualified consultants is available from SHPO. Failure of applicants to properly comply with the 90 day submission requirements or the failure to adequately address impacts to historic properties or comply with SHPO recommendations will result in the removal of the application from consideration for funding in the applicable funding round.
C246: Applicants seeking Federal and/or State Historic Rehabilitation Tax Credits must also contact SHPO staff so that SHPO can determine whether historic tax credits are a potential funding source for the proposed project. Such applicants should meet with SHPO staff as early as possible, but not less than 90 days prior to the application deadline. Failure of applicants to properly comply with the 90 day prior meeting requirement will result in the removal of the application from consideration for funding in the applicable funding round.
C247: Attach and label as "Exhibit 4.4"
C248: SHPO website information and forms
B250: 4.5 | C250: Flood Zone Location and CEPA
C251: 4.5.a - Flood Zone Location
C252: State policy requires that any development funded through a state agency avoid assisting the development of housing activities within floodplains and to minimize any effect on floodplains due to development. Is any part of the project located in a 100 or 500 year floodplain? This information is based on official FEMA flood mapping. Please provide a current FEMA flood zone map, with clearly indicated project location.
C254: If any part of your proposed development is located in a floodplain, you must complete a flood management certification meeting with DEEP prior to the submission of an application for funding to DOH. In such instances DOH will consult with DEEP as part of the application review process and may consider an application ineligible if a Flood Management Certification cannot reasonably be expected to be granted within a reasonable timeframe based on information submitted with the funding application. In addition, the application must include a written plan describing how state flood zone certification requirements will be satisfied. Submit a FEMA Flood Insurance Rate Map (FIRM) identifying the project location.
C255: https://portal.ct.gov/DEEP/Permits-and-Licenses/Factsheets-Inland-Water/Flood-Management-Certification-Fact-Sheet
C256: Attach and label as "Exhibit 4.5.a"
C258: 4.5.b - Connecticut Environmental Policy Act (CEPA)
C259: Projects financed with DOH funding are subject to the Connecticut Environmental Policy Act (CEPA). The purpose of CEPA is to identify and evaluate the impacts of proposed State actions that could have the potential to significantly affect the environment. To ensure compliance with CEPA, all applicants must submit a CEPA Intake Review Form (together with a site plan and a map showing the project site) to DOH. Unless otherwise specified in an applicable NOFA, applicants should submit the CEPA Intake Review Form and the related materials at least 6 weeks prior to the application deadline so that DOH can complete its review well in advance of the application deadline and scoping, if it is required, can be completed prior to the application deadline.
C260: If an applicant fails to submit the CEPA Intake Review Form and the related materials less than six (6) weeks prior to the application deadline and DOH is unable to review such materials prior to the application deadline OR if DOH determines that scoping is necessary and cannot be completed in time for the application to be considered under an applicable NOFA OR if there are potential environmental impacts that require an Environmental Impact Evaluation (EIE), and an EIE has not yet been prepared, the application may be eliminated from consideration, unless otherwise specified in an applicable NOFA.
C261: The CEPA Intake Review Form is available at the link below. This form and the related materials and any related questions should be sent to DOH.CEPA@ct.gov.
C262: http://www.ct.gov/doh/cwp/view.asp?a=4513&q=530660&PM=1
C263: Attach and label as "Exhibit 4.5.b"
B265: 4.6 | C265: Site Control and Information
C266: 4.6.a. Site Control (check all that apply)
C267: N/A for HTCC if application is for a development with CHFA and/or DOH funding and is currently under construction.
C268: Attach and label as "Exhibit 4.6"
D270: Number of Parcels | E270: Acquisition Date | F270: Acquisition Price | G270: Expiration Date | I270: Maturity Date
C271: Deed1,
C272: Option Agreement2,
C273: Purchase Contract3,
C274: Ground Lease4,
C275: Other5 (i.e. -- designated/preferred developer agreement)
C277: 4Ground Lease | D277: Maturity Date
C278: Ground Lessor
C279: 5Other (i.e. -- designated/preferred developer agreement)
C281: 4.6.b. Site Information and Dates
E283: Anticipated Completion Date
C284: 100% drawings
C285: Closing & Transfer of Property
C286: Construction Start | G286: =(YEAR(E287)-YEAR(ImpConstructionStart))*12+MONTH(E287)-MONTH(ImpConstructionStart) -> 0
C287: Completion of Construction
... 385 more rows

Sheet Dev Team Info
A2: Exhibit 3.1.a - QUALIFIED DEVELOPMENT TEAM CONTACT INFORMATION
A5: DEVELOPMENT NAME | C5: =Application!D113 -> 0 | G5: APPLICANT | H5: =Application!D10 -> 0
A6: APPLICANT
A7: (Owner/Mortgagor): | C7: =Application!D10 -> 0
B8: Address: | C8: =Application!D12 -> 0
C9: =CONCATENATE(Application!D14,", ",Application!H14," ","0",Application!J14) -> , 0 | G9: Website:
B10: Principal(s):
B11: Contact Person: | C11: =Application!D16 -> 0 | G11: Email Address: | H11: =Application!D20 -> 0
B12: Telephone Number: | C12: =Application!D18 -> 0 | G12: Fax Number: | H12: =Application!H18 -> 0
B14: Identity of interests: | E14: Entity:
A16: Please list any projects that you completed in the last three years and/or are currently involved with, regardless of the funding source, including any that are being prepared or reviewed. Please specify the project status and include any additional information that may be helpful to show entity capacity. Please use the space provided, but if additional room is needed attach a separate list with your application submission.
A17: Project | D17: Location | F17: Project Status | H17: Funding Award Date (if applicable) | I17: Comments
A34: If all current funding requests through CHFA/DOH are approved, will your current staffing level be sufficient to complete all projects in a timely manner? Please explain. (LIHTC Only)
A37: Have any projects currently underway or completed in the past three years encountered delays or required time limit extensions? Please explain. (LIHTC Only)
A40: Have any projects currently underway or completed in the last three years incurred cost overruns requiring additional funding? Please explain. (LIHTC Only)
A43: GENERAL PARTNER
A44: (Legal Name):
B45: Address:
B46: City | F46: State: | H46: Zip Code:
G47: Website:
B48: Principal/Mgng Member(s):
B49: Contact Person: | G49: Email Address:
B50: Telephone Number: | G50: Fax Number:
B52: Identity of interests: | E52: Entity:
A54: Please list any projects that you completed in the last three years and/or are currently involved with, regardless of the funding source, including any that are being prepared or reviewed. Please specify the project status and include any additional information that may be helpful to show entity capacity. Please use the space provided, but if additional room is needed attach a separate list with your application submission.
A55: Project | D55: Location | F55: Project Status | H55: Funding Award Date (if applicable) | I55: Comments
A72: If all current funding requests through CHFA/DOH are approved, will your current staffing level be sufficient to complete all projects in a timely manner? Please explain. (LIHTC Only)
A75: Have any projects currently underway or completed in the past three years encountered delays or required time limit extensions? Please explain. (LIHTC Only)
A78: Have any projects currently underway or completed in the last three years incurred cost overruns requiring additional funding? Please explain. (LIHTC Only)
A81: DEVELOPER
A82: (Legal Name):
B83: Address:
B84: City | F84: State: | H84: Zip Code:
G85: Website:
B86: Principal(s):
B87: Contact Person: | G87: Email Address:
B88: Telephone Number: | G88: Fax Number:
B90: Identity of interests: | E90: Entity:
A92: Please list any projects that you completed in the last three years and/or are currently involved with, regardless of the funding source, including any that are being prepared or reviewed. Please specify the project status and include any additional information that may be helpful to show entity capacity. Please use the space provided, but if additional room is needed attach a separate list with your application submission.
A93: Project | D93: Location | F93: Project Status | H93: Funding Award Date (if applicable) | I93: Comments
A110: If all current funding requests through CHFA/DOH are approved, will your current staffing level be sufficient to complete all projects in a timely manner? Please explain. (LIHTC Only)
A113: Have any projects currently underway or completed in the past three years encountered delays or required time limit extensions? Please explain. (LIHTC Only)
A116: Have any projects currently underway or completed in the last three years incurred cost overruns requiring additional funding? Please explain. (LIHTC Only)
A119: CONSULTANT
B120: Address:
B121: City | F121: State: | H121: Zip Code:
G122: Website:
B123: Principal(s):
B124: Contact Person: | G124: Email Address:
B125: Telephone Number: | G125: Fax Number:
B127: Identity of interests: | E127: Entity:
B128: Services to be provided:
B129: Estimated Cost: | G129: Estimated Hours:
B130: SS / Federal Tax ID #: | G130: Is this firm a certified Small Business firm?
I131: Is this firm a certified Minority/Women-Owned Enterprise?
A134: Please list any projects that you completed in the last three years and/or are currently involved with, regardless of the funding source, including any that are being prepared or reviewed. Please specify the project status and include any additional information that may be helpful to show entity capacity. Please use the space provided, but if additional room is needed attach a separate list with your application submission.
A135: Project | D135: Location | F135: Project Status | H135: Funding Award Date (if applicable) | I135: Comments
A152: If all current funding requests through CHFA/DOH are approved, will your current staffing level be sufficient to complete all projects in a timely manner? Please explain. (LIHTC Only)
A155: Have any projects currently underway or completed in the past three years encountered delays or required time limit extensions? Please explain. (LIHTC Only)
A158: Have any projects currently underway or completed in the last three years incurred cost overruns requiring additional funding? Please explain. (LIHTC Only)
A161: ARCHITECT
B162: Address:
B163: City | F163: State: | H163: Zip Code:
G164: Website:
B165: Principal(s):
B166: Contact Person: | G166: Email Address:
B167: Telephone Number: | G167: Fax Number:
B169: Identity of interests: | E169: Entity:
A171: Please list any projects that you completed in the last three years and/or are currently involved with, regardless of the funding source, including any that are being prepared or reviewed. Please specify the project status and include any additional information that may be helpful to show entity capacity. Please use the space provided, but if additional room is needed attach a separate list with your application submission.
A172: Project | D172: Location | F172: Project Status | H172: Funding Award Date (if applicable) | I172: Comments
A189: If all current funding requests through CHFA/DOH are approved, will your current staffing level be sufficient to complete all projects in a timely manner? Please explain. (LIHTC Only)
A192: Have any projects currently underway or completed in the past three years encountered delays or required time limit extensions? Please explain. (LIHTC Only)
A195: Have any projects currently underway or completed in the last three years incurred cost overruns requiring additional funding? Please explain. (LIHTC Only)
A198: CONTRACTOR
B199: Address:
B200: City | F200: State: | H200: Zip Code:
G201: Website:
B202: Principal(s):
B203: Contact Person: | G203: Email Address:
B204: Telephone Number: | G204: Fax Number:
B206: Identity of interests: | E206: Entity:
A208: Please list any projects that you completed in the last three years and/or are currently involved with, regardless of the funding source, including any that are being prepared or reviewed. Please specify the project status and include any additional information that may be helpful to show entity capacity. Please use the space provided, but if additional room is needed attach a separate list with your application submission.
A209: Project | D209: Location | F209: Project Status | H209: Funding Award Date (if applicable) | I209: Comments
A226: If all current funding requests through CHFA/DOH are approved, will your current staffing level be sufficient to complete all projects in a timely manner? Please explain. (LIHTC Only)
A229: Have any projects currently underway or completed in the past three years encountered delays or required time limit extensions? Please explain. (LIHTC Only)
A232: Have any projects currently underway or completed in the last three years incurred cost overruns requiring additional funding? Please explain. (LIHTC Only)
A235: ENGINEER
B236: Address:
B237: City | F237: State: | H237: Zip Code:
G238: Website:
B239: Principal(s):
B240: Contact Person: | G240: Email Address:
B241: Telephone Number: | G241: Fax Number:
B243: Identity of interests: | E243: Entity:
A245: PROPERTY MANAGER
B246: Address:
B247: City | F247: State: | H247: Zip Code:
G248: Website:
B249: Principal(s):
B250: Contact Person: | G250: Email Address:
B251: Telephone Number: | G251: Fax Number:
B252: Approved by CHFA?:
A254: If property manager not approved by CHFA, please see CHFA website for approval requirements. N/A for HTCC Applications
B255: Identity of interests: | E255: Entity:
A257: Please list LIHTC projects you have managed for five years or more and projects that you or your organization is currently assisting which include or potentially include CHFA or DOH funding. This includes projects in the planning, development, or construction phases. Also include any projects completed within the past year. This list should include all projects being funded or potentially assisted with CHFA or DOH funds and is not limited to projects being completed by the developer under this application.
A258: LIHTC Project | D258: Location (City, State) | F258: Project Status | I258: Number of Years Managed
A265: Project | D265: Location | F265: Project Status | I265: Date Completed
A270: Please describe your current portfolio, and how any additional awards will impact it.
A273: TAX CREDIT SYNDICATOR
B274: Address:
B275: City | F275: State: | H275: Zip Code:
G276: Website:
B277: Principal(s):
B278: Contact Person: | G278: Email Address:
B279: Telephone Number: | G279: Fax Number:
B281: Identity of interests: | E281: Entity:
A283: SERVICE PROVIDER
B284: Address:
B285: City | F285: State: | H285: Zip Code:
G286: Website:
B287: Principal(s):
B288: Contact Person: | G288: Email Address:
B289: Telephone Number: | G289: Fax Number:
B291: Identity of interests: | E291: Entity:
A293: If all current funding requests through CHFA/DOH are approved, will your current funding and staffing levels e sufficient to proceed? Please explain.
A296: OTHER
B297: Address:
B298: City | F298: State: | H298: Zip Code:
G299: Website:
B300: Principal(s):
B301: Contact Person: | G301: Email Address:
B302: Telephone Number: | G302: Fax Number:
B304: Identity of interests: | E304: Entity:
A306: OTHER
B307: Address:
B308: City | F308: State: | H308: Zip Code:
G309: Website:
B310: Principal(s):
B311: Contact Person: | G311: Email Address:
B312: Telephone Number: | G312: Fax Number:
B314: Identity of interests: | E314: Entity:

Sheet Energy Conservation
A2: Exhibit 4.8.e - ENERGY CONSERVATION PLAN
A5: DEVELOPMENT NAME | B5: =Application!D113 -> 0 | D5: APPLICANT | E5: =Application!D10 -> 0
A7: Address: | B7: =Application!D117 -> 0
A8: City/Town: | B8: =Application!D119 -> 0 | D8: State: | E8: =Application!H119 -> 0 | F8: Zip: | G8: =Application!J119 -> 0
A9: Mortgagor: | B9: =Application!D10 -> 0
A11: Please refer to CHFA's current Construction Guidelines: Energy Conservation & Sustainability and the QAP (as applicable) for all requirements and additional information.
A12: CHFA Threshold Requirements
A13: 1. Minor, Moderate or Substantial Rehabilitations: All proposed energy performance-related fabrications, equipment, fixtures, controls and appliances must meet or exceed the prescriptive requirements of ENERGY STAR Multifamily New Construction (MFNC) certification program (latest version), or as otherwise indicated in these Standards or other programmatic funding requirements. ENERGY STAR performance standards for individual fabrications, equipment, fixtures, controls and appliances can be found on the ENERGY STAR website. Development teams shall prepare and submit a Thermal Efficiency and Energy Conservation Plan with the Design Development Submission, which takes into consideration pre-development testing and energy audits of existing buildings and data produced by pre-development energy modeling prepared by a Professional Engineer or Residential Energy Services Network Home Energy Ratings Systems (RESNET HERS) ENERGY STAR-certified assessor/rater. The Energy conservation plan shall include current and post-construction projected residential and common area energy usage data, a summary of proposed energy performance-related improvements, and post-construction building performance summary data. The proposed energy performance-related improvements shall provide for projected reductions in annual energy use as follows: ≥ 10% for minor rehabilitations, ≥ 15% for moderate rehabilitations and ≥ 20% for substantial rehabilitations.
A14: 2. Gut Rehabilitations and New Construction: Proposed gut rehabilitation and new construction projects shall be designed and constructed to meet or exceed the latest ENERGY STAR Multifamily New Construction (MFNC) or ENERGY STAR Single Family New Homes (SFNH) program certification requirements, as applicable. In general, single- and two-family homes and townhouses may use SFNH, and all other multifamily buildings must use MFNC. In order to determine which program a project is eligible for, use the “ENERGY STAR Multifamily New Construction Decision Tree on the ENERGY STAR website. Development teams shall prepare and submit a Thermal Efficiency and Energy Conservation Plan that indicates which ENERGY STAR Program(s) will be used to certify the completed project, whether ENERGY STAR certification will be achieved through the Energy Rating Index (ERI) or ASHRAE 90.1 Paths, and provide a summary of proposed energy performance-related measures. Although ENERGY STAR MFNC offers a Prescriptive Path to certification, since EnergizeCT financial incentives are performance-based, the Prescriptive Path is not acceptable to CHFA. Upon completion, all gut rehabilitation and new construction projects shall be ENERGY STAR-certified.
A15: Proposed Energy Performance & Sustainability related Improvements
A16: Provide a summary of the Proposed Energy & Sustainability Performance related Improvements and Retro-fit Measures:
A19: Any additional supporting documentation that should be reviewed can be uploaded and included with the submission of the application.
A21: Energy Conservation & Sustainablity Data for Preservation, Gut Rehabilitation & New Construction Projects
A22: [Note: All fields must contain the requested data and narrative (or be indicated as "N/A" if necessary) in order for the exhibit to be considered complete. Attach a summary letter/report from the Energy Use and Conservation Data Calculation Preparer clarifying any fields indicated as "N/A"]
A24: Benchmarking:
A25: Establish and document the pre- and post-rehab baseline energy consumption of each building relative to other similar buildings, by uploading project energy and water use projections data into the EPA’s online utility benchmarking platform EPA ENERGY STAR Portfolio Manager and provide CHFA access to the data.;
A26: Energy Conservation:
A27: Development team to select the program (as applicable), tier and anticipated points, appropriate to the building and construction type, and level of rehabilitation:
A30: Energy modeling is required for gut rehabilitation and new construction projects, prepared by a professional engineer and/or BPI-, RESNET HERS- or ENERGY STAR-certified assessors/raters
A31: Based on the latest ENERGY STAR HERS Index Target Procedure, the projected ENERGY STAR HERS Index Target Range and Average for this project is:
C32: to
B33: Low Target Range | D33: High Target Range | G33: Weighted Average
A34: The proposed ENERGY STAR HERS Index Range and Average for this project (< the latest ENERGY STAR HERS Index Target listed above) is:
C35: to
B36: Low Target Range | D36: High Target Range | G36: Weighted Average
A37: Based proposed ENERGY STAR HERS Index Target Range for this project, the modeled energy performance range would be (% better than the current CT Energy Code):
C38: to
A40: Green Bulding Certification Progam:
A41: Development team to select (as applicable) the certification path, tier, and anticipated points appropriate to the building and construction type, and level of rehabilitation:
A43: Renewables, Electrification and Resiliency:
A44: Development team to select (as applicable) the systems, tier and anticipated points, appropriate to the building and construction type, and level of rehabilitation:
A47: Operations and Resiliency:
A48: Development team to select (as applicable) the systems, tier and anticipated points, appropriate to the building and construction type, and level of rehabilitation:
A51: Sustainable Development with Digital Literacy and Connectivity:
A52: Development team to select (as applicable) the anticipated points, appropriate to the building and construction type, and level of rehabilitation:
A55: Utility Incentives
A56: Provide evidence of the applicant's efforts to secure other energy efficiency-related funding partners, and/or government/utility-sponsored incentive commitments [attach a Letter of Agreement (LOA), Letter of Participation (LOP), or other written correspondence from the local utility to the applicant, or a summary letter/report with an estimate from the Professional Engineer, BPI-, RESNET HERS-, EnergyStar®-certified Assessor/Rater or Utility-authorized Contractor]:
A58: Estimated Utility-Administered Financial Incentives/Rebates | C58: Dollars
A60: Energy Use and Conservation Data for Minor, Moderate or Substantial Rehabilitation Projects
A61: If the proposed application is for the Minor, Moderate or Substantial Rehabilitation of an existing multifamily residential building, as defined in the CHFA Construction Guidelines: Construction Cost, provide the following information, based on pre-development testing, energy audits and energy modeling:
A62: [Note: All fields must contain the requested data and narrative (or be indicated as “N/A”, if necessary) in order for the exhibit to be considered complete. Attach a summary letter/report from the Energy Use and Conservation Data Calculation Preparer clarifying any fields indicated as “N/A”. If tenants are responsible for utility costs, and usage information is not currently tracked, a sample of information for 10% of the units (min.), including at least one per unit type, may be used to estimate total residential usage.]
A64: Building Energy Performance Summary
A65: Total Current Annual Energy Use | C65: MMBtu
A66: Total Projected Annual Energy Use | C66: MMBtu
A67: Projected Reduction in Annual Energy Use | B67: =-((B66/B65)-1)*100 ->  | C67: Percent
A68: Projected Annual Savings | C68: Dollars
A69: Cost for Energy Performance-related Improvements | C69: Dollars
A70: Projected Payback Period (Cost/Benefit Analysis) | C70: Years
A71: Estimated Utility-Administered Financial Incentives/Rebates | C71: Dollars
A74: [Professional Engineer, BPI-, RESNET HERS-, EnergyStar®-certified Assessor/Rater or Utility-authorized Contractor]
A76: Consultant Name:
A77: Title:
A78: Firm Name:
A79: Street:
A80: Town:
A81: State/Zip Code:
A82: Email Address:
A83: Telephone Number:
A86: Prepared by:
B88: Consultant Name and Company | F88: Date

Sheet Trade Payment Breakdown
A2: Exhibit 4.9.c - EXPLODED TRADE PAYMENT BREAKDOWN
A4: IMPORTANT: The Exploded Trade Payment Breakdown must be prepared by an architect, general contractor, or cost estimation consultant (except for HTCC applications)(For CHFA Special Programs applicants please contact your Asset Manager). Include the identity and contact information of the party that prepared the Exploded Trade Payment Breakdown in the space provided at the bottom of the form.
C6: DEVELOPMENT NAME | E6: =Application!D113 -> 0 | J6: APPLICANT | K6: =Application!D10 -> 0
D8: RESIDENTIAL | H8: COMMERCIAL | L8: COMBINED TOTAL
A9: DIVISION | C9: TRADE ITEM | D9: Unit | E9: Unit Cost | F9: Quantity | G9: TOTAL | H9: Unit | I9: Unit Cost | J9: Quantity | K9: TOTAL
A10: 01 GENERAL REQUIREMENTS
B11: General | C11: Project Manager | G11: =E11*F11 -> 0 | K11: =I11*J11 -> 0 | L11: =K11+G11 -> 0
B12: Requirements | C12: Superintendent | G12: =E12*F12 -> 0 | K12: =I12*J12 -> 0 | L12: 0
C13: Secretary | G13: 0 | K13: 0 | L13: 0
C14: Vehicle Expense | G14: 0 | K14: 0 | L14: 0
C15: Travel Expense | G15: 0 | K15: 0 | L15: 0
C16: Snow Removal | G16: 0 | K16: 0 | L16: 0
C17: OSHA Protection | G17: =E17*F17 -> 0 | K17: 0 | L17: 0
C18: Survey & Layout ( Site & Bldg.) | G18: 0 | K18: =I18*J18 -> 0 | L18: 0
C19: Weather Protection | G19: 0 | K19: 0 | L19: 0
C20: Project Photographs | G20: 0 | K20: 0 | L20: 0
C21: Dumpsters | G21: 0 | K21: 0 | L21: 0
C22: Record Drawings | G22: 0 | K22: 0 | L22: 0
C23: Broken Glass Repair | G23: 0 | K23: 0 | L23: 0
C24: Temporary Toilets | G24: 0 | K24: 0 | L24: 0
C25: Temporary Fencing | G25: 0 | K25: 0 | L25: 0
C26: Temporary Heat (Winter Cond'n) | G26: 0 | K26: 0 | L26: 0
C27: Temporary Power | G27: 0 | K27: 0 | L27: 0
C28: Temporary Water | G28: 0 | K28: 0 | L28: 0
C29: Temporary Office | G29: 0 | K29: 0 | L29: 0
C30: Temporary Telephone | G30: 0 | K30: 0 | L30: 0
C31: Temporary Fire Protection | G31: 0 | K31: 0 | L31: 0
C32: Tests & Inspect'ns (Unless Spec'd) | G32: 0 | K32: 0 | L32: 0
C33: Construction Sign | G33: 0 | K33: 0 | L33: 0
C34: Materials Storage | G34: 0 | K34: 0 | L34: 0
C35: Others (Specify) | G35: 0 | K35: =I35*J35 -> 0 | L35: 0
C36: SUBTOTAL: | G36: =ROUNDDOWN(SUM(G11:G35),0) -> 0 | K36: =ROUNDDOWN(SUM(K11:K35),0) -> 0 | L36: 0
B38: TOTAL FOR GENERAL REQUIREMENTS: | G38: =G36 -> 0 | K38: =K36 -> 0 | L38: =K38+G38 -> 0
A40: 02 SITE WORK | B40: ENVIRONMENTAL
B41: Environmental Site Clean-Up | C41: Removal of Unsuitable Soils | G41: =E41*F41 -> 0 | K41: =I41*J41 -> 0 | L41: =K41+G41 -> 0
C42: Others (Specify) | G42: 0 | K42: =I42*J42 -> 0 | L42: =K42+G42 -> 0
C43: SUBTOTAL: | G43: =ROUNDDOWN(SUM(G41:G42),0) -> 0 | K43: =ROUNDDOWN(SUM(K41:K42),0) -> 0 | L43: =K43+G43 -> 0
B45: Environmental Building Remidation | C45: Lead-Based Paint Removal | G45: 0 | K45: =I45*J45 -> 0 | L45: =K45+G45 -> 0
C46: PCB's | G46: 0 | K46: =I46*J46 -> 0 | L46: 0
C47: Asbestos Removal | G47: 0 | K47: =I47*J47 -> 0 | L47: 0
C48: Universal Waste | G48: =E48*F48 -> 0 | K48: =I48*J48 -> 0 | L48: 0
C49: Radon Remediation | G49: =E49*F49 -> 0 | K49: =I49*J49 -> 0 | L49: 0
C50: SUBTOTAL: | G50: =ROUNDDOWN(SUM(G45:G49),0) -> 0 | K50: =ROUNDDOWN(SUM(K45:K49),0) -> 0 | L50: 0
A51: 02 SITE WORK | B51: SITE WORK
B52: Site Utilities | C52: Water Supply | G52: 0 | K52: =I52*J52 -> 0 | L52: =K52+G52 -> 0
C53: Sanitary Sewer | G53: 0 | K53: 0 | L53: 0
C54: Storm Sewer | G54: 0 | K54: 0 | L54: 0
C55: Gas | G55: 0 | K55: 0 | L55: 0
C56: Electric Trenching | G56: 0 | K56: 0 | L56: 0
C57: Electric conduit and wire | G57: 0 | K57: 0 | L57: 0
C58: Offsite | G58: 0 | K58: 0 | L58: 0
C59: Others (Specify) | G59: =E59*F59 -> 0 | K59: =I59*J59 -> 0 | L59: 0
C60: SUBTOTAL: | G60: =ROUNDDOWN(SUM(G52:G59),0) -> 0 | K60: =ROUNDDOWN(SUM(K52:K59),0) -> 0 | L60: 0
B62: Grading & | C62: Clearing & Grubbing | G62: =E62*F62 -> 0 | K62: =I62*J62 -> 0 | L62: =K62+G62 -> 0
B63: Excavation | C63: Cut & Fill | G63: 0 | K63: 0 | L63: 0
C64: Rock Excavation | G64: 0 | K64: 0 | L64: 0
C65: Foundation Excavation & Backfill | G65: 0 | K65: 0 | L65: 0
C66: Trenching | G66: 0 | K66: 0 | L66: 0
C67: Others (Specify) | G67: 0 | K67: 0 | L67: 0
C68: SUBTOTAL: | G68: =ROUNDDOWN(SUM(G62:G67),0) -> 0 | K68: =ROUNDDOWN(SUM(K62:K67),0) -> 0 | L68: 0
B70: Paving | C70: Bituminous Paving | G70: 0 | K70: =I70*J70 -> 0 | L70: =K70+G70 -> 0
B71: Walks & | C71: Boxing Out Paving | G71: 0 | K71: 0 | L71: 0
B72: Signs | C72: Rough / Binder Course | G72: 0 | K72: 0 | L72: 0
C73: Finish Coat | G73: 0 | K73: 0 | L73: 0
C74: Curbing | G74: 0 | K74: 0 | L74: 0
C75: Signs | G75: 0 | K75: 0 | L75: 0
C76: Concrete Walks and Steps | G76: 0 | K76: 0 | L76: 0
C77: Terrace (Specify) | G77: 0 | K77: 0 | L77: 0
C78: SUBTOTAL: | G78: =ROUNDDOWN(SUM(G70:G77),0) -> 0 | K78: =ROUNDDOWN(SUM(K70:K77),0) -> 0 | L78: 0
B80: Unusual Site | C80: Rock Excavation | G80: 0 | K80: =I80*J80 -> 0 | L80: =K80+G80 -> 0
B81: Conditions | C81: Unsuitable Soil | G81: 0 | K81: =I81*J81 -> 0 | L81: =K81+G81 -> 0
C82: Others (Specify) | G82: 0 | K82: =I82*J82 -> 0 | L82: =K82+G82 -> 0
C83: SUBTOTAL: | G83: =ROUNDDOWN(SUM(G80:G82),0) -> 0 | K83: =ROUNDDOWN(SUM(K80:K82),0) -> 0 | L83: =K83+G83 -> 0
B85: Lawns & | C85: Topsoil | G85: 0 | K85: =I85*J85 -> 0 | L85: =K85+G85 -> 0
B86: Planting | C86: Seeding & Sodding | G86: 0 | K86: =I86*J86 -> 0 | L86: =K86+G86 -> 0
C87: Plantings | G87: 0 | K87: =I87*J87 -> 0 | L87: =K87+G87 -> 0
C88: Others (Specify) | G88: =E88*F88 -> 0 | K88: =I88*J88 -> 0 | L88: =K88+G88 -> 0
C89: SUBTOTAL: | G89: =ROUNDDOWN(SUM(G85:G88),0) -> 0 | K89: =ROUNDDOWN(SUM(K85:K88),0) -> 0 | L89: =K89+G89 -> 0
B91: Other | C91: Retaining Walls & Fences | G91: 0 | K91: =I91*J91 -> 0 | L91: =K91+G91 -> 0
B92: Site | C92: Benches,Tables,Playgr'nd Equip. | G92: 0 | K92: 0 | L92: 0
B93: Work | C93: Irrigation | G93: 0 | K93: 0 | L93: 0
C94: Site Lighting | G94: 0 | K94: 0 | L94: 0
C95: Others (Specify) | G95: 0 | K95: 0 | L95: 0
C96: Others (Specify) | G96: 0 | K96: 0 | L96: 0
C97: Others (Specify) | G97: 0 | K97: =I97*J97 -> 0 | L97: 0
C98: SUBTOTAL: | G98: =ROUNDDOWN(SUM(G91:G97),0) -> 0 | K98: =ROUNDDOWN(SUM(K91:K97),0) -> 0 | L98: 0
B100: Demolition | C100: (Specify) | G100: 0 | K100: =I100*J100 -> 0 | L100: =K100+G100 -> 0
C101: SUBTOTAL: | G101: =ROUNDDOWN(SUM(G100),0) -> 0 | K101: =ROUNDDOWN(SUM(K100),0) -> 0 | L101: =K101+G101 -> 0
C103: Allowance for Division 2 Site Work | G103: =ROUNDDOWN(E103*F103,0) -> 0 | K103: =ROUNDDOWN(I103*J103,0) -> 0 | L103: =K103+G103 -> 0
C104: Allowance Scope | D104: (describe here) | H104: (describe here)
B106: TOTAL FOR ENVIRONMENTAL AND SITE WORK: | G106: =G101+G98+G89+G83+G78+G60+G68+G50+G43+G103 -> 0 | K106: =K101+K98+K89+K83+K78+K60+K68+K50+K43+K103 -> 0 | L106: =K106+G106 -> 0
A108: 03 CONCRETE
B109: Concrete | C109: Concrete Footings | G109: 0 | K109: =I109*J109 -> 0 | L109: =K109+G109 -> 0
C110: Foundation Walls | G110: 0 | K110: 0 | L110: 0
C111: Columns | G111: 0 | K111: 0 | L111: 0
C112: Slab-On-Grade | G112: 0 | K112: 0 | L112: 0
C113: Structural Slabs / Roof Deck | G113: 0 | K113: 0 | L113: 0
C114: Reinforcing Steel | G114: 0 | K114: 0 | L114: 0
C115: Others (Specify) | G115: =E115*F115 -> 0 | K115: =I115*J115 -> 0 | L115: 0
C116: SUBTOTAL: | G116: =ROUNDDOWN(SUM(G109:G115),0) -> 0 | K116: =ROUNDDOWN(SUM(K109:K115),0) -> 0 | L116: 0
C118: Allowance for Division 3 Concrete | G118: =ROUNDDOWN(E118*F118,0) -> 0 | K118: =ROUNDDOWN(I118*J118,0) -> 0 | L118: =K118+G118 -> 0
C119: Allowance Scope | D119: (describe here) | H119: (describe here)
B121: TOTAL FOR CONCRETE: | G121: =G116+G118 -> 0 | K121: =K116+K118 -> 0 | L121: =K121+G121 -> 0
A123: 04 MASONRY
B124: Masonry | C124: Face Brick | G124: =E124*F124 -> 0 | K124: =I124*J124 -> 0 | L124: =K124+G124 -> 0
C125: Concrete Block | G125: =E125*F125 -> 0 | K125: =I125*J125 -> 0 | L125: =K125+G125 -> 0
C126: Ties & Reinforcing Trusses | G126: =E126*F126 -> 0 | K126: =I126*J126 -> 0 | L126: =K126+G126 -> 0
C127: Others (Specify) | G127: =E127*F127 -> 0 | K127: =I127*J127 -> 0 | L127: =K127+G127 -> 0
C128: SUBTOTAL: | G128: =ROUNDDOWN(SUM(G124:G127),0) -> 0 | K128: =ROUNDDOWN(SUM(K124:K127),0) -> 0 | L128: =K128+G128 -> 0
C130: Allowance for Division 4 Masonry | G130: =ROUNDDOWN(E130*F130,0) -> 0 | K130: =ROUNDDOWN(I130*J130,0) -> 0 | L130: =K130+G130 -> 0
C131: Allowance Scope | D131: (describe here) | H131: (describe here)
B133: TOTAL FOR MASONRY: | G133: =G128+G130 -> 0 | K133: =K128+K130 -> 0 | L133: =K133+G133 -> 0
A135: 05 METALS
B136: Metals | C136: Structural Steel | G136: =E136*F136 -> 0 | K136: =I136*J136 -> 0 | L136: =K136+G136 -> 0
C137: Misc. Lintels & Ladders | G137: =E137*F137 -> 0 | K137: =I137*J137 -> 0 | L137: =K137+G137 -> 0
C138: Steel Stairs & Handrails | G138: =E138*F138 -> 0 | K138: =I138*J138 -> 0 | L138: =K138+G138 -> 0
C139: Others (Specify) | G139: =E139*F139 -> 0 | K139: =I139*J139 -> 0 | L139: =K139+G139 -> 0
C140: SUBTOTAL: | G140: =ROUNDDOWN(SUM(G136:G139),0) -> 0 | K140: =ROUNDDOWN(SUM(K136:K139),0) -> 0 | L140: =K140+G140 -> 0
C142: Allowance for Division 5 Metals | G142: =ROUNDDOWN(E142*F142,0) -> 0 | K142: =ROUNDDOWN(I142*J142,0) -> 0 | L142: =K142+G142 -> 0
C143: Allowance Scope | D143: (describe here) | H143: (describe here)
B145: TOTAL FOR METALS: | G145: =G140+G142 -> 0 | K145: =K140+K142 -> 0 | L145: =K145+G145 -> 0
A147: 06 CARPENTRY
B148: Rough | C148: Floor Framing Lumber | G148: =E148*F148 -> 0 | K148: =I148*J148 -> 0 | L148: =K148+G148 -> 0
B149: Carpentry | C149: Floor Framing Trusses | G149: 0 | K149: 0 | L149: 0
C150: Wall Framing | G150: 0 | K150: 0 | L150: 0
C151: Roof Framing Lumber | G151: 0 | K151: 0 | L151: 0
C152: Roof Framing Trusses | G152: 0 | K152: 0 | L152: 0
C153: Exterior Wall Sheathing | G153: 0 | K153: 0 | L153: 0
C154: Plywood Subflooring | G154: 0 | K154: 0 | L154: 0
C155: Plywood Underlayment | G155: 0 | K155: 0 | L155: 0
C156: Others (Specify) | G156: 0 | K156: =I156*J156 -> 0 | L156: 0
C157: SUBTOTAL: | G157: =ROUNDDOWN(SUM(G148:G156),0) -> 0 | K157: =ROUNDDOWN(SUM(K148:K156),0) -> 0 | L157: 0
B159: Finish | C159: Wood Stairs & Handrails | G159: =E159*F159 -> 0 | K159: =I159*J159 -> 0 | L159: =K159+G159 -> 0
B160: Carpentry | C160: Closet Shelving, Rods | G160: 0 | K160: 0 | L160: 0
C161: Wood Base & Moulding | G161: 0 | K161: 0 | L161: 0
C162: Wood Door & Window Trim | G162: 0 | K162: 0 | L162: 0
C163: Millwork | G163: 0 | K163: 0 | L163: 0
C164: Others (Specify) | G164: 0 | K164: 0 | L164: 0
C165: SUBTOTAL: | G165: =ROUNDDOWN(SUM(G159:G164),0) -> 0 | K165: =ROUNDDOWN(SUM(K159:K164),0) -> 0 | L165: 0
C167: Allowance for Division 6 Carpentry | G167: =ROUNDDOWN(E167*F167,0) -> 0 | K167: =ROUNDDOWN(I167*J167,0) -> 0 | L167: =K167+G167 -> 0
C168: Allowance Scope | D168: (describe here) | H168: (describe here)
B170: TOTAL FOR CARPENTRY: | G170: =G157+G165+G167 -> 0 | K170: =K157+K165+K167 -> 0 | L170: =K170+G170 -> 0
A172: 07 THERMAL & MOISTURE PROTECTION
B173: Moisture | C173: Dampproofing | G173: =E173*F173 -> 0 | K173: =I173*J173 -> 0 | L173: =K173+G173 -> 0
B174: Protection | C174: Waterproofing | G174: 0 | K174: 0 | L174: 0
C175: Membrane Waterproofing | G175: 0 | K175: 0 | L175: 0
C176: Prefab. Foundation Drainage | G176: 0 | K176: 0 | L176: 0
C177: Caulking | G177: 0 | K177: 0 | L177: 0
C178: Others (Specify) | G178: 0 | K178: 0 | L178: 0
C179: SUBTOTAL: | G179: =ROUNDDOWN(SUM(G173:G178),0) -> 0 | K179: =ROUNDDOWN(SUM(K173:K178),0) -> 0 | L179: 0
B181: Insulation | C181: Foundation Insulation | G181: =E181*F181 -> 0 | K181: =I181*J181 -> 0 | L181: =K181+G181 -> 0
C182: Wall Insulation | G182: =E182*F182 -> 0 | K182: =I182*J182 -> 0 | L182: =K182+G182 -> 0
C183: Ceiling Insulation | G183: =E183*F183 -> 0 | K183: =I183*J183 -> 0 | L183: =K183+G183 -> 0
C184: Others (Specify) | G184: =E184*F184 -> 0 | K184: =I184*J184 -> 0 | L184: =K184+G184 -> 0
C185: SUBTOTAL: | G185: =ROUNDDOWN(SUM(G181:G184),0) -> 0 | K185: =ROUNDDOWN(SUM(K181:K184),0) -> 0 | L185: =K185+G185 -> 0
B187: Roofing | C187: Shingle Roofing (Specify) | G187: =E187*F187 -> 0 | K187: =I187*J187 -> 0 | L187: =K187+G187 -> 0
C188: Builtup Roofing (Specify) | G188: =E188*F188 -> 0 | K188: =I188*J188 -> 0 | L188: =K188+G188 -> 0
C189: Single Ply Roofing (Specify) | G189: =E189*F189 -> 0 | K189: =I189*J189 -> 0 | L189: =K189+G189 -> 0
C190: SUBTOTAL: | G190: =ROUNDDOWN(SUM(G187:G189),0) -> 0 | K190: =ROUNDDOWN(SUM(K187:K189),0) -> 0 | L190: =K190+G190 -> 0
B192: Sheet Metal | C192: Gutters & Leaders | G192: =E192*F192 -> 0 | K192: =I192*J192 -> 0 | L192: =K192+G192 -> 0
C193: Flashing | G193: =E193*F193 -> 0 | K193: =I193*J193 -> 0 | L193: =K193+G193 -> 0
C194: Others (Specify) | G194: =E194*F194 -> 0 | K194: =I194*J194 -> 0 | L194: =K194+G194 -> 0
C195: SUBTOTAL: | G195: =ROUNDDOWN(SUM(G192:G194),0) -> 0 | K195: =ROUNDDOWN(SUM(K192:K194),0) -> 0 | L195: =K195+G195 -> 0
B197: Siding | C197: Cementitious Siding | G197: =E197*F197 -> 0 | K197: =I197*J197 -> 0 | L197: =K197+G197 -> 0
C198: Vinyl / Aluminum Siding (Specify) | G198: =E198*F198 -> 0 | K198: =I198*J198 -> 0 | L198: =K198+G198 -> 0
C199: Wood Shingles / Siding (Specify) | G199: =E199*F199 -> 0 | K199: =I199*J199 -> 0 | L199: =K199+G199 -> 0
C200: SUBTOTAL: | G200: =ROUNDDOWN(SUM(G197:G199),0) -> 0 | K200: =ROUNDDOWN(SUM(K197:K199),0) -> 0 | L200: =K200+G200 -> 0
C202: Allowance for Division 7 Thermal & Moisture | G202: =ROUNDDOWN(E202*F202,0) -> 0 | K202: =ROUNDDOWN(I202*J202,0) -> 0 | L202: =K202+G202 -> 0
C203: Allowance Scope | D203: (describe here) | H203: (describe here)
B205: TOTAL FOR THERMAL & MOISTURE PROTECTION: | G205: =G179+G185+G190+G195+G200+G202 -> 0 | K205: =K179+K185+K190+K195+K200+K202 -> 0 | L205: =K205+G205 -> 0
A207: 08 DOORS & WINDOWS
B208: Doors & | C208: Doors & Frames Exterior | G208: =E208*F208 -> 0 | K208: =I208*J208 -> 0 | L208: =K208+G208 -> 0
B209: Hardware | C209: Doors & Frames-Interior | G209: =E209*F209 -> 0 | K209: =I209*J209 -> 0 | L209: 0
C210: Door Hardware | G210: =E210*F210 -> 0 | K210: =I210*J210 -> 0 | L210: 0
C211: Specialty Doors & Frames | G211: =E211*F211 -> 0 | K211: =I211*J211 -> 0 | L211: 0
C212: Others (Specify) | G212: =E212*F212 -> 0 | K212: =I212*J212 -> 0 | L212: 0
C213: SUBTOTAL: | G213: =ROUNDDOWN(SUM(G208:G212),0) -> 0 | K213: =ROUNDDOWN(SUM(K208:K212),0) -> 0 | L213: 0
B216: Windows | C216: Windows & Glazing | G216: =E216*F216 -> 0 | K216: =I216*J216 -> 0 | L216: =K216+G216 -> 0
C217: Aluminum Storefront | G217: =E217*F217 -> 0 | K217: =I217*J217 -> 0 | L217: =K217+G217 -> 0
C218: Others (Specify) | G218: =E218*F218 -> 0 | K218: =I218*J218 -> 0 | L218: =K218+G218 -> 0
C219: SUBTOTAL: | G219: =ROUNDDOWN(SUM(G216:G218),0) -> 0 | K219: =ROUNDDOWN(SUM(K216:K218),0) -> 0 | L219: =K219+G219 -> 0
C221: Allowance for Division 8 Doors & Windows | G221: =ROUNDDOWN(E221*F221,0) -> 0 | K221: =ROUNDDOWN(I221*J221,0) -> 0 | L221: =K221+G221 -> 0
C222: Allowance Scope | D222: (describe here) | H222: (describe here)
B224: TOTAL FOR DOORS & WINDOWS: | G224: =G213+G219+G221 -> 0 | K224: =K213+K219+K221 -> 0 | L224: =K224+G224 -> 0
A226: 09 FINISHES
B227: Acoustical Tile | C227: Ceilings | G227: =E227*F227 -> 0 | K227: =I227*J227 -> 0 | L227: =K227+G227 -> 0
C228: Others (Specify) | G228: =E228*F228 -> 0 | K228: =I228*J228 -> 0 | L228: =K228+G228 -> 0
C229: SUBTOTAL: | G229: =ROUNDDOWN(SUM(G227:G228),0) -> 0 | K229: =ROUNDDOWN(SUM(K227:K228),0) -> 0 | L229: =K229+G229 -> 0
B231: Drywall | C231: Gypsum Board Walls | G231: =E231*F231 -> 0 | K231: =I231*J231 -> 0 | L231: =K231+G231 -> 0
C232: Gypsum Board Ceilings | G232: =E232*F232 -> 0 | K232: =I232*J232 -> 0 | L232: =K232+G232 -> 0
C233: Others (Specify) | G233: =E233*F233 -> 0 | K233: =I233*J233 -> 0 | L233: =K233+G233 -> 0
C234: SUBTOTAL: | G234: =ROUNDDOWN(SUM(G231:G233),0) -> 0 | K234: =ROUNDDOWN(SUM(K231:K233),0) -> 0 | L234: =K234+G234 -> 0
B236: Ceramic Tile | C236: Flooring & Base | G236: =E236*F236 -> 0 | K236: =I236*J236 -> 0 | L236: =K236+G236 -> 0
C237: Others (Specify) | G237: =E237*F237 -> 0 | K237: =I237*J237 -> 0 | L237: =K237+G237 -> 0
C238: SUBTOTAL: | G238: =ROUNDDOWN(SUM(G236:G237),0) -> 0 | K238: =ROUNDDOWN(SUM(K236:K237),0) -> 0 | L238: =K238+G238 -> 0
B240: Wood Flooring | C240: Flooring & Base | G240: =E240*F240 -> 0 | K240: =I240*J240 -> 0 | L240: =K240+G240 -> 0
C241: Others (Specify) | G241: =E241*F241 -> 0 | K241: =I241*J241 -> 0 | L241: 0
C242: SUBTOTAL: | G242: =ROUNDDOWN(SUM(G240:G241),0) -> 0 | K242: =ROUNDDOWN(SUM(K240:K241),0) -> 0 | L242: 0
L243: 0
B244: Res. Flooring | C244: Flooring & Base | G244: =E244*F244 -> 0 | K244: =I244*J244 -> 0 | L244: 0
... 132 more rows

Sheet Project Cost Summary
A2: Exhibit 4.9.e - PROJECT COST SUMMARY (Construction Schedule of Values)
A5: DEVELOPMENT NAME | D5: =Application!D113 -> 0 | I5: APPLICANT | J5: =Application!D10 -> 0
A7: Number of Buildings | D7: =Application!E189 -> 0 | H7: Total Commercial Square Footage (NSF) | I7: =Application!E193 -> 0
A8: Total Project Square Footage (GSF) | D8: =Application!E191 -> 0 | H8: Total Living Unit Square Footage (NSF) | I8: =Application!E192 -> 0
A9: Total Residential Square Footage (GSF) | D9: =D8-I7 -> 0 | H9: Total Number of Units | I9: ='Summary Sheet'!M24 -> 0
A11: **This form represents the Contractor's and/or Mortgagor's firm costs and services as a basis for disbursing dollar amounts when advances are requested.**
A13: LINE | B13: DIV. | C13: DIV./TRADE ITEM | E13: TOTAL RESIDENTIAL COST | F13: TOTAL COMMERCIAL COST | G13: TOTAL COST | H13: TOTAL COST / UNIT | I13: TOTAL COST / GSF | J13: REMARKS | M13: RESIDENTIAL COST / UNIT | N13: RESIDENTIAL COST / GSF | O13: COMMERCIAL COST / COMMERCIAL GSF | P13: COMMERCIAL COST / UNIT
A14: 1 | B14: 2 | C14: Environmental Site Clean-Up | E14: ='Trade Payment Breakdown'!G43 -> 0 | F14: ='Trade Payment Breakdown'!K43 -> 0 | G14: =SUM(E14:F14) -> 0 | H14: =IFERROR(G14/$I$9,0) -> 0 | I14: =IF($D$8=0,0,G14/$D$8) -> 0 | M14: =E14/$I$9 ->  | N14: =E14/$D$8 ->  | O14: =F14/$I$7 ->  | P14: =F14/$I$9 -> 
A15: 2 | B15: 2 | C15: Environmental Building Remediation | E15: ='Trade Payment Breakdown'!G50 -> 0 | F15: ='Trade Payment Breakdown'!K50 -> 0 | G15: =SUM(E15:F15) -> 0 | H15: =IFERROR(G15/$I$9,0) -> 0 | I15: 0
A16: 3 | B16: 2 | C16: Site Utilities | E16: ='Trade Payment Breakdown'!G60 -> 0 | F16: ='Trade Payment Breakdown'!K68 -> 0 | G16: 0 | H16: 0 | I16: 0
A17: 4 | B17: 2 | C17: Grading & Excavation | E17: ='Trade Payment Breakdown'!G68 -> 0 | F17: ='Trade Payment Breakdown'!K60 -> 0 | G17: 0 | H17: 0 | I17: 0
A18: 5 | B18: 2 | C18: Paving, Walks & Signs | E18: ='Trade Payment Breakdown'!G78 -> 0 | F18: ='Trade Payment Breakdown'!K78 -> 0 | G18: 0 | H18: 0 | I18: 0
A19: 6 | B19: 2 | C19: Unusual Site Conditions | E19: ='Trade Payment Breakdown'!G83 -> 0 | F19: ='Trade Payment Breakdown'!K83 -> 0 | G19: 0 | H19: 0 | I19: 0
A20: 7 | B20: 2 | C20: Lawns & Plantings | E20: ='Trade Payment Breakdown'!G89 -> 0 | F20: ='Trade Payment Breakdown'!K89 -> 0 | G20: 0 | H20: 0 | I20: 0
A21: 8 | B21: 2 | C21: Other Site Work | E21: ='Trade Payment Breakdown'!G98 -> 0 | F21: ='Trade Payment Breakdown'!K98 -> 0 | G21: 0 | H21: 0 | I21: 0
A22: 9 | B22: 2 | C22: Demolition | E22: ='Trade Payment Breakdown'!G101 -> 0 | F22: ='Trade Payment Breakdown'!K101 -> 0 | G22: 0 | H22: 0 | I22: 0
A23: 10 | B23: 2 | C23: Allowance for Division 2 | E23: ='Trade Payment Breakdown'!G103 -> 0 | F23: ='Trade Payment Breakdown'!K103 -> 0 | G23: 0 | H23: 0 | I23: 0
A24: 11 | B24: 3 | C24: Concrete | E24: ='Trade Payment Breakdown'!G116 -> 0 | F24: ='Trade Payment Breakdown'!K116 -> 0 | G24: 0 | H24: 0 | I24: 0 | M24: =E24/$I$9 ->  | N24: =E24/$D$8 ->  | O24: =F24/$I$7 ->  | P24: =F24/$I$9 -> 
A25: 12 | B25: 3 | C25: Allowance for Division 3 | E25: ='Trade Payment Breakdown'!G118 -> 0 | F25: ='Trade Payment Breakdown'!K118 -> 0 | G25: 0 | H25: 0 | I25: 0
A26: 13 | B26: 4 | C26: Masonry | E26: ='Trade Payment Breakdown'!G128 -> 0 | F26: ='Trade Payment Breakdown'!K128 -> 0 | G26: 0 | H26: 0 | I26: 0 | M26: =E26/$I$9 ->  | N26: =E26/$D$8 ->  | O26: =F26/$I$7 ->  | P26: =F26/$I$9 -> 
A27: 14 | B27: 4 | C27: Allowance for Division 4 | E27: ='Trade Payment Breakdown'!G130 -> 0 | F27: ='Trade Payment Breakdown'!K130 -> 0 | G27: 0 | H27: 0 | I27: 0
A28: 15 | B28: 5 | C28: Metals | E28: ='Trade Payment Breakdown'!G140 -> 0 | F28: ='Trade Payment Breakdown'!K140 -> 0 | G28: 0 | H28: 0 | I28: 0 | M28: =E28/$I$9 ->  | N28: =E28/$D$8 ->  | O28: =F28/$I$7 ->  | P28: =F28/$I$9 -> 
A29: 16 | B29: 5 | C29: Allowance for Division 5 | E29: ='Trade Payment Breakdown'!G142 -> 0 | F29: ='Trade Payment Breakdown'!K142 -> 0 | G29: 0 | H29: 0 | I29: 0
A30: 17 | B30: 6 | C30: Rough Carpentry | E30: ='Trade Payment Breakdown'!G157 -> 0 | F30: ='Trade Payment Breakdown'!K157 -> 0 | G30: 0 | H30: 0 | I30: 0 | M30: =E30/$I$9 ->  | N30: =E30/$D$8 ->  | O30: =F30/$I$7 ->  | P30: =F30/$I$9 -> 
A31: 18 | B31: 6 | C31: Finish Carpentry | E31: ='Trade Payment Breakdown'!G165 -> 0 | F31: ='Trade Payment Breakdown'!K165 -> 0 | G31: 0 | H31: 0 | I31: 0 | M31: =E31/$I$9 ->  | N31: =E31/$D$8 ->  | O31: =F31/$I$7 ->  | P31: =F31/$I$9 -> 
A32: 19 | B32: 6 | C32: Allowance for Division 6 | E32: ='Trade Payment Breakdown'!G167 -> 0 | F32: ='Trade Payment Breakdown'!K167 -> 0 | G32: 0 | H32: 0 | I32: 0
A33: 20 | B33: 7 | C33: Moisture Protection | E33: ='Trade Payment Breakdown'!G179 -> 0 | F33: ='Trade Payment Breakdown'!K179 -> 0 | G33: 0 | H33: 0 | I33: 0 | M33: =E33/$I$9 ->  | N33: =E33/$D$8 ->  | O33: =F33/$I$7 ->  | P33: =F33/$I$9 -> 
A34: 21 | B34: 7 | C34: Insulation | E34: ='Trade Payment Breakdown'!G185 -> 0 | F34: ='Trade Payment Breakdown'!K185 -> 0 | G34: 0 | H34: 0 | I34: 0 | M34: =E34/$I$9 ->  | N34: =E34/$D$8 ->  | O34: =F34/$I$7 ->  | P34: =F34/$I$9 -> 
A35: 22 | B35: 7 | C35: Roofing | E35: ='Trade Payment Breakdown'!G190 -> 0 | F35: ='Trade Payment Breakdown'!K190 -> 0 | G35: 0 | H35: 0 | I35: 0 | M35: =E35/$I$9 ->  | N35: =E35/$D$8 ->  | O35: =F35/$I$7 ->  | P35: =F35/$I$9 -> 
A36: 23 | B36: 7 | C36: Sheet Metal | E36: ='Trade Payment Breakdown'!G195 -> 0 | F36: ='Trade Payment Breakdown'!K195 -> 0 | G36: 0 | H36: 0 | I36: 0 | M36: =E36/$I$9 ->  | N36: =E36/$D$8 ->  | O36: =F36/$I$7 ->  | P36: =F36/$I$9 -> 
A37: 24 | B37: 7 | C37: Siding | E37: ='Trade Payment Breakdown'!G200 -> 0 | F37: ='Trade Payment Breakdown'!K200 -> 0 | G37: 0 | H37: 0 | I37: 0 | M37: =E37/$I$9 ->  | N37: =E37/$D$8 ->  | O37: =F37/$I$7 ->  | P37: =F37/$I$9 -> 
A38: 25 | B38: 7 | C38: Allowance for Division 7 | E38: ='Trade Payment Breakdown'!G202 -> 0 | F38: ='Trade Payment Breakdown'!K202 -> 0 | G38: 0 | H38: 0 | I38: 0
A39: 26 | B39: 8 | C39: Doors & Hardware | E39: ='Trade Payment Breakdown'!G213 -> 0 | F39: ='Trade Payment Breakdown'!K213 -> 0 | G39: 0 | H39: 0 | I39: 0 | M39: =E39/$I$9 ->  | N39: =E39/$D$8 ->  | O39: =F39/$I$7 ->  | P39: =F39/$I$9 -> 
A40: 27 | B40: 8 | C40: Windows | E40: ='Trade Payment Breakdown'!G219 -> 0 | F40: ='Trade Payment Breakdown'!K219 -> 0 | G40: 0 | H40: 0 | I40: 0 | M40: =E40/$I$9 ->  | N40: =E40/$D$8 ->  | O40: =F40/$I$7 ->  | P40: =F40/$I$9 -> 
A41: 28 | B41: 8 | C41: Allowance for Division 8 | E41: ='Trade Payment Breakdown'!G221 -> 0 | F41: ='Trade Payment Breakdown'!K221 -> 0 | G41: 0 | H41: 0 | I41: 0
A42: 29 | B42: 9 | C42: Acoustical Tile | E42: ='Trade Payment Breakdown'!G229 -> 0 | F42: ='Trade Payment Breakdown'!K229 -> 0 | G42: 0 | H42: 0 | I42: 0 | M42: =E42/$I$9 ->  | N42: =E42/$D$8 ->  | O42: =F42/$I$7 ->  | P42: =F42/$I$9 -> 
A43: 30 | B43: 9 | C43: Drywall | E43: ='Trade Payment Breakdown'!G234 -> 0 | F43: ='Trade Payment Breakdown'!K234 -> 0 | G43: 0 | H43: 0 | I43: 0
A44: 31 | B44: 9 | C44: Ceramic Tile | E44: ='Trade Payment Breakdown'!G238 -> 0 | F44: ='Trade Payment Breakdown'!K238 -> 0 | G44: 0 | H44: 0 | I44: 0
A45: 32 | B45: 9 | C45: Wood Flooring | E45: ='Trade Payment Breakdown'!G242 -> 0 | F45: ='Trade Payment Breakdown'!K242 -> 0 | G45: 0 | H45: 0 | I45: 0
A46: 33 | B46: 9 | C46: Resilient Flooring | E46: ='Trade Payment Breakdown'!G246 -> 0 | F46: ='Trade Payment Breakdown'!K246 -> 0 | G46: =SUM(E46:F46) -> 0 | H46: 0 | I46: =IF($D$8=0,0,G46/$D$8) -> 0
A47: 34 | B47: 9 | C47: Painting | E47: ='Trade Payment Breakdown'!G251 -> 0 | F47: ='Trade Payment Breakdown'!K251 -> 0 | G47: 0 | H47: 0 | I47: 0
A48: 35 | B48: 9 | C48: Carpet | E48: ='Trade Payment Breakdown'!G255 -> 0 | F48: ='Trade Payment Breakdown'!K255 -> 0 | G48: 0 | H48: 0 | I48: 0
A49: 36 | B49: 9 | C49: Allowance for Division 9 | E49: ='Trade Payment Breakdown'!G257 -> 0 | F49: ='Trade Payment Breakdown'!K257 -> 0 | G49: 0 | H49: 0 | I49: 0
A50: 37 | B50: 10 | C50: Unit AC and/or Sleeves | E50: ='Trade Payment Breakdown'!G264 -> 0 | F50: ='Trade Payment Breakdown'!K264 -> 0 | G50: 0 | H50: 0 | I50: 0 | M50: =E50/$I$9 ->  | N50: =E50/$D$8 ->  | O50: =F50/$I$7 ->  | P50: =F50/$I$9 -> 
A51: 38 | B51: 10 | C51: Specialties | E51: ='Trade Payment Breakdown'!G271 -> 0 | F51: ='Trade Payment Breakdown'!K271 -> 0 | G51: 0 | H51: 0 | I51: 0 | M51: =E51/$I$9 ->  | N51: =E51/$D$8 ->  | O51: =F51/$I$7 ->  | P51: =F51/$I$9 -> 
A52: 39 | B52: 10 | C52: Allowance for Division 10 | E52: ='Trade Payment Breakdown'!G273 -> 0 | F52: ='Trade Payment Breakdown'!K273 -> 0 | G52: 0 | H52: 0 | I52: 0
A53: 40 | B53: 11 | C53: Special Equipment (Specify) | E53: ='Trade Payment Breakdown'!G280 -> 0 | F53: ='Trade Payment Breakdown'!K280 -> 0 | G53: 0 | H53: 0 | I53: 0 | M53: =E53/$I$9 ->  | N53: =E53/$D$8 ->  | O53: =F53/$I$7 ->  | P53: =F53/$I$9 -> 
A54: 41 | B54: 11 | C54: Cabinets & Vanities | E54: ='Trade Payment Breakdown'!G285 -> 0 | F54: ='Trade Payment Breakdown'!K285 -> 0 | G54: 0 | H54: 0 | I54: 0 | M54: =E54/$I$9 ->  | N54: =E54/$D$8 ->  | O54: =F54/$I$7 ->  | P54: =F54/$I$9 -> 
A55: 42 | B55: 11 | C55: Kitchen Appliances | E55: ='Trade Payment Breakdown'!G295 -> 0 | F55: ='Trade Payment Breakdown'!K295 -> 0 | G55: 0 | H55: 0 | I55: 0 | M55: =E55/$I$9 ->  | N55: =E55/$D$8 ->  | O55: =F55/$I$7 ->  | P55: =F55/$I$9 -> 
A56: 43 | B56: 11 | C56: Allowance for Division 11 | E56: ='Trade Payment Breakdown'!G297 -> 0 | F56: ='Trade Payment Breakdown'!K297 -> 0 | G56: 0 | H56: 0 | I56: 0
A57: 44 | B57: 12 | C57: Furnishing | E57: ='Trade Payment Breakdown'!G305 -> 0 | F57: ='Trade Payment Breakdown'!K305 -> 0 | G57: 0 | H57: 0 | I57: 0 | M57: =E57/$I$9 ->  | N57: =E57/$D$8 ->  | O57: =F57/$I$7 ->  | P57: =F57/$I$9 -> 
A58: 45 | B58: 12 | C58: Allowance for Division 12 | E58: ='Trade Payment Breakdown'!G307 -> 0 | F58: ='Trade Payment Breakdown'!K307 -> 0 | G58: 0 | H58: 0 | I58: 0
A59: 46 | B59: 13 | C59: Special Construction | E59: ='Trade Payment Breakdown'!G316 -> 0 | F59: ='Trade Payment Breakdown'!K316 -> 0 | G59: 0 | H59: 0 | I59: 0 | M59: =E59/$I$9 ->  | N59: =E59/$D$8 ->  | O59: =F59/$I$7 ->  | P59: =F59/$I$9 -> 
A60: 47 | B60: 13 | C60: Allowance for Division 13 | E60: ='Trade Payment Breakdown'!G318 -> 0 | F60: ='Trade Payment Breakdown'!K318 -> 0 | G60: 0 | H60: 0 | I60: 0
A61: 48 | B61: 14 | C61: Elevators | E61: ='Trade Payment Breakdown'!G325 -> 0 | F61: ='Trade Payment Breakdown'!K325 -> 0 | G61: 0 | H61: 0 | I61: 0 | M61: =E61/$I$9 ->  | N61: =E61/$D$8 ->  | O61: =F61/$I$7 ->  | P61: =F61/$I$9 -> 
A62: 49 | B62: 14 | C62: Allowance for Division 14 | E62: ='Trade Payment Breakdown'!G327 -> 0 | F62: ='Trade Payment Breakdown'!K327 -> 0 | G62: 0 | H62: 0 | I62: 0
A63: 50 | B63: 15 | C63: Plumbing | E63: ='Trade Payment Breakdown'!G338+'Trade Payment Breakdown'!G346 -> 0 | F63: ='Trade Payment Breakdown'!K338+'Trade Payment Breakdown'!K346 -> 0 | G63: 0 | H63: 0 | I63: 0 | M63: =E63/$I$9 ->  | N63: =E63/$D$8 ->  | O63: =F63/$I$7 ->  | P63: =F63/$I$9 -> 
A64: 51 | B64: 15 | C64: Hydronic Heating | E64: ='Trade Payment Breakdown'!G353 -> 0 | F64: ='Trade Payment Breakdown'!K353 -> 0 | G64: 0 | H64: 0 | I64: 0 | M64: =E64/$I$9 ->  | N64: =E64/$D$8 ->  | O64: =F64/$I$7 ->  | P64: =F64/$I$9 -> 
A65: 52 | B65: 15 | C65: HVAC | E65: ='Trade Payment Breakdown'!G363 -> 0 | F65: ='Trade Payment Breakdown'!K363 -> 0 | G65: 0 | H65: 0 | I65: 0 | M65: =E65/$I$9 ->  | N65: =E65/$D$8 ->  | O65: =F65/$I$7 ->  | P65: =F65/$I$9 -> 
A66: 53 | B66: 15 | C66: Fire Suppression | E66: ='Trade Payment Breakdown'!G366 -> 0 | F66: ='Trade Payment Breakdown'!K366 -> 0 | G66: 0 | H66: 0 | I66: 0 | M66: =E66/$I$9 ->  | N66: =E66/$D$8 ->  | O66: =F66/$I$7 ->  | P66: =F66/$I$9 -> 
A67: 54 | B67: 15 | C67: Allowance for Division 15 | E67: ='Trade Payment Breakdown'!G368 -> 0 | F67: ='Trade Payment Breakdown'!K368 -> 0 | G67: 0 | H67: 0 | I67: 0
A68: 55 | B68: 16 | C68: Electrical (Building Only) | E68: ='Trade Payment Breakdown'!G377+'Trade Payment Breakdown'!G386 -> 0 | F68: ='Trade Payment Breakdown'!K377+'Trade Payment Breakdown'!K386 -> 0 | G68: 0 | H68: 0 | I68: 0 | M68: =E68/$I$9 ->  | N68: =E68/$D$8 ->  | O68: =F68/$I$7 ->  | P68: =F68/$I$9 -> 
A69: 56 | B69: 16 | C69: Allowance for Division 16 | E69: ='Trade Payment Breakdown'!G388 -> 0 | F69: ='Trade Payment Breakdown'!K388 -> 0 | G69: 0 | H69: 0 | I69: 0
A71: 57 | D71: TOTAL STRUCTURE & LAND IMPROVEMENTS | E71: =SUM(E14:E69) -> 0 | F71: =SUM(F14:F69) -> 0 | G71: =SUM(G14:G70) -> 0 | M71: =E71/$I$9 ->  | N71: =E71/$D$8 ->  | O71: =F71/$I$7 ->  | P71: =F71/$I$9 -> 
A73: 58 | B73: 1 | C73: General Requirements | E73: ='Trade Payment Breakdown'!G395 -> 0 | F73: ='Trade Payment Breakdown'!K395 -> 0 | G73: =SUM(E73:F73) -> 0
A75: 59 | D75: SUBTOTAL (Lines 57 & 58) | E75: =E73+E71 -> 0 | G75: =G73+G71 -> 0 | M75: =E75/$I$9 ->  | N75: =E75/$D$8 ->  | O75: =F75/$I$7 ->  | P75: =F75/$I$9 -> 
A77: 60 | C77: Builder's Overhead | E77: ='Trade Payment Breakdown'!G396 -> 0 | F77: ='Trade Payment Breakdown'!K396 -> 0 | G77: =SUM(E77:F77) -> 0
A78: 61 | C78: Builder's Profit | E78: ='Trade Payment Breakdown'!G397 -> 0 | F78: ='Trade Payment Breakdown'!K397 -> 0 | G78: =SUM(E78:F78) -> 0
A79: 62 | D79: SUBTOTAL (Lines 59 - 61) | E79: =+E75+E77+E78 -> 0 | F79: =+F75+F77+F78 -> 0 | G79: =+G75+G77+G78 -> 0 | M79: =E79/$I$9 ->  | N79: =E79/$D$8 ->  | O79: =F79/$I$7 ->  | P79: =F79/$I$9 -> 
A81: 63 | C81: Building Permit & Other Fees (Specify) | E81: ='Trade Payment Breakdown'!G400+'Trade Payment Breakdown'!G401 -> 0 | F81: ='Trade Payment Breakdown'!K400+'Trade Payment Breakdown'!K401 -> 0 | G81: =SUM(E81:F81) -> 0
A82: 64 | C82: Bond Premium | E82: ='Trade Payment Breakdown'!G402 -> 0 | F82: ='Trade Payment Breakdown'!K402 -> 0 | G82: =SUM(E82:F82) -> 0
A83: 65 | D83: TOTAL FOR ALL IMPROVEMENTS | E83: =SUM(E79:E82) -> 0 | F83: =SUM(F79:F82) -> 0 | G83: =SUM(G79:G82) -> 0 | M83: =E83/$I$9 ->  | N83: =E83/$D$8 ->  | O83: =F83/$I$7 ->  | P83: =F83/$I$9 -> 
A85: Within sixty (60) days after substantial completion of the Development, as determined by the Authority, and prior to Final Closing, General Contractor and identity of interest subcontractors shall deliver to the Authority, in form and content acceptable to the Authority, audited statements of costs certified by independent certified public accountant(s) licensed in the State of Connecticut and acceptable to the Authority, to further verify such costs.
A86: I/We hereby certify that the proposed housing represented in the drawings, specifications, Consolidated Application, and other application submittal exhibits, including the energy efficiency measures outlined in the Energy Conservation Plan, can be built for the cost shown above and sign under penalty for false statement, sect. 53a - 157b of the Connecticut General Statutes.
A87: Mortgagor and Contractor | H87: CHFA / DOH Staff
A89: Signature | D89: Date | E89: Date | H89: Signature | J89: Date
A91: Contractor Name | D91: Title | H91: Name | J91: Title
A93: Signature | D93: Date | E93: Date | H93: Signature | J93: Date
A95: Mortgagor Name | D95: Title | H95: Name | J95: Title

Sheet Importation Tables (hidden)
J2: Old fields no longer needed going forward
A3: Sources
B5: TAX CREDIT EQUITY, CAPITAL, GRANTS, Etc.
D8: Id | E8: Type | F8: Construction | G8: Permanent | H8: ConstructionPaydown | I8: Specify
E9: 9% Federal LIHTC net proceeds | F9: =IF('Sources of Funds'!B13=9,'Sources of Funds'!G13,0) -> 0 | G9: =IF('Sources of Funds'!B13=9,'Sources of Funds'!I13,0) -> 0 | H9: =IF('Sources of Funds'!B13=9,'Sources of Funds'!J13,0) -> 0
E10: 4% Federal LIHTC net proceeds | F10: =IF('Sources of Funds'!B13=4,'Sources of Funds'!G13,0) -> 0 | G10: =IF('Sources of Funds'!B13=4,'Sources of Funds'!I13,0) -> 0 | H10: =IF('Sources of Funds'!B13=4,'Sources of Funds'!J13,0) -> 0
E11: State HTCC net proceeds | F11: =ImpConstHTCC -> 0 | G11: =ImpPermHTCC -> 0 | H11: ='Sources of Funds'!J16 -> 0
E12: Federal Historic Credit net proceeds | F12: =ImpConstFederalHistoricTC -> 0 | G12: =ImpPermFederalHistoricTC -> 0 | H12: ='Sources of Funds'!J14 -> 0
E13: State Historic Credit net proceeds | F13: =ImpConstStateHistoricTC -> 0 | G13: =ImpPermStateHistoricTC -> 0 | H13: ='Sources of Funds'!J15 -> 0
E14: DOH CHAMP Funds
E15: DOH Pre-Development Grant
E16: DOH SSHP Grant
E17: DOH Grant Funding | F17: =ImpConstDOHEquity -> 0 | G17: =ImpPermDOHEquity -> 0 | H17: ='Sources of Funds'!J10 -> 0
E18: CDBG Grant Funding | F18: =ImpConstCDBGEquity -> 0 | G18: =ImpPermCDBGEquity -> 0 | H18: ='Sources of Funds'!J11 -> 0 | I18: =ImpCDBGEquitySpecify -> [Specify]
E19: Other Public Funds | F19: =ImpConstOtherPublicFundsEquity -> 0 | G19: =ImpPermOtherPublicFundsEquity -> 0 | H19: ='Sources of Funds'!J12 -> 0 | I19: =ImpOtherPublicFundsEquitySpecify -> [Specify]
E20: Developer/Investor Cash Equity | F20: =ImpConstDeveloperInvestorEquity -> 0 | G20: =ImpPermDeveloperInvestorEquity -> 0 | H20: ='Sources of Funds'!J17 -> 0
E21: Homeownership Sales Proceeds | F21: =ImpConstHomeownershipSalesProceeds -> 0 | G21: =ImpPermHomeownershipSalesProceeds -> 0 | H21: ='Sources of Funds'!J18 -> 0
E22: Energy Rebates | F22: =ImpConstEnergyRebates -> 0 | G22: =ImpPermEnergyRebates -> 0 | H22: ='Sources of Funds'!J19 -> 0
E23: Reserves | F23: =ImpConstExistingPropertyReserves -> 0 | G23: =ImpPermExistingPropertyReserves -> 0 | H23: ='Sources of Funds'!J20 -> 0
E24: Other 1 | F24: =ImpConstOtherSource1 -> 0 | G24: =ImpPermOtherSource1 -> 0 | H24: ='Sources of Funds'!J21 -> 0 | I24: =ImpOtherSource1Specify -> [Specify]
E25: Other 2 | F25: =ImpConstOtherSource2 -> 0 | G25: =ImpPermOtherSource2 -> 0 | H25: ='Sources of Funds'!J22 -> 0 | I25: =ImpOtherSource2Specify -> [Specify]
E26: DOH Affordable Housing Program - FLEX
E27: DOH Housing Trust Fund
E28: DOH/HUD HOME Funds
E29: DOH/HUD CDBG Small Cities Fund
E30: Exchange Proceeds
E31: Misc. Grants Proceeds
E32: State (DOH or Other) 1
E33: State (DOH or Other) 2
E34: TCAP Proceeds
B36: FINANCING [Sources w/ Notes and Mortgages ]
D38: Id | E38: Type | F38: Construction | G38: Permanent | H38: ConstructionPaydown | I38: Specify | J38: ConstructionInterestRate | K38: PermanentLoanPeriod | L38: PermanentInterestRate | M38: FullyAmortizing | N38: DeferredPayment | O38: ScheduledDebtService | P38: InitialDebtServiceCoverage
E39: CHFA Tax-Exempt Bond Funds | F39: =IF('Sources of Funds'!$C$29="Tax-Exempt Bonds",'Sources of Funds'!G29,0) -> 0 | G39: =IF('Sources of Funds'!$C$29="Tax-Exempt Bonds",'Sources of Funds'!I29,0) -> 0 | H39: =IF('Sources of Funds'!$C$29="Tax-Exempt Bonds",'Sources of Funds'!J29,0) -> 0 | J39: =IF('Sources of Funds'!$C$29="Tax-Exempt Bonds",'Sources of Funds'!K29,0) -> 0 | K39: =IF('Sources of Funds'!$C$29="Tax-Exempt Bonds",'Sources of Funds'!L29,0) -> 0 | L39: =IF('Sources of Funds'!$C$29="Tax-Exempt Bonds",'Sources of Funds'!M29,0) -> 0 | M39: =IF('Sources of Funds'!$C$29="Tax-Exempt Bonds",'Sources of Funds'!N29,0) -> 0 | N39: =IF('Sources of Funds'!$C$29="Tax-Exempt Bonds",'Sources of Funds'!O29,0) -> 0 | O39: =IF('Sources of Funds'!$C$29="Tax-Exempt Bonds",'Sources of Funds'!P29,0) -> 0 | P39: =IF('Sources of Funds'!$C$29="Tax-Exempt Bonds",'Sources of Funds'!Q29,0) -> 0
E40: CHFA Taxable Bond Funds | F40: =IF('Sources of Funds'!$C$29="Taxable Bonds",'Sources of Funds'!G29,0) -> 0 | G40: =IF('Sources of Funds'!$C$29="Taxable Bonds",'Sources of Funds'!I29,0) -> 0 | H40: =IF('Sources of Funds'!$C$29="Taxable Bonds",'Sources of Funds'!J29,0) -> 0 | J40: =IF('Sources of Funds'!$C$29="Taxable Bonds",'Sources of Funds'!K29,0) -> 0 | K40: =IF('Sources of Funds'!$C$29="Taxable Bonds",'Sources of Funds'!L29,0) -> 30 | L40: =IF('Sources of Funds'!$C$29="Taxable Bonds",'Sources of Funds'!M29,0) -> 0.0497 | M40: =IF('Sources of Funds'!$C$29="Taxable Bonds",'Sources of Funds'!N29,0) -> 0 | N40: =IF('Sources of Funds'!$C$29="Taxable Bonds",'Sources of Funds'!O29,0) -> N/A | O40: =IF('Sources of Funds'!$C$29="Taxable Bonds",'Sources of Funds'!P29,0) -> 0 | P40: =IF('Sources of Funds'!$C$29="Taxable Bonds",'Sources of Funds'!Q29,0) -> N/A
E41: CHFA Loan Non-Bond Proceeds | F41: =ImpConstCHFALoanNonBondProceeds -> 0 | G41: =ImpPermCHFALoanNonBondProceeds -> 0 | H41: ='Sources of Funds'!J30 -> 0 | I41: =ImpCHFANonBondProceedsSpecify -> [Specify] | J41: ='Sources of Funds'!K30 -> 0 | K41: ='Sources of Funds'!L30 -> 0 | L41: ='Sources of Funds'!M30 -> 0 | M41: ='Sources of Funds'!N30 -> 0 | N41: ='Sources of Funds'!O30 -> N/A | O41: ='Sources of Funds'!P30 -> 0 | P41: ='Sources of Funds'!Q30 -> N/A
E42: DOH Loan Funding | F42: =ImpConstDOHFinancing -> 0 | G42: =ImpPermDOHFinancing -> 0 | H42: ='Sources of Funds'!J31 -> 0 | J42: =ImpDOHConstRate -> 0 | K42: =ImpDOHPermYrs -> 0 | L42: =ImpDOHPermRate -> 0 | M42: ='Sources of Funds'!N31 -> N | N42: ='Sources of Funds'!O31 -> 0 | O42: ='Sources of Funds'!P31 -> 0 | P42: ='Sources of Funds'!Q31 -> N/A
E43: DOH Critical Needs
E44: DOH Pre-Development Loan
E45: DOH SSHP Loan
E46: CDBG Loan Funding | F46: =ImpConstCDBGFinancing -> 0 | G46: =ImpPermCDBGFinancing -> 0 | H46: ='Sources of Funds'!J32 -> 0 | I46: =ImpCDBGFinancingSpecify -> [Specify] | J46: =ImpCDBGConstRate -> 0 | K46: =ImpCDBGPermYrs -> 0 | L46: =ImpCDBGPermRate -> 0 | M46: ='Sources of Funds'!N32 -> 0 | N46: ='Sources of Funds'!O32 -> 0 | O46: ='Sources of Funds'!P32 -> 0 | P46: ='Sources of Funds'!Q32 -> N/A
E47: Other Public Funds | F47: =ImpConstOtherPublicFundsFinancing -> 0 | G47: =ImpPermOtherPublicFundsFinancing -> 0 | H47: ='Sources of Funds'!J33 -> 0 | I47: =ImpOtherPublicFundsFinancingSpecify -> [Specify] | J47: =ImpOtherPublicFundsConstRate -> 0 | K47: =ImpOtherPublicFundsPermYrs -> 0 | L47: =ImpOtherPublicFundsPermRate -> 0 | M47: ='Sources of Funds'!N33 -> 0 | N47: ='Sources of Funds'!O33 -> 0 | O47: ='Sources of Funds'!P33 -> 0 | P47: ='Sources of Funds'!Q33 -> N/A
E48: Deferred Developer Fee | F48: =ImpConstDDF -> 0 | G48: =ImpPermDDF -> 0 | H48: ='Sources of Funds'!J34 -> 0 | J48: =ImpDefDevFeeConstRate -> 0 | K48: =ImpDefDevFeePermYrs -> 0 | L48: =ImpDefDevFeePermRate -> 0 | M48: ='Sources of Funds'!N34 -> N | N48: ='Sources of Funds'!O34 -> 0 | O48: ='Sources of Funds'!P34 -> 0 | P48: ='Sources of Funds'!Q34 -> N/A
E49: Other 1 | F49: =ImpConstOtherAmortizingDebt1 -> 0 | G49: =ImpPermOtherAmortizingDebt1 -> 0 | H49: ='Sources of Funds'!J35 -> 0 | I49: =ImpOtherAmortizingDebt1Specify -> [Specify] | J49: =ImpOtherAmortizingDebt1ConstRate -> 0 | K49: =ImpOtherAmortizingDebt1PermYrs -> 0 | L49: =ImpOtherAmortizingDebt1PermRate -> 0 | M49: ='Sources of Funds'!N35 -> 0 | N49: ='Sources of Funds'!O35 -> 0 | O49: ='Sources of Funds'!P35 -> 0 | P49: ='Sources of Funds'!Q35 -> N/A
E50: Other 2 | F50: =ImpConstOtherAmortizingDebt2 -> 0 | G50: =ImpPermOtherAmortizingDebt2 -> 0 | H50: ='Sources of Funds'!J36 -> 0 | I50: =ImpOtherAmortizingDebt2Specify -> [Specify] | J50: =ImpOtherAmortizingDebt2ConstRate -> 0 | K50: =ImpOtherAmortizingDebt2PermYrs -> 0 | L50: =ImpOtherAmortizingDebt2PermRate -> 0 | M50: ='Sources of Funds'!N36 -> 0 | N50: ='Sources of Funds'!O36 -> 0 | O50: ='Sources of Funds'!P36 -> 0 | P50: ='Sources of Funds'!Q36 -> N/A
E51: Other 3
E52: Seller Financing
E53: Existing Loans | F53: =ImpConstExistingDebt -> 0 | G53: =ImpPermExistingDebt -> 0 | H53: ='Sources of Funds'!J37 -> 0 | J53: =ImpExistingDebtConstRate -> 0 | K53: =ImpExistingDebtPermYrs -> 0 | L53: =ImpExistingDebtPermRate -> 0 | M53: ='Sources of Funds'!N37 -> 0 | N53: ='Sources of Funds'!O37 -> 0 | O53: ='Sources of Funds'!P37 -> 0 | P53: ='Sources of Funds'!Q37 -> N/A
E54: Developer Loan | F54: =ImpConstOtherGPLoan -> 0 | G54: =ImpPermOtherGPLoan -> 0 | H54: ='Sources of Funds'!J38 -> 0 | J54: =ImpGPLoanConstRate -> 0 | K54: =ImpGPLoanPermYrs -> 0 | L54: =ImpGPLoanPermRate -> 0 | M54: ='Sources of Funds'!N38 -> 0 | N54: ='Sources of Funds'!O38 -> 0 | O54: ='Sources of Funds'!P38 -> 0 | P54: ='Sources of Funds'!Q38 -> N/A
E55: CHFA CIA Funds
E56: CHFA First Mortgage
E57: CHFA ITA Funds
E58: CHFA Next Steps
E59: CHFA PILOTS
E60: DOH Affordable Housing Program - FLEX
E61: DOH CHAMP Funds
E62: DOH Housing Trust Fund
E63: DOH/HUD CDBG Small Cities Funds
E64: DOH/HUD HOME Funds
E65: NIBP (New Issue Bond Program)
E66: Other Financing 1
E67: Other Financing 2
E68: Private Activity Bonds
E69: Private Bank Loan
E70: PSHI Conditional Grant Funding
E71: State (DOH or Other)
A75: Uses
B76: Construction Costs
D77: Id | E77: Type | F77: NPV70Percent | G77: NPV30Percent | H77: TaxExemptBondBasis | I77: Specify | J77: Construction | K77: Permanent
E78: Site and Improvements | F78: =DEVBGT!I12 -> 0 | G78: =DEVBGT!J12 -> 0 | H78: =DEVBGT!K12 -> 0 | J78: =ImpDevBudgetConstSiteImprovements -> 0 | K78: =ImpDevBudgetPermSiteImprovements -> 0
E79: General Requirements | F79: =DEVBGT!I13 -> 0 | G79: =DEVBGT!J13 -> 0 | H79: =DEVBGT!K13 -> 0 | J79: =ImpDevBudgetConstGeneralRequirements -> 0 | K79: =ImpDevBudgetPermGeneralRequirements -> 0
E80: Builders Overhead | F80: =DEVBGT!I14 -> 0 | G80: =DEVBGT!J14 -> 0 | H80: =DEVBGT!K14 -> 0 | J80: =ImpDevBudgetConstOverheadProfit -> 0 | K80: =ImpDevBudgetPermOverheadProfit -> 0
E81: Builders Profit/GMP Fees | F81: =DEVBGT!I15 -> 0 | G81: =DEVBGT!J15 -> 0 | H81: =DEVBGT!L15 -> 0 | J81: =DEVBGT!E15 -> 0 | K81: =ImpDevBudgetPermProfit -> 0
E82: Bond Premium/L.O.C. Cost | F82: =DEVBGT!I16 -> 0 | G82: =DEVBGT!J16 -> 0 | H82: =DEVBGT!L16 -> 0 | J82: =ImpDevBudgetConstBondPremiumLOC -> 0 | K82: =ImpDevBudgetPermBondPremiumLOC -> 0
E83: Building Permits and other Development Fees | F83: =DEVBGT!I17 -> 0 | G83: =DEVBGT!J17 -> 0 | H83: =DEVBGT!L17 -> 0 | J83: =ImpDevBudgetConstBuildingPermits -> 0 | K83: =ImpDevBudgetPermBuildingPermits -> 0
E84: Commercial Construction | F84: =DEVBGT!I19 -> N/A | G84: =DEVBGT!J19 -> 0 | H84: =DEVBGT!K19 -> 0 | J84: =ImpDevBudgetConstCommercialConstruction -> 0 | K84: =ImpDevBudgetPermCommercialConstruction -> 0
E85: Other 1 | F85: =DEVBGT!I21 -> 0 | G85: =DEVBGT!J21 -> 0 | H85: =DEVBGT!K21 -> 0 | I85: =ImpDevBudgetOther1Specify -> Other | J85: =ImpDevBudgetConstOther1 -> 0 | K85: =ImpDevBudgetPermOther1 -> 0
E86: Other 2 | F86: =DEVBGT!I22 -> 0 | G86: =DEVBGT!J22 -> 0 | H86: =DEVBGT!K22 -> 0 | I86: =ImpDevBudgetOther2Specify -> Other | J86: =ImpDevBudgetConstOther2 -> 0 | K86: =ImpDevBudgetPermOther2 -> 0
E87: Other 3 | F87: =DEVBGT!I23 -> 0 | G87: =DEVBGT!J23 -> 0 | H87: =DEVBGT!K23 -> 0 | I87: =ImpDevBudgetOther3Specify -> Other | J87: =ImpDevBudgetConstOther3 -> 0 | K87: =ImpDevBudgetPermOther3 -> 0
E88: Construction Contingency | F88: =DEVBGT!I24 -> 0 | G88: =DEVBGT!J24 -> 0 | H88: =DEVBGT!K24 -> 0 | J88: =ImpDevBudgetConstConstructionContingency -> 0 | K88: =ImpDevBudgetPermConstructionContingency -> 0
E89: Commercial Construction Contingency | F89: =DEVBGT!I20 -> N/A | G89: =DEVBGT!J20 -> 0 | H89: =DEVBGT!K20 -> 0 | J89: =ImpDevBudgetConstCommercialConstructionContingency -> 0 | K89: =ImpDevBudgetPermCommercialConstructionContingency -> 0
B91: Architectural and Engineering
D92: Id | E92: Type | F92: NPV70Percent | G92: NPV30Percent | H92: TaxExemptBondBasis | I92: Specify | J92: Construction | K92: Permanent
E93: Architect - Design | F93: =DEVBGT!I26 -> 0 | G93: =DEVBGT!J26 -> 0 | H93: =DEVBGT!K26 -> 0 | J93: =ImpDevBudgetConstArchitectDesign -> 0 | K93: =ImpDevBudgetPermArchitectDesign -> 0
E94: Architect - Contract Admin | F94: =DEVBGT!I27 -> 0 | G94: =DEVBGT!J27 -> 0 | H94: =DEVBGT!K27 -> 0 | J94: =ImpDevBudgetConstArchitectContractAdmin -> 0 | K94: =ImpDevBudgetPermArchitectContractAdmin -> 0
E95: Engineering | F95: =DEVBGT!I28 -> 0 | G95: =DEVBGT!J28 -> 0 | H95: =DEVBGT!K28 -> 0 | J95: =ImpDevBudgetConstEngineering -> 0 | K95: =ImpDevBudgetPermEngineering -> 0
E96: Surveys | F96: =DEVBGT!I29 -> 0 | G96: =DEVBGT!J29 -> 0 | H96: =DEVBGT!K29 -> 0 | J96: =ImpDevBudgetConstSurveys -> 0 | K96: =ImpDevBudgetPermSurveys -> 0
E97: Landscape Architect
E98: Mechanical
E99: Traffic
E100: Other 1 | F100: =DEVBGT!I30 -> 0 | G100: =DEVBGT!J30 -> 0 | H100: =DEVBGT!K30 -> 0 | I100: =ImpDevBudgetOther4Specify -> Other | J100: =ImpDevBudgetConstOther4 -> 0 | K100: =ImpDevBudgetPermOther4 -> 0
E101: Other 2 | F101: =DEVBGT!I31 -> 0 | G101: =DEVBGT!J31 -> 0 | H101: =DEVBGT!K31 -> 0 | I101: =ImpDevBudgetOther5Specify -> Other | J101: =ImpDevBudgetConstOther5 -> 0 | K101: =ImpDevBudgetPermOther5 -> 0
E102: Other 3 | F102: =DEVBGT!I32 -> 0 | G102: =DEVBGT!J32 -> 0 | H102: =DEVBGT!K32 -> 0 | I102: =ImpDevBudgetOther6Specify -> Other | J102: =ImpDevBudgetConstOther6 -> 0 | K102: =ImpDevBudgetPermOther6 -> 0
E103: Other 4 | F103: =DEVBGT!I33 -> 0 | G103: =DEVBGT!J33 -> 0 | H103: =DEVBGT!K33 -> 0 | I103: =ImpDevBudgetOther7Specify -> Other | J103: =ImpDevBudgetConstOther7 -> 0 | K103: =ImpDevBudgetPermOther7 -> 0
B105: Finance and Interim
D106: Id | E106: Type | F106: NPV70Percent | G106: NPV30Percent | H106: TaxExemptBondBasis | I106: Specify | J106: Construction | K106: Permanent
E107: Interest (CHFA) - Const. + 2 Months Lease Up | F107: =DEVBGT!I35 -> 0 | G107: =DEVBGT!J35 -> 0 | H107: =DEVBGT!K35 -> 0 | J107: =ImpDevBudgetConstInterestCHFA -> 0 | K107: =ImpDevBudgetPermInterestCHFA -> 0
E108: CHFA Loan Origination/Commitment Fee | F108: =DEVBGT!I36 -> N/A | G108: =DEVBGT!J36 -> N/A | H108: =DEVBGT!K36 -> 0 | J108: =ImpDevBudgetConstCHFALoanOrigCommitFee -> 0 | K108: =ImpDevBudgetPermCHFALoanOrigCommitFee -> 0
E109: Interest - Bridge Loan | F109: =DEVBGT!I37 -> 0 | G109: =DEVBGT!J37 -> 0 | H109: =DEVBGT!K37 -> 0 | J109: =ImpDevBudgetConstInterestBridgeLoan -> 0 | K109: =ImpDevBudgetPermInterestBridgeLoan -> 0
E110: Fees - Bridge Loan | F110: =DEVBGT!I38 -> 0 | G110: =DEVBGT!J38 -> 0 | H110: =DEVBGT!K38 -> 0 | J110: =ImpDevBudgetConstFeesBridgeLoan -> 0 | K110: =ImpDevBudgetPermFeesBridgeLoan -> 0
E111: R.E. Taxes/PILOTS - Construction Period | F111: =DEVBGT!I39 -> 0 | G111: =DEVBGT!J39 -> 0 | H111: =DEVBGT!K39 -> 0 | J111: =ImpDevBudgetConstRETaxesPILOTS -> 0 | K111: =ImpDevBudgetPermRETaxesPILOTS -> 0
E112: Insurance - Construction Period | F112: =DEVBGT!I40 -> 0 | G112: =DEVBGT!J40 -> 0 | H112: =DEVBGT!K40 -> 0 | J112: =ImpDevBudgetConstInsurance -> 0 | K112: =ImpDevBudgetPermInsurance -> 0
E113: Utilities - Construction Period | F113: =DEVBGT!I41 -> 0 | G113: =DEVBGT!J41 -> 0 | H113: =DEVBGT!K41 -> 0 | J113: =ImpDevBudgetConstUtilitiesConstrPeriod -> 0 | K113: =ImpDevBudgetPermUtilitiesConstrPeriod -> 0
E114: Negative Arbitrage On Bonds | F114: =DEVBGT!I42 -> N/A | G114: =DEVBGT!J42 -> N/A | H114: =DEVBGT!K42 -> 0 | J114: =ImpDevBudgetConstNegativeArbitrage -> 0 | K114: =ImpDevBudgetPermNegativeArbitrage -> 0
E115: Credit Enhancement Premium | F115: =DEVBGT!I43 -> N/A | G115: =DEVBGT!J43 -> N/A | H115: =DEVBGT!K43 -> 0 | J115: =ImpDevBudgetConstCreditEnhancementPremium -> 0 | K115: =ImpDevBudgetPermCreditEnhancementPremium -> 0
E116: Cost Of Bond Issuance | F116: =DEVBGT!I44 -> 0 | G116: =DEVBGT!J44 -> 0 | H116: =DEVBGT!K44 -> 0 | J116: =ImpDevBudgetConstCostofBondIssuance -> 0 | K116: =ImpDevBudgetPermCostofBondIssuance -> 0
E117: Other 1 | F117: =DEVBGT!I45 -> 0 | G117: =DEVBGT!J45 -> 0 | H117: =DEVBGT!K45 -> 0 | I117: =ImpDevBudgetOther8Specify -> Other | J117: =ImpDevBudgetConstOther8 -> 0 | K117: =ImpDevBudgetPermOther8 -> 0
E118: Other 2 | F118: =DEVBGT!I46 -> 0 | G118: =DEVBGT!J46 -> 0 | H118: =DEVBGT!K46 -> 0 | I118: =ImpDevBudgetOther9Specify -> Other | J118: =ImpDevBudgetConstOther9 -> 0 | K118: =ImpDevBudgetPermOther9 -> 0
E119: CHFA Construction Observation | F119: =DEVBGT!I47 -> 0 | G119: =DEVBGT!J47 -> 0 | H119: =DEVBGT!K47 -> 0 | J119: =ImpDevBudgetConstCHFAConstrObservation -> 0 | K119: =ImpDevBudgetPermCHFAConstrObservation -> 0
B121: Soft Costs Fees Expenses
D122: Id | E122: Type | F122: NPV70Percent | G122: NPV30Percent | H122: TaxExemptBondBasis | I122: Specify | J122: Construction | K122: Permanent
E123: Legal Counsel - Real Estate | F123: =DEVBGT!I49 -> 0 | G123: =DEVBGT!J49 -> 0 | H123: =DEVBGT!K49 -> 0 | J123: =ImpDevBudgetConstLegalCounsel -> 0 | K123: =ImpDevBudgetPermLegalCounsel -> 0
E124: CHFA External Legal Counsel
E125: DOH External Legal Counsel | F125: =DEVBGT!I50 -> 0 | G125: =DEVBGT!J50 -> 0 | H125: =DEVBGT!K50 -> 0 | J125: =ImpDevBudgetConstDOHExternalLegalCounsel -> 0 | K125: =ImpDevBudgetPermDOHExternalLegalCounsel -> 0
E126: Title Insurance Premiums and Recording Costs | F126: =DEVBGT!I51 -> 0 | G126: =DEVBGT!J51 -> 0 | H126: =DEVBGT!K51 -> 0 | J126: =ImpDevBudgetConstTitleInsPremiumRecordingCosts -> 0 | K126: =ImpDevBudgetPermTitleInsPremiumRecordingCosts -> 0
E127: Appraisals/Market Study | F127: =DEVBGT!I52 -> 0 | G127: =DEVBGT!J52 -> 0 | H127: =DEVBGT!K52 -> 0 | J127: =ImpDevBudgetConstAppraisalMarketStudy -> 0 | K127: =ImpDevBudgetPermAppraisalMarketStudy -> 0
E128: Lease Up and Marketing | F128: =DEVBGT!I53 -> N/A | G128: =DEVBGT!J53 -> N/A | H128: =DEVBGT!K53 -> 0 | J128: =ImpDevBudgetConstLeaseUpMarketing -> 0 | K128: =ImpDevBudgetPermLeaseUpMarketing -> 0
E129: Cost Certifications | F129: =DEVBGT!I54 -> N/A | G129: =DEVBGT!J54 -> N/A | H129: =DEVBGT!K54 -> 0 | J129: =ImpDevBudgetConstCostCertifications -> 0 | K129: =ImpDevBudgetPermCostCertifications -> 0
E130: Environmental Reports and Testing | F130: =DEVBGT!I55 -> 0 | G130: =DEVBGT!J55 -> 0 | H130: =DEVBGT!K55 -> 0 | J130: =ImpDevBudgetConstEnvironmentalReportsTesting -> 0 | K130: =ImpDevBudgetPermEnvironmentalReportsTesting -> 0
E131: Other 1 | F131: =DEVBGT!I56 -> 0 | G131: =DEVBGT!J56 -> 0 | H131: =DEVBGT!K56 -> 0 | I131: =ImpDevBudgetOther10Specify -> Other | J131: =ImpDevBudgetConstOther10 -> 0 | K131: =ImpDevBudgetPermOther10 -> 0
E132: Other 2 | F132: =DEVBGT!I57 -> 0 | G132: =DEVBGT!J57 -> 0 | H132: =DEVBGT!K57 -> 0 | I132: =ImpDevBudgetOther11Specify -> Other | J132: =ImpDevBudgetConstOther11 -> 0 | K132: =ImpDevBudgetPermOther11 -> 0
E133: Other 3 | F133: =DEVBGT!I58 -> 0 | G133: =DEVBGT!J58 -> 0 | H133: =DEVBGT!K58 -> 0 | I133: =ImpDevBudgetOther12Specify -> Other | J133: =ImpDevBudgetConstOther12 -> 0 | K133: =ImpDevBudgetPermOther12 -> 0
E134: Other Commercial Uses/Costs | F134: =DEVBGT!I59 -> N/A | G134: =DEVBGT!J59 -> N/A | H134: =DEVBGT!K59 -> 0 | J134: =ImpDevBudgetConstOtherCommercialCosts -> 0 | K134: =ImpDevBudgetPermOtherCommercialCosts -> 0
E135: Soft Costs Contingency | F135: =DEVBGT!I60 -> 0 | G135: =DEVBGT!J60 -> 0 | H135: =DEVBGT!K60 -> 0 | J135: =ImpDevBudgetConstSoftCostContingency -> 0 | K135: =ImpDevBudgetPermSoftCostContingency -> 0
B137: Recognized Lending Costs
D138: Id | E138: Type | F138: NPV70Percent | G138: NPV30Percent | H138: TaxExemptBondBasis | I138: Specify | J138: Construction | K138: Permanent
E139: Developer Allowance/Fee - Cash | F139: =DEVBGT!I63 -> N/A | G139: =DEVBGT!J63 -> N/A | H139: =DEVBGT!K63 -> 0 | J139: =DEVBGT!E63 -> 0 | K139: =DEVBGT!F63 -> 0
E140: Developer Allowance/Fee - Deferred Portion | F140: =DEVBGT!I64 -> N/A | G140: =DEVBGT!J64 -> N/A | H140: =DEVBGT!K64 -> 0 | J140: =DEVBGT!E64 -> 0 | K140: =DEVBGT!F64 -> 0
E141: Developer Allowance/Fee | F141: =DEVBGT!I65 -> 0 | G141: =DEVBGT!J65 -> N/A | H141: =DEVBGT!K65 -> 0 | J141: =ImpDevBudgetConstDeveloperAllowanceFee -> 0 | K141: =ImpDevBudgetPermDeveloperAllowanceFee -> 0
E142: Pre-Development Financing (Interest) Costs (Lender-Approved) | F142: =DEVBGT!I66 -> N/A | G142: =DEVBGT!J66 -> N/A | H142: =DEVBGT!K66 -> 0 | J142: =ImpDevBudgetConstPreDevFinancingCosts -> 0 | K142: =ImpDevBudgetPermPreDevFinancingCosts -> 0
E143: Land Cost | F143: =DEVBGT!I67 -> N/A | G143: =DEVBGT!J67 -> N/A | H143: =DEVBGT!K67 -> 0 | J143: =ImpDevBudgetConstLandCost -> 0 | K143: =ImpDevBudgetPermLandCost -> 0
E144: Other | F144: =DEVBGT!I68 -> N/A | G144: =DEVBGT!J68 -> N/A | H144: =DEVBGT!K68 -> 0 | J144: =ImpDevBudgetConstOtherExistingReserves -> 0 | K144: =ImpDevBudgetPermOtherExistingReserves -> 0
E145: Existing Buildings | F145: =DEVBGT!I69 -> N/A | G145: =DEVBGT!J69 -> N/A | H145: =DEVBGT!K69 -> 0 | J145: =ImpDevBudgetConstExistingBuildings -> 0 | K145: =ImpDevBudgetPermExistingBuildings -> 0
E146: Site Acquisition | F146: =DEVBGT!I70 -> N/A | G146: =DEVBGT!J70 -> N/A | H146: =DEVBGT!K70 -> 0 | J146: =DEVBGT!E70 -> 0 | K146: =DEVBGT!F70 -> 0
E147: Operating/Debt Service/Coverage
E148: CHFA Operating Reserve | F148: =DEVBGT!I72 -> N/A | G148: =DEVBGT!J72 -> N/A | H148: =DEVBGT!K72 -> 0 | J148: =ImpDevBudgetConstCHFAOperatingReserve -> 0 | K148: =ImpDevBudgetPermCHFAOperatingReserve -> 0
E149: Capital/Replacement | F149: =DEVBGT!I74 -> N/A | G149: =DEVBGT!J74 -> N/A | H149: =DEVBGT!K74 -> 0 | J149: =ImpDevBudgetConstCapitalReplacement -> 0 | K149: =ImpDevBudgetPermCapitalReplacement -> 0
E150: Syndicator Reserve | F150: =DEVBGT!I75 -> N/A | G150: =DEVBGT!J75 -> N/A | H150: =DEVBGT!K75 -> 0 | J150: =ImpDevBudgetConstSyndicatorReserve -> 0 | K150: =ImpDevBudgetPermSyndicatorReserve -> 0
E151: Working Capital Deposit
E152: Capitalized Reserves | F152: =DEVBGT!I77 -> N/A | G152: =DEVBGT!J77 -> N/A | H152: =DEVBGT!K77 -> 0 | J152: =DEVBGT!E77 -> 0 | K152: =DEVBGT!F77 -> 0
E153: Other 1
E154: Other 2
E155: Other 3
B157: Entity and Syndication Costs
D158: Id | E158: Type | F158: NPV70Percent | G158: NPV30Percent | H158: TaxExemptBondBasis | I158: Specify | J158: Construction | K158: Permanent
E159: Entity Organizational and Legal | F159: =DEVBGT!I79 -> N/A | G159: =DEVBGT!J79 -> N/A | H159: =DEVBGT!K79 -> 0 | J159: =ImpDevBudgetConstEntityOrgandLegal -> 0 | K159: =ImpDevBudgetPermEntityOrgandLegal -> 0
E160: Syndicator Fees/Commissions | F160: =DEVBGT!I80 -> N/A | G160: =DEVBGT!J80 -> N/A | H160: =DEVBGT!K80 -> 0 | J160: =ImpDevBudgetConstSyndicatorFeesCommissions -> 0 | K160: =ImpDevBudgetPermSyndicatorFeesCommissions -> 0
E161: Equity Bridge Loan Interest and Fees | F161: =DEVBGT!I81 -> N/A | G161: =DEVBGT!J81 -> N/A | H161: =DEVBGT!K81 -> 0 | J161: =ImpDevBudgetConstEquityBridgeLoanInterestandFees -> 0 | K161: =ImpDevBudgetPermEquityBridgeLoanInterestandFees -> 0
E162: Tax Opinion and Entity Accounting | F162: =DEVBGT!I82 -> N/A | G162: =DEVBGT!J82 -> N/A | H162: =DEVBGT!K82 -> 0 | J162: =ImpDevBudgetConstTaxOpinionandEntityAccounting -> 0 | K162: =ImpDevBudgetPermTaxOpinionandEntityAccounting -> 0
E163: CHFA Tax Credit Fee | F163: =DEVBGT!I83 -> N/A | G163: =DEVBGT!J83 -> N/A | H163: =DEVBGT!K83 -> 0 | J163: =ImpDevBudgetConstCHFATaxCreditFee -> 0 | K163: =ImpDevBudgetPermCHFATaxCreditFee -> 0
E164: CHFA Tax Credit Application Fee | F164: =DEVBGT!I84 -> N/A | G164: =DEVBGT!J84 -> N/A | H164: =DEVBGT!K84 -> 0 | J164: =ImpDevBudgetConstCHFATaxCreditApplicationFee -> 0 | K164: =ImpDevBudgetPermCHFATaxCreditApplicationFee -> 0
E165: Other 1 | F165: =DEVBGT!I85 -> N/A | G165: =DEVBGT!J85 -> N/A | H165: =DEVBGT!K85 -> 0 | I165: =ImpDevBudgetOther14Specify -> Other | J165: =ImpDevBudgetConstOther14 -> 0 | K165: =ImpDevBudgetPermOther14 -> 0
B167: Other Costs
D168: Id | E168: Type | F168: NPV70Percent | G168: NPV30Percent | H168: TaxExemptBondBasis | I168: Specify | J168: Construction | K168: Permanent
E169: CHFA's First Mortgage
E170: First Mortgage
E171: Delinquent Taxes
E172: Water and Sewer
E173: Capital Repairs
E174: Unit Make Ready Costs
E175: Third Party Payables
E176: Purchase Price
E177: Housing Program Maintenance Fees
E178: Energy Efficiency
E179: Other 1
E180: Other 2
E181: Other 3
E182: Finance and Interim Costs
E183: Soft Costs
E184: Escrows
E185: Other Closing Costs
E186: Equity Take Out
D191: Id | E191: Type | F191: TotalCost | G191: CostPerSquareFoot | H191: CostPerUnit | I191: Remarks
E192: Environmental Site Clean-Up | F192: ='Project Cost Summary'!G14 -> 0 | G192: ='Project Cost Summary'!I14 -> 0 | H192: ='Project Cost Summary'!H14 -> 0 | I192: ='Project Cost Summary'!J14 -> 0
E193: Environmental Building Remediation | F193: ='Project Cost Summary'!G15 -> 0 | G193: ='Project Cost Summary'!I15 -> 0 | H193: ='Project Cost Summary'!H15 -> 0 | I193: ='Project Cost Summary'!J15 -> 0
E194: Site Utilities | F194: ='Project Cost Summary'!G16 -> 0 | G194: ='Project Cost Summary'!I16 -> 0 | H194: ='Project Cost Summary'!H16 -> 0 | I194: ='Project Cost Summary'!J16 -> 0
E195: Grading and Excavation | F195: ='Project Cost Summary'!G17 -> 0 | G195: ='Project Cost Summary'!I17 -> 0 | H195: ='Project Cost Summary'!H17 -> 0 | I195: ='Project Cost Summary'!J17 -> 0
E196: Paving, Walks and Signs | F196: ='Project Cost Summary'!G18 -> 0 | G196: ='Project Cost Summary'!I18 -> 0 | H196: ='Project Cost Summary'!H18 -> 0 | I196: ='Project Cost Summary'!J18 -> 0
E197: Unusual Site Conditions | F197: ='Project Cost Summary'!G19 -> 0 | G197: ='Project Cost Summary'!I19 -> 0 | H197: ='Project Cost Summary'!H19 -> 0 | I197: ='Project Cost Summary'!J19 -> 0
E198: Lawns and Plantings | F198: ='Project Cost Summary'!G20 -> 0 | G198: ='Project Cost Summary'!I20 -> 0 | H198: ='Project Cost Summary'!H20 -> 0 | I198: ='Project Cost Summary'!J20 -> 0
E199: Other Site Work | F199: ='Project Cost Summary'!G21 -> 0 | G199: ='Project Cost Summary'!I21 -> 0 | H199: ='Project Cost Summary'!H21 -> 0 | I199: ='Project Cost Summary'!J21 -> 0
E200: Demolition | F200: ='Project Cost Summary'!G22 -> 0 | G200: ='Project Cost Summary'!I22 -> 0 | H200: ='Project Cost Summary'!H22 -> 0 | I200: ='Project Cost Summary'!J22 -> 0
E201: Allowance for Division 2 | F201: ='Project Cost Summary'!G23 -> 0 | G201: ='Project Cost Summary'!I23 -> 0 | H201: ='Project Cost Summary'!H23 -> 0 | I201: ='Project Cost Summary'!J23 -> 0
E202: Concrete | F202: ='Project Cost Summary'!G24 -> 0 | G202: ='Project Cost Summary'!I24 -> 0 | H202: ='Project Cost Summary'!H24 -> 0 | I202: ='Project Cost Summary'!J24 -> 0
E203: Allowance for Division 3 | F203: ='Project Cost Summary'!G25 -> 0 | G203: ='Project Cost Summary'!I25 -> 0 | H203: ='Project Cost Summary'!H25 -> 0 | I203: ='Project Cost Summary'!J25 -> 0
E204: Masonry | F204: ='Project Cost Summary'!G26 -> 0 | G204: ='Project Cost Summary'!I26 -> 0 | H204: ='Project Cost Summary'!H26 -> 0 | I204: ='Project Cost Summary'!J26 -> 0
E205: Allowance for Division 4 | F205: ='Project Cost Summary'!G27 -> 0 | G205: ='Project Cost Summary'!I27 -> 0 | H205: ='Project Cost Summary'!H27 -> 0 | I205: ='Project Cost Summary'!J27 -> 0
E206: Metals | F206: ='Project Cost Summary'!G28 -> 0 | G206: ='Project Cost Summary'!I28 -> 0 | H206: ='Project Cost Summary'!H28 -> 0 | I206: ='Project Cost Summary'!J28 -> 0
E207: Allowance for Division 5 | F207: ='Project Cost Summary'!G29 -> 0 | G207: ='Project Cost Summary'!I29 -> 0 | H207: ='Project Cost Summary'!H29 -> 0 | I207: ='Project Cost Summary'!J29 -> 0
E208: Rough Carpentry | F208: ='Project Cost Summary'!G30 -> 0 | G208: ='Project Cost Summary'!I30 -> 0 | H208: ='Project Cost Summary'!H30 -> 0 | I208: ='Project Cost Summary'!J30 -> 0
E209: Finish Carpentry | F209: ='Project Cost Summary'!G31 -> 0 | G209: ='Project Cost Summary'!I31 -> 0 | H209: ='Project Cost Summary'!H31 -> 0 | I209: ='Project Cost Summary'!J31 -> 0
E210: Allowance for Division 6 | F210: ='Project Cost Summary'!G32 -> 0 | G210: ='Project Cost Summary'!I32 -> 0 | H210: ='Project Cost Summary'!H32 -> 0 | I210: ='Project Cost Summary'!J32 -> 0
E211: Moisture Protection | F211: ='Project Cost Summary'!G33 -> 0 | G211: ='Project Cost Summary'!I33 -> 0 | H211: ='Project Cost Summary'!H33 -> 0 | I211: ='Project Cost Summary'!J33 -> 0
E212: Insulation | F212: ='Project Cost Summary'!G34 -> 0 | G212: ='Project Cost Summary'!I34 -> 0 | H212: ='Project Cost Summary'!H34 -> 0 | I212: ='Project Cost Summary'!J34 -> 0
E213: Roofing | F213: ='Project Cost Summary'!G35 -> 0 | G213: ='Project Cost Summary'!I35 -> 0 | H213: ='Project Cost Summary'!H35 -> 0 | I213: ='Project Cost Summary'!J35 -> 0
E214: Sheet Metal | F214: ='Project Cost Summary'!G36 -> 0 | G214: ='Project Cost Summary'!I36 -> 0 | H214: ='Project Cost Summary'!H36 -> 0 | I214: ='Project Cost Summary'!J36 -> 0
E215: Siding | F215: ='Project Cost Summary'!G37 -> 0 | G215: ='Project Cost Summary'!I37 -> 0 | H215: ='Project Cost Summary'!H37 -> 0 | I215: ='Project Cost Summary'!J37 -> 0
E216: Allowance for Division 7 | F216: ='Project Cost Summary'!G38 -> 0 | G216: ='Project Cost Summary'!I38 -> 0 | H216: ='Project Cost Summary'!H38 -> 0 | I216: ='Project Cost Summary'!J38 -> 0
E217: Doors and Hardware | F217: ='Project Cost Summary'!G39 -> 0 | G217: ='Project Cost Summary'!I39 -> 0 | H217: ='Project Cost Summary'!H39 -> 0 | I217: ='Project Cost Summary'!J39 -> 0
E218: Windows and Glazing | F218: ='Project Cost Summary'!G40 -> 0 | G218: ='Project Cost Summary'!I40 -> 0 | H218: ='Project Cost Summary'!H40 -> 0 | I218: ='Project Cost Summary'!J40 -> 0
E219: Allowance for Division 8 | F219: ='Project Cost Summary'!G41 -> 0 | G219: ='Project Cost Summary'!I41 -> 0 | H219: ='Project Cost Summary'!H41 -> 0 | I219: ='Project Cost Summary'!J41 -> 0
... 28 more rows

Sheet Rental Income Calc Worksheet
A2: Exhibit 5.1 - RENTAL INCOME CALCULATION WORKSHEET
B5: DEVELOPMENT NAME | C5: =Application!D113 -> 0 | F5: APPLICANT | G5: =Application!D10 -> 0
B7: Current Year | C7: =YEAR(TODAY()) -> 2021 | G7: Proforma Stabilized Year (PSY) | H7: =Application!$E$290 -> 0
A9: UTILITY ALLOWANCE | K9: AVERAGE INCOME MSA
B11: Indicate Energy Source (e.g.: gas, electric) | C11: "X" all that Apply | E11: Enter Current Year Tenant Paid Utility Allowance for all that Apply | K11: Average Income MSA
C12: Owner Paid | D12: Tenant Paid | E12: 0BR | F12: 1BR | G12: 2BR | H12: 3BR | I12: 4BR+ | K12: AMI | L12: Number of Units
A13: Heating | K13: 0.2 | L13: =SUMIFS($D$31:$D$49,$B$31:$B$49,K13) -> 0
A14: Hot Water | K14: 0.3 | L14: =SUMIFS($D$31:$D$49,$B$31:$B$49,K14)+SUMIFS($D$31:$D$49,$B$31:$B$49,0.25) -> 0
A15: Cooking | K15: 0.4 | L15: =SUMIFS($D$31:$D$49,$B$31:$B$49,K15) -> 0
A16: Lighting | K16: 0.5 | L16: =SUMIFS($D$31:$D$49,$B$31:$B$49,K16) -> 0
A17: Air Cond. | K17: 0.6 | L17: =SUMIFS($D$31:$D$49,$B$31:$B$49,K17) -> 0
A18: Refrigerator | K18: 0.7 | L18: =SUMIFS($D$31:$D$49,$B$31:$B$49,K18) -> 0
A19: Range | K19: 0.8 | L19: =SUMIFS($D$31:$D$49,$B$31:$B$49,K19) -> 0
A20: Other | K20: Average AMI | L20: =IFERROR(SUMPRODUCT(K13:K19,L13:L19)/C52,0) -> 0 | M20: =IFERROR(IF(AND(L11="yes",L20>=0.6),1,0),0) -> 0
A21: Total | E21: =SUM(E13:E20) -> 0 | F21: =SUM(F13:F20) -> 0 | G21: =SUM(G13:G20) -> 0 | H21: =SUM(H13:H20) -> 0 | I21: =SUM(I13:I20) -> 0
D22: Utility Allowance Trended to Proforma Stabilized Year: | E22: =ROUND(-FV(0.05,$H$7-$C$7,0,E21,0),2) -> 0 | F22: =ROUND(-FV(0.05,$H$7-$C$7,0,F21,0),2) -> 0 | G22: =ROUND(-FV(0.05,$H$7-$C$7,0,G21,0),2) -> 0 | H22: =ROUND(-FV(0.05,$H$7-$C$7,0,H21,0),2) -> 0 | I22: =ROUND(-FV(0.05,$H$7-$C$7,0,I21,0),2) -> 0
A24: Source and Effective Date of Utility Allowances:
A26: RENTAL INCOME
I28: =C7 -> 2021 | K28: =H7 -> 0 | L28: =H7 -> 0 | M28: =H7 -> 0 | N28: =H7 -> 0 | O28: =H7 -> 0 | P28: =H7 -> 0 | Q28: =H7 -> 0 | R28: =Q28 -> 0 | T28: =H7 -> 0
A29: Funding Source | B29: AMI % | C29: # Bedrooms | D29: # Units | E29: Unit Size (Square Feet) | F29: Number of Baths per Unit | G29: Applicant's Proposed Monthly Net (Contract) Rent | H29: Utility Allowance | I29: Current Year's Proposed Monthly Gross Rent | J29: Estimated Annual Growth in Monthly Gross Rent | K29: Applicant's Proposed Monthly Net (Contract) Rent | L29: Utility Allowance | M29: Applicant's Proposed Monthly Gross Rent | N29: Estimated Monthly Rental Subsidy per Unit | O29: Monthly Effective Rent | P29: Annual Gross Contract Rent Revenue | Q29: Annual Gross Rental Subsidy Revenue | R29: Total Annual Gross Revenue | S29: Vacancy Rate | T29: Effective Gross Income | U29: Vacancy | V29: Total Square Feet
AA30: Funding Source | AB30: AMI | AC30: Bedrooms
H31: =IF(A31="Market Rate",0,ROUND(IF(B31>100%,0,IF(C31="",0,IF(AND(B31<=100%,C31=0),$E$21,IF(AND(B31<=100%,C31=1),$F$21,IF(AND(B31<=100%,C31=2),$G$21,IF(AND(B31<=100%,C31=3),$H$21,IF(AND(B31<=100%,C31>=4),$I$21,0))))))),0)) -> 0 | I31: =+G31+H31 -> 0 | J31: 0.02 | K31: =ROUND(FV(J31,($H$7-$C$7),0,-G31,0),0) -> 0 | L31: =ROUND(-FV(0.05,($H$7-$C$7),0,H31,0),0) -> 0 | M31: =K31+L31 -> 0 | O31: =N31+K31 -> 0 | P31: =(K31)*D31*12 -> 0 | Q31: =N31*D31*12 -> 0 | R31: =Q31+P31 -> 0 | S31: =IF(B31=25%,2.5%,IF(AND(B31>25%,B31<=60%),5%,IF(AND(B31>60%,B31<=80%),7%,IF(B31>80%,10%,"n/a")))) -> n/a | T31: =IF(S31="n/a",0,((P31+Q31)*(1-S31))) -> 0 | U31: =IF(S31="n/a",0,S31*R31) -> 0 | V31: =E31*D31 -> 0 | AA31: LIHTC | AB31: 0.2 | AC31: 0
H32: =IF(A32="Market Rate",0,ROUND(IF(B32>100%,0,IF(C32="",0,IF(AND(B32<=100%,C32=0),$E$21,IF(AND(B32<=100%,C32=1),$F$21,IF(AND(B32<=100%,C32=2),$G$21,IF(AND(B32<=100%,C32=3),$H$21,IF(AND(B32<=100%,C32>=4),$I$21,0))))))),0)) -> 0 | I32: =+G32+H32 -> 0 | J32: 0.02 | K32: =ROUND(FV(J32,($H$7-$C$7),0,-G32,0),0) -> 0 | L32: =ROUND(-FV(0.05,($H$7-$C$7),0,H32,0),0) -> 0 | M32: =K32+L32 -> 0 | O32: 0 | P32: 0 | Q32: 0 | R32: =Q32+P32 -> 0 | S32: n/a | T32: =IF(S32="n/a",0,((P32+Q32)*(1-S32))) -> 0 | U32: =IF(S32="n/a",0,S32*R32) -> 0 | V32: 0 | AA32: DOH Home | AB32: 0.25 | AC32: 1
H33: 0 | I33: 0 | J33: 0.02 | K33: 0 | L33: 0 | M33: 0 | O33: 0 | P33: 0 | Q33: 0 | R33: 0 | S33: n/a | T33: 0 | U33: 0 | V33: 0 | AA33: DOH Flex | AB33: 0.3 | AC33: 2
H34: 0 | I34: 0 | J34: 0.02 | K34: 0 | L34: 0 | M34: 0 | O34: 0 | P34: 0 | Q34: 0 | R34: 0 | S34: n/a | T34: 0 | U34: 0 | V34: 0 | AA34: DOH HTF | AB34: 0.4 | AC34: 3
H35: 0 | I35: 0 | J35: 0.02 | K35: 0 | L35: 0 | M35: 0 | O35: 0 | P35: 0 | Q35: 0 | R35: 0 | S35: n/a | T35: 0 | U35: 0 | V35: 0 | AA35: LIHTC & DOH Home | AB35: 0.5 | AC35: 4
H36: 0 | I36: 0 | J36: 0.02 | K36: 0 | L36: 0 | M36: 0 | O36: 0 | P36: 0 | Q36: 0 | R36: 0 | S36: n/a | T36: 0 | U36: 0 | V36: 0 | AA36: LIHTC & DOH Flex | AB36: 0.6 | AC36: 5
H37: 0 | I37: 0 | J37: 0.02 | K37: 0 | L37: 0 | M37: 0 | O37: 0 | P37: 0 | Q37: 0 | R37: 0 | S37: n/a | T37: 0 | U37: 0 | V37: 0 | AA37: LIHTC & DOH HTF | AB37: 0.7
H38: 0 | I38: 0 | J38: 0.02 | K38: 0 | L38: 0 | M38: 0 | O38: 0 | P38: 0 | Q38: 0 | R38: 0 | S38: n/a | T38: 0 | U38: 0 | V38: 0 | AA38: Rental Subsidy | AB38: 0.8
H39: 0 | I39: 0 | J39: 0.02 | K39: 0 | L39: 0 | M39: 0 | O39: 0 | P39: 0 | Q39: 0 | R39: 0 | S39: n/a | T39: 0 | U39: 0 | V39: 0 | AA39: Market Rate | AB39: 1
H40: 0 | I40: 0 | J40: 0.02 | K40: 0 | L40: 0 | M40: 0 | O40: 0 | P40: 0 | Q40: 0 | R40: 0 | S40: n/a | T40: 0 | U40: 0 | V40: 0 | AA40: Other | AB40: 1.2
H41: 0 | I41: 0 | J41: 0.02 | K41: 0 | L41: 0 | M41: 0 | O41: 0 | P41: 0 | Q41: 0 | R41: 0 | S41: n/a | T41: 0 | U41: 0 | V41: 0 | AB41: 120%+
H42: 0 | I42: 0 | J42: 0.02 | K42: 0 | L42: 0 | M42: 0 | O42: 0 | P42: 0 | Q42: 0 | R42: 0 | S42: n/a | T42: 0 | U42: 0 | V42: 0
H43: 0 | I43: 0 | J43: 0.02 | K43: 0 | L43: 0 | M43: 0 | O43: 0 | P43: 0 | Q43: 0 | R43: 0 | S43: n/a | T43: 0 | U43: 0 | V43: 0
H44: 0 | I44: 0 | J44: 0.02 | K44: 0 | L44: 0 | M44: 0 | O44: 0 | P44: 0 | Q44: 0 | R44: 0 | S44: n/a | T44: 0 | U44: 0 | V44: 0
H45: 0 | I45: 0 | J45: 0.02 | K45: 0 | L45: 0 | M45: 0 | O45: 0 | P45: 0 | Q45: 0 | R45: 0 | S45: n/a | T45: 0 | U45: 0 | V45: 0
H46: 0 | I46: 0 | J46: 0.02 | K46: 0 | L46: 0 | M46: 0 | O46: 0 | P46: 0 | Q46: 0 | R46: 0 | S46: n/a | T46: 0 | U46: 0 | V46: 0
H47: 0 | I47: 0 | J47: 0.02 | K47: 0 | L47: 0 | M47: 0 | O47: 0 | P47: 0 | Q47: 0 | R47: 0 | S47: n/a | T47: 0 | U47: 0 | V47: 0
H48: 0 | I48: 0 | J48: 0.02 | K48: 0 | L48: 0 | M48: 0 | O48: 0 | P48: 0 | Q48: 0 | R48: 0 | S48: n/a | T48: 0 | U48: 0 | V48: 0
H49: 0 | I49: =+G49+H49 -> 0 | J49: 0.02 | K49: 0 | L49: 0 | M49: 0 | O49: 0 | P49: 0 | Q49: 0 | R49: 0 | S49: n/a | T49: 0 | U49: 0 | V49: 0
D50: =SUM(D31:D49) -> 0 | K50: =SUM(K31:K49) -> 0 | L50: =SUM(L31:L49) -> 0 | M50: =SUM(M31:M49) -> 0 | O50: =SUM(O31:O49) -> 0 | P50: =SUM(P31:P49) -> 0 | Q50: =SUM(Q31:Q49) -> 0 | R50: =SUM(R31:R49) -> 0 | S50: =(P50+Q50-T50) -> 0 | T50: =SUM(T31:T49) -> 0
B52: Number of LITHC Qualified Units | C52: =IF($L$11="Yes",SUMIFS(D31:D49,B31:B49,"<=80%",A31:A49,$AA$31)+SUMIFS(D31:D49,B31:B49,"<=80%",A31:A49,$AA$35)+SUMIFS(D31:D49,B31:B49,"<=80%",A31:A49,$AA$36)+SUMIFS(D31:D49,B31:B49,"<=80%",A31:A49,$AA$37),SUMIFS(D31:D49,B31:B49,"<=60%",A31:A49,$AA$31)+SUMIFS(D31:D49,B31:B49,"<=60%",A31:A49,$AA$35)+SUMIFS(D31:D49,B31:B49,"<=60%",A31:A49,$AA$36)+SUMIFS(D31:D49,B31:B49,"<=60%",A31:A49,$AA$37)) -> 0 | F52: Number of Other Affordable Units | G52: =IF($L$11="Yes",SUMIFS(D31:D49,B31:B49,"<=80%",A31:A49,$AA$32)+SUMIFS(D31:D49,B31:B49,"<=80%",A31:A49,$AA$33)+SUMIFS(D31:D49,B31:B49,"<=80%",A31:A49,$AA$34)+SUMIFS(D31:D49,B31:B49,"<=80%",A31:A49,$AA$38)+SUMIFS(D31:D49,B31:B49,"<=80%",A31:A49,$AA$40),SUMIFS(D31:D49,B31:B49,"<=60%",A31:A49,$AA$32)+SUMIFS(D31:D49,B31:B49,"<=60%",A31:A49,$AA$33)+SUMIFS(D31:D49,B31:B49,"<=60%",A31:A49,$AA$34)+SUMIFS(D31:D49,B31:B49,"<=60%",A31:A49,$AA$38)+SUMIFS(D31:D49,B31:B49,"<=60%",A31:A49,$AA$40)) -> 0 | I52: Number of Market Rate Units | J52: =D50-G52-C52 -> 0
A54: CHFA & DOH RENT GUIDELINES
C56: =C7 -> 2021 | D56: =C7 -> 2021 | E56: =D56 -> 2021 | F56: =C7 -> 2021 | G56: =H7 -> 0
A57: AMI % | B57: =C29 -> # Bedrooms | C57: Maximum Allowable Family Income | D57: Allowable Housing Cost | E57: Maximum Allowable Gross Rent | F57: Maximum Allowable Gross Rent | G57: Maximum Allowable Gross Rent | J57: AMI | K57: # Bedrooms | L57: # Units | M57: Average Applicant's Proposed Monthly Gross Rent Per Unit | N57: Maximum Allowable Gross Rent | O57: Utility Allowance
C58: (DOH Only) | D58: (DOH Only) | E58: (DOH Only) | F58: (CHFA Only) | G58: (CHFA Only) | J58: 0.2 | K58: 0 | L58: =SUMIFS($D$31:$D$49,$B$31:$B$49,$J58,$C$31:$C$49,$K58) -> 0 | M58: =SUMIFS($M$31:$M$49,$B$31:$B$49,$J58,$C$31:$C$49,$K58) -> 0 | N58: =SUMIFS($F$59:$F$77,$A$59:$A$77,$J58,$B$59:$B$77,$K58) -> 0 | O58: =SUMIFS($L$31:$L$49,$B$31:$B$49,$J58,$C$31:$C$49,$K58) -> 0
A59: =B31 -> 0 | B59: 0 | D59: =C59/12*30% -> 0 | G59: =-FV(J31,$H$7-$C$7,0,F59,0) -> 0 | J59: 0.2 | K59: 1 | L59: 0 | M59: 0 | N59: 0 | O59: 0
A60: 0 | B60: 0 | D60: =C60/12*30% -> 0 | G60: =-FV(J32,$H$7-$C$7,0,F60,0) -> 0 | J60: 0.2 | K60: 2 | L60: 0 | M60: 0 | N60: 0 | O60: 0
A61: 0 | B61: 0 | D61: 0 | G61: 0 | J61: 0.2 | K61: 3 | L61: 0 | M61: 0 | N61: 0 | O61: 0
A62: 0 | B62: 0 | D62: 0 | G62: 0 | J62: 0.2 | K62: 4 | L62: 0 | M62: 0 | N62: 0 | O62: 0
A63: 0 | B63: 0 | D63: 0 | G63: 0 | J63: 0.2 | K63: 5 | L63: 0 | M63: 0 | N63: 0 | O63: 0
A64: 0 | B64: 0 | D64: 0 | G64: 0 | J64: 0.25 | K64: 0 | L64: =SUMIFS($D$31:$D$49,$B$31:$B$49,$J64,$C$31:$C$49,$K64) -> 0 | M64: 0 | N64: =SUMIFS($F$59:$F$77,$A$59:$A$77,$J64,$B$59:$B$77,$K64) -> 0 | O64: 0
A65: 0 | B65: 0 | D65: 0 | G65: 0 | J65: 0.25 | K65: 1 | L65: =SUMIFS($D$31:$D$49,$B$31:$B$49,$J65,$C$31:$C$49,$K65) -> 0 | M65: 0 | N65: =SUMIFS($F$59:$F$77,$A$59:$A$77,$J65,$B$59:$B$77,$K65) -> 0 | O65: 0
A66: 0 | B66: 0 | D66: 0 | G66: 0 | J66: 0.25 | K66: 2 | L66: 0 | M66: 0 | N66: 0 | O66: 0
A67: 0 | B67: 0 | D67: 0 | G67: 0 | J67: 0.25 | K67: 3 | L67: 0 | M67: 0 | N67: 0 | O67: 0
A68: 0 | B68: 0 | D68: 0 | G68: 0 | J68: 0.25 | K68: 4 | L68: 0 | M68: 0 | N68: 0 | O68: 0
A69: 0 | B69: 0 | D69: 0 | G69: 0 | J69: 0.25 | K69: 5 | L69: 0 | M69: 0 | N69: 0 | O69: 0
A70: 0 | B70: 0 | D70: 0 | G70: 0 | J70: 0.3 | K70: 0 | L70: 0 | M70: 0 | N70: 0 | O70: 0
A71: 0 | B71: 0 | D71: 0 | G71: 0 | J71: 0.3 | K71: 1 | L71: 0 | M71: 0 | N71: 0 | O71: 0
A72: 0 | B72: 0 | D72: 0 | G72: 0 | J72: 0.3 | K72: 2 | L72: 0 | M72: 0 | N72: 0 | O72: 0
A73: 0 | B73: 0 | D73: 0 | G73: 0 | J73: 0.3 | K73: 3 | L73: 0 | M73: 0 | N73: 0 | O73: 0
A74: 0 | B74: 0 | D74: 0 | G74: 0 | J74: 0.3 | K74: 4 | L74: 0 | M74: 0 | N74: 0 | O74: 0
A75: 0 | B75: 0 | D75: 0 | G75: 0 | J75: 0.3 | K75: 5 | L75: 0 | M75: 0 | N75: 0 | O75: 0
A76: 0 | B76: 0 | D76: 0 | G76: 0 | J76: 0.4 | K76: 0 | L76: 0 | M76: 0 | N76: 0 | O76: 0
A77: 0 | B77: 0 | D77: 0 | G77: 0 | J77: 0.4 | K77: 1 | L77: 0 | M77: 0 | N77: 0 | O77: 0
J78: 0.4 | K78: 2 | L78: 0 | M78: 0 | N78: 0 | O78: 0
J79: 0.4 | K79: 3 | L79: 0 | M79: 0 | N79: 0 | O79: 0
J80: 0.4 | K80: 4 | L80: 0 | M80: 0 | N80: 0 | O80: 0
J81: 0.4 | K81: 5 | L81: 0 | M81: 0 | N81: 0 | O81: 0
J82: 0.5 | K82: 0 | L82: 0 | M82: 0 | N82: 0 | O82: 0
J83: 0.5 | K83: 1 | L83: 0 | M83: 0 | N83: 0 | O83: 0
J84: 0.5 | K84: 2 | L84: 0 | M84: 0 | N84: 0 | O84: 0
J85: 0.5 | K85: 3 | L85: 0 | M85: 0 | N85: 0 | O85: 0
J86: 0.5 | K86: 4 | L86: 0 | M86: 0 | N86: 0 | O86: 0
J87: 0.5 | K87: 5 | L87: 0 | M87: 0 | N87: 0 | O87: 0
J88: 0.6 | K88: 0 | L88: 0 | M88: 0 | N88: 0 | O88: 0
J89: 0.6 | K89: 1 | L89: 0 | M89: 0 | N89: 0 | O89: 0
J90: 0.6 | K90: 2 | L90: 0 | M90: =SUMIFS($M$31:$M$49,$B$31:$B$49,$J90,$C$31:$C$49,$K90) -> 0 | N90: 0 | O90: =SUMIFS($L$31:$L$49,$B$31:$B$49,$J90,$C$31:$C$49,$K90) -> 0
J91: 0.6 | K91: 3 | L91: 0 | M91: 0 | N91: 0 | O91: 0
J92: 0.6 | K92: 4 | L92: 0 | M92: 0 | N92: 0 | O92: 0
J93: 0.6 | K93: 5 | L93: 0 | M93: 0 | N93: 0 | O93: 0
J94: 0.7 | K94: 0 | L94: 0 | M94: 0 | N94: 0 | O94: 0
J95: 0.7 | K95: 1 | L95: 0 | M95: 0 | N95: 0 | O95: 0
J96: 0.7 | K96: 2 | L96: 0 | M96: 0 | N96: 0 | O96: 0
J97: 0.7 | K97: 3 | L97: 0 | M97: 0 | N97: 0 | O97: 0
J98: 0.7 | K98: 4 | L98: 0 | M98: 0 | N98: 0 | O98: 0
J99: 0.7 | K99: 5 | L99: 0 | M99: 0 | N99: 0 | O99: 0
J100: 0.8 | K100: 0 | L100: 0 | M100: 0 | N100: 0 | O100: 0
J101: 0.8 | K101: 1 | L101: 0 | M101: 0 | N101: 0 | O101: 0
J102: 0.8 | K102: 2 | L102: 0 | M102: 0 | N102: 0 | O102: 0
J103: 0.8 | K103: 3 | L103: 0 | M103: 0 | N103: 0 | O103: 0
J104: 0.8 | K104: 4 | L104: 0 | M104: 0 | N104: 0 | O104: 0
J105: 0.8 | K105: 5 | L105: 0 | M105: 0 | N105: 0 | O105: 0
J106: 1 | K106: 0 | L106: 0 | M106: 0 | N106: 0 | O106: 0
J107: 1 | K107: 1 | L107: 0 | M107: 0 | N107: 0 | O107: 0
J108: 1 | K108: 2 | L108: 0 | M108: 0 | N108: 0 | O108: 0
J109: 1 | K109: 3 | L109: 0 | M109: 0 | N109: 0 | O109: 0
J110: 1 | K110: 4 | L110: 0 | M110: 0 | N110: 0 | O110: 0
J111: 1 | K111: 5 | L111: 0 | M111: 0 | N111: 0 | O111: 0
J112: 1.2 | K112: 0 | L112: 0 | M112: 0 | N112: 0 | O112: 0
J113: 1.2 | K113: 1 | L113: 0 | M113: 0 | N113: 0 | O113: 0
J114: 1.2 | K114: 2 | L114: 0 | M114: 0 | N114: 0 | O114: 0
J115: 1.2 | K115: 3 | L115: 0 | M115: 0 | N115: 0 | O115: 0
J116: 1.2 | K116: 4 | L116: 0 | M116: 0 | N116: 0 | O116: 0
J117: 1.2 | K117: 5 | L117: 0 | M117: 0 | N117: 0 | O117: 0
J118: 120%+ | K118: 0 | L118: 0 | M118: 0 | N118: 0 | O118: 0
J119: 120%+ | K119: 1 | L119: 0 | M119: 0 | N119: 0 | O119: 0
J120: 120%+ | K120: 2 | L120: 0 | M120: 0 | N120: 0 | O120: 0
J121: 120%+ | K121: 3 | L121: 0 | M121: 0 | N121: 0 | O121: 0
J122: 120%+ | K122: 4 | L122: 0 | M122: 0 | N122: 0 | O122: 0
J123: 120%+ | K123: 5 | L123: 0 | M123: 0 | N123: 0 | O123: 0

Sheet Detailed Income and Expenses
G1: Gas-Owner Pays
G2: Gas-Tenant Pays
G3: Oil-Owner Pays
G4: Oil-Tenant Pays
G5: Electric-Owner Pays
G6: Electric-Tenant Pays
G7: Electric Heat Pump-Tenant Pays
G8: Electric Heat Pump- Owner Pays
A10: Exhibit 5.2.a - DETAILED INCOME & EXPENSES FORM
B13: DEVELOPMENT NAME | C13: ='Rental Income Calc Worksheet'!C5:E5 -> 0 | G13: APPLICANT | H13: =Application!D10 -> 0
B15: Expenses are based on Proforma Stabilized Year | C15: =Application!E290 -> 0 | F15: Number of Units | G15: ='Rental Income Calc Worksheet'!C52+'Rental Income Calc Worksheet'!G52+'Rental Income Calc Worksheet'!J52 -> 0
B17: LINE ITEM DESCRIPTION | C17: Residential | D17: Non-Residential | E17: Asset Manager / Underwriter Adjustment - Residential | F17: Asset Manager / Underwriter Adjustment - Non-Residential | G17: Total Asset Manager / Underwriter Adjusted Residential | H17: Total Asset Manager / Underwriter Adjusted Non-Residential | I17: Total Asset Manager / Underwriter Adjusted Proforma | J17: Total Adjusted $$/Unit | K17: Total Adjusted % of GPI
A18: =ROW()-17 -> 1 | B18: Rental Revenue- Gross Potential | C18: ='Rental Income Calc Worksheet'!P50 -> 0 | G18: =E18+C18 -> 0 | H18: =F18+D18 -> 0 | I18: =SUM(C18:F18) -> 0 | J18: =IF(I18>0,I18/'Summary Sheet'!$M$24,0) -> 0 | K18: =IF(I18=0,0,I18/$I$30) -> 0
A19: =ROW()-17 -> 2 | B19: Tenant Assistance Payments (HAP Receipts) | C19: ='Rental Income Calc Worksheet'!Q50 -> 0 | G19: =E19+C19 -> 0 | H19: =F19+D19 -> 0 | I19: =SUM(C19:F19) -> 0 | J19: =IF(I19>0,I19/'Summary Sheet'!$M$24,0) -> 0 | K19: 0
A20: 3 | B20: Rental Income - Excess of Base | G20: =E20+C20 -> 0 | H20: =F20+D20 -> 0 | I20: =SUM(C20:F20) -> 0 | J20: =IF(I20>0,I20/'Summary Sheet'!$M$24,0) -> 0 | K20: =IF(I20=0,0,I20/$I$30) -> 0
A21: 4 | B21: Rental Revenue- Stores & Commercial | G21: 0 | H21: 0 | I21: 0 | J21: =IF(I21>0,I21/'Summary Sheet'!$M$24,0) -> 0 | K21: 0
A22: 5 | B22: Rental Revenue- Garage & Parking | G22: 0 | H22: 0 | I22: 0 | J22: =IF(I22>0,I22/'Summary Sheet'!$M$24,0) -> 0 | K22: 0
A23: 6 | B23: Flexible Subsidy Revenue | G23: 0 | H23: 0 | I23: 0 | J23: =IF(I23>0,I23/'Summary Sheet'!$M$24,0) -> 0 | K23: 0
A24: 7 | B24: Miscellaneous Rent Revenue | G24: 0 | H24: 0 | I24: 0 | J24: =IF(I24>0,I24/'Summary Sheet'!$M$24,0) -> 0 | K24: 0
A25: 8 | B25: Excess Rent | G25: 0 | H25: 0 | I25: 0 | J25: =IF(I25>0,I25/'Summary Sheet'!$M$24,0) -> 0 | K25: 0
A26: 9 | B26: Excess Utilities | G26: =E26+C26 -> 0 | H26: =F26+D26 -> 0 | I26: =SUM(C26:F26) -> 0 | J26: =IF(I26>0,I26/'Summary Sheet'!$M$24,0) -> 0 | K26: =IF(I26=0,0,I26/$I$30) -> 0
A27: 10 | B27: Rent Revenue- Insurance | G27: 0 | H27: 0 | I27: 0 | J27: =IF(I27>0,I27/'Summary Sheet'!$M$24,0) -> 0 | K27: 0
A28: 11 | B28: Special Claims Revenue | G28: 0 | H28: 0 | I28: 0 | J28: =IF(I28>0,I28/'Summary Sheet'!$M$24,0) -> 0 | K28: 0
A29: 12 | B29: Retained Excess Income | G29: 0 | H29: 0 | I29: 0 | J29: =IF(I29>0,I29/'Summary Sheet'!$M$24,0) -> 0 | K29: 0
A30: 13 | B30: Total Rent Revenue (GPI @ 100% Occupancy) | C30: =SUM(C18:C29) -> 0 | D30: =SUM(D18:D29) -> 0 | E30: =SUM(E18:E29) -> 0 | F30: =SUM(F18:F29) -> 0 | G30: 0 | H30: 0 | I30: 0 | J30: =IF(I30>0,I30/'Summary Sheet'!$M$24,0) -> 0 | K30: 0
A31: 14 | B31: Apartments- Vacancy | C31: ='Rental Income Calc Worksheet'!S50 -> 0 | G31: 0 | H31: 0 | I31: 0 | J31: =IF(I31>0,I31/'Summary Sheet'!$M$24,0) -> 0 | K31: 0
A32: 15 | B32: Stores & Commercial- Vacancy | G32: 0 | H32: 0 | I32: 0 | J32: =IF(I32>0,I32/'Summary Sheet'!$M$24,0) -> 0 | K32: 0
A33: 16 | B33: Rental Concessions | G33: 0 | H33: 0 | I33: 0 | J33: =IF(I33>0,I33/'Summary Sheet'!$M$24,0) -> 0 | K33: 0
A34: 17 | B34: Garage & Parking- Vacancy | G34: 0 | H34: 0 | I34: 0 | J34: =IF(I34>0,I34/'Summary Sheet'!$M$24,0) -> 0 | K34: 0
A35: 18 | B35: Miscellaneous (other vacancy) | G35: 0 | H35: 0 | I35: 0 | J35: =IF(I35>0,I35/'Summary Sheet'!$M$24,0) -> 0 | K35: 0
A36: 19 | B36: Total Vacancies | C36: =-SUM(C31:C35) -> 0 | D36: =-SUM(D31:D35) -> 0 | E36: =-SUM(E31:E35) -> 0 | F36: =-SUM(F31:F35) -> 0 | G36: 0 | H36: 0 | I36: 0 | J36: =IF(I36>0,I36/'Summary Sheet'!$M$24,0) -> 0 | K36: 0
A37: 20 | B37: Net Rental Revenue (Rent Revenue Less Vacancy) | C37: =C30+C36 -> 0 | D37: =D30+D36 -> 0 | E37: =E30+E36 -> 0 | F37: =F30+F36 -> 0 | G37: 0 | H37: 0 | I37: 0 | J37: =IF(I37>0,I37/'Summary Sheet'!$M$24,0) -> 0 | K37: 0
A38: 21 | B38: Elderly & Congregate Serv. Income (attach schedule) | G38: 0 | H38: 0 | I38: 0 | J38: =IF(I38>0,I38/'Summary Sheet'!$M$24,0) -> 0 | K38: 0
A39: 22 | B39: Financial Revenue- Project Operations | G39: 0 | H39: 0 | I39: 0 | J39: =IF(I39>0,I39/'Summary Sheet'!$M$24,0) -> 0 | K39: 0
A40: 23 | B40: Revenue from Investments- Residual Receipts | G40: 0 | H40: 0 | I40: 0 | J40: =IF(I40>0,I40/'Summary Sheet'!$M$24,0) -> 0 | K40: 0
A41: 24 | B41: Revenue from Investments- Replacement Reserves | G41: 0 | H41: 0 | I41: 0 | J41: =IF(I41>0,I41/'Summary Sheet'!$M$24,0) -> 0 | K41: 0
A42: 25 | B42: Revenue from Investments- Miscellaneous | G42: 0 | H42: 0 | I42: 0 | J42: =IF(I42>0,I42/'Summary Sheet'!$M$24,0) -> 0 | K42: 0
A43: 26 | B43: Total Financial Revenue | C43: =SUM(C39:C42) -> 0 | D43: =SUM(D39:D42) -> 0 | E43: =SUM(E39:E42) -> 0 | F43: =SUM(F39:F42) -> 0 | G43: 0 | H43: 0 | I43: 0 | J43: =IF(I43>0,I43/'Summary Sheet'!$M$24,0) -> 0 | K43: 0
A44: 27 | B44: Laundry & Vending Revenue | G44: 0 | H44: 0 | I44: 0 | J44: =IF(I44>0,I44/'Summary Sheet'!$M$24,0) -> 0 | K44: 0
A45: 28 | B45: NSF & Late Fees | G45: 0 | H45: 0 | I45: 0 | J45: =IF(I45>0,I45/'Summary Sheet'!$M$24,0) -> 0 | K45: 0
A46: 29 | B46: Damages & Cleaning Fees | G46: 0 | H46: 0 | I46: 0 | J46: =IF(I46>0,I46/'Summary Sheet'!$M$24,0) -> 0 | K46: 0
A47: 30 | B47: Forfeited Tenant Security Deposits | G47: 0 | H47: 0 | I47: 0 | J47: =IF(I47>0,I47/'Summary Sheet'!$M$24,0) -> 0 | K47: 0
A48: 31 | B48: ="Tenant Charges (Total of Line "&A45&"-"&A47&")" -> Tenant Charges (Total of Line 28-30) | C48: =SUM(C45:C47) -> 0 | D48: =SUM(D45:D47) -> 0 | E48: =SUM(E45:E47) -> 0 | F48: =SUM(F45:F47) -> 0 | G48: 0 | H48: 0 | I48: 0 | J48: =IF(I48>0,I48/'Summary Sheet'!$M$24,0) -> 0 | K48: 0
A49: 32 | B49: Sales & Service to Tenants (including Cable TV Fees) | G49: =E49+C49 -> 0 | H49: =F49+D49 -> 0 | I49: =SUM(C49:F49) -> 0 | J49: =IF(I49>0,I49/'Summary Sheet'!$M$24,0) -> 0 | K49: =IF(I49=0,0,I49/$I$30) -> 0
A50: 33 | B50: Interest Reduction Payments | G50: 0 | H50: 0 | I50: 0 | J50: =IF(I50>0,I50/'Summary Sheet'!$M$24,0) -> 0 | K50: 0
A51: 34 | B51: Grant Income - Capital Grant - Unrestricted | G51: =E51+C51 -> 0 | H51: =F51+D51 -> 0 | I51: =SUM(C51:F51) -> 0 | J51: =IF(I51>0,I51/'Summary Sheet'!$M$24,0) -> 0 | K51: =IF(I51=0,0,I51/$I$30) -> 0
A52: 35 | B52: Grant Income - Capital Grant Temporarily Restricted | G52: =E52+C52 -> 0 | H52: =F52+D52 -> 0 | I52: =SUM(C52:F52) -> 0 | J52: =IF(I52>0,I52/'Summary Sheet'!$M$24,0) -> 0 | K52: =IF(I52=0,0,I52/$I$30) -> 0
A53: 36 | B53: Miscellaneous Revenue | G53: 0 | H53: 0 | I53: 0 | J53: =IF(I53>0,I53/'Summary Sheet'!$M$24,0) -> 0 | K53: 0
A54: 37 | B54: Total Other Revenue | C54: =SUM(C44:C53)-C48 -> 0 | D54: =SUM(D44:D53)-D48 -> 0 | E54: =SUM(E44:E53)-E48 -> 0 | F54: =SUM(F44:F53)-F48 -> 0 | G54: 0 | H54: 0 | I54: 0 | J54: =IF(I54>0,I54/'Summary Sheet'!$M$24,0) -> 0 | K54: 0
A55: 38 | B55: ="Other Revenue - Vacancy (20% of Lines "&A44&" - "&A53&")" -> Other Revenue - Vacancy (20% of Lines 27 - 36) | C55: =-C54*0.2 -> 0 | D55: =-SUM(D44:D46)*0.2 -> 0 | E55: =SUM(E45:E54)-E50 -> 0 | F55: =SUM(F45:F54)-F50 -> 0 | G55: =E55+C55 -> 0 | H55: =F55+D55 -> 0 | I55: =SUM(C55:F55) -> 0 | J55: =IF(I55>0,I55/'Summary Sheet'!$M$24,0) -> 0
A56: 39 | B56: TOTAL REVENUE | C56: =C37+C38+C43+C54+C55 -> 0 | D56: =D37+D38+D43+D54 -> 0 | E56: =E37+E38+E43+E54 -> 0 | F56: =F37+F38+F43+F54 -> 0 | G56: 0 | H56: 0 | I56: 0 | J56: =IF(I56>0,I56/'Summary Sheet'!$M$24,0) -> 0 | K56: 0
A57: 40 | B57: Conventions & Meetings | G57: 0 | H57: 0 | I57: 0 | J57: =IF(I57>0,I57/'Summary Sheet'!$M$24,0) -> 0 | K57: 0
A58: 41 | B58: Management Consultants | G58: 0 | H58: 0 | I58: 0 | J58: =IF(I58>0,I58/'Summary Sheet'!$M$24,0) -> 0 | K58: 0
A59: 42 | B59: Advertising & Marketing | G59: 0 | H59: 0 | I59: 0 | J59: =IF(I59>0,I59/'Summary Sheet'!$M$24,0) -> 0 | K59: 0
A60: 43 | B60: Apartment Resale Expenses (Co-ops) | G60: 0 | H60: 0 | I60: 0 | J60: =IF(I60>0,I60/'Summary Sheet'!$M$24,0) -> 0 | K60: 0
A61: 44 | B61: Other Renting Expenses | G61: 0 | H61: 0 | I61: 0 | J61: =IF(I61>0,I61/'Summary Sheet'!$M$24,0) -> 0 | K61: 0
A62: 45 | B62: Office Salaries | G62: 0 | H62: 0 | I62: 0 | J62: =IF(I62>0,I62/'Summary Sheet'!$M$24,0) -> 0 | K62: 0
A63: 46 | B63: Salaries - Resident Services Coordinator | G63: =E63+C63 -> 0 | H63: =F63+D63 -> 0 | I63: =SUM(C63:F63) -> 0 | J63: =IF(I63>0,I63/'Summary Sheet'!$M$24,0) -> 0 | K63: =IF(I63=0,0,I63/$I$30) -> 0
A64: 47 | B64: Office Supplies | G64: 0 | H64: 0 | I64: 0 | J64: =IF(I64>0,I64/'Summary Sheet'!$M$24,0) -> 0 | K64: 0
A65: 48 | B65: Telephone & Answering Service | G65: 0 | H65: 0 | I65: 0 | J65: =IF(I65>0,I65/'Summary Sheet'!$M$24,0) -> 0 | K65: 0
A66: 49 | B66: ="Office Expenses (Total of Line "&A64&" & "&A65&")" -> Office Expenses (Total of Line 47 & 48) | C66: =SUM(C64:C65) -> 0 | D66: =SUM(D64:D65) -> 0 | E66: =SUM(E64:E65) -> 0 | F66: =SUM(F64:F65) -> 0 | G66: 0 | H66: 0 | I66: 0 | J66: =IF(I66>0,I66/'Summary Sheet'!$M$24,0) -> 0 | K66: 0
A67: 50 | B67: Office or Model Apartment Rent | G67: 0 | H67: 0 | I67: 0 | J67: =IF(I67>0,I67/'Summary Sheet'!$M$24,0) -> 0 | K67: 0
A68: 51 | B68: Compensated Absences - Administrative Salaries | G68: =E68+C68 -> 0 | H68: =F68+D68 -> 0 | I68: =SUM(C68:F68) -> 0 | J68: =IF(I68>0,I68/'Summary Sheet'!$M$24,0) -> 0 | K68: =IF(I68=0,0,I68/$I$30) -> 0
A69: 52 | B69: Management Fee | G69: 0 | H69: 0 | I69: 0 | J69: =IF(I69>0,I69/'Summary Sheet'!$M$24,0) -> 0 | K69: 0
A70: 53 | B70: Manager or Superintendent Salaries | G70: 0 | H70: 0 | I70: 0 | J70: =IF(I70>0,I70/'Summary Sheet'!$M$24,0) -> 0 | K70: 0
A71: 54 | B71: Administrative Rent Free Unit | G71: 0 | H71: 0 | I71: 0 | J71: =IF(I71>0,I71/'Summary Sheet'!$M$24,0) -> 0 | K71: 0
A72: 55 | B72: Legal Expense (Project) | G72: 0 | H72: 0 | I72: 0 | J72: =IF(I72>0,I72/'Summary Sheet'!$M$24,0) -> 0 | K72: 0
A73: 56 | B73: Audit Expense | G73: 0 | H73: 0 | I73: 0 | J73: =IF(I73>0,I73/'Summary Sheet'!$M$24,0) -> 0 | K73: 0
A74: 57 | B74: Bookkeeping Fees/Accounting Services | G74: 0 | H74: 0 | I74: 0 | J74: =IF(I74>0,I74/'Summary Sheet'!$M$24,0) -> 0 | K74: 0
A75: 58 | B75: Bad Debts | G75: =E75+C75 -> 0 | H75: =F75+D75 -> 0 | I75: =SUM(C75:F75) -> 0 | J75: =IF(I75>0,I75/'Summary Sheet'!$M$24,0) -> 0 | K75: =IF(I75=0,0,I75/$I$30) -> 0
A76: 59 | B76: State Service Charge - Administrative | G76: =E76+C76 -> 0 | H76: =F76+D76 -> 0 | I76: =SUM(C76:F76) -> 0 | J76: =IF(I76>0,I76/'Summary Sheet'!$M$24,0) -> 0 | K76: =IF(I76=0,0,I76/$I$30) -> 0
A77: 60 | B77: Miscellaneous Administrative Expenses | G77: 0 | H77: 0 | I77: 0 | J77: =IF(I77>0,I77/'Summary Sheet'!$M$24,0) -> 0 | K77: 0
A78: 61 | B78: Total Administrative Expenses | C78: =SUM(C57:C77)-C66 -> 0 | D78: =SUM(D57:D77)-D66 -> 0 | E78: =SUM(E57:E77)-E66 -> 0 | F78: =SUM(F57:F77)-F66 -> 0 | G78: 0 | H78: 0 | I78: 0 | J78: =IF(I78>0,I78/'Summary Sheet'!$M$24,0) -> 0 | K78: 0
A79: 62 | B79: Fuel Oil/ Coal | G79: 0 | H79: 0 | I79: 0 | J79: =IF(I79>0,I79/'Summary Sheet'!$M$24,0) -> 0 | K79: 0
A80: 63 | B80: Electricity | G80: 0 | H80: 0 | I80: 0 | J80: =IF(I80>0,I80/'Summary Sheet'!$M$24,0) -> 0 | K80: 0
A81: 64 | B81: Water | G81: 0 | H81: 0 | I81: 0 | J81: =IF(I81>0,I81/'Summary Sheet'!$M$24,0) -> 0 | K81: 0
A82: 65 | B82: Gas | G82: 0 | H82: 0 | I82: 0 | J82: =IF(I82>0,I82/'Summary Sheet'!$M$24,0) -> 0 | K82: 0
A83: 66 | B83: Sewer | G83: 0 | H83: 0 | I83: 0 | J83: =IF(I83>0,I83/'Summary Sheet'!$M$24,0) -> 0 | K83: 0
A84: 67 | B84: Cable Television | G84: =E84+C84 -> 0 | H84: =F84+D84 -> 0 | I84: =SUM(C84:F84) -> 0 | J84: =IF(I84>0,I84/'Summary Sheet'!$M$24,0) -> 0 | K84: =IF(I84=0,0,I84/$I$30) -> 0
A85: 68 | B85: Total Utilities Expenses | C85: =SUM(C79:C84) -> 0 | D85: =SUM(D79:D84) -> 0 | E85: =SUM(E79:E84) -> 0 | F85: =SUM(F79:F84) -> 0 | G85: 0 | H85: 0 | I85: 0 | J85: =IF(I85>0,I85/'Summary Sheet'!$M$24,0) -> 0 | K85: 0
A86: 69 | B86: Janitor & Cleaning Payroll | G86: 0 | H86: 0 | I86: 0 | J86: =IF(I86>0,I86/'Summary Sheet'!$M$24,0) -> 0 | K86: 0
A87: 70 | B87: Grounds Payroll | G87: 0 | H87: 0 | I87: 0 | J87: =IF(I87>0,I87/'Summary Sheet'!$M$24,0) -> 0 | K87: 0
A88: 71 | B88: Repairs Payroll | G88: 0 | H88: 0 | I88: 0 | J88: =IF(I88>0,I88/'Summary Sheet'!$M$24,0) -> 0 | K88: 0
A89: 72 | B89: ="Payroll (Total of Line "&A86&" - "&A88&")" -> Payroll (Total of Line 69 - 71) | C89: =SUM(C86:C88) -> 0 | D89: =SUM(D86:D88) -> 0 | E89: =SUM(E86:E88) -> 0 | F89: =SUM(F86:F88) -> 0 | G89: 0 | H89: 0 | I89: 0 | J89: =IF(I89>0,I89/'Summary Sheet'!$M$24,0) -> 0 | K89: 0
A90: 73 | B90: Janitor and Cleaning Supplies | G90: 0 | H90: 0 | I90: 0 | J90: =IF(I90>0,I90/'Summary Sheet'!$M$24,0) -> 0 | K90: 0
A91: 74 | B91: Exterminating Supplies | G91: 0 | H91: 0 | I91: 0 | J91: =IF(I91>0,I91/'Summary Sheet'!$M$24,0) -> 0 | K91: 0
A92: =ROW()-17 -> 75 | B92: Ground Supplies | G92: 0 | H92: 0 | I92: 0 | J92: =IF(I92>0,I92/'Summary Sheet'!$M$24,0) -> 0 | K92: =IF(I92=0,0,I92/$I$30) -> 0
A93: 76 | B93: Repairs Material | G93: =E93+C93 -> 0 | H93: =F93+D93 -> 0 | I93: =SUM(C93:F93) -> 0 | J93: =IF(I93>0,I93/'Summary Sheet'!$M$24,0) -> 0 | K93: 0
A94: 77 | B94: Decorating Supplies | G94: 0 | H94: 0 | I94: 0 | J94: =IF(I94>0,I94/'Summary Sheet'!$M$24,0) -> 0 | K94: 0
A95: 78 | B95: ="Supplies (Total of Line "&A90&" - "&A94&")" -> Supplies (Total of Line 73 - 77) | C95: =SUM(C90:C94) -> 0 | D95: =SUM(D90:D94) -> 0 | E95: =SUM(E90:E94) -> 0 | F95: =SUM(F90:F94) -> 0 | G95: 0 | H95: 0 | I95: 0 | J95: =IF(I95>0,I95/'Summary Sheet'!$M$24,0) -> 0 | K95: 0
A96: 79 | B96: Janitor and Cleaning Contracts | G96: 0 | H96: 0 | I96: 0 | J96: =IF(I96>0,I96/'Summary Sheet'!$M$24,0) -> 0 | K96: 0
A97: 80 | B97: Exterminating Contracts | G97: 0 | H97: 0 | I97: 0 | J97: =IF(I97>0,I97/'Summary Sheet'!$M$24,0) -> 0 | K97: 0
A98: 81 | B98: Grounds Contracts | G98: 0 | H98: 0 | I98: 0 | J98: =IF(I98>0,I98/'Summary Sheet'!$M$24,0) -> 0 | K98: 0
A99: 82 | B99: Repairs Contracts | G99: 0 | H99: 0 | I99: 0 | J99: =IF(I99>0,I99/'Summary Sheet'!$M$24,0) -> 0 | K99: 0
A100: 83 | B100: Elevator Maintenance Contract | G100: 0 | H100: 0 | I100: 0 | J100: =IF(I100>0,I100/'Summary Sheet'!$M$24,0) -> 0 | K100: 0
A101: 84 | B101: Swimming Pool Maintenance Contract | G101: 0 | H101: 0 | I101: 0 | J101: =IF(I101>0,I101/'Summary Sheet'!$M$24,0) -> 0 | K101: 0
A102: 85 | B102: Decorating (Painting) Contract/Payroll | G102: 0 | H102: 0 | I102: 0 | J102: =IF(I102>0,I102/'Summary Sheet'!$M$24,0) -> 0 | K102: 0
A103: 86 | B103: ="Contracts (Total of Line "&A96&" - "&A102&")" -> Contracts (Total of Line 79 - 85) | C103: =SUM(C96:C102) -> 0 | D103: =SUM(D96:D102) -> 0 | E103: =SUM(E96:E102) -> 0 | F103: =SUM(F96:F102) -> 0 | G103: 0 | H103: 0 | I103: 0 | J103: =IF(I103>0,I103/'Summary Sheet'!$M$24,0) -> 0 | K103: 0
A104: 87 | B104: Operating & Maintenance Rent Free Unit | G104: 0 | H104: 0 | I104: 0 | J104: =IF(I104>0,I104/'Summary Sheet'!$M$24,0) -> 0 | K104: 0
A105: 88 | B105: Garbage & Trash Removal | G105: 0 | H105: 0 | I105: 0 | J105: =IF(I105>0,I105/'Summary Sheet'!$M$24,0) -> 0 | K105: 0
A106: 89 | B106: Security Payroll/ Contracts | G106: 0 | H106: 0 | I106: 0 | J106: =IF(I106>0,I106/'Summary Sheet'!$M$24,0) -> 0 | K106: 0
A107: 90 | B107: Security Rent Free Unit | G107: 0 | H107: 0 | I107: 0 | J107: =IF(I107>0,I107/'Summary Sheet'!$M$24,0) -> 0 | K107: 0
A108: 91 | B108: Heating/Cooling Repairs & Maintenance | G108: 0 | H108: 0 | I108: 0 | J108: =IF(I108>0,I108/'Summary Sheet'!$M$24,0) -> 0 | K108: 0
A109: 92 | B109: Snow Removal | G109: 0 | H109: 0 | I109: 0 | J109: =IF(I109>0,I109/'Summary Sheet'!$M$24,0) -> 0 | K109: 0
A110: 93 | B110: Vehicle & Maint. Equip. Operation & Repair | G110: 0 | H110: 0 | I110: 0 | J110: =IF(I110>0,I110/'Summary Sheet'!$M$24,0) -> 0 | K110: 0
A111: 94 | B111: Miscellaneous Operating & Maintenance | G111: 0 | H111: 0 | I111: 0 | J111: =IF(I111>0,I111/'Summary Sheet'!$M$24,0) -> 0 | K111: 0
A112: 95 | B112: Total Operating & Maintenance Expenses | C112: =SUM(C86:C111)-C89-C95-C103 -> 0 | D112: =SUM(D86:D111)-D89-D95-D103 -> 0 | E112: =SUM(E86:E111)-E89-E95-E103 -> 0 | F112: =SUM(F86:F111)-F89-F95-F103 -> 0 | G112: 0 | H112: 0 | I112: 0 | J112: =IF(I112>0,I112/'Summary Sheet'!$M$24,0) -> 0 | K112: 0
A113: 96 | B113: Real Estate Tax | G113: 0 | H113: 0 | I113: 0 | J113: =IF(I113>0,I113/'Summary Sheet'!$M$24,0) -> 0 | K113: 0
A114: 97 | B114: Payroll Taxes (project share) | G114: 0 | H114: 0 | I114: 0 | J114: =IF(I114>0,I114/'Summary Sheet'!$M$24,0) -> 0 | K114: 0
A115: 98 | B115: Property & Liability Insurance | G115: 0 | H115: 0 | I115: 0 | J115: =IF(I115>0,I115/'Summary Sheet'!$M$24,0) -> 0 | K115: 0
A116: 99 | B116: Fidelity Bond Insurance | G116: 0 | H116: 0 | I116: 0 | J116: =IF(I116>0,I116/'Summary Sheet'!$M$24,0) -> 0 | K116: 0
A117: 100 | B117: Workmen's Compensation | G117: 0 | H117: 0 | I117: 0 | J117: =IF(I117>0,I117/'Summary Sheet'!$M$24,0) -> 0 | K117: 0
A118: 101 | B118: Health Insurance & Other Benefits | G118: 0 | H118: 0 | I118: 0 | J118: =IF(I118>0,I118/'Summary Sheet'!$M$24,0) -> 0 | K118: 0
A119: 102 | B119: Pension Expense | G119: =E119+C119 -> 0 | H119: =F119+D119 -> 0 | I119: =SUM(C119:F119) -> 0 | J119: =IF(I119>0,I119/'Summary Sheet'!$M$24,0) -> 0 | K119: =IF(I119=0,0,I119/$I$30) -> 0
A120: 103 | B120: Other Post-Employment Benefits Expense | G120: =E120+C120 -> 0 | H120: =F120+D120 -> 0 | I120: =SUM(C120:F120) -> 0 | J120: =IF(I120>0,I120/'Summary Sheet'!$M$24,0) -> 0 | K120: =IF(I120=0,0,I120/$I$30) -> 0
A121: 104 | B121: Miscellaneous Taxes, Licenses, Permits | G121: 0 | H121: 0 | I121: 0 | J121: =IF(I121>0,I121/'Summary Sheet'!$M$24,0) -> 0 | K121: 0
A122: 105 | B122: Other Insurance | G122: 0 | H122: 0 | I122: 0 | J122: =IF(I122>0,I122/'Summary Sheet'!$M$24,0) -> 0 | K122: 0
A123: 106 | B123: ="Misc. Taxes, Lic., Permits & Ins. (Lines "&A121&" & "&A122&")" -> Misc. Taxes, Lic., Permits & Ins. (Lines 104 & 105) | C123: =SUM(C121:C122) -> 0 | D123: =SUM(D121:D122) -> 0 | E123: =SUM(E121:E122) -> 0 | F123: =SUM(F121:F122) -> 0 | G123: 0 | H123: 0 | I123: 0 | J123: =IF(I123>0,I123/'Summary Sheet'!$M$24,0) -> 0 | K123: 0
A124: 107 | B124: Total Taxes & Insurance | C124: =SUM(C113:C123)-C123 -> 0 | D124: =SUM(D113:D123)-D123 -> 0 | E124: =SUM(E113:E123)-E123 -> 0 | F124: =SUM(F113:F123)-F123 -> 0 | G124: 0 | H124: 0 | I124: 0 | J124: =IF(I124>0,I124/'Summary Sheet'!$M$24,0) -> 0 | K124: 0
A125: 108 | B125: Elderly & Congregate Serv. Expense (attach schedule) | G125: 0 | H125: 0 | I125: 0 | J125: =IF(I125>0,I125/'Summary Sheet'!$M$24,0) -> 0 | K125: 0
A126: 109 | B126: TOTAL OPERATING EXPENSES | C126: =C78+C85+C112+C124+C125 -> 0 | D126: =D78+D85+D112+D124+D125 -> 0 | E126: =E78+E85+E112+E124+E125 -> 0 | F126: =F78+F85+F112+F124+F125 -> 0 | G126: 0 | H126: 0 | I126: 0 | J126: =IF(I126>0,I126/'Summary Sheet'!$M$24,0) -> 0 | K126: 0
A127: 110 | B127: OPERATING INCOME (LOSS) | C127: =C56-C126 -> 0 | D127: =D56-D126 -> 0 | E127: =E56-E126 -> 0 | F127: =F56-F126 -> 0 | G127: 0 | H127: 0 | I127: 0 | J127: =IF(I127>0,I127/'Summary Sheet'!$M$24,0) -> 0 | K127: 0
A128: 111 | B128: Mortgage Principal & Interest- CHFA Debt | G128: 0 | H128: 0 | I128: 0 | J128: =IF(I128>0,I128/'Summary Sheet'!$M$24,0) -> 0 | K128: 0
A129: 112 | B129: Mortgage Principal & Interest- Other Debt | G129: 0 | H129: 0 | I129: 0 | J129: =IF(I129>0,I129/'Summary Sheet'!$M$24,0) -> 0 | K129: 0
A130: 113 | B130: Mortgage Insurance Premium/ Service Charges | G130: 0 | H130: 0 | I130: 0 | J130: =IF(I130>0,I130/'Summary Sheet'!$M$24,0) -> 0 | K130: 0
A131: 114 | B131: Miscellaneous Financial Expenses | G131: 0 | H131: 0 | I131: 0 | J131: =IF(I131>0,I131/'Summary Sheet'!$M$24,0) -> 0 | K131: 0
A132: 115 | B132: Total Financial Expenses | C132: =SUM(C128:C131) -> 0 | D132: =SUM(D128:D131) -> 0 | E132: =SUM(E128:E131) -> 0 | F132: =SUM(F128:F131) -> 0 | G132: 0 | H132: 0 | I132: 0 | J132: =IF(I132>0,I132/'Summary Sheet'!$M$24,0) -> 0 | K132: 0
A133: 116 | B133: Replacement Reserve Deposits | G133: 0 | H133: 0 | I133: 0 | J133: =IF(I133>0,I133/'Summary Sheet'!$M$24,0) -> 0 | K133: 0
A134: 117 | B134: Operating (Other) Reserve Deposits | G134: 0 | H134: 0 | I134: 0 | J134: =IF(I134>0,I134/'Summary Sheet'!$M$24,0) -> 0 | K134: 0
A135: 118 | B135: NET PROJECTED CASH FLOW | C135: =C127-C132-C133-C134 -> 0 | D135: =D127-D132-D133-D134 -> 0 | E135: =E127-E132-E133-E134 -> 0 | F135: =F127-F132-F133-F134 -> 0 | G135: 0 | H135: 0 | I135: 0 | J135: =IF(I135>0,I135/'Summary Sheet'!$M$24,0) -> 0 | K135: 0
A136: 119 | B136: Replacement Reserve Releases | G136: 0 | H136: 0 | I136: 0 | J136: =IF(I136>0,I136/'Summary Sheet'!$M$24,0) -> 0 | K136: 0
A137: 120 | B137: Operating Reserve Releases | G137: 0 | H137: 0 | I137: 0 | J137: =IF(I137>0,I137/'Summary Sheet'!$M$24,0) -> 0 | K137: 0
A138: 121 | B138: Capital Improvements- Building (attach schedule) | G138: 0 | H138: 0 | I138: 0 | J138: =IF(I138>0,I138/'Summary Sheet'!$M$24,0) -> 0 | K138: 0
A139: 122 | B139: Capital Improvements- Equipment (attach schedule) | G139: 0 | H139: 0 | I139: =SUM(C139:F139) -> 0 | J139: =IF(I139>0,I139/'Summary Sheet'!$M$24,0) -> 0 | K139: 0
A140: 123 | B140: Net Operating Income (NOI) | I140: =I127-I133 -> 0 | J140: =IF(I140>0,I140/'Summary Sheet'!$M$24,0) -> 0 | K140: 0
A141: 124 | B141: Debt Service Coverage Ratio (DSC) | I141: =IF(I128+I129=0,"n/a",IF(I140>0,I140/(I128+I129),"-")) -> n/a
A142: 125 | B142: Per Unit Expenses (Excluding: RE Taxes & Reserves) | C142: =IF(C126>0,(C126-C113)/('Rental Income Calc Worksheet'!C52+'Rental Income Calc Worksheet'!G52+'Rental Income Calc Worksheet'!J52),0) -> 0 | I142: =IF(I126>0,(I126-I113+I133)/('Rental Income Calc Worksheet'!C52+'Rental Income Calc Worksheet'!G52+'Rental Income Calc Worksheet'!J52),0) -> 0 | J142: =IF(I142>0,I142/'Summary Sheet'!$M$24,0) -> 0 | K142: =IF(I142=0,0,I142/$I$30) -> 0
B144: Form Prepared by:
B146: Phone Number:
A148: The undersigned presents the enclosed estimates as reasonable and accurate projections of operating income and expenses for stated stabilized fiscal year.
A149: CHFA/DOH Accepted By: | E149: Management Company Accepted By:
A151: Signature | C151: Date | E151: Signature | I151: Date
A153: Name | C153: Title | E153: Name | I153: Title

Sheet Expenses Summary
A2: Exhibit 5.2.c - EXPENSE SUMMARY
A5: DEVELOPMENT NAME | B5: =Application!D113 -> 0 | E5: APPLICANT | F5: ='Detailed Income and Expenses'!H13 -> 0
F7: NON-RESIDENTIAL | H7: DETAILED INCOME & EXPENSES LINE REFERENCE | I7: COMMENTS
A8: EXPENSES | D8: RESIDENTIAL | E8: $ / PUPA | G8: COMBINED
A9: Administrative | D9: =SUM(D10:D29) -> 0 | E9: =SUM(E10:E29) -> 0 | F9: =SUM(F10:F29) -> 0 | G9: =D9+F9 -> 0
A10: Conventions and Meetings | D10: ='Detailed Income and Expenses'!G57 -> 0 | E10: =IFERROR(ROUND(D10/'Rental Income Calc Worksheet'!$D$50,0),0) -> 0 | F10: ='Detailed Income and Expenses'!H57 -> 0 | G10: 0 | H10: 40
A11: Management Consultants | D11: ='Detailed Income and Expenses'!G58 -> 0 | E11: =IFERROR(ROUND(D11/'Rental Income Calc Worksheet'!$D$50,0),0) -> 0 | F11: ='Detailed Income and Expenses'!H58 -> 0 | G11: 0 | H11: 41
A12: Advertising and Marketing | D12: ='Detailed Income and Expenses'!G59 -> 0 | E12: =IFERROR(ROUND(D12/'Rental Income Calc Worksheet'!$D$50,0),0) -> 0 | F12: ='Detailed Income and Expenses'!H59 -> 0 | G12: 0 | H12: 42
A13: Apartment Resale Expenses (Co-ops) | D13: ='Detailed Income and Expenses'!G60 -> 0 | E13: =IFERROR(ROUND(D13/'Rental Income Calc Worksheet'!$D$50,0),0) -> 0 | F13: =+'Detailed Income and Expenses'!H60 -> 0 | G13: =D13+F13 -> 0 | H13: 43
A14: Other Renting Expenses | D14: ='Detailed Income and Expenses'!G61 -> 0 | E14: =IFERROR(ROUND(D14/'Rental Income Calc Worksheet'!$D$50,0),0) -> 0 | F14: =+'Detailed Income and Expenses'!H61 -> 0 | G14: =D14+F14 -> 0 | H14: 44
A15: Office Salaries (Project Share) | D15: ='Detailed Income and Expenses'!G62 -> 0 | E15: =IFERROR(ROUND(D15/'Rental Income Calc Worksheet'!$D$50,0),0) -> 0 | F15: ='Detailed Income and Expenses'!H62 -> 0 | G15: 0 | H15: 45
A16: Salaries - Resident Services Coordinator | D16: ='Detailed Income and Expenses'!G63 -> 0 | E16: =IFERROR(ROUND(D16/'Rental Income Calc Worksheet'!$D$50,0),0) -> 0 | F16: ='Detailed Income and Expenses'!H63 -> 0 | G16: =D16+F16 -> 0 | H16: 46
A17: Office Supplies | D17: ='Detailed Income and Expenses'!G64 -> 0 | E17: =IFERROR(ROUND(D17/'Rental Income Calc Worksheet'!$D$50,0),0) -> 0 | F17: ='Detailed Income and Expenses'!H64 -> 0 | G17: =D17+F17 -> 0 | H17: 47
A18: Telephone & Answering Service | D18: ='Detailed Income and Expenses'!G65 -> 0 | E18: =IFERROR(ROUND(D18/'Rental Income Calc Worksheet'!$D$50,0),0) -> 0 | F18: ='Detailed Income and Expenses'!H65 -> 0 | G18: =D18+F18 -> 0 | H18: 48
A19: Office or Model Apartment Rent | D19: ='Detailed Income and Expenses'!G67 -> 0 | E19: =IFERROR(ROUND(D19/'Rental Income Calc Worksheet'!$D$50,0),0) -> 0 | F19: ='Detailed Income and Expenses'!H67 -> 0 | G19: =D19+F19 -> 0 | H19: 50
A20: Compensated Absences - Administrative Salaries | D20: ='Detailed Income and Expenses'!G68 -> 0 | E20: =IFERROR(ROUND(D20/'Rental Income Calc Worksheet'!$D$50,0),0) -> 0 | F20: ='Detailed Income and Expenses'!H68 -> 0 | G20: =D20+F20 -> 0 | H20: 51
A21: Management Fee (Max. 5% EGI) | C21: =(D21+F21)/('Detailed Income and Expenses'!C56+'Detailed Income and Expenses'!D56) ->  | D21: ='Detailed Income and Expenses'!G69 -> 0 | E21: =IFERROR(ROUND(D21/'Rental Income Calc Worksheet'!$D$50,0),0) -> 0 | F21: ='Detailed Income and Expenses'!H69 -> 0 | G21: 0 | H21: 52
A22: Manager or Superintendent Salaries | D22: ='Detailed Income and Expenses'!G70 -> 0 | E22: =IFERROR(ROUND(D22/'Rental Income Calc Worksheet'!$D$50,0),0) -> 0 | F22: ='Detailed Income and Expenses'!H70 -> 0 | G22: 0 | H22: 53
A23: Administrative Rent-Free / Reduced Unit | D23: =+'Detailed Income and Expenses'!G71 -> 0 | E23: =IFERROR(ROUND(D23/'Rental Income Calc Worksheet'!$D$50,0),0) -> 0 | F23: =+'Detailed Income and Expenses'!H71 -> 0 | G23: 0 | H23: 54
A24: Legal Expense- Project | D24: =+'Detailed Income and Expenses'!G72 -> 0 | E24: =IFERROR(ROUND(D24/'Rental Income Calc Worksheet'!$D$50,0),0) -> 0 | F24: =+'Detailed Income and Expenses'!H72 -> 0 | G24: 0 | H24: 55
A25: Audit Expense | D25: =+'Detailed Income and Expenses'!G73 -> 0 | E25: =IFERROR(ROUND(D25/'Rental Income Calc Worksheet'!$D$50,0),0) -> 0 | F25: =+'Detailed Income and Expenses'!H73 -> 0 | G25: =D25+F25 -> 0 | H25: 56
A26: Bookkeeping Fees/Accounting Services | D26: =+'Detailed Income and Expenses'!G74 -> 0 | E26: =IFERROR(ROUND(D26/'Rental Income Calc Worksheet'!$D$50,0),0) -> 0 | F26: =+'Detailed Income and Expenses'!H74 -> 0 | G26: =D26+F26 -> 0 | H26: 57
A27: Bad Debts | D27: =+'Detailed Income and Expenses'!G75 -> 0 | E27: =IFERROR(ROUND(D27/'Rental Income Calc Worksheet'!$D$50,0),0) -> 0 | F27: =+'Detailed Income and Expenses'!H75 -> 0 | G27: =D27+F27 -> 0 | H27: 58
A28: State Service Charge - Administrative | D28: =+'Detailed Income and Expenses'!G76 -> 0 | E28: =IFERROR(ROUND(D28/'Rental Income Calc Worksheet'!$D$50,0),0) -> 0 | F28: =+'Detailed Income and Expenses'!H76 -> 0 | G28: =D28+F28 -> 0 | H28: 59
A29: Administrative / Misc. | D29: =+'Detailed Income and Expenses'!G77 -> 0 | E29: =IFERROR(ROUND(D29/'Rental Income Calc Worksheet'!$D$50,0),0) -> 0 | F29: =+'Detailed Income and Expenses'!H77 -> 0 | G29: 0 | H29: 60
A30: Utilities | D30: =SUM(D31:D36) -> 0 | E30: =SUM(E31:E36) -> 0 | F30: =SUM(F31:F36) -> 0 | G30: =D30+F30 -> 0
A31: Fuel Oil/Coal | D31: ='Detailed Income and Expenses'!G79 -> 0 | E31: =IFERROR(ROUND(D31/'Rental Income Calc Worksheet'!$D$50,0),0) -> 0 | F31: ='Detailed Income and Expenses'!H79 -> 0 | G31: 0 | H31: 62
A32: Electricity | D32: ='Detailed Income and Expenses'!G80 -> 0 | E32: =IFERROR(ROUND(D32/'Rental Income Calc Worksheet'!$D$50,0),0) -> 0 | F32: ='Detailed Income and Expenses'!H80 -> 0 | G32: 0 | H32: 63
A33: Water | D33: ='Detailed Income and Expenses'!G81 -> 0 | E33: =IFERROR(ROUND(D33/'Rental Income Calc Worksheet'!$D$50,0),0) -> 0 | F33: ='Detailed Income and Expenses'!H81 -> 0 | G33: 0 | H33: 64
A34: Gas | D34: ='Detailed Income and Expenses'!G82 -> 0 | E34: =IFERROR(ROUND(D34/'Rental Income Calc Worksheet'!$D$50,0),0) -> 0 | F34: ='Detailed Income and Expenses'!H82 -> 0 | G34: 0 | H34: 65
A35: Sewer | D35: ='Detailed Income and Expenses'!G83 -> 0 | E35: =IFERROR(ROUND(D35/'Rental Income Calc Worksheet'!$D$50,0),0) -> 0 | F35: ='Detailed Income and Expenses'!H83 -> 0 | G35: 0 | H35: 66
A36: Cable Television | D36: ='Detailed Income and Expenses'!G84 -> 0 | E36: =IFERROR(ROUND(D36/'Rental Income Calc Worksheet'!$D$50,0),0) -> 0 | F36: ='Detailed Income and Expenses'!H84 -> 0 | G36: 0 | H36: 67
A37: Operating and Maintenance | D37: =SUM(D38:D48) -> 0 | E37: =SUM(E38:E48) -> 0 | F37: =SUM(F38:F48) -> 0 | G37: 0
A38: Payroll | D38: ='Detailed Income and Expenses'!G86+'Detailed Income and Expenses'!G87+'Detailed Income and Expenses'!G88 -> 0 | E38: =IFERROR(ROUND(D38/'Rental Income Calc Worksheet'!$D$50,0),0) -> 0 | F38: ='Detailed Income and Expenses'!H86+'Detailed Income and Expenses'!H87+'Detailed Income and Expenses'!H88 -> 0 | G38: 0 | H38: 69, 70, 71
A39: Supplies | D39: ='Detailed Income and Expenses'!G90+'Detailed Income and Expenses'!G91+'Detailed Income and Expenses'!G92+'Detailed Income and Expenses'!G93+'Detailed Income and Expenses'!G94 -> 0 | E39: =IFERROR(ROUND(D39/'Rental Income Calc Worksheet'!$D$50,0),0) -> 0 | F39: ='Detailed Income and Expenses'!H90+'Detailed Income and Expenses'!H91+'Detailed Income and Expenses'!H92+'Detailed Income and Expenses'!H93+'Detailed Income and Expenses'!H94 -> 0 | G39: 0 | H39: 73, 74, 75, 76, 77
A40: Contracts | D40: ='Detailed Income and Expenses'!G96+'Detailed Income and Expenses'!G97+'Detailed Income and Expenses'!G98+'Detailed Income and Expenses'!G99+'Detailed Income and Expenses'!G100+'Detailed Income and Expenses'!G101+'Detailed Income and Expenses'!G102 -> 0 | E40: =IFERROR(ROUND(D40/'Rental Income Calc Worksheet'!$D$50,0),0) -> 0 | F40: ='Detailed Income and Expenses'!H96+'Detailed Income and Expenses'!H97+'Detailed Income and Expenses'!H98+'Detailed Income and Expenses'!H99+'Detailed Income and Expenses'!H100+'Detailed Income and Expenses'!H101+'Detailed Income and Expenses'!H102 -> 0 | G40: 0 | H40: 79, 80, 81, 82, 83, 84, 85
A41: Operating and Maintenance Rent Free Units | D41: ='Detailed Income and Expenses'!G104 -> 0 | E41: =IFERROR(ROUND(D41/'Rental Income Calc Worksheet'!$D$50,0),0) -> 0 | F41: ='Detailed Income and Expenses'!H104 -> 0 | G41: 0 | H41: 87
A42: Garbage and Trash Removal | D42: ='Detailed Income and Expenses'!G105 -> 0 | E42: =IFERROR(ROUND(D42/'Rental Income Calc Worksheet'!$D$50,0),0) -> 0 | F42: ='Detailed Income and Expenses'!H105 -> 0 | G42: 0 | H42: 88
A43: Security Payroll / Contracts | D43: ='Detailed Income and Expenses'!G106 -> 0 | E43: =IFERROR(ROUND(D43/'Rental Income Calc Worksheet'!$D$50,0),0) -> 0 | F43: ='Detailed Income and Expenses'!H106 -> 0 | G43: 0 | H43: 89
A44: Security Rent Free Unit | D44: ='Detailed Income and Expenses'!G107 -> 0 | E44: =IFERROR(ROUND(D44/'Rental Income Calc Worksheet'!$D$50,0),0) -> 0 | F44: ='Detailed Income and Expenses'!H107 -> 0 | G44: 0 | H44: 90
A45: Heating / Cooling Repairs & Maintenance | D45: ='Detailed Income and Expenses'!G108 -> 0 | E45: =IFERROR(ROUND(D45/'Rental Income Calc Worksheet'!$D$50,0),0) -> 0 | F45: ='Detailed Income and Expenses'!H108 -> 0 | G45: 0 | H45: 91
A46: Snow Removal | D46: ='Detailed Income and Expenses'!G109 -> 0 | E46: =IFERROR(ROUND(D46/'Rental Income Calc Worksheet'!$D$50,0),0) -> 0 | F46: ='Detailed Income and Expenses'!H109 -> 0 | G46: 0 | H46: 92
A47: Vehicle Maint. Equipment Operations & Repair | D47: ='Detailed Income and Expenses'!G110 -> 0 | E47: =IFERROR(ROUND(D47/'Rental Income Calc Worksheet'!$D$50,0),0) -> 0 | F47: ='Detailed Income and Expenses'!H110 -> 0 | G47: 0 | H47: 93
A48: Misc. Operating & Maintenance | D48: ='Detailed Income and Expenses'!G111 -> 0 | E48: =IFERROR(ROUND(D48/'Rental Income Calc Worksheet'!$D$50,0),0) -> 0 | F48: ='Detailed Income and Expenses'!H111 -> 0 | G48: 0 | H48: 94
A49: Taxes and Insurance | D49: =SUM(D50:D58) -> 0 | E49: =SUM(E50:E58) -> 0 | F49: =SUM(F50:F58) -> 0 | G49: 0
A50: Payroll Taxes (project share) | D50: ='Detailed Income and Expenses'!G114 -> 0 | E50: =IFERROR(ROUND(D50/'Rental Income Calc Worksheet'!$D$50,0),0) -> 0 | F50: ='Detailed Income and Expenses'!H114 -> 0 | G50: =D50+F50 -> 0 | H50: 97
A51: Property & Liability Insirance | D51: ='Detailed Income and Expenses'!G115 -> 0 | E51: =IFERROR(ROUND(D51/'Rental Income Calc Worksheet'!$D$50,0),0) -> 0 | F51: ='Detailed Income and Expenses'!H115 -> 0 | G51: 0 | H51: 98
A52: Fidelity Bond Insurance | D52: ='Detailed Income and Expenses'!G116 -> 0 | E52: =IFERROR(ROUND(D52/'Rental Income Calc Worksheet'!$D$50,0),0) -> 0 | F52: ='Detailed Income and Expenses'!H116 -> 0 | G52: 0 | H52: 99
A53: Workmen's Comp | D53: ='Detailed Income and Expenses'!G117 -> 0 | E53: =IFERROR(ROUND(D53/'Rental Income Calc Worksheet'!$D$50,0),0) -> 0 | F53: ='Detailed Income and Expenses'!H117 -> 0 | G53: 0 | H53: 100
A54: Health Insurance & Other Benefits | D54: ='Detailed Income and Expenses'!G118 -> 0 | E54: =IFERROR(ROUND(D54/'Rental Income Calc Worksheet'!$D$50,0),0) -> 0 | F54: ='Detailed Income and Expenses'!H118 -> 0 | G54: 0 | H54: 101
A55: Pension Expense | D55: ='Detailed Income and Expenses'!G119 -> 0 | E55: =IFERROR(ROUND(D55/'Rental Income Calc Worksheet'!$D$50,0),0) -> 0 | F55: ='Detailed Income and Expenses'!H119 -> 0 | G55: =D55+F55 -> 0 | H55: 102
A56: Other Post-Employment Benefits Expense | D56: ='Detailed Income and Expenses'!G120 -> 0 | E56: =IFERROR(ROUND(D56/'Rental Income Calc Worksheet'!$D$50,0),0) -> 0 | F56: ='Detailed Income and Expenses'!H120 -> 0 | G56: 0 | H56: 103
A57: Misc. Taxes, Insurance, Permits & Insurance | D57: ='Detailed Income and Expenses'!G121+'Detailed Income and Expenses'!G122 -> 0 | E57: =IFERROR(ROUND(D57/'Rental Income Calc Worksheet'!$D$50,0),0) -> 0 | F57: ='Detailed Income and Expenses'!H121+'Detailed Income and Expenses'!H122 -> 0 | G57: 0 | H57: 104, 105
A58: Elderly & Congregate | D58: ='Detailed Income and Expenses'!G125 -> 0 | E58: =IFERROR(ROUND(D58/'Rental Income Calc Worksheet'!$D$50,0),0) -> 0 | F58: ='Detailed Income and Expenses'!H125 -> 0 | G58: 0 | H58: 108
A59: Total Admin., Utilities, Oper. and Maint., Tax and Ins. | D59: =D9+D30+D37+D49 -> 0 | E59: =E9+E30+E37+E49 -> 0 | F59: =F9+F30+F37+F49 -> 0 | G59: 0
A60: Capital (Replacement) Reserve | D60: =+'Detailed Income and Expenses'!G133 -> 0 | E60: =IF(OR($A$74=0,$H$86=0),0,ROUND(D60/'Rental Income Calc Worksheet'!$D$50,0)) -> 0 | F60: =+'Detailed Income and Expenses'!H133 -> 0 | G60: 0 | H60: 116
C61: Sub-Total (Incld. RESERVES) | D61: =SUM(D59:D60) -> 0 | E61: =SUM(E59:E60) -> 0 | F61: =SUM(F59:F60) -> 0 | G61: 0
A62: Real Estate Taxes | D62: ='Detailed Income and Expenses'!G113 -> 0 | E62: =IFERROR(ROUND(D62/'Rental Income Calc Worksheet'!$D$50,0),0) -> 0 | F62: =+'Detailed Income and Expenses'!H113 -> 0 | G62: 0 | H62: 96
C63: TOTAL ANNUAL EXPENSES | D63: =SUM(D61:D62) -> 0 | E63: =SUM(E61:E62) -> 0 | F63: =SUM(F61:F62) -> 0 | G63: 0

Sheet Cash Flow
E2: Exhibit 5.3 - CASH FLOW PROJECTION
B5: DEVELOPMENT NAME | C5: =Application!D113 -> 0 | G5: APPLICANT | H5: =Application!D10 -> 0
G7: 1 | H7: =G7+1 -> 2 | I7: 3 | J7: 4 | K7: 5 | L7: 6 | M7: 7 | N7: 8 | O7: 9 | P7: 10 | Q7: 11 | R7: 12 | S7: 13 | T7: 14 | U7: 15 | V7: 16 | W7: 17 | X7: 18 | Y7: 19 | Z7: 20 | AA7: 21 | AB7: 22 | AC7: 23 | AD7: 24 | AE7: 25 | AF7: 26 | AG7: 27 | AH7: 28 | AI7: 29 | AJ7: 30 | AK7: 31 | AL7: 32 | AM7: 33 | AN7: 34 | AO7: 35 | AP7: 36 | AQ7: 37 | AR7: 38 | AS7: 39 | AT7: 40
E8: Growth % | G8: =Application!E290 -> 0 | H8: =G8+1 -> 1 | I8: 2 | J8: 3 | K8: 4 | L8: 5 | M8: 6 | N8: 7 | O8: 8 | P8: 9 | Q8: 10 | R8: 11 | S8: 12 | T8: 13 | U8: 14 | V8: 15 | W8: 16 | X8: 17 | Y8: 18 | Z8: 19 | AA8: 20 | AB8: 21 | AC8: 22 | AD8: 23 | AE8: 24 | AF8: 25 | AG8: 26 | AH8: 27 | AI8: 28 | AJ8: 29 | AK8: 30 | AL8: 31 | AM8: 32 | AN8: 33 | AO8: 34 | AP8: 35 | AQ8: 36 | AR8: 37 | AS8: 38 | AT8: 39
A10: INCOME | D10: RESIDENTIAL - Qualified / Afford. Gross Rental Income | E10: 0.02 | G10: =SUMIF('Rental Income Calc Worksheet'!B31:B49,"<100%",'Rental Income Calc Worksheet'!R31:R49) -> 0 | H10: =G10*(1+$E10) -> 0 | I10: 0 | J10: 0 | K10: 0 | L10: 0 | M10: 0 | N10: 0 | O10: 0 | P10: 0 | Q10: 0 | R10: 0 | S10: 0 | T10: 0 | U10: 0 | V10: 0 | W10: 0 | X10: =W10*(1+$E10) -> 0 | Y10: 0 | Z10: 0 | AA10: 0 | AB10: 0 | AC10: 0 | AD10: 0 | AE10: 0 | AF10: 0 | AG10: 0 | AH10: 0 | AI10: 0 | AJ10: 0 | AK10: 0 | AL10: 0 | AM10: 0 | AN10: 0 | AO10: 0 | AP10: 0 | AQ10: 0 | AR10: 0 | AS10: 0 | AT10: 0
D11: - RESIDENTIAL - Qualified / Afford. Vacancy Loss | E11: 0.02 | G11: =SUMIF('Rental Income Calc Worksheet'!B31:B49,"<100%",'Rental Income Calc Worksheet'!U31:U49) -> 0 | H11: =G11*(1+$E11) -> 0 | I11: 0 | J11: 0 | K11: 0 | L11: 0 | M11: 0 | N11: 0 | O11: 0 | P11: 0 | Q11: 0 | R11: 0 | S11: 0 | T11: 0 | U11: 0 | V11: 0 | W11: 0 | X11: 0 | Y11: 0 | Z11: 0 | AA11: 0 | AB11: 0 | AC11: 0 | AD11: 0 | AE11: 0 | AF11: 0 | AG11: 0 | AH11: 0 | AI11: 0 | AJ11: 0 | AK11: 0 | AL11: 0 | AM11: 0 | AN11: 0 | AO11: 0 | AP11: 0 | AQ11: 0 | AR11: 0 | AS11: 0 | AT11: 0
D12: = RESIDENTIAL - Qualified / Afford. Net Rental Income | E12: 0.02 | G12: =SUMIF('Rental Income Calc Worksheet'!B31:B49,"<100%",'Rental Income Calc Worksheet'!T31:T49) -> 0 | H12: =G12*(1+$E12) -> 0 | I12: =H12*(1+$E12) -> 0 | J12: 0 | K12: 0 | L12: 0 | M12: 0 | N12: 0 | O12: 0 | P12: 0 | Q12: 0 | R12: 0 | S12: 0 | T12: 0 | U12: 0 | V12: 0 | W12: 0 | X12: 0 | Y12: 0 | Z12: 0 | AA12: 0 | AB12: 0 | AC12: 0 | AD12: 0 | AE12: 0 | AF12: 0 | AG12: 0 | AH12: 0 | AI12: 0 | AJ12: 0 | AK12: 0 | AL12: 0 | AM12: 0 | AN12: 0 | AO12: 0 | AP12: 0 | AQ12: 0 | AR12: 0 | AS12: 0 | AT12: 0
D13: RESIDENTIAL - Market Rate Gross Rental Income | E13: 0.02 | G13: =SUMIF('Rental Income Calc Worksheet'!B31:B49,">=100%",'Rental Income Calc Worksheet'!R31:R49)+SUMIF('Rental Income Calc Worksheet'!B31:B49,"120%+",'Rental Income Calc Worksheet'!R31:R49) -> 0 | H13: =G13*(1+$E13) -> 0 | I13: 0 | J13: 0 | K13: 0 | L13: 0 | M13: 0 | N13: 0 | O13: 0 | P13: 0 | Q13: 0 | R13: 0 | S13: 0 | T13: 0 | U13: 0 | V13: 0 | W13: 0 | X13: 0 | Y13: 0 | Z13: 0 | AA13: 0 | AB13: 0 | AC13: 0 | AD13: 0 | AE13: 0 | AF13: 0 | AG13: 0 | AH13: 0 | AI13: 0 | AJ13: 0 | AK13: 0 | AL13: 0 | AM13: 0 | AN13: 0 | AO13: 0 | AP13: 0 | AQ13: 0 | AR13: 0 | AS13: 0 | AT13: 0
D14: - RESIDENTIAL - Market Rate Vacancy Loss | E14: 0.02 | G14: =SUMIF('Rental Income Calc Worksheet'!B31:B49,">=100%",'Rental Income Calc Worksheet'!U31:U49)+SUMIF('Rental Income Calc Worksheet'!B31:B49,"120%+",'Rental Income Calc Worksheet'!U31:U49) -> 0 | H14: =G14*(1+$E14) -> 0 | I14: 0 | J14: 0 | K14: 0 | L14: 0 | M14: 0 | N14: 0 | O14: 0 | P14: 0 | Q14: 0 | R14: 0 | S14: 0 | T14: 0 | U14: 0 | V14: 0 | W14: 0 | X14: 0 | Y14: 0 | Z14: 0 | AA14: 0 | AB14: 0 | AC14: 0 | AD14: 0 | AE14: 0 | AF14: 0 | AG14: 0 | AH14: 0 | AI14: 0 | AJ14: 0 | AK14: 0 | AL14: 0 | AM14: 0 | AN14: 0 | AO14: 0 | AP14: 0 | AQ14: 0 | AR14: 0 | AS14: 0 | AT14: 0
D15: = RESIDENTIAL - Market Rate Net Rental Income | E15: 0.02 | G15: =SUMIF('Rental Income Calc Worksheet'!B31:B49,">=100%",'Rental Income Calc Worksheet'!T31:T49)+SUMIF('Rental Income Calc Worksheet'!B31:B49,"120%+",'Rental Income Calc Worksheet'!T31:T49) -> 0 | H15: =G15*(1+$E15) -> 0 | I15: 0 | J15: 0 | K15: 0 | L15: 0 | M15: 0 | N15: 0 | O15: 0 | P15: 0 | Q15: 0 | R15: 0 | S15: 0 | T15: 0 | U15: 0 | V15: 0 | W15: 0 | X15: 0 | Y15: 0 | Z15: 0 | AA15: 0 | AB15: 0 | AC15: 0 | AD15: 0 | AE15: 0 | AF15: 0 | AG15: 0 | AH15: 0 | AI15: 0 | AJ15: 0 | AK15: 0 | AL15: 0 | AM15: 0 | AN15: 0 | AO15: 0 | AP15: 0 | AQ15: 0 | AR15: 0 | AS15: 0 | AT15: 0
D16: Other Income | E16: 0.02 | G16: =SUM('Detailed Income and Expenses'!C20:D29)-SUM('Detailed Income and Expenses'!C32:D35)+SUM('Detailed Income and Expenses'!C38:D42)+SUM('Detailed Income and Expenses'!C44:D47)+SUM('Detailed Income and Expenses'!C49:D53)+'Detailed Income and Expenses'!C55 -> 0 | H16: =G16*(1+$E16) -> 0 | I16: 0 | J16: 0 | K16: 0 | L16: 0 | M16: 0 | N16: 0 | O16: 0 | P16: 0 | Q16: 0 | R16: 0 | S16: 0 | T16: 0 | U16: 0 | V16: 0 | W16: 0 | X16: 0 | Y16: 0 | Z16: 0 | AA16: 0 | AB16: 0 | AC16: 0 | AD16: 0 | AE16: 0 | AF16: 0 | AG16: 0 | AH16: 0 | AI16: 0 | AJ16: 0 | AK16: 0 | AL16: 0 | AM16: 0 | AN16: 0 | AO16: 0 | AP16: 0 | AQ16: 0 | AR16: 0 | AS16: 0 | AT16: 0
E17: EFFECTIVE GROSS INCOME (EGI) | G17: =G12+G15+G16 -> 0 | H17: =H12+H15+H16 -> 0 | I17: 0 | J17: 0 | K17: 0 | L17: 0 | M17: 0 | N17: 0 | O17: 0 | P17: 0 | Q17: 0 | R17: 0 | S17: 0 | T17: 0 | U17: 0 | V17: 0 | W17: 0 | X17: 0 | Y17: 0 | Z17: 0 | AA17: 0 | AB17: 0 | AC17: 0 | AD17: 0 | AE17: 0 | AF17: 0 | AG17: 0 | AH17: 0 | AI17: 0 | AJ17: 0 | AK17: 0 | AL17: 0 | AM17: 0 | AN17: 0 | AO17: 0 | AP17: 0 | AQ17: 0 | AR17: 0 | AS17: 0 | AT17: 0
A19: EXPENSES | D19: ='Detailed Income and Expenses'!B78 -> Total Administrative Expenses | E19: 0.03 | G19: ='Detailed Income and Expenses'!I78 -> 0 | H19: =G19*(1+$E19) -> 0 | I19: =H19*(1+$E19) -> 0 | J19: 0 | K19: 0 | L19: 0 | M19: 0 | N19: 0 | O19: 0 | P19: 0 | Q19: 0 | R19: 0 | S19: 0 | T19: 0 | U19: 0 | V19: 0 | W19: 0 | X19: 0 | Y19: 0 | Z19: 0 | AA19: 0 | AB19: 0 | AC19: 0 | AD19: 0 | AE19: 0 | AF19: 0 | AG19: 0 | AH19: 0 | AI19: 0 | AJ19: 0 | AK19: 0 | AL19: 0 | AM19: 0 | AN19: 0 | AO19: 0 | AP19: 0 | AQ19: 0 | AR19: 0 | AS19: 0 | AT19: 0
D20: ='Detailed Income and Expenses'!B85 -> Total Utilities Expenses | E20: 0.03 | G20: ='Detailed Income and Expenses'!I85 -> 0 | H20: =G20*(1+$E20) -> 0 | I20: 0 | J20: 0 | K20: 0 | L20: 0 | M20: 0 | N20: 0 | O20: 0 | P20: 0 | Q20: 0 | R20: 0 | S20: 0 | T20: 0 | U20: 0 | V20: 0 | W20: 0 | X20: 0 | Y20: 0 | Z20: 0 | AA20: 0 | AB20: 0 | AC20: 0 | AD20: 0 | AE20: 0 | AF20: 0 | AG20: 0 | AH20: 0 | AI20: 0 | AJ20: 0 | AK20: 0 | AL20: 0 | AM20: 0 | AN20: 0 | AO20: 0 | AP20: 0 | AQ20: 0 | AR20: 0 | AS20: 0 | AT20: 0
D21: ='Detailed Income and Expenses'!B112 -> Total Operating & Maintenance Expenses | E21: 0.03 | G21: ='Detailed Income and Expenses'!I112 -> 0 | H21: =G21*(1+$E21) -> 0 | I21: 0 | J21: 0 | K21: 0 | L21: 0 | M21: 0 | N21: 0 | O21: 0 | P21: 0 | Q21: 0 | R21: 0 | S21: 0 | T21: 0 | U21: 0 | V21: 0 | W21: 0 | X21: 0 | Y21: 0 | Z21: 0 | AA21: 0 | AB21: 0 | AC21: 0 | AD21: 0 | AE21: 0 | AF21: 0 | AG21: 0 | AH21: 0 | AI21: 0 | AJ21: 0 | AK21: 0 | AL21: 0 | AM21: 0 | AN21: 0 | AO21: 0 | AP21: 0 | AQ21: 0 | AR21: 0 | AS21: 0 | AT21: 0
D22: ='Detailed Income and Expenses'!B113 -> Real Estate Tax | E22: 0.03 | G22: ='Detailed Income and Expenses'!I113 -> 0 | H22: =G22*(1+$E22) -> 0 | I22: 0 | J22: 0 | K22: 0 | L22: 0 | M22: 0 | N22: 0 | O22: 0 | P22: 0 | Q22: 0 | R22: 0 | S22: 0 | T22: 0 | U22: 0 | V22: 0 | W22: 0 | X22: 0 | Y22: 0 | Z22: 0 | AA22: 0 | AB22: 0 | AC22: 0 | AD22: 0 | AE22: 0 | AF22: 0 | AG22: 0 | AH22: 0 | AI22: 0 | AJ22: 0 | AK22: 0 | AL22: 0 | AM22: 0 | AN22: 0 | AO22: 0 | AP22: 0 | AQ22: 0 | AR22: 0 | AS22: 0 | AT22: 0
D23: ='Detailed Income and Expenses'!B115 -> Property & Liability Insurance | E23: 0.03 | G23: ='Detailed Income and Expenses'!I115 -> 0 | H23: =G23*(1+$E23) -> 0 | I23: 0 | J23: 0 | K23: 0 | L23: 0 | M23: 0 | N23: 0 | O23: 0 | P23: 0 | Q23: 0 | R23: 0 | S23: 0 | T23: 0 | U23: 0 | V23: 0 | W23: 0 | X23: 0 | Y23: 0 | Z23: 0 | AA23: 0 | AB23: 0 | AC23: 0 | AD23: 0 | AE23: 0 | AF23: 0 | AG23: 0 | AH23: 0 | AI23: 0 | AJ23: 0 | AK23: 0 | AL23: 0 | AM23: 0 | AN23: 0 | AO23: 0 | AP23: 0 | AQ23: 0 | AR23: 0 | AS23: 0 | AT23: 0
D24: Misc. | E24: 0.03 | G24: =SUM('Detailed Income and Expenses'!I113:I122)-'Detailed Income and Expenses'!I113-'Detailed Income and Expenses'!I115 -> 0 | H24: =G24*(1+$E24) -> 0 | I24: 0 | J24: 0 | K24: 0 | L24: 0 | M24: 0 | N24: 0 | O24: 0 | P24: 0 | Q24: 0 | R24: 0 | S24: 0 | T24: 0 | U24: 0 | V24: 0 | W24: 0 | X24: 0 | Y24: 0 | Z24: 0 | AA24: 0 | AB24: 0 | AC24: 0 | AD24: 0 | AE24: 0 | AF24: 0 | AG24: 0 | AH24: 0 | AI24: 0 | AJ24: 0 | AK24: 0 | AL24: 0 | AM24: 0 | AN24: 0 | AO24: 0 | AP24: 0 | AQ24: 0 | AR24: 0 | AS24: 0 | AT24: 0
D25: ='Detailed Income and Expenses'!B125 -> Elderly & Congregate Serv. Expense (attach schedule) | E25: 0.03 | G25: ='Detailed Income and Expenses'!I125 -> 0 | H25: =G25*(1+$E25) -> 0 | I25: 0 | J25: 0 | K25: 0 | L25: 0 | M25: 0 | N25: 0 | O25: 0 | P25: 0 | Q25: 0 | R25: 0 | S25: 0 | T25: 0 | U25: 0 | V25: 0 | W25: 0 | X25: 0 | Y25: 0 | Z25: 0 | AA25: 0 | AB25: 0 | AC25: 0 | AD25: 0 | AE25: 0 | AF25: 0 | AG25: 0 | AH25: 0 | AI25: 0 | AJ25: 0 | AK25: 0 | AL25: 0 | AM25: 0 | AN25: 0 | AO25: 0 | AP25: 0 | AQ25: 0 | AR25: 0 | AS25: 0 | AT25: 0
D26: Capital (Replacement) Reserve | E26: 0 | G26: ='Detailed Income and Expenses'!I133 -> 0 | H26: =G26*(1+$E26) -> 0 | I26: 0 | J26: 0 | K26: 0 | L26: 0 | M26: 0 | N26: 0 | O26: 0 | P26: 0 | Q26: 0 | R26: 0 | S26: 0 | T26: 0 | U26: 0 | V26: 0 | W26: 0 | X26: 0 | Y26: 0 | Z26: 0 | AA26: 0 | AB26: 0 | AC26: 0 | AD26: 0 | AE26: 0 | AF26: 0 | AG26: 0 | AH26: 0 | AI26: 0 | AJ26: 0 | AK26: 0 | AL26: 0 | AM26: 0 | AN26: 0 | AO26: 0 | AP26: 0 | AQ26: 0 | AR26: 0 | AS26: 0 | AT26: 0
H27: =G27*(1+$E27) -> 0 | I27: 0 | J27: 0 | K27: 0 | L27: 0 | M27: 0 | N27: 0 | O27: 0 | P27: 0 | Q27: 0 | R27: 0 | S27: 0 | T27: 0 | U27: 0 | V27: 0 | W27: 0 | X27: 0 | Y27: 0 | Z27: 0 | AA27: 0 | AB27: 0 | AC27: 0 | AD27: 0 | AE27: 0 | AF27: 0 | AG27: 0 | AH27: 0 | AI27: 0 | AJ27: 0 | AK27: 0 | AL27: 0 | AM27: 0 | AN27: 0 | AO27: 0 | AP27: 0 | AQ27: 0 | AR27: 0 | AS27: 0 | AT27: 0
E28: Sub Total: ANNUAL EXPENSES | G28: =SUM(G19:G27) -> 0 | H28: =SUM(H19:H27) -> 0 | I28: 0 | J28: 0 | K28: 0 | L28: 0 | M28: 0 | N28: 0 | O28: 0 | P28: 0 | Q28: 0 | R28: 0 | S28: 0 | T28: 0 | U28: 0 | V28: 0 | W28: 0 | X28: 0 | Y28: 0 | Z28: 0 | AA28: 0 | AB28: 0 | AC28: 0 | AD28: 0 | AE28: 0 | AF28: 0 | AG28: 0 | AH28: 0 | AI28: 0 | AJ28: 0 | AK28: 0 | AL28: 0 | AM28: 0 | AN28: 0 | AO28: 0 | AP28: 0 | AQ28: 0 | AR28: 0 | AS28: 0 | AT28: 0
E30: NOI | G30: =G17-G28 -> 0 | H30: 0 | I30: 0 | J30: 0 | K30: 0 | L30: 0 | M30: 0 | N30: 0 | O30: 0 | P30: 0 | Q30: 0 | R30: 0 | S30: 0 | T30: 0 | U30: 0 | V30: 0 | W30: 0 | X30: 0 | Y30: 0 | Z30: 0 | AA30: 0 | AB30: 0 | AC30: 0 | AD30: 0 | AE30: 0 | AF30: 0 | AG30: 0 | AH30: 0 | AI30: 0 | AJ30: 0 | AK30: 0 | AL30: 0 | AM30: 0 | AN30: 0 | AO30: 0 | AP30: 0 | AQ30: 0 | AR30: 0 | AS30: 0 | AT30: 0
E32: Capital (Replacement) Reserve Balance | G32: =G26 -> 0 | H32: =G32+H26 -> 0 | I32: =H32+I26 -> 0 | J32: 0 | K32: 0 | L32: 0 | M32: 0 | N32: 0 | O32: 0 | P32: 0 | Q32: 0 | R32: 0 | S32: 0 | T32: 0 | U32: 0 | V32: 0 | W32: 0 | X32: 0 | Y32: 0 | Z32: 0 | AA32: 0 | AB32: 0 | AC32: 0 | AD32: 0 | AE32: 0 | AF32: 0 | AG32: 0 | AH32: 0 | AI32: 0 | AJ32: 0 | AK32: 0 | AL32: 0 | AM32: 0 | AN32: 0 | AO32: 0 | AP32: 0 | AQ32: 0 | AR32: 0 | AS32: 0 | AT32: 0
A34: SCHEDULED ANNUAL DEBT SERVICE (ADS)
A36: ='Sources of Funds'!B29&" "&'Sources of Funds'!C29 -> CHFA Loan Taxable Bonds | D36: ='Sources of Funds'!I29 -> 0 | E36: Pay Rate ADS | G36: ='Sources of Funds'!P29 -> 0 | H36: =G36 -> 0 | I36: =H36 -> 0 | J36: 0 | K36: 0 | L36: 0 | M36: 0 | N36: 0 | O36: 0 | P36: 0 | Q36: 0 | R36: 0 | S36: 0 | T36: 0 | U36: 0 | V36: 0 | W36: 0 | X36: 0 | Y36: 0 | Z36: 0 | AA36: 0 | AB36: 0 | AC36: 0 | AD36: 0 | AE36: 0 | AF36: 0 | AG36: 0 | AH36: 0 | AI36: 0 | AJ36: 0 | AK36: 0 | AL36: 0 | AM36: 0 | AN36: 0 | AO36: 0 | AP36: 0 | AQ36: 0 | AR36: 0 | AS36: 0 | AT36: 0
C37: Term (Yrs.) > | D37: ='Sources of Funds'!L29 -> 30 | E37: DSC | G37: =IF(OR(G$30<=0,G36=0),"n/a",G$30/(G36)) -> n/a | H37: =IF(OR(H$30<=0,H36=0),"n/a",H$30/(H36)) -> n/a | I37: n/a | J37: n/a | K37: n/a | L37: n/a | M37: n/a | N37: n/a | O37: n/a | P37: n/a | Q37: n/a | R37: n/a | S37: n/a | T37: n/a | U37: n/a | V37: n/a | W37: n/a | X37: n/a | Y37: n/a | Z37: n/a | AA37: n/a | AB37: n/a | AC37: n/a | AD37: n/a | AE37: n/a | AF37: n/a | AG37: n/a | AH37: n/a | AI37: n/a | AJ37: n/a | AK37: n/a | AL37: n/a | AM37: n/a | AN37: n/a | AO37: n/a | AP37: n/a | AQ37: n/a | AR37: n/a | AS37: n/a | AT37: n/a
C38: Contract Rate > | D38: ='Sources of Funds'!M29 -> 0.0497 | E38: Bal. (E.O.Y.) | G38: =IF($D$36=0,0,(FV($D$38/12,12,$G$36/12,$D$36*-1))) -> 0 | H38: =IF(G38=0,0,(FV($D$38/12,12*H$7,$G$36/12,$D$36*-1))) -> 0 | I38: =IF(H38=0,0,(FV($D$38/12,12*I$7,$G$36/12,$D$36*-1))) -> 0 | J38: 0 | K38: 0 | L38: 0 | M38: 0 | N38: 0 | O38: 0 | P38: 0 | Q38: 0 | R38: 0 | S38: 0 | T38: 0 | U38: 0 | V38: 0 | W38: 0 | X38: 0 | Y38: 0 | Z38: 0 | AA38: 0 | AB38: 0 | AC38: 0 | AD38: 0 | AE38: 0 | AF38: 0 | AG38: 0 | AH38: 0 | AI38: 0 | AJ38: 0 | AK38: 0 | AL38: 0 | AM38: 0 | AN38: 0 | AO38: 0 | AP38: 0 | AQ38: 0 | AR38: 0 | AS38: 0 | AT38: 0
A40: ='Sources of Funds'!B30&" "&'Sources of Funds'!C30 -> CHFA Loan - Non-Bond Proceeds [Specify] | D40: ='Sources of Funds'!I30 -> 0 | E40: Pay Rate ADS | G40: ='Sources of Funds'!P30 -> 0 | H40: =G40 -> 0 | I40: =H40 -> 0 | J40: 0 | K40: 0 | L40: 0 | M40: 0 | N40: 0 | O40: 0 | P40: 0 | Q40: 0 | R40: 0 | S40: 0 | T40: 0 | U40: 0 | V40: 0 | W40: 0 | X40: 0 | Y40: 0 | Z40: 0 | AA40: 0 | AB40: 0 | AC40: 0 | AD40: 0 | AE40: 0 | AF40: 0 | AG40: 0 | AH40: 0 | AI40: 0 | AJ40: 0 | AK40: 0 | AL40: 0 | AM40: 0 | AN40: 0 | AO40: 0 | AP40: 0 | AQ40: 0 | AR40: 0 | AS40: 0 | AT40: 0
C41: Term (Yrs.) > | D41: ='Sources of Funds'!L30 -> 0 | E41: DSC | G41: =IF(OR(G$30<=0,G40=0),"n/a",G$30/(G36+G40)) -> n/a | H41: =IF(OR(H$30<=0,H40=0),"n/a",H$30/(H36+H40)) -> n/a | I41: n/a | J41: n/a | K41: n/a | L41: n/a | M41: n/a | N41: n/a | O41: n/a | P41: n/a | Q41: n/a | R41: n/a | S41: n/a | T41: n/a | U41: n/a | V41: n/a | W41: n/a | X41: n/a | Y41: n/a | Z41: n/a | AA41: n/a | AB41: n/a | AC41: n/a | AD41: n/a | AE41: n/a | AF41: n/a | AG41: n/a | AH41: n/a | AI41: n/a | AJ41: n/a | AK41: n/a | AL41: n/a | AM41: n/a | AN41: n/a | AO41: n/a | AP41: n/a | AQ41: n/a | AR41: n/a | AS41: n/a | AT41: n/a
C42: Contract Rate > | D42: ='Sources of Funds'!M30 -> 0 | E42: Bal. (E.O.Y.) | G42: =IF($D$40=0,0,(FV($D$42/12,12,$G$40/12,$D$40*-1))) -> 0 | H42: =IF(G42=0,0,(FV($D$42/12,12*H$7,$G$40/12,$D$40*-1))) -> 0 | I42: =IF(H42=0,0,(FV($D$42/12,12*I$7,$G$40/12,$D$40*-1))) -> 0 | J42: 0 | K42: 0 | L42: 0 | M42: 0 | N42: 0 | O42: 0 | P42: 0 | Q42: 0 | R42: 0 | S42: 0 | T42: 0 | U42: 0 | V42: 0 | W42: 0 | X42: 0 | Y42: 0 | Z42: 0 | AA42: 0 | AB42: 0 | AC42: 0 | AD42: 0 | AE42: 0 | AF42: 0 | AG42: 0 | AH42: 0 | AI42: 0 | AJ42: 0 | AK42: 0 | AL42: 0 | AM42: 0 | AN42: 0 | AO42: 0 | AP42: 0 | AQ42: 0 | AR42: 0 | AS42: 0 | AT42: 0
A44: ='Sources of Funds'!A31 -> DOH Loan Funding | D44: ='Sources of Funds'!I31 -> 0 | E44: Pay Rate ADS | G44: ='Sources of Funds'!P31 -> 0 | H44: =G44 -> 0 | I44: =H44 -> 0 | J44: 0 | K44: 0 | L44: 0 | M44: 0 | N44: 0 | O44: 0 | P44: 0 | Q44: 0 | R44: 0 | S44: 0 | T44: 0 | U44: 0 | V44: 0 | W44: 0 | X44: 0 | Y44: 0 | Z44: 0 | AA44: 0 | AB44: 0 | AC44: 0 | AD44: 0 | AE44: 0 | AF44: 0 | AG44: 0 | AH44: 0 | AI44: 0 | AJ44: 0 | AK44: 0 | AL44: 0 | AM44: 0 | AN44: 0 | AO44: 0 | AP44: 0 | AQ44: 0 | AR44: 0 | AS44: 0 | AT44: 0
C45: Term (Yrs.) > | D45: ='Sources of Funds'!L31 -> 0 | E45: DSC | G45: =IF(OR(G$30<=0,G44=0),"n/a",G$30/(G36+G40+G44)) -> n/a | H45: =IF(OR(H$30<=0,H44=0),"n/a",H$30/(H36+H40+H44)) -> n/a | I45: n/a | J45: n/a | K45: n/a | L45: n/a | M45: n/a | N45: n/a | O45: n/a | P45: n/a | Q45: n/a | R45: n/a | S45: n/a | T45: n/a | U45: n/a | V45: n/a | W45: n/a | X45: n/a | Y45: n/a | Z45: n/a | AA45: n/a | AB45: n/a | AC45: n/a | AD45: n/a | AE45: n/a | AF45: n/a | AG45: n/a | AH45: n/a | AI45: n/a | AJ45: n/a | AK45: n/a | AL45: n/a | AM45: n/a | AN45: n/a | AO45: n/a | AP45: n/a | AQ45: n/a | AR45: n/a | AS45: n/a | AT45: n/a
C46: Contract Rate > | D46: ='Sources of Funds'!M31 -> 0 | E46: Bal. (E.O.Y.) | G46: =IF($D$44=0,0,(FV($D$46/12,12,$G$44/12,$D$44*-1))) -> 0 | H46: =IF(G46=0,0,(FV($D$46/12,12*H$7,$G$44/12,$D$44*-1))) -> 0 | I46: =IF(H46=0,0,(FV($D$46/12,12*I$7,$G$44/12,$D$44*-1))) -> 0 | J46: 0 | K46: 0 | L46: 0 | M46: 0 | N46: 0 | O46: 0 | P46: 0 | Q46: 0 | R46: 0 | S46: 0 | T46: 0 | U46: 0 | V46: 0 | W46: 0 | X46: 0 | Y46: 0 | Z46: 0 | AA46: 0 | AB46: 0 | AC46: 0 | AD46: 0 | AE46: 0 | AF46: 0 | AG46: 0 | AH46: 0 | AI46: 0 | AJ46: 0 | AK46: 0 | AL46: 0 | AM46: 0 | AN46: 0 | AO46: 0 | AP46: 0 | AQ46: 0 | AR46: 0 | AS46: 0 | AT46: 0
A48: ='Sources of Funds'!B32&" "&'Sources of Funds'!C32 -> CDBG Loan Funds: [Specify] | D48: ='Sources of Funds'!I32 -> 0 | E48: Pay Rate ADS | G48: ='Sources of Funds'!P32 -> 0 | H48: =G48 -> 0 | I48: 0 | J48: 0 | K48: 0 | L48: 0 | M48: 0 | N48: 0 | O48: 0 | P48: 0 | Q48: 0 | R48: 0 | S48: 0 | T48: 0 | U48: 0 | V48: 0 | W48: 0 | X48: 0 | Y48: 0 | Z48: 0 | AA48: 0 | AB48: 0 | AC48: 0 | AD48: 0 | AE48: 0 | AF48: 0 | AG48: 0 | AH48: 0 | AI48: 0 | AJ48: 0 | AK48: 0 | AL48: 0 | AM48: 0 | AN48: 0 | AO48: 0 | AP48: 0 | AQ48: 0 | AR48: 0 | AS48: 0 | AT48: 0
C49: Term (Yrs.) > | D49: ='Sources of Funds'!L32 -> 0 | E49: DSC | G49: =IF(OR(G$30<=0,G48=0),"n/a",G$30/(G36+G40+G44+G48)) -> n/a | H49: =IF(OR(H$30<=0,H48=0),"n/a",H$30/(H36+H40+H44+H48)) -> n/a | I49: n/a | J49: n/a | K49: n/a | L49: n/a | M49: n/a | N49: n/a | O49: n/a | P49: n/a | Q49: n/a | R49: n/a | S49: n/a | T49: n/a | U49: n/a | V49: n/a | W49: n/a | X49: n/a | Y49: n/a | Z49: n/a | AA49: n/a | AB49: n/a | AC49: n/a | AD49: n/a | AE49: n/a | AF49: n/a | AG49: n/a | AH49: n/a | AI49: n/a | AJ49: n/a | AK49: n/a | AL49: n/a | AM49: n/a | AN49: n/a | AO49: n/a | AP49: n/a | AQ49: n/a | AR49: n/a | AS49: n/a | AT49: n/a
C50: Contract Rate > | D50: ='Sources of Funds'!M32 -> 0 | E50: Bal. (E.O.Y.) | G50: =IF($D$48=0,0,(FV($D$50/12,12,$G$48/12,$D$48*-1))) -> 0 | H50: =IF(G50=0,0,(FV($D$50/12,12*H$7,$G$48/12,$D$48*-1))) -> 0 | I50: =IF(H50=0,0,(FV($D$50/12,12*I$7,$G$48/12,$D$48*-1))) -> 0 | J50: 0 | K50: 0 | L50: 0 | M50: 0 | N50: 0 | O50: 0 | P50: 0 | Q50: 0 | R50: 0 | S50: 0 | T50: 0 | U50: 0 | V50: 0 | W50: 0 | X50: 0 | Y50: 0 | Z50: 0 | AA50: 0 | AB50: 0 | AC50: 0 | AD50: 0 | AE50: 0 | AF50: 0 | AG50: 0 | AH50: 0 | AI50: 0 | AJ50: 0 | AK50: 0 | AL50: 0 | AM50: 0 | AN50: 0 | AO50: 0 | AP50: 0 | AQ50: 0 | AR50: 0 | AS50: 0 | AT50: 0
A52: ='Sources of Funds'!B33&" "&'Sources of Funds'!C33 -> Other Public Funds: [Specify] | D52: ='Sources of Funds'!I33 -> 0 | E52: Pay Rate ADS | G52: ='Sources of Funds'!P33 -> 0 | H52: =G52 -> 0 | I52: =H52 -> 0 | J52: 0 | K52: 0 | L52: 0 | M52: 0 | N52: 0 | O52: 0 | P52: 0 | Q52: 0 | R52: 0 | S52: 0 | T52: 0 | U52: 0 | V52: 0 | W52: 0 | X52: 0 | Y52: 0 | Z52: 0 | AA52: 0 | AB52: 0 | AC52: 0 | AD52: 0 | AE52: 0 | AF52: 0 | AG52: 0 | AH52: 0 | AI52: 0 | AJ52: 0 | AK52: 0 | AL52: 0 | AM52: 0 | AN52: 0 | AO52: 0 | AP52: 0 | AQ52: 0 | AR52: 0 | AS52: 0 | AT52: 0
C53: Term (Yrs.) > | D53: ='Sources of Funds'!L33 -> 0 | E53: DSC | G53: =IF(OR(G$30<=0,G52=0),"n/a",G$30/(G36+G40+G44+G48+G52)) -> n/a | H53: =IF(OR(H$30<=0,H52=0),"n/a",H$30/(H36+H40+H44+H48+H52)) -> n/a | I53: n/a | J53: n/a | K53: n/a | L53: n/a | M53: n/a | N53: n/a | O53: n/a | P53: n/a | Q53: n/a | R53: n/a | S53: n/a | T53: n/a | U53: n/a | V53: n/a | W53: n/a | X53: n/a | Y53: n/a | Z53: n/a | AA53: n/a | AB53: n/a | AC53: n/a | AD53: n/a | AE53: n/a | AF53: n/a | AG53: n/a | AH53: n/a | AI53: n/a | AJ53: n/a | AK53: n/a | AL53: n/a | AM53: n/a | AN53: n/a | AO53: n/a | AP53: n/a | AQ53: n/a | AR53: n/a | AS53: n/a | AT53: n/a
C54: Contract Rate > | D54: ='Sources of Funds'!M33 -> 0 | E54: Bal. (E.O.Y.) | G54: =IF($D$52=0,0,(FV($D$54/12,12,$G$52/12,$D$52*-1))) -> 0 | H54: =IF(G54=0,0,(FV($D$54/12,12*H$7,$G$52/12,$D$52*-1))) -> 0 | I54: =IF(H54=0,0,(FV($D$54/12,12*I$7,$G$52/12,$D$52*-1))) -> 0 | J54: 0 | K54: 0 | L54: 0 | M54: 0 | N54: 0 | O54: 0 | P54: 0 | Q54: 0 | R54: 0 | S54: 0 | T54: 0 | U54: 0 | V54: 0 | W54: 0 | X54: 0 | Y54: 0 | Z54: 0 | AA54: 0 | AB54: 0 | AC54: 0 | AD54: 0 | AE54: 0 | AF54: 0 | AG54: 0 | AH54: 0 | AI54: 0 | AJ54: 0 | AK54: 0 | AL54: 0 | AM54: 0 | AN54: 0 | AO54: 0 | AP54: 0 | AQ54: 0 | AR54: 0 | AS54: 0 | AT54: 0
A56: ='Sources of Funds'!B35&" "&'Sources of Funds'!C35 -> Other Amortizing Debt [Specify] | D56: ='Sources of Funds'!I35 -> 0 | E56: Pay Rate ADS | G56: ='Sources of Funds'!P35 -> 0 | H56: =G56 -> 0 | I56: 0 | J56: 0 | K56: 0 | L56: 0 | M56: 0 | N56: 0 | O56: 0 | P56: 0 | Q56: 0 | R56: 0 | S56: 0 | T56: 0 | U56: 0 | V56: 0 | W56: 0 | X56: 0 | Y56: 0 | Z56: 0 | AA56: 0 | AB56: 0 | AC56: 0 | AD56: 0 | AE56: 0 | AF56: 0 | AG56: 0 | AH56: 0 | AI56: 0 | AJ56: 0 | AK56: 0 | AL56: 0 | AM56: 0 | AN56: 0 | AO56: 0 | AP56: 0 | AQ56: 0 | AR56: 0 | AS56: 0 | AT56: 0
C57: Term (Yrs.) > | D57: ='Sources of Funds'!L35 -> 0 | E57: DSC | G57: =IF(OR(G$30<=0,G56=0),"n/a",G$30/(G36+G40+G44+G48+G52+G56)) -> n/a | H57: =IF(OR(H$30<=0,H56=0),"n/a",H$30/(H36+H40+H44+H48+H52+H56)) -> n/a | I57: n/a | J57: n/a | K57: n/a | L57: n/a | M57: n/a | N57: n/a | O57: n/a | P57: n/a | Q57: n/a | R57: n/a | S57: n/a | T57: n/a | U57: n/a | V57: n/a | W57: n/a | X57: n/a | Y57: n/a | Z57: n/a | AA57: n/a | AB57: n/a | AC57: n/a | AD57: n/a | AE57: n/a | AF57: n/a | AG57: n/a | AH57: n/a | AI57: n/a | AJ57: n/a | AK57: n/a | AL57: n/a | AM57: n/a | AN57: n/a | AO57: n/a | AP57: n/a | AQ57: n/a | AR57: n/a | AS57: n/a | AT57: n/a
C58: Contract Rate > | D58: ='Sources of Funds'!M35 -> 0 | E58: Bal. (E.O.Y.) | G58: =IF($D$56=0,0,(FV($D$58/12,12,$G$56/12,$D$56*-1))) -> 0 | H58: =IF(G58=0,0,(FV($D$58/12,12*H$7,$G$56/12,$D$56*-1))) -> 0 | I58: =IF(H58=0,0,(FV($D$58/12,12*I$7,$G$56/12,$D$56*-1))) -> 0 | J58: 0 | K58: 0 | L58: 0 | M58: 0 | N58: 0 | O58: 0 | P58: 0 | Q58: 0 | R58: 0 | S58: 0 | T58: 0 | U58: 0 | V58: 0 | W58: 0 | X58: 0 | Y58: 0 | Z58: 0 | AA58: 0 | AB58: 0 | AC58: 0 | AD58: 0 | AE58: 0 | AF58: 0 | AG58: 0 | AH58: 0 | AI58: 0 | AJ58: 0 | AK58: 0 | AL58: 0 | AM58: 0 | AN58: 0 | AO58: 0 | AP58: 0 | AQ58: 0 | AR58: 0 | AS58: 0 | AT58: 0
A60: ='Sources of Funds'!B36&" "&'Sources of Funds'!C36 -> Other Amortizing Debt [Specify] | D60: ='Sources of Funds'!I36 -> 0 | E60: Pay Rate ADS | G60: ='Sources of Funds'!P36 -> 0 | H60: =G60 -> 0 | I60: =H60 -> 0 | J60: 0 | K60: 0 | L60: 0 | M60: 0 | N60: 0 | O60: 0 | P60: 0 | Q60: 0 | R60: 0 | S60: 0 | T60: 0 | U60: 0 | V60: 0 | W60: 0 | X60: 0 | Y60: 0 | Z60: 0 | AA60: 0 | AB60: 0 | AC60: 0 | AD60: 0 | AE60: 0 | AF60: 0 | AG60: 0 | AH60: 0 | AI60: 0 | AJ60: 0 | AK60: 0 | AL60: 0 | AM60: 0 | AN60: 0 | AO60: 0 | AP60: 0 | AQ60: 0 | AR60: 0 | AS60: 0 | AT60: 0
C61: Term (Yrs.) > | D61: ='Sources of Funds'!L36 -> 0 | E61: DSC | G61: =IF(OR(G$30<=0,G60=0),"n/a",G$30/(G36+G40+G44+G48+G52+G56+G60)) -> n/a | H61: =IF(OR(H$30<=0,H60=0),"n/a",H$30/(H36+H40+H44+H48+H52+H56+H60)) -> n/a | I61: n/a | J61: n/a | K61: n/a | L61: n/a | M61: n/a | N61: n/a | O61: n/a | P61: n/a | Q61: n/a | R61: n/a | S61: n/a | T61: n/a | U61: n/a | V61: n/a | W61: n/a | X61: n/a | Y61: n/a | Z61: n/a | AA61: n/a | AB61: n/a | AC61: n/a | AD61: n/a | AE61: n/a | AF61: n/a | AG61: n/a | AH61: n/a | AI61: n/a | AJ61: n/a | AK61: n/a | AL61: n/a | AM61: n/a | AN61: n/a | AO61: n/a | AP61: n/a | AQ61: n/a | AR61: n/a | AS61: n/a | AT61: n/a
C62: Contract Rate > | D62: ='Sources of Funds'!M36 -> 0 | E62: Bal. (E.O.Y.) | G62: =IF($D$60=0,0,(FV($D$62/12,12,$G$60/12,$D$60*-1))) -> 0 | H62: =IF(G62=0,0,(FV($D$62/12,12*H$7,$G$60/12,$D$60*-1))) -> 0 | I62: =IF(H62=0,0,(FV($D$62/12,12*I$7,$G$60/12,$D$60*-1))) -> 0 | J62: 0 | K62: 0 | L62: 0 | M62: 0 | N62: 0 | O62: 0 | P62: 0 | Q62: 0 | R62: 0 | S62: 0 | T62: 0 | U62: 0 | V62: 0 | W62: 0 | X62: 0 | Y62: 0 | Z62: 0 | AA62: 0 | AB62: 0 | AC62: 0 | AD62: 0 | AE62: 0 | AF62: 0 | AG62: 0 | AH62: 0 | AI62: 0 | AJ62: 0 | AK62: 0 | AL62: 0 | AM62: 0 | AN62: 0 | AO62: 0 | AP62: 0 | AQ62: 0 | AR62: 0 | AS62: 0 | AT62: 0
A64: ='Sources of Funds'!A37 -> Existing Debt | D64: ='Sources of Funds'!I37 -> 0 | E64: Pay Rate ADS | G64: =SUM(IF('Existing Debt'!$C$22-'Cash Flow'!G7>=0,'Existing Debt'!$C$24,0))+(IF('Existing Debt'!$C$40-'Cash Flow'!G7>=0,'Existing Debt'!$C$42,0))+(IF('Existing Debt'!$C$58-'Cash Flow'!G7>=0,'Existing Debt'!$C$60,0))+(IF('Existing Debt'!$C$76-'Cash Flow'!G7>=0,'Existing Debt'!$C$78,0)) -> 0 | H64: =G64 -> 0 | I64: =H64 -> 0 | J64: 0 | K64: 0 | L64: 0 | M64: 0 | N64: 0 | O64: 0 | P64: 0 | Q64: 0 | R64: 0 | S64: 0 | T64: 0 | U64: 0 | V64: 0 | W64: 0 | X64: 0 | Y64: 0 | Z64: 0 | AA64: 0 | AB64: 0 | AC64: 0 | AD64: 0 | AE64: 0 | AF64: 0 | AG64: 0 | AH64: 0 | AI64: 0 | AJ64: 0 | AK64: 0 | AL64: 0 | AM64: 0 | AN64: 0 | AO64: 0 | AP64: 0 | AQ64: 0 | AR64: 0 | AS64: 0 | AT64: 0
C65: Term (Yrs.) > | D65: ='Sources of Funds'!L37 -> 0 | E65: DSC | G65: =IF(OR(G$30<=0,G64=0),"n/a",G$30/(G36+G40+G44+G48+G52+G56+G60+G64)) -> n/a | H65: =IF(OR(H$30<=0,H64=0),"n/a",H$30/(H36+H40+H44+H48+H52+H56+H60+H64)) -> n/a | I65: n/a | J65: n/a | K65: n/a | L65: n/a | M65: n/a | N65: n/a | O65: n/a | P65: n/a | Q65: n/a | R65: n/a | S65: n/a | T65: n/a | U65: n/a | V65: n/a | W65: n/a | X65: n/a | Y65: n/a | Z65: n/a | AA65: n/a | AB65: n/a | AC65: n/a | AD65: n/a | AE65: n/a | AF65: n/a | AG65: n/a | AH65: n/a | AI65: n/a | AJ65: n/a | AK65: n/a | AL65: n/a | AM65: n/a | AN65: n/a | AO65: n/a | AP65: n/a | AQ65: n/a | AR65: n/a | AS65: n/a | AT65: n/a
C66: Contract Rate > | D66: ='Sources of Funds'!M37 -> 0 | E66: Bal. (E.O.Y.) | G66: =IF($D$64=0,0,(FV($D$66/12,12,'Sources of Funds'!$P$37/12,$D$64*-1))) -> 0 | H66: =IF(G66=0,0,(FV($D$66/12,12,'Sources of Funds'!$P$37/12,$D$64*-1))) -> 0 | I66: =IF(H66=0,0,(FV($D$66/12,12,'Sources of Funds'!$P$37/12,$D$64*-1))) -> 0 | J66: =IF(I66=0,0,(FV($D$66/12,12,'Sources of Funds'!$P$37/12,$D$64*-1))) -> 0 | K66: =IF(J66=0,0,(FV($D$66/12,12,'Sources of Funds'!$P$37/12,$D$64*-1))) -> 0 | L66: =IF(K66=0,0,(FV($D$66/12,12,'Sources of Funds'!$P$37/12,$D$64*-1))) -> 0 | M66: =IF(L66=0,0,(FV($D$66/12,12,'Sources of Funds'!$P$37/12,$D$64*-1))) -> 0 | N66: =IF(M66=0,0,(FV($D$66/12,12,'Sources of Funds'!$P$37/12,$D$64*-1))) -> 0 | O66: =IF(N66=0,0,(FV($D$66/12,12,'Sources of Funds'!$P$37/12,$D$64*-1))) -> 0 | P66: =IF(O66=0,0,(FV($D$66/12,12,'Sources of Funds'!$P$37/12,$D$64*-1))) -> 0 | Q66: =IF(P66=0,0,(FV($D$66/12,12,'Sources of Funds'!$P$37/12,$D$64*-1))) -> 0 | R66: =IF(Q66=0,0,(FV($D$66/12,12,'Sources of Funds'!$P$37/12,$D$64*-1))) -> 0 | S66: =IF(R66=0,0,(FV($D$66/12,12,'Sources of Funds'!$P$37/12,$D$64*-1))) -> 0 | T66: =IF(S66=0,0,(FV($D$66/12,12,'Sources of Funds'!$P$37/12,$D$64*-1))) -> 0 | U66: =IF(T66=0,0,(FV($D$66/12,12,'Sources of Funds'!$P$37/12,$D$64*-1))) -> 0 | V66: =IF(U66=0,0,(FV($D$66/12,12,'Sources of Funds'!$P$37/12,$D$64*-1))) -> 0 | W66: =IF(V66=0,0,(FV($D$66/12,12,'Sources of Funds'!$P$37/12,$D$64*-1))) -> 0 | X66: =IF(W66=0,0,(FV($D$66/12,12,'Sources of Funds'!$P$37/12,$D$64*-1))) -> 0 | Y66: =IF(X66=0,0,(FV($D$66/12,12,'Sources of Funds'!$P$37/12,$D$64*-1))) -> 0 | Z66: =IF(Y66=0,0,(FV($D$66/12,12,'Sources of Funds'!$P$37/12,$D$64*-1))) -> 0 | AA66: =IF(Z66=0,0,(FV($D$66/12,12,'Sources of Funds'!$P$37/12,$D$64*-1))) -> 0 | AB66: =IF(AA66=0,0,(FV($D$66/12,12,'Sources of Funds'!$P$37/12,$D$64*-1))) -> 0 | AC66: =IF(AB66=0,0,(FV($D$66/12,12,'Sources of Funds'!$P$37/12,$D$64*-1))) -> 0 | AD66: =IF(AC66=0,0,(FV($D$66/12,12,'Sources of Funds'!$P$37/12,$D$64*-1))) -> 0 | AE66: =IF(AD66=0,0,(FV($D$66/12,12,'Sources of Funds'!$P$37/12,$D$64*-1))) -> 0 | AF66: =IF(AE66=0,0,(FV($D$66/12,12,'Sources of Funds'!$P$37/12,$D$64*-1))) -> 0 | AG66: =IF(AF66=0,0,(FV($D$66/12,12,'Sources of Funds'!$P$37/12,$D$64*-1))) -> 0 | AH66: =IF(AG66=0,0,(FV($D$66/12,12,'Sources of Funds'!$P$37/12,$D$64*-1))) -> 0 | AI66: =IF(AH66=0,0,(FV($D$66/12,12,'Sources of Funds'!$P$37/12,$D$64*-1))) -> 0 | AJ66: =IF(AI66=0,0,(FV($D$66/12,12,'Sources of Funds'!$P$37/12,$D$64*-1))) -> 0 | AK66: =IF(AJ66=0,0,(FV($D$66/12,12,'Sources of Funds'!$P$37/12,$D$64*-1))) -> 0 | AL66: =IF(AK66=0,0,(FV($D$66/12,12,'Sources of Funds'!$P$37/12,$D$64*-1))) -> 0 | AM66: =IF(AL66=0,0,(FV($D$66/12,12,'Sources of Funds'!$P$37/12,$D$64*-1))) -> 0 | AN66: =IF(AM66=0,0,(FV($D$66/12,12,'Sources of Funds'!$P$37/12,$D$64*-1))) -> 0 | AO66: =IF(AN66=0,0,(FV($D$66/12,12,'Sources of Funds'!$P$37/12,$D$64*-1))) -> 0 | AP66: =IF(AO66=0,0,(FV($D$66/12,12,'Sources of Funds'!$P$37/12,$D$64*-1))) -> 0 | AQ66: =IF(AP66=0,0,(FV($D$66/12,12,'Sources of Funds'!$P$37/12,$D$64*-1))) -> 0 | AR66: =IF(AQ66=0,0,(FV($D$66/12,12,'Sources of Funds'!$P$37/12,$D$64*-1))) -> 0 | AS66: =IF(AR66=0,0,(FV($D$66/12,12,'Sources of Funds'!$P$37/12,$D$64*-1))) -> 0 | AT66: =IF(AS66=0,0,(FV($D$66/12,12,'Sources of Funds'!$P$37/12,$D$64*-1))) -> 0
A68: ='Sources of Funds'!A38 -> GP Loan | D68: ='Sources of Funds'!I38 -> 0 | E68: Pay Rate ADS | G68: ='Sources of Funds'!P38 -> 0 | H68: =G68 -> 0 | I68: =H68 -> 0 | J68: 0 | K68: 0 | L68: 0 | M68: 0 | N68: 0 | O68: 0 | P68: 0 | Q68: 0 | R68: 0 | S68: 0 | T68: 0 | U68: 0 | V68: 0 | W68: 0 | X68: 0 | Y68: 0 | Z68: 0 | AA68: 0 | AB68: 0 | AC68: 0 | AD68: 0 | AE68: 0 | AF68: 0 | AG68: 0 | AH68: 0 | AI68: 0 | AJ68: 0 | AK68: 0 | AL68: 0 | AM68: 0 | AN68: 0 | AO68: 0 | AP68: 0 | AQ68: 0 | AR68: 0 | AS68: 0 | AT68: 0
C69: Term (Yrs.) > | D69: ='Sources of Funds'!L38 -> 0 | E69: DSC | G69: =IF(OR(G$30<=0,G68=0),"n/a",G$30/(G36+G40+G44+G48+G52+G56+G60+G64+G68)) -> n/a | H69: =IF(OR(H$30<=0,H68=0),"n/a",H$30/(H36+H40+H44+H48+H52+H56+H60+H64+H68)) -> n/a | I69: n/a | J69: n/a | K69: n/a | L69: n/a | M69: n/a | N69: n/a | O69: n/a | P69: n/a | Q69: n/a | R69: n/a | S69: n/a | T69: n/a | U69: n/a | V69: n/a | W69: n/a | X69: n/a | Y69: n/a | Z69: n/a | AA69: n/a | AB69: n/a | AC69: n/a | AD69: n/a | AE69: n/a | AF69: n/a | AG69: n/a | AH69: n/a | AI69: n/a | AJ69: n/a | AK69: n/a | AL69: n/a | AM69: n/a | AN69: n/a | AO69: n/a | AP69: n/a | AQ69: n/a | AR69: n/a | AS69: n/a | AT69: n/a
C70: Contract Rate > | D70: ='Sources of Funds'!M38 -> 0 | E70: Bal. (E.O.Y.) | G70: =IF($D$68=0,0,(FV($D$70/12,12,$G$68/12,$D$68*-1))) -> 0 | H70: =IF(G70=0,0,(FV($D$70/12,12*H$7,$G$68/12,$D$68*-1))) -> 0 | I70: =IF(H70=0,0,(FV($D$70/12,12*I$7,$G$68/12,$D$68*-1))) -> 0 | J70: 0 | K70: 0 | L70: 0 | M70: 0 | N70: 0 | O70: 0 | P70: 0 | Q70: 0 | R70: 0 | S70: 0 | T70: 0 | U70: 0 | V70: 0 | W70: 0 | X70: 0 | Y70: 0 | Z70: 0 | AA70: 0 | AB70: 0 | AC70: 0 | AD70: 0 | AE70: 0 | AF70: 0 | AG70: 0 | AH70: 0 | AI70: 0 | AJ70: 0 | AK70: 0 | AL70: 0 | AM70: 0 | AN70: 0 | AO70: 0 | AP70: 0 | AQ70: 0 | AR70: 0 | AS70: 0 | AT70: 0
E72: ADS STOT. = | G72: =G36+G40+G44+G48+G52+G56+G60+G64+G68 -> 0 | H72: =H36+H40+H44+H48+H52+H56+H60+H64+H68 -> 0 | I72: 0 | J72: 0 | K72: 0 | L72: 0 | M72: 0 | N72: 0 | O72: 0 | P72: 0 | Q72: 0 | R72: 0 | S72: 0 | T72: 0 | U72: 0 | V72: 0 | W72: 0 | X72: 0 | Y72: 0 | Z72: 0 | AA72: 0 | AB72: 0 | AC72: 0 | AD72: 0 | AE72: 0 | AF72: 0 | AG72: 0 | AH72: 0 | AI72: 0 | AJ72: 0 | AK72: 0 | AL72: 0 | AM72: 0 | AN72: 0 | AO72: 0 | AP72: 0 | AQ72: 0 | AR72: 0 | AS72: 0 | AT72: 0
E74: CASH FLOW AFTER DEBT SERVICE (CFADS) | G74: =ROUND(G30-G72,0) -> 0 | H74: 0 | I74: 0 | J74: 0 | K74: 0 | L74: 0 | M74: 0 | N74: 0 | O74: 0 | P74: 0 | Q74: 0 | R74: 0 | S74: 0 | T74: 0 | U74: 0 | V74: 0 | W74: 0 | X74: 0 | Y74: 0 | Z74: 0 | AA74: 0 | AB74: 0 | AC74: 0 | AD74: 0 | AE74: 0 | AF74: 0 | AG74: 0 | AH74: 0 | AI74: 0 | AJ74: 0 | AK74: 0 | AL74: 0 | AM74: 0 | AN74: 0 | AO74: 0 | AP74: 0 | AQ74: 0 | AR74: 0 | AS74: 0 | AT74: 0
E75: PROJECT DSC = | G75: =IF(OR(G30<=0,G72<=0),0,G30/G72) -> 0 | H75: 0 | I75: 0 | J75: 0 | K75: 0 | L75: 0 | M75: 0 | N75: 0 | O75: 0 | P75: 0 | Q75: 0 | R75: 0 | S75: 0 | T75: 0 | U75: 0 | V75: 0 | W75: 0 | X75: 0 | Y75: 0 | Z75: 0 | AA75: 0 | AB75: 0 | AC75: 0 | AD75: 0 | AE75: 0 | AF75: 0 | AG75: 0 | AH75: 0 | AI75: 0 | AJ75: 0 | AK75: 0 | AL75: 0 | AM75: 0 | AN75: 0 | AO75: 0 | AP75: 0 | AQ75: 0 | AR75: 0 | AS75: 0 | AT75: 0
E76: EFFECTIVE DSC (w/Op-DSC Reserve) | G76: =G111 -> n/a | H76: =H111 -> n/a | I76: n/a | J76: n/a | K76: n/a | L76: n/a | M76: n/a | N76: n/a | O76: n/a | P76: n/a | Q76: n/a | R76: n/a | S76: n/a | T76: n/a | U76: n/a | V76: n/a | W76: n/a | X76: n/a | Y76: n/a | Z76: n/a | AA76: n/a | AB76: n/a | AC76: n/a | AD76: n/a | AE76: n/a | AF76: n/a | AG76: n/a | AH76: n/a | AI76: n/a | AJ76: n/a | AK76: n/a | AL76: n/a | AM76: n/a | AN76: n/a | AO76: n/a | AP76: n/a | AQ76: n/a | AR76: n/a | AS76: n/a | AT76: n/a
A78: Contingent Payments
A79: [ From Cash Flow after Scheduled ADS]
A80: CHFA - Additional Interest | E80: 0 | G80: =IF(G$75>1,ROUND($E80*G$74,0),0) -> 0 | H80: =IF(H$75>1,ROUND($E80*H$74,0),0) -> 0 | I80: 0 | J80: 0 | K80: 0 | L80: 0 | M80: 0 | N80: 0 | O80: 0 | P80: 0 | Q80: 0 | R80: 0 | S80: 0 | T80: 0 | U80: 0 | V80: 0 | W80: 0 | X80: 0 | Y80: 0 | Z80: 0 | AA80: 0 | AB80: 0 | AC80: 0 | AD80: 0 | AE80: 0 | AF80: 0 | AG80: 0 | AH80: 0 | AI80: 0 | AJ80: 0 | AK80: 0 | AL80: 0 | AM80: 0 | AN80: 0 | AO80: 0 | AP80: 0 | AQ80: 0 | AR80: 0 | AS80: 0 | AT80: 0
A81: 1 PMT/Yr., Default ITA Loans: Insert 20%, TEB Loans: 0% | E81: Cum. Paid | G81: =G80 -> 0 | H81: =G81+H80 -> 0 | I81: =H81+I80 -> 0 | J81: 0 | K81: 0 | L81: 0 | M81: 0 | N81: 0 | O81: 0 | P81: 0 | Q81: 0 | R81: 0 | S81: 0 | T81: 0 | U81: 0 | V81: 0 | W81: 0 | X81: 0 | Y81: 0 | Z81: 0 | AA81: 0 | AB81: 0 | AC81: 0 | AD81: 0 | AE81: 0 | AF81: 0 | AG81: 0 | AH81: 0 | AI81: 0 | AJ81: 0 | AK81: 0 | AL81: 0 | AM81: 0 | AN81: 0 | AO81: 0 | AP81: 0 | AQ81: 0 | AR81: 0 | AS81: 0 | AT81: 0
A82: Other | E82: 0 | G82: =IF(G$75>1,ROUND($E82*(G$74-G80),0),0) -> 0 | H82: =IF(H$75>1,ROUND($E82*(H$74-H80),0),0) -> 0 | I82: 0 | J82: 0 | K82: 0 | L82: 0 | M82: 0 | N82: 0 | O82: 0 | P82: 0 | Q82: 0 | R82: 0 | S82: 0 | T82: 0 | U82: 0 | V82: 0 | W82: 0 | X82: 0 | Y82: 0 | Z82: 0 | AA82: 0 | AB82: 0 | AC82: 0 | AD82: 0 | AE82: 0 | AF82: 0 | AG82: 0 | AH82: 0 | AI82: 0 | AJ82: 0 | AK82: 0 | AL82: 0 | AM82: 0 | AN82: 0 | AO82: 0 | AP82: 0 | AQ82: 0 | AR82: 0 | AS82: 0 | AT82: 0
E83: Cum. Paid | G83: =G82 -> 0 | H83: =G83+H82 -> 0 | I83: =H83+I82 -> 0 | J83: 0 | K83: 0 | L83: 0 | M83: 0 | N83: 0 | O83: 0 | P83: 0 | Q83: 0 | R83: 0 | S83: 0 | T83: 0 | U83: 0 | V83: 0 | W83: 0 | X83: 0 | Y83: 0 | Z83: 0 | AA83: 0 | AB83: 0 | AC83: 0 | AD83: 0 | AE83: 0 | AF83: 0 | AG83: 0 | AH83: 0 | AI83: 0 | AJ83: 0 | AK83: 0 | AL83: 0 | AM83: 0 | AN83: 0 | AO83: 0 | AP83: 0 | AQ83: 0 | AR83: 0 | AS83: 0 | AT83: 0
E84: Net Cash Flow/Surplus Cash | G84: =IF(G$74<=0,0,ROUND(G$74-SUM(G80+G82),0)) -> 0 | H84: =IF(H$74<=0,0,ROUND(H$74-SUM(H80+H82),0)) -> 0 | I84: 0 | J84: 0 | K84: 0 | L84: 0 | M84: 0 | N84: 0 | O84: 0 | P84: 0 | Q84: 0 | R84: 0 | S84: 0 | T84: 0 | U84: 0 | V84: 0 | W84: 0 | X84: 0 | Y84: 0 | Z84: 0 | AA84: 0 | AB84: 0 | AC84: 0 | AD84: 0 | AE84: 0 | AF84: 0 | AG84: 0 | AH84: 0 | AI84: 0 | AJ84: 0 | AK84: 0 | AL84: 0 | AM84: 0 | AN84: 0 | AO84: 0 | AP84: 0 | AQ84: 0 | AR84: 0 | AS84: 0 | AT84: 0
A85: Owner Distributions
A86: Limited Dividend | E86: Available/Permitted Distribution | G86: =IF($A117>0,G$120,G$84) -> 0 | H86: =IF($A117>0,H$120,H$84) -> 0 | I86: 0 | J86: 0 | K86: 0 | L86: 0 | M86: 0 | N86: 0 | O86: 0 | P86: 0 | Q86: 0 | R86: 0 | S86: 0 | T86: 0 | U86: 0 | V86: 0 | W86: 0 | X86: 0 | Y86: 0 | Z86: 0 | AA86: 0 | AB86: 0 | AC86: 0 | AD86: 0 | AE86: 0 | AF86: 0 | AG86: 0 | AH86: 0 | AI86: 0 | AJ86: 0 | AK86: 0 | AL86: 0 | AM86: 0 | AN86: 0 | AO86: 0 | AP86: 0 | AQ86: 0 | AR86: 0 | AS86: 0 | AT86: 0
E87: Annual Cash-On-Cash Return % | G87: =G121 -> n/a | H87: =H121 -> n/a | I87: n/a | J87: n/a | K87: n/a | L87: n/a | M87: n/a | N87: n/a | O87: n/a | P87: n/a | Q87: n/a | R87: n/a | S87: n/a | T87: n/a | U87: n/a | V87: n/a | W87: n/a | X87: n/a | Y87: n/a | Z87: n/a | AA87: n/a | AB87: n/a | AC87: n/a | AD87: n/a | AE87: n/a | AF87: n/a | AG87: n/a | AH87: n/a | AI87: n/a | AJ87: n/a | AK87: n/a | AL87: n/a | AM87: n/a | AN87: n/a | AO87: n/a | AP87: n/a | AQ87: n/a | AR87: n/a | AS87: n/a | AT87: n/a
A88: Deferred Developer Fee
A89: To be fully repaid in 15 years from CHFA-approved Owner Distributions/Surplus Cash as per loan docs. | D89: ='Sources of Funds'!I34 -> 0 | E89: PMT | G89: =IF(OR($D89=0,G74<=0),0,G74) -> 0 | H89: 0 | I89: 0 | J89: 0 | K89: 0 | L89: 0 | M89: 0 | N89: 0 | O89: 0 | P89: 0 | Q89: 0 | R89: 0 | S89: 0 | T89: 0 | U89: 0
C90: Term> | D90: ='Sources of Funds'!L34 -> 0 | E90: NPV | T90: MAX NPV= | U90: =NPV($D$91,$G$89:$U$89) -> 0
C91: Rate> | D91: ='Sources of Funds'!M34 -> 0 | E91: Bal. (E.O.Y.) | G91: =D89-G89 -> 0 | H91: =+G91-H86 -> 0 | I91: =+H91-I86 -> 0 | J91: 0 | K91: 0 | L91: 0 | M91: 0 | N91: 0 | O91: 0 | P91: 0 | Q91: 0 | R91: 0 | S91: 0 | T91: 0 | U91: 0
E92: Cum. Paid | G92: =G89 -> 0 | H92: =G92+H89 -> 0 | I92: =H92+I89 -> 0 | J92: 0 | K92: 0 | L92: 0 | M92: 0 | N92: 0 | O92: 0 | P92: 0 | Q92: 0 | R92: 0 | S92: 0 | T92: 0 | U92: 0
A93: Developer Cash Flow Loan | E93: 0 | G93: =G86-G89 -> 0 | H93: 0 | I93: 0 | J93: 0 | K93: 0 | L93: 0 | M93: =M86-M89 -> 0 | N93: =N86-N89 -> 0 | O93: 0 | P93: 0 | Q93: 0 | R93: 0 | S93: 0 | T93: 0 | U93: 0 | V93: 0 | W93: 0 | X93: 0 | Y93: 0 | Z93: 0 | AA93: 0 | AB93: 0 | AC93: 0 | AD93: 0 | AE93: 0 | AF93: 0 | AG93: 0 | AH93: 0 | AI93: 0 | AJ93: 0 | AK93: 0 | AL93: 0 | AM93: 0 | AN93: 0 | AO93: 0 | AP93: 0 | AQ93: 0 | AR93: 0 | AS93: 0 | AT93: 0
E94: Cum. Paid | G94: =G93 -> 0 | H94: =G94+H93 -> 0 | I94: =H94+I93 -> 0 | J94: 0 | K94: 0 | L94: 0 | M94: 0 | N94: 0 | O94: 0 | P94: 0 | Q94: 0 | R94: 0 | S94: 0 | T94: 0 | U94: 0 | V94: 0 | W94: 0 | X94: 0 | Y94: 0 | Z94: 0 | AA94: 0 | AB94: 0 | AC94: 0 | AD94: 0 | AE94: 0 | AF94: 0 | AG94: 0 | AH94: 0 | AI94: 0 | AJ94: 0 | AK94: 0 | AL94: 0 | AM94: 0 | AN94: 0 | AO94: 0 | AP94: 0 | AQ94: 0 | AR94: 0 | AS94: 0 | AT94: 0
A95: Other | E95: 0 | G95: =G86-(G89+G93) -> 0 | H95: =H86-(H89+H93) -> 0 | I95: 0 | J95: 0 | K95: 0 | L95: 0 | M95: 0 | N95: 0 | O95: 0 | P95: 0 | Q95: 0 | R95: 0 | S95: 0 | T95: 0 | U95: 0 | V95: 0 | W95: 0 | X95: 0 | Y95: 0 | Z95: 0 | AA95: 0 | AB95: 0 | AC95: 0 | AD95: 0 | AE95: 0 | AF95: 0 | AG95: 0 | AH95: 0 | AI95: 0 | AJ95: 0 | AK95: 0 | AL95: 0 | AM95: 0 | AN95: 0 | AO95: 0 | AP95: 0 | AQ95: 0 | AR95: 0 | AS95: 0 | AT95: 0
E96: Annual Total | G96: =SUM(G89,G93,G95) -> 0 | H96: =SUM(H89,H93,H95) -> 0 | I96: 0 | J96: 0 | K96: 0 | L96: 0 | M96: 0 | N96: 0 | O96: 0 | P96: 0 | Q96: 0 | R96: 0 | S96: 0 | T96: 0 | U96: 0 | V96: 0 | W96: 0 | X96: 0 | Y96: 0 | Z96: 0 | AA96: 0 | AB96: 0 | AC96: 0 | AD96: 0 | AE96: 0 | AF96: 0 | AG96: 0 | AH96: 0 | AI96: 0 | AJ96: 0 | AK96: 0 | AL96: 0 | AM96: 0 | AN96: 0 | AO96: 0 | AP96: 0 | AQ96: 0 | AR96: 0 | AS96: 0 | AT96: 0
E97: Cum. Distribution | G97: =G96 -> 0 | H97: =G97+H96 -> 0 | I97: =H97+I96 -> 0 | J97: 0 | K97: 0 | L97: 0 | M97: 0 | N97: 0 | O97: 0 | P97: 0 | Q97: 0 | R97: 0 | S97: 0 | T97: 0 | U97: 0 | V97: 0 | W97: 0 | X97: 0 | Y97: 0 | Z97: 0 | AA97: 0 | AB97: 0 | AC97: 0 | AD97: 0 | AE97: 0 | AF97: 0 | AG97: 0 | AH97: 0 | AI97: 0 | AJ97: 0 | AK97: 0 | AL97: 0 | AM97: 0 | AN97: 0 | AO97: 0 | AP97: 0 | AQ97: 0 | AR97: 0 | AS97: 0 | AT97: 0
G98: MAX. Deferred Fee= | I98: =NPV($D$91,$G89:U89) -> 0
A99: OPERATING / DEBT SERVICE / COVERAGE RESERVE
A101: CHFA Financing Reserve | C101: NPV's | E101: Project Actual DSC > | G101: =G$75 -> 0 | H101: 0 | I101: 0 | J101: 0 | K101: 0 | L101: 0 | M101: 0 | N101: 0 | O101: 0 | P101: 0 | Q101: 0 | R101: 0 | S101: 0 | T101: 0 | U101: 0 | V101: 0 | W101: 0 | X101: 0 | Y101: 0 | Z101: 0 | AA101: 0 | AB101: 0 | AC101: 0 | AD101: 0 | AE101: 0 | AF101: 0 | AG101: 0 | AH101: 0 | AI101: 0 | AJ101: 0 | AK101: 0 | AL101: 0 | AM101: 0 | AN101: 0 | AO101: 0 | AP101: 0 | AQ101: 0 | AR101: 0 | AS101: 0 | AT101: 0
B103: For 1.0 DSC | C103: =NPV(E$105,G$104:U$104) -> 0 | E103: BALANCE (B.O.Y.) | G103: =C105 -> 0 | H103: =G107 -> 0 | I103: 0 | J103: 0 | K103: 0 | L103: 0 | M103: 0 | N103: 0 | O103: 0 | P103: 0 | Q103: 0 | R103: 0 | S103: 0 | T103: 0 | U103: 0 | V103: 0 | W103: 0 | X103: 0 | Y103: 0 | Z103: 0 | AA103: 0 | AB103: 0 | AC103: 0 | AD103: 0 | AE103: 0 | AF103: 0 | AG103: 0 | AH103: 0 | AI103: 0 | AJ103: 0 | AK103: 0 | AL103: 0 | AM103: 0 | AN103: 0 | AO103: 0 | AP103: 0 | AQ103: 0 | AR103: 0 | AS103: 0 | AT103: 0
B104: For 1.0 - 1.15 DSC | C104: =NPV(E$105,G$108:U$108) -> 0 | E104: OUTFLOWS (for 1.00 DSC) | G104: =IF(G30<0,G30*-1,IF(AND(G$72>0,G$75<1),G$72-G$30,0)) -> 0 | H104: 0 | I104: 0 | J104: 0 | K104: 0 | L104: 0 | M104: 0 | N104: 0 | O104: 0 | P104: 0 | Q104: 0 | R104: 0 | S104: 0 | T104: 0 | U104: 0 | V104: 0 | W104: 0 | X104: 0 | Y104: 0 | Z104: 0 | AA104: 0 | AB104: 0 | AC104: 0 | AD104: 0 | AE104: 0 | AF104: 0 | AG104: 0 | AH104: 0 | AI104: 0 | AJ104: 0 | AK104: 0 | AL104: 0 | AM104: 0 | AN104: 0 | AO104: 0 | AP104: 0 | AQ104: 0 | AR104: 0 | AS104: 0 | AT104: 0
B105: TOTAL RESERVE | C105: =C103+C104 -> 0 | E105: 0.03 | G105: =IF(G104>0,ROUND((G103-(G104/2)+(G106))*($E105),0),ROUND((G103+G106)*$E105,0)) -> 0 | H105: 0 | I105: 0 | J105: 0 | K105: 0 | L105: 0 | M105: 0 | N105: 0 | O105: 0 | P105: 0 | Q105: 0 | R105: 0 | S105: 0 | T105: 0 | U105: 0 | V105: 0 | W105: 0 | X105: 0 | Y105: 0 | Z105: 0 | AA105: 0 | AB105: 0 | AC105: 0 | AD105: 0 | AE105: 0 | AF105: 0 | AG105: 0 | AH105: 0 | AI105: 0 | AJ105: 0 | AK105: 0 | AL105: 0 | AM105: 0 | AN105: 0 | AO105: 0 | AP105: 0 | AQ105: 0 | AR105: 0 | AS105: 0 | AT105: 0
E106: Paid INTO Reserve | G106: 0 | H106: 0 | I106: 0 | J106: 0 | K106: 0 | L106: 0 | M106: 0 | N106: 0 | O106: 0 | P106: 0 | Q106: 0 | R106: 0 | S106: 0 | T106: 0 | U106: 0 | V106: 0 | W106: 0 | X106: 0 | Y106: 0 | Z106: 0 | AA106: 0 | AB106: 0 | AC106: 0 | AD106: 0 | AE106: 0 | AF106: 0 | AG106: 0 | AH106: 0 | AI106: 0 | AJ106: 0 | AK106: 0 | AL106: 0 | AM106: 0 | AN106: 0 | AO106: 0 | AP106: 0 | AQ106: 0 | AR106: 0 | AS106: 0 | AT106: 0
A107: Supportive Housing Reserve | C107: NPV's | E107: BALANCE (E.O.Y.) | G107: =(G103-G104)+SUM(G105,G106) -> 0 | H107: =(H103-H104)+SUM(H105,H106) -> 0 | I107: 0 | J107: 0 | K107: 0 | L107: 0 | M107: 0 | N107: 0 | O107: 0 | P107: 0 | Q107: 0 | R107: 0 | S107: 0 | T107: 0 | U107: 0 | V107: 0 | W107: 0 | X107: 0 | Y107: 0 | Z107: 0 | AA107: 0 | AB107: 0 | AC107: 0 | AD107: 0 | AE107: 0 | AF107: 0 | AG107: 0 | AH107: 0 | AI107: 0 | AJ107: 0 | AK107: 0 | AL107: 0 | AM107: 0 | AN107: 0 | AO107: 0 | AP107: 0 | AQ107: 0 | AR107: 0 | AS107: 0 | AT107: 0
B108: For 1.0 DSC | C108: =NPV(E$105,G$104:U$104) -> 0 | E108: Economic Coverage (1.00 to 1.15 DSC) | G108: =IF(G30<=0,0,IF(G$75>1.15,0,IF(AND(G$75<1.15,G$75>1),(G$72*1.15)-(G$72*G$75),IF(G$75<1,(G$72*1.15)-G$72,0)))) -> 0 | H108: 0 | I108: 0 | J108: 0 | K108: 0 | L108: 0 | M108: 0 | N108: 0 | O108: 0 | P108: 0 | Q108: 0 | R108: 0 | S108: 0 | T108: 0 | U108: 0 | V108: 0 | W108: 0 | X108: 0 | Y108: 0 | Z108: 0 | AA108: 0 | AB108: 0 | AC108: 0 | AD108: 0 | AE108: 0 | AF108: 0 | AG108: 0 | AH108: 0 | AI108: 0 | AJ108: 0 | AK108: 0 | AL108: 0 | AM108: 0 | AN108: 0 | AO108: 0 | AP108: 0 | AQ108: 0 | AR108: 0 | AS108: 0 | AT108: 0
B109: For 1.0 - 1.05 DSC | C109: =NPV(E$105,G$109:U$109) -> 0 | E109: Economic Coverage (1.00 to 1.05 DSC) | G109: =IF(G30<=0,0,IF(G$75>1.05,0,IF(AND(G$75<1.05,G$75>1),(G$72*1.05)-(G$72*G$75),IF(G$75<1,(G$72*1.05)-G$72,0)))) -> 0 | H109: 0 | I109: 0 | J109: 0 | K109: 0 | L109: 0 | M109: 0 | N109: 0 | O109: 0 | P109: 0 | Q109: 0 | R109: 0 | S109: 0 | T109: 0 | U109: 0 | V109: 0 | W109: 0 | X109: 0 | Y109: 0 | Z109: 0 | AA109: 0 | AB109: 0 | AC109: 0 | AD109: 0 | AE109: 0 | AF109: 0 | AG109: 0 | AH109: 0 | AI109: 0 | AJ109: 0 | AK109: 0 | AL109: 0 | AM109: 0 | AN109: 0 | AO109: 0 | AP109: 0 | AQ109: 0 | AR109: 0 | AS109: 0 | AT109: 0
B110: TOTAL RESERVE | C110: =C108+C109 -> 0 | E110: EFFECTIVE NOI | G110: =IF(AND(G72=0,G30<0),0,IF(G$75>1.15,G$30,G$30+G104+G108)) -> 0 | H110: 0 | I110: 0 | J110: 0 | K110: 0 | L110: 0 | M110: 0 | N110: 0 | O110: 0 | P110: 0 | Q110: 0 | R110: 0 | S110: 0 | T110: 0 | U110: 0 | V110: 0 | W110: 0 | X110: 0 | Y110: 0 | Z110: 0 | AA110: =IF(AND(AA72=0,AA30<0),0,IF(AA$75>1.15,AA$30,AA$30+AA104)) -> 0 | AB110: 0 | AC110: 0 | AD110: 0 | AE110: 0 | AF110: 0 | AG110: 0 | AH110: 0 | AI110: 0 | AJ110: 0 | AK110: 0 | AL110: 0 | AM110: 0 | AN110: 0 | AO110: 0 | AP110: 0 | AQ110: 0 | AR110: 0 | AS110: 0 | AT110: 0
E111: EFFECTIVE DSC | G111: =IF(OR(G110=0,G72=0),"n/a",G110/G72) -> n/a | H111: n/a | I111: n/a | J111: n/a | K111: n/a | L111: n/a | M111: n/a | N111: n/a | O111: n/a | P111: n/a | Q111: n/a | R111: n/a | S111: n/a | T111: n/a | U111: n/a | V111: n/a | W111: n/a | X111: n/a | Y111: n/a | Z111: n/a | AA111: n/a | AB111: n/a | AC111: n/a | AD111: n/a | AE111: n/a | AF111: n/a | AG111: n/a | AH111: n/a | AI111: n/a | AJ111: n/a | AK111: n/a | AL111: n/a | AM111: n/a | AN111: n/a | AO111: n/a | AP111: n/a | AQ111: n/a | AR111: n/a | AS111: n/a | AT111: n/a
A113: NetCash Flow/Surplus Cash Distribution
A114: (After ADS and Preferred 3rd Party Payments) | E114: Available Net Cash Flow | G114: =G84 -> 0 | H114: 0 | I114: 0 | J114: 0 | K114: 0 | L114: 0 | M114: 0 | N114: 0 | O114: 0 | P114: 0 | Q114: 0 | R114: 0 | S114: 0 | T114: 0 | U114: 0 | V114: 0 | W114: 0 | X114: 0 | Y114: 0 | Z114: 0 | AA114: 0 | AB114: 0 | AC114: 0 | AD114: 0 | AE114: 0 | AF114: 0 | AG114: 0 | AH114: 0 | AI114: 0 | AJ114: 0 | AK114: 0 | AL114: 0 | AM114: 0 | AN114: 0 | AO114: 0 | AP114: 0 | AQ114: 0 | AR114: 0 | AS114: 0 | AT114: 0
E115: =IF(A117=0,0,ROUND(A117*A119,0)) -> 0 | G115: = Max permitted Annual Distribution
A116: CHFA Recognized Equity (1) | E116: Regular Distribution: | G116: =IF(OR($E$115=0,G$84<=0),0,IF(AND(G$84>0,G$84<=$E$115),G$84,$E$115)) -> 0 | H116: 0 | I116: 0 | J116: 0 | K116: 0 | L116: 0 | M116: 0 | N116: 0 | O116: 0 | P116: 0 | Q116: 0 | R116: 0 | S116: 0 | T116: 0 | U116: 0 | V116: 0 | W116: 0 | X116: 0 | Y116: 0 | Z116: 0 | AA116: 0 | AB116: 0 | AC116: 0 | AD116: 0 | AE116: 0 | AF116: 0 | AG116: 0 | AH116: 0 | AI116: 0 | AJ116: 0 | AK116: 0 | AL116: 0 | AM116: 0 | AN116: 0 | AO116: 0 | AP116: 0 | AQ116: 0 | AR116: 0 | AS116: 0 | AT116: 0
A117: ='Sources of Funds'!I23 -> 0 | E117: Excess Cash (> Ann. Allowed Max.) | G117: =IF(G$84<=0,0,IF(G$84>$E$115,G$84-$E$115,0)) -> 0 | H117: 0 | I117: 0 | J117: 0 | K117: 0 | L117: 0 | M117: 0 | N117: 0 | O117: 0 | P117: 0 | Q117: 0 | R117: 0 | S117: 0 | T117: 0 | U117: 0 | V117: 0 | W117: 0 | X117: 0 | Y117: 0 | Z117: 0 | AA117: 0 | AB117: 0 | AC117: 0 | AD117: 0 | AE117: 0 | AF117: 0 | AG117: 0 | AH117: 0 | AI117: 0 | AJ117: 0 | AK117: 0 | AL117: 0 | AM117: 0 | AN117: 0 | AO117: 0 | AP117: 0 | AQ117: 0 | AR117: 0 | AS117: 0 | AT117: 0
A118: Permitted Annual C.O.C. Return (2) | E118: Cum. Accrued Deferred: | G118: =IF(G$84<=0,$E$115,IF(AND(G$84<$E$115,$E$115>0),($E$115-G$84),0)) -> 0 | H118: =IF(H116<=0,$E$115+(G118-G119),IF(AND(H116<$E$115,H116>0),($E$115-H116)+(G118-G119),IF(AND(H116=$E$115,H117>0),G118-G119,0))) -> 0 | I118: 0 | J118: 0 | K118: 0 | L118: 0 | M118: 0 | N118: 0 | O118: 0 | P118: 0 | Q118: 0 | R118: 0 | S118: 0 | T118: 0 | U118: 0 | V118: 0 | W118: 0 | X118: 0 | Y118: 0 | Z118: 0 | AA118: 0 | AB118: 0 | AC118: 0 | AD118: 0 | AE118: 0 | AF118: 0 | AG118: 0 | AH118: 0 | AI118: 0 | AJ118: 0 | AK118: 0 | AL118: 0 | AM118: 0 | AN118: 0 | AO118: 0 | AP118: 0 | AQ118: 0 | AR118: 0 | AS118: 0 | AT118: 0
A119: 0.1 | E119: Payable Deferred Cum. Distribution | G119: =IF(G117<=0,0,IF(G117<=G118,G117,G118)) -> 0 | H119: =IF(H117<=0,0,IF(AND(H117>0,(G118-G119)>H117),H117,G118-G119)) -> 0 | I119: =IF(I117<=0,0,IF(AND(I117>0,(H118-H119)>I117),I117,H118-H119)) -> 0 | J119: 0 | K119: 0 | L119: 0 | M119: 0 | N119: 0 | O119: 0 | P119: 0 | Q119: 0 | R119: 0 | S119: 0 | T119: 0 | U119: 0 | V119: 0 | W119: 0 | X119: 0 | Y119: 0 | Z119: 0 | AA119: 0 | AB119: 0 | AC119: 0 | AD119: 0 | AE119: 0 | AF119: 0 | AG119: 0 | AH119: 0 | AI119: 0 | AJ119: 0 | AK119: 0 | AL119: 0 | AM119: 0 | AN119: 0 | AO119: 0 | AP119: 0 | AQ119: 0 | AR119: 0 | AS119: 0 | AT119: 0
A120: (1) A-8(a) Total Uses less sum of mortgage and grant proceeds | E120: Total Distribution | G120: =IF(G116<=0,0,G116+G119) -> 0 | H120: =IF(H116<=0,0,H116+H119) -> 0 | I120: 0 | J120: 0 | K120: 0 | L120: 0 | M120: 0 | N120: 0 | O120: 0 | P120: 0 | Q120: 0 | R120: 0 | S120: 0 | T120: 0 | U120: 0 | V120: 0 | W120: 0 | X120: 0 | Y120: 0 | Z120: 0 | AA120: 0 | AB120: 0 | AC120: 0 | AD120: 0 | AE120: 0 | AF120: 0 | AG120: 0 | AH120: 0 | AI120: 0 | AJ120: 0 | AK120: 0 | AL120: 0 | AM120: 0 | AN120: 0 | AO120: 0 | AP120: 0 | AQ120: 0 | AR120: 0 | AS120: 0 | AT120: 0
A121: (2) A-8(b) 10% unless otherwise determined by CHFA | E121: Annual C.O.C. Return | G121: =IF($A$117=0,"n/a",G120/$A$117) -> n/a | H121: =IF($A$117=0,"n/a",H120/$A$117) -> n/a | I121: n/a | J121: n/a | K121: n/a | L121: n/a | M121: n/a | N121: n/a | O121: n/a | P121: n/a | Q121: n/a | R121: n/a | S121: n/a | T121: n/a | U121: n/a | V121: n/a | W121: n/a | X121: n/a | Y121: n/a | Z121: n/a | AA121: n/a | AB121: n/a | AC121: n/a | AD121: n/a | AE121: n/a | AF121: n/a | AG121: n/a | AH121: n/a | AI121: n/a | AJ121: n/a | AK121: n/a | AL121: n/a | AM121: n/a | AN121: n/a | AO121: n/a | AP121: n/a | AQ121: n/a | AR121: n/a | AS121: n/a | AT121: n/a

Sheet DEVBGT
A2: Exhibit 6.3.a - DEVELOPMENT BUDGET | AP2: TDC | AQ2: Developer Allowance/Fee
AO3: Actual | AP3: =F62 -> 0 | AQ3: =ROUND(SUM(AQ5:AQ10),0) -> 0
A5: DEVELOPMENT NAME | B5: =Application!D113 -> 0 | F5: APPLICANT | I5: =Application!D10 -> 0 | AN5: =AO5*$AP$5 -> 750000 | AO5: 0.15 | AP5: 5000000 | AQ5: =IF(AP3>AP5,AP5*AO5,AP3*AO5) -> 0
AN6: =AO6*$AP$5 -> 625000 | AO6: 0.125 | AP6: =+AP5+5000000 -> 10000000 | AQ6: =MIN(IF($AP$3>AP5,($AP$3-AP5)*AO6,0),AN6) -> 0
E7: CONSTRUCTION FUNDING INFORMATION | F7: PERMANENT FUNDING INFORMATION | AN7: =AO7*$AP$5 -> 500000 | AO7: 0.1 | AP7: =+AP6+5000000 -> 15000000 | AQ7: =MIN(IF($AP$3>AP6,($AP$3-AP6)*AO7,0),AN7) -> 0
D8: % | E8: Construction Budget | F8: Permanent Budget (Applicant) | G8: Permanent Budget (CHFA) | H8: Difference | I8: TAX CREDIT ELIGIBLE BASIS | K8: TAX-EXEMPT BOND BASIS | L8: Sources | AN8: =AO8*$AP$5 -> 375000 | AO8: 0.075 | AP8: =+AP7+5000000 -> 20000000 | AQ8: =MIN(IF($AP$3>AP7,($AP$3-AP7)*AO8,0),AN8) -> 0
I9: 70% NPV - 9% or 30% NPV - 4% (New / Rehab.) | J9: 30% NPV - 4% Exist Building Acquisition Credit | K9: To be Completed by Independent Tax Professional Issuing the Attestment Letter | L9: ='Sources of Funds'!A10&" (Equity)" -> DOH Grant Funding (Equity) | M9: ='Sources of Funds'!B11&" "&'Sources of Funds'!C11 -> CDBG Grant Funds: [Specify] | N9: ='Sources of Funds'!B12&" "&'Sources of Funds'!C12 -> Other Public Funds: [Specify] | O9: ='Sources of Funds'!B13&" "&'Sources of Funds'!C13 -> 4 % LIHTC Net Proceeds | P9: ='Sources of Funds'!A14 -> Federal Historic Tax Credit Net Proceeds | Q9: ='Sources of Funds'!A15 -> State Historic Tax Credit Net Proceeds | R9: ='Sources of Funds'!A16 -> CT Housing Tax Credit Contribution (HTCC) Proceeds | S9: ='Sources of Funds'!A17 -> Developer / Investor Cash Equity | T9: ='Sources of Funds'!A18 -> Homeownership Sales Proceeds | U9: ='Sources of Funds'!A19 -> Energy Rebates* | V9: ='Sources of Funds'!A20 -> Existing Property Reserves | W9: ='Sources of Funds'!B21&" "&'Sources of Funds'!C21 -> Other [Specify] | X9: ='Sources of Funds'!B22&" "&'Sources of Funds'!C22 -> Other [Specify] | Y9: ='Sources of Funds'!B29&" "&'Sources of Funds'!C29 -> CHFA Loan Taxable Bonds | Z9: ='Sources of Funds'!B30&" "&'Sources of Funds'!C30 -> CHFA Loan - Non-Bond Proceeds [Specify] | AA9: ='Sources of Funds'!A31&" (Financing)" -> DOH Loan Funding (Financing) | AB9: ='Sources of Funds'!B32&" "&'Sources of Funds'!C32 -> CDBG Loan Funds: [Specify] | AC9: ='Sources of Funds'!B33&" "&'Sources of Funds'!C33 -> Other Public Funds: [Specify] | AD9: ='Sources of Funds'!A34 -> Deferred Developer Fee | AE9: ='Sources of Funds'!B35&" "&'Sources of Funds'!C35 -> Other Amortizing Debt [Specify] | AF9: ='Sources of Funds'!B36&" "&'Sources of Funds'!C36 -> Other Amortizing Debt [Specify] | AG9: ='Sources of Funds'!A37 -> Existing Debt | AH9: ='Sources of Funds'!A38 -> GP Loan | AN9: =AO9*$AP$5 -> 250000 | AO9: 0.05 | AP9: =+AP8+5000000 -> 25000000 | AQ9: =MIN(IF($AP$3>AP8,($AP$3-AP8)*AO9,0),AN9) -> 0
L10: ='Sources of Funds'!I10 -> 0 | M10: ='Sources of Funds'!I11 -> 0 | N10: ='Sources of Funds'!I12 -> 0 | O10: ='Sources of Funds'!I13 -> 0 | P10: ='Sources of Funds'!I14 -> 0 | Q10: ='Sources of Funds'!I15 -> 0 | R10: ='Sources of Funds'!I16 -> 0 | S10: ='Sources of Funds'!I17 -> 0 | T10: ='Sources of Funds'!I18 -> 0 | U10: ='Sources of Funds'!I19 -> 0 | V10: ='Sources of Funds'!I20 -> 0 | W10: ='Sources of Funds'!I21 -> 0 | X10: ='Sources of Funds'!I22 -> 0 | Y10: ='Sources of Funds'!I29 -> 0 | Z10: ='Sources of Funds'!I30 -> 0 | AA10: ='Sources of Funds'!I31 -> 0 | AB10: ='Sources of Funds'!I32 -> 0 | AC10: ='Sources of Funds'!I33 -> 0 | AD10: ='Sources of Funds'!I34 -> 0 | AE10: ='Sources of Funds'!I35 -> 0 | AF10: ='Sources of Funds'!I36 -> 0 | AG10: ='Sources of Funds'!I37 -> 0 | AH10: ='Sources of Funds'!I38 -> 0 | AO10: 0.025 | AP10: +25,000,000 | AQ10: =IF($AP$3>AP9,($AP$3-AP9)*AO10,0) -> 0
A12: SITE & IMPROVEMENTS (Div. 2-16) Hard Costs | F12: ='Project Cost Summary'!E71 -> 0 | G12: =F12 -> 0 | H12: =F12-G12 -> 0 | I12: =F12 -> 0 | AP12: Max Cash Portion | AQ12: =SUM(AQ5:AQ10) -> 0
A13: GENERAL REQUIREMENTS (Max. Allowable 6%) | D13: =IF(F13=0,0,F13/F12) -> 0 | F13: ='Project Cost Summary'!E73 -> 0 | G13: 0 | H13: 0 | I13: 0 | AP13: Deferred Portion | AQ13: =ImpPermDDF -> 0
A14: BUILDERS OVERHEAD ( Max. Allowable 2%) | D14: =IF(F14=0,0,F14/F12) -> 0 | F14: ='Project Cost Summary'!E77 -> 0 | G14: 0 | H14: 0 | I14: 0 | AP14: Cash + Deferred | AQ14: =+AQ12+AQ13 -> 0
A15: BUILDERS PROFIT/GMP FEES ( Max. Allowable 6%) | D15: =IF(F15=0,0,F15/F12) -> 0 | F15: ='Project Cost Summary'!E78 -> 0 | G15: 0 | H15: 0 | I15: 0
A16: BOND PREMIUM / L.O.C. COST | F16: ='Project Cost Summary'!E82 -> 0 | G16: 0 | H16: 0 | I16: 0 | AP16: Actual Cash | AQ16: =F63 -> 0
A17: BUILDING PERMITS and OTHER DEVELOPMENT FEES | F17: ='Project Cost Summary'!E81 -> 0 | G17: 0 | H17: 0 | I17: 0 | AP17: Actual Deferred | AQ17: =ImpPermDDF -> 0
A18: CONSTRUCTION (Project Cost Summary) Sub-Total | E18: =ROUND(SUM(E12:E17),0) -> 0 | F18: 0 | G18: 0 | H18: =ROUND(SUM(H12:H17),0) -> 0 | I18: 0 | J18: 0 | K18: 0 | L18: 0 | M18: 0 | N18: 0 | O18: 0 | P18: 0 | Q18: 0 | R18: 0 | S18: 0 | T18: 0 | U18: 0 | V18: 0 | W18: 0 | X18: 0 | Y18: 0 | Z18: 0 | AA18: 0 | AB18: =ROUND(SUM(AB12:AB17),0) -> 0 | AC18: 0 | AD18: 0 | AE18: 0 | AF18: 0 | AG18: =ROUND(SUM(AG12:AG17),0) -> 0 | AH18: 0 | AP18: 15% of TDC | AQ18: =(F62+F66+F70+F77+F86)*0.15 -> 0
A19: COMMERCIAL CONSTRUCTION | F19: =ROUND('Project Cost Summary'!F71,0) -> 0 | G19: =ROUND('Project Cost Summary'!G71,0) -> 0 | H19: =ROUND('Project Cost Summary'!H71,0) -> 0 | I19: N/A | AP19: Max Fee | AQ19: =IF(AQ14<AQ18,AQ14,AQ18) -> 0
A20: COMMERCIAL CONSTRUCTION CONTINGENCY | G20: =F20 -> 0 | H20: =F20-G20 -> 0 | I20: N/A
A21: Other | G21: =F21 -> 0 | H21: =F21-G21 -> 0 | I21: =F21 -> 0
A22: Other | F22: 0 | G22: =F22 -> 0 | H22: =F22-G22 -> 0 | I22: =F22 -> 0
A23: Other | G23: =F23 -> 0 | H23: =F23-G23 -> 0 | I23: =F23 -> 0
A24: CONSTRUCTION CONTINGENCY | D24: =IF(F24=0,0,F24/F18) -> 0 | G24: =F24 -> 0 | H24: =F24-G24 -> 0 | I24: =F24 -> 0
A25: CONSTRUCTION | E25: =ROUND(SUM(E18:E24),0) -> 0 | F25: 0 | G25: 0 | H25: 0 | I25: 0 | J25: 0 | K25: =ROUND(SUM(K18:K24),0) -> 0 | L25: 0 | M25: =ROUND(SUM(M18:M24),0) -> 0 | N25: 0 | O25: 0 | P25: 0 | Q25: 0 | R25: 0 | S25: 0 | T25: 0 | U25: 0 | V25: 0 | W25: 0 | X25: 0 | Y25: 0 | Z25: 0 | AA25: 0 | AB25: =ROUND(SUM(AB18:AB24),0) -> 0 | AC25: 0 | AD25: 0 | AE25: 0 | AF25: 0 | AG25: =ROUND(SUM(AG18:AG24),0) -> 0 | AH25: 0
A26: ARCHITECT - Design | D26: =IF(F26<>0,(F26+F27)/F18,0) -> 0 | G26: =F26 -> 0 | H26: =F26-G26 -> 0 | I26: =F26 -> 0
A27: ARCHITECT - Contract Admin (Min. 35%) (% Contract > ) | D27: =IF(F27=0,0,F27/(F26+F27)) -> 0 | G27: 0 | H27: 0 | I27: 0
A28: ENGINEERING (Civil-Site / Structural / Mechanical / Geo-Technical / Etc.) | G28: 0 | H28: 0 | I28: 0
A29: SURVEYS (A-2: Exist. Conditions and As-Built) | G29: 0 | H29: 0 | I29: 0
A30: Other | G30: 0 | H30: 0 | I30: 0
A31: Other | G31: 0 | H31: 0 | I31: 0
A32: Other | G32: 0 | H32: 0 | I32: 0
A33: Other | G33: 0 | H33: 0 | I33: 0
A34: ARCHITECTURAL and ENGINEERING | D34: =IF(F34=0,0,F34/F18) -> 0 | E34: =ROUND(SUM(E26:E33),0) -> 0 | F34: 0 | G34: 0 | H34: 0 | I34: 0 | J34: 0 | K34: =ROUND(SUM(K26:K33),0) -> 0 | L34: 0 | M34: =ROUND(SUM(M26:M33),0) -> 0 | N34: 0 | O34: 0 | P34: 0 | Q34: 0 | R34: 0 | S34: 0 | T34: 0 | U34: 0 | V34: 0 | W34: 0 | X34: 0 | Y34: 0 | Z34: 0 | AA34: 0 | AB34: =ROUND(SUM(AB26:AB33),0) -> 0 | AC34: 0 | AD34: 0 | AE34: 0 | AF34: 0 | AG34: =ROUND(SUM(AG26:AG33),0) -> 0 | AH34: 0
A35: INTEREST (CHFA) | B35: =('Sources of Funds'!I29*'Sources of Funds'!M29+'Sources of Funds'!J29*-1*'Sources of Funds'!K29)/'Sources of Funds'!G29 ->  | C35: ='Sources of Funds'!G29 -> 0 | G35: =F35 -> 0 | H35: =F35-G35 -> 0 | I35: =F35 -> 0
A36: CHFA LOAN ORIG. / COMMIT. FEE @ | B36: =IF(('Sources of Funds'!G29+'Sources of Funds'!I29)>5000000,1.25%,IF(('Sources of Funds'!G29+'Sources of Funds'!I29)>2500000,1.5%,IF(('Sources of Funds'!G29+'Sources of Funds'!I29)>1000000,1.75%,IF(('Sources of Funds'!G29+'Sources of Funds'!I29)<=1000000,2%,"")))) -> 0.02 | D36: =F36/MAX((SUM('Sources of Funds'!I29:I30)),(SUM('Sources of Funds'!G29:G30))) ->  | G36: 0 | H36: 0 | I36: N/A | J36: N/A
A37: INTEREST - Bridge Loan | G37: 0 | H37: 0 | I37: =F37 -> 0
A38: FEES - Bridge Loan | G38: 0 | H38: 0 | I38: =F38 -> 0
A39: R. E. TAXES / PILOTS - Const. Period + ___ Months Lease Up | G39: 0 | H39: 0 | I39: =F39 -> 0
A40: INSURANCE (Builder's Risk / Liability / Hazard) | G40: 0 | H40: 0 | I40: =F40 -> 0
A41: UTILITIES - Const. Period | G41: 0 | H41: 0 | I41: =F41 -> 0
A42: Negative Arbitrage on Bonds (If Applic.) | G42: 0 | H42: 0 | I42: N/A | J42: N/A
A43: Credit Enhancement Premium (HUD or Private Perm. Mortg. Insur.) | G43: 0 | H43: 0 | I43: N/A | J43: N/A
A44: Cost of Bond Issuance | G44: =F44 -> 0 | H44: =F44-G44 -> 0 | I44: =F44 -> 0
A45: Other | G45: 0 | H45: 0 | I45: =F45 -> 0
A46: Other | G46: 0 | H46: 0 | I46: =F46 -> 0
A47: CHFA CONSTRUCTION OBSERVATION | B47: [ __ Weeks @ $_______ / Bi-weekly] | G47: 0 | H47: 0 | I47: =F47 -> 0
A48: FINANCE and INTERIM COSTS | E48: =ROUND(SUM(E35:E47),0) -> 0 | F48: 0 | G48: 0 | H48: 0 | I48: 0 | J48: 0 | K48: =ROUND(SUM(K35:K47),0) -> 0 | L48: 0 | M48: =ROUND(SUM(M35:M47),0) -> 0 | N48: 0 | O48: 0 | P48: 0 | Q48: 0 | R48: 0 | S48: 0 | T48: 0 | U48: 0 | V48: 0 | W48: 0 | X48: 0 | Y48: 0 | Z48: 0 | AA48: 0 | AB48: =ROUND(SUM(AB35:AB47),0) -> 0 | AC48: 0 | AD48: 0 | AE48: 0 | AF48: 0 | AG48: =ROUND(SUM(AG35:AG47),0) -> 0 | AH48: 0
A49: LEGAL COUNSEL - Real Estate (Closing Docs and Title Work) | G49: =F49 -> 0 | H49: =F49-G49 -> 0 | I49: =F49 -> 0
A50: DOH EXTERNAL LEGAL COUNSEL | G50: 0 | H50: 0 | I50: =F50 -> 0
A51: TITLE INSUR. PREMIUMS and RECORDING COSTS | G51: 0 | H51: 0 | I51: =F51 -> 0
A52: APPRAISALS / MARKET STUDY (CHFA / LIHTC Required) | G52: 0 | H52: 0 | I52: =F52 -> 0
A53: LEASE UP & MARKETING | B53: ="$'s / Residential Unit $"&IF(Application!G177=0,0,IF(F53=0,0,F53)/Application!G177) -> $'s / Residential Unit $0 | G53: 0 | H53: 0 | I53: N/A | J53: N/A
A54: COST CERTIFICATIONS (CHFA/LIHTC/DOH Required) | G54: 0 | H54: 0 | I54: N/A | J54: N/A
A55: ENVIRONMENTAL REPORTS and TESTING | G55: 0 | H55: 0 | I55: =F55 -> 0
A56: Other | G56: 0 | H56: 0 | I56: =F56 -> 0
A57: Other | G57: 0 | H57: 0 | I57: =F57 -> 0
A58: Other | G58: 0 | H58: 0 | I58: =F58 -> 0
A59: OTHER COMMERCIAL USES/COSTS | G59: 0 | H59: 0 | I59: N/A | J59: N/A
A60: SOFT COST CONTINGENCY (A&E+FIN+SOFT %) | D60: =IF((F48+F34+SUM(F49:F58))=0,0,F60/(F48+F34+SUM(F49:F58))) -> 0 | G60: 0 | H60: 0 | I60: =F60 -> 0
A61: SOFT COSTS - Fees & Expenses | E61: =ROUND(SUM(E49:E60),0) -> 0 | F61: 0 | G61: =ROUND(SUM(G49:G60),0) -> 0 | H61: =ROUND(SUM(H49:H60),0) -> 0 | I61: 0 | J61: 0 | K61: 0 | L61: 0 | M61: 0 | N61: 0 | O61: 0 | P61: 0 | Q61: 0 | R61: 0 | S61: 0 | T61: 0 | U61: 0 | V61: 0 | W61: 0 | X61: 0 | Y61: 0 | Z61: 0 | AA61: 0 | AB61: =ROUND(SUM(AB49:AB60),0) -> 0 | AC61: 0 | AD61: 0 | AE61: 0 | AF61: 0 | AG61: =ROUND(SUM(AG49:AG60),0) -> 0 | AH61: 0
A62: TOTAL CONSTRUCTION & SOFT COSTS | E62: =E61+E48+E34+E25 -> 0 | F62: 0 | G62: =G61+G48+G34+G25 -> 0 | H62: =H61+H48+H34+H25 -> 0 | I62: 0 | J62: 0 | K62: 0 | L62: 0 | M62: 0 | N62: 0 | O62: 0 | P62: 0 | Q62: 0 | R62: 0 | S62: 0 | T62: 0 | U62: 0 | V62: 0 | W62: 0 | X62: 0 | Y62: 0 | Z62: 0 | AA62: 0 | AB62: =AB61+AB48+AB34+AB25 -> 0 | AC62: 0 | AD62: 0 | AE62: 0 | AF62: 0 | AG62: =AG61+AG48+AG34+AG25 -> 0 | AH62: 0
A63: Developer Allowance Fee - Cash Portion | E63: =ImpDevBudgetConstDeveloperAllowanceFee-E64 -> 0 | F63: =ImpDevBudgetPermDeveloperAllowanceFee-F64 -> 0 | G63: =F63 -> 0 | H63: =F63-G63 -> 0 | I63: N/A | J63: N/A
A64: Developer Allowance Fee - Deferred Portion | E64: =ImpConstDDF -> 0 | F64: =ImpPermDDF -> 0 | G64: 0 | H64: 0 | I64: N/A | J64: N/A
A65: ="DEVELOPER ALLOWANCE / FEE (Max.15% TDC/ $"&AQ3&")" -> DEVELOPER ALLOWANCE / FEE (Max.15% TDC/ $0) | D65: =IF(F90=0,0,F65/(F90-F65)) -> 0 | F65: =AQ19 -> 0 | G65: 0 | H65: 0 | I65: =F65 -> 0 | J65: N/A
A66: PRE-DEVEL. FINANCING (Interest) COSTS [ Lender-Approved ] | G66: 0 | H66: 0 | I66: N/A | J66: N/A
A67: Land Cost | G67: 0 | H67: 0 | I67: N/A | J67: N/A
A68: Other (Existing Reserves - Equipment) | G68: 0 | H68: 0 | I68: N/A | J68: N/A
A69: Existing Building/s | G69: 0 | H69: 0 | I69: N/A | J69: =IF(Application!H136="yes",F69,"N/A") -> N/A
A70: SITE ACQUISITION (Appraised "As Is" Value) | E70: =ROUND(SUM(E67:E69),0) -> 0 | F70: =ROUND(SUM(F67:F69),0) -> 0 | G70: =ROUND(SUM(G67:G69),0) -> 0 | H70: =ROUND(SUM(H67:H69),0) -> 0 | I70: N/A | J70: N/A | K70: =ROUND(SUM(K67:K69),0) -> 0 | L70: =ROUND(SUM(L67:L69),0) -> 0 | M70: 0 | N70: 0 | O70: 0 | P70: 0 | Q70: 0 | R70: 0 | S70: 0 | T70: 0 | U70: 0 | V70: 0 | W70: 0 | X70: 0 | Y70: 0 | Z70: 0 | AA70: 0 | AB70: =ROUND(SUM(AB67:AB69),0) -> 0 | AC70: 0 | AD70: 0 | AE70: 0 | AF70: 0 | AG70: =ROUND(SUM(AG67:AG69),0) -> 0 | AH70: 0
A71: Existing Reserves | I71: N/A | J71: N/A
A72: CHFA Operating Reserve | F72: =('Sources of Funds'!P39*0.5)+('Expenses Summary'!G63*0.5) -> 0 | G72: =F72 -> 0 | H72: =F72-G72 -> 0 | I72: N/A | J72: N/A
A73: CHFA Debt Service Coverage Reserve | F73: ='Cash Flow'!C103 -> 0 | G73: =F73 -> 0 | H73: =F73-G73 -> 0 | I73: N/A | J73: N/A
A74: Capital / Replacement | G74: =F74 -> 0 | H74: =F74-G74 -> 0 | I74: N/A | J74: N/A
A75: Syndicator Reserve | G75: =F75 -> 0 | H75: =F75-G75 -> 0 | I75: N/A | J75: N/A
A76: Other | G76: =F76 -> 0 | H76: =F76-G76 -> 0 | I76: N/A | J76: N/A
A77: CAPITALIZED RESERVES | E77: =ROUND(SUM(E71:E76),0) -> 0 | F77: =ROUND(SUM(F71:F76),0) -> 0 | G77: =ROUND(SUM(G72:G76),0) -> 0 | H77: =ROUND(SUM(H72:H76),0) -> 0 | I77: N/A | J77: N/A | K77: =SUM(K71:K76) -> 0 | L77: 0 | M77: 0 | N77: 0 | O77: 0 | P77: 0 | Q77: 0 | R77: 0 | S77: 0 | T77: 0 | U77: 0 | V77: 0 | W77: 0 | X77: 0 | Y77: 0 | Z77: 0 | AA77: 0 | AB77: 0 | AC77: 0 | AD77: 0 | AE77: 0 | AF77: 0 | AG77: 0 | AH77: =SUM(AH71:AH76) -> 0
A78: RECOGNIZED LENDING COSTS | E78: =ROUND(E62+E65+E66+E70+E77,0) -> 0 | F78: =ROUND(F62+F65+F66+F70+F77,0) -> 0 | G78: =ROUND(G62+G65+G66+G70+G77,0) -> 0 | H78: =ROUND(H62+H65+H66+H70+H77,0) -> 0 | I78: =SUM(I62:I77) -> 0 | J78: =SUM(J62:J77) -> 0 | K78: =ROUND(K62+K65+K66+K70+K77,0) -> 0 | L78: 0 | M78: 0 | N78: 0 | O78: 0 | P78: 0 | Q78: 0 | R78: 0 | S78: 0 | T78: 0 | U78: 0 | V78: 0 | W78: 0 | X78: 0 | Y78: 0 | Z78: 0 | AA78: 0 | AB78: 0 | AC78: 0 | AD78: 0 | AE78: 0 | AF78: 0 | AG78: 0 | AH78: 0
A79: Entity Organizational and Legal | G79: =F79 -> 0 | H79: =F79-G79 -> 0 | I79: N/A | J79: N/A
A80: Syndicator Fees / Commissions | G80: 0 | H80: 0 | I80: N/A | J80: N/A
A81: Equity Bridge Loan Interest and Fees | G81: 0 | H81: 0 | I81: N/A | J81: N/A
A82: Tax Opinion and Entity Accounting | G82: 0 | H82: 0 | I82: N/A | J82: N/A
A83: CHFA Tax Credit Fee (8% Ann. Credit) | B83: Estimated Fee = | C83: =IF('LIHTC Calculation'!J47=0,0,ROUND('LIHTC Calculation'!J47*0.08,0)) -> 0 | D83: =IFERROR(F83/'LIHTC Calculation'!J47,0) -> 0 | G83: 0 | H83: 0 | I83: N/A | J83: N/A
A84: CHFA Tax Credit Application Fee (LIHTC, HTCC, Historic) | G84: 0 | H84: 0 | I84: N/A | J84: N/A
A85: Other | G85: 0 | H85: 0 | I85: N/A | J85: N/A
A86: ENTITY and SYNDICATION COSTS / OTHER | E86: =ROUND(SUM(E79:E85),0) -> 0 | F86: 0 | G86: =ROUND(SUM(G79:G85),0) -> 0 | H86: =ROUND(SUM(H79:H85),0) -> 0 | I86: 0 | J86: 0 | K86: 0 | L86: 0 | M86: 0 | N86: 0 | O86: 0 | P86: 0 | Q86: 0 | R86: 0 | S86: 0 | T86: 0 | U86: 0 | V86: 0 | W86: 0 | X86: 0 | Y86: 0 | Z86: 0 | AA86: 0 | AB86: =ROUND(SUM(AB79:AB85),0) -> 0 | AC86: 0 | AD86: 0 | AE86: 0 | AF86: 0 | AG86: =ROUND(SUM(AG79:AG85),0) -> 0 | AH86: 0
A87: CONSTRUCTION LOAN PAYDOWNS (if applicable) | E87: N/A | F87: N/A | I87: N/A | J87: N/A | K87: N/A
A88: TOTAL RESIDENTIAL USES | E88: =ROUND(E78+E86-E89,0) -> 0 | F88: 0 | G88: =ROUND(G78+G86-G89,0) -> 0 | H88: =ROUND(H78+H86-H89,0) -> 0 | I88: 0 | J88: 0 | K88: 0 | L88: =ROUND(L78+L86+L87-L89,0) -> 0 | M88: =ROUND(M78+M86+M87-M89,0) -> 0 | N88: 0 | O88: 0 | P88: 0 | Q88: 0 | R88: 0 | S88: 0 | T88: 0 | U88: 0 | V88: 0 | W88: 0 | X88: 0 | Y88: 0 | Z88: 0 | AA88: 0 | AB88: 0 | AC88: 0 | AD88: 0 | AE88: 0 | AF88: 0 | AG88: 0 | AH88: 0
A89: TOTAL COMMERCIAL USES | E89: =ROUND(E19+E20+E59,0) -> 0 | F89: =ROUND(F19+F20+F59,0) -> 0 | G89: =ROUND(G19+G20+G59,0) -> 0 | H89: =ROUND(H19+H20+H59,0) -> 0 | I89: 0 | J89: 0 | K89: =ROUND(K19+K20+K59,0) -> 0 | L89: 0 | M89: 0 | N89: 0 | O89: 0 | P89: 0 | Q89: 0 | R89: 0 | S89: 0 | T89: 0 | U89: 0 | V89: 0 | W89: 0 | X89: 0 | Y89: 0 | Z89: 0 | AA89: 0 | AB89: 0 | AC89: 0 | AD89: 0 | AE89: 0 | AF89: 0 | AG89: 0 | AH89: 0
A90: TOTAL DEVELOPMENT COST | E90: =E88+E89 -> 0 | F90: 0 | G90: =G88+G89 -> 0 | H90: =H88+H89 -> 0 | I90: 0 | J90: 0 | K90: 0 | L90: 0 | M90: 0 | N90: 0 | O90: 0 | P90: 0 | Q90: 0 | R90: 0 | S90: 0 | T90: 0 | U90: 0 | V90: 0 | W90: 0 | X90: 0 | Y90: 0 | Z90: 0 | AA90: 0 | AB90: =AB88+AB89 -> 0 | AC90: 0 | AD90: 0 | AE90: 0 | AF90: 0 | AG90: =AG88+AG89 -> 0 | AH90: 0
F92: =IF($F$90=0,"N/A",SUM(F34,F49:F52,F54:F55,F60,F79:F80,F82)/SUM(F90-(F65+F70+F77))) -> N/A | J92: 50% TEST CALC.
F93: Intermediary Costs % | J93: Bond Amount | K93: =MAX('Sources of Funds'!G29,'Sources of Funds'!I29) -> 0
J94: Aggregate Basis | K94: =K90 -> 0
J95: % of Aggregate Basis Financed with TEB | K95: =K93/K94 -> 
A100: Name & Title | D100: Date
A102: Company
A103: Official Use Only
D104: Budget Period: | F104: From: | J104: to:
F105: Revision #: | J105: Reason for Revision:

Sheet LIHTC Calculation
A2: Exhibit 6.4 - LIHTC CALCULATION
A5: DEVELOPMENT NAME | D5: =Application!D113 -> 0 | G5: APPLICANT | H5: =Application!D10 -> 0
A7: NON-LIHTC SOURCES
A9: Debt Sources | F9: Equity Sources
A10: ='Sources of Funds'!B29&" "&'Sources of Funds'!C29 -> CHFA Loan Taxable Bonds | D10: ='Sources of Funds'!I29 -> 0 | F10: ='Sources of Funds'!A10 -> DOH Grant Funding | J10: ='Sources of Funds'!I10 -> 0
A11: ='Sources of Funds'!B30&" "&'Sources of Funds'!C30 -> CHFA Loan - Non-Bond Proceeds [Specify] | D11: ='Sources of Funds'!I30 -> 0 | F11: ='Sources of Funds'!B11&" "&'Sources of Funds'!C11 -> CDBG Grant Funds: [Specify] | J11: ='Sources of Funds'!I11 -> 0
A12: ='Sources of Funds'!A31:C31 -> DOH Loan Funding | D12: ='Sources of Funds'!I31 -> 0 | F12: ='Sources of Funds'!B12&" "&'Sources of Funds'!C12 -> Other Public Funds: [Specify] | J12: ='Sources of Funds'!I12 -> 0
A13: ='Sources of Funds'!B32&" "&'Sources of Funds'!C32 -> CDBG Loan Funds: [Specify] | D13: ='Sources of Funds'!I32 -> 0 | F13: ='Sources of Funds'!A14 -> Federal Historic Tax Credit Net Proceeds | J13: ='Sources of Funds'!I14 -> 0
A14: ='Sources of Funds'!B33&" "&'Sources of Funds'!C33 -> Other Public Funds: [Specify] | D14: ='Sources of Funds'!I33 -> 0 | F14: ='Sources of Funds'!A15 -> State Historic Tax Credit Net Proceeds | J14: ='Sources of Funds'!I15 -> 0
A15: ='Sources of Funds'!A34:C34 -> Deferred Developer Fee | D15: ='Sources of Funds'!I34 -> 0 | F15: ='Sources of Funds'!A16 -> CT Housing Tax Credit Contribution (HTCC) Proceeds | J15: ='Sources of Funds'!I16 -> 0
A16: ='Sources of Funds'!B35&" "&ImpOtherAmortizingDebt1Specify -> Other Amortizing Debt [Specify] | D16: ='Sources of Funds'!I35 -> 0 | F16: ='Sources of Funds'!A17 -> Developer / Investor Cash Equity | J16: ='Sources of Funds'!I17 -> 0
A17: ='Sources of Funds'!B36&" "&ImpOtherAmortizingDebt2Specify -> Other Amortizing Debt [Specify] | D17: ='Sources of Funds'!I36 -> 0 | F17: ='Sources of Funds'!A18 -> Homeownership Sales Proceeds | J17: ='Sources of Funds'!I18 -> 0
A18: ='Sources of Funds'!A37 -> Existing Debt | D18: ='Sources of Funds'!I37 -> 0 | F18: ='Sources of Funds'!A19 -> Energy Rebates* | J18: ='Sources of Funds'!I19 -> 0
A19: ='Sources of Funds'!A38 -> GP Loan | D19: ='Sources of Funds'!I38 -> 0 | F19: ='Sources of Funds'!A20 -> Existing Property Reserves | J19: ='Sources of Funds'!I20 -> 0
A20: ='Sources of Funds'!A23 -> Sub-Total | D20: =SUM(D10:D19) -> 0 | F20: ='Sources of Funds'!B21&" "&'Sources of Funds'!C21 -> Other [Specify] | J20: ='Sources of Funds'!I21 -> 0
F21: ='Sources of Funds'!B22&" "&'Sources of Funds'!C22 -> Other [Specify] | J21: ='Sources of Funds'!I22 -> 0
F22: ='Sources of Funds'!A39 -> Sub-Total | J22: =SUM(J10:J21) -> 0
A23: Total Non-LIHTC Sources | D23: =D20+J22 -> 0
A25: CREDIT CALCULATION
H27: New / Rehab | I27: Acquisition
G28: Credit NPV of AFR % = | H28: ='Sources of Funds'!B13/100 -> 0.04 | I28: 0.04 | J28: TOTALS
F30: TAX CREDIT ELIGIBLE BASIS | H30: =DEVBGT!I88 -> 0 | I30: =DEVBGT!J88 -> 0 | J30: =SUM(H30:I30) -> 0
F31: LESS: BASIS ADJUSTMENTS | H31: =-SUM(H32:H37) -> 0
B32: Total Gross Square Footage | C32: =SUM('Rental Income Calc Worksheet'!V31:V49) -> 0 | G32: Federal Grants for Qualifying Devel. Costs | I32: N/A | J32: =SUM(H32:I32) -> 0
G33: Non-Qualified Non-Recourse Financing | I33: N/A | J33: 0
B34: Total Affordable Square Footage | C34: =IF('Rental Income Calc Worksheet'!$L$11="Yes",SUMIF('Rental Income Calc Worksheet'!B31:B49,"<=80%",'Rental Income Calc Worksheet'!V31:V49),SUMIF('Rental Income Calc Worksheet'!B31:B49,"<=60%",'Rental Income Calc Worksheet'!V31:V49)) -> 0 | G34: Non-Qualifying units of higher quality | I34: N/A | J34: 0
G35: Non-Qual. excess portion of higher qual. units | I35: N/A | J35: 0
G36: Fed. Historic Tax Credits Basis (Resid. Portion) | I36: N/A | J36: 0
G37: Other | I37: N/A | J37: 0
G38: PLUS: QCT / DDA INCREMENT | H38: =IF(Application!$J$166="Yes",+ROUND((H30+H31)*0.3,0),"n/a") -> n/a | I38: N/A | J38: =H38 -> n/a
G39: ADJUSTED ELIGIBLE BASIS | H39: =IF(H38="n/a",H30+H31,H30+H31+H38) -> 0 | I39: =I30 -> 0 | J39: =SUM(H39:I39) -> 0
G40: X the Applicable Fraction (%) | H40: =IF('Rental Income Calc Worksheet'!$L$11="Yes",IFERROR(MIN('Rental Income Calc Worksheet'!$C$52/'Rental Income Calc Worksheet'!$D$50,(C34/C32)),0),IFERROR(MIN('Rental Income Calc Worksheet'!$C$52/'Rental Income Calc Worksheet'!$D$50,(C34/C32)),0)) -> 0 | I40: =H40 -> 0
G41: TOTAL QUALIFIED BASIS | H41: =ROUND(H39*H40,0) -> 0 | I41: =ROUND(I39*I40,0) -> 0 | J41: =SUM(H41:I41) -> 0
G42: ELIGIBLE Credit from QUALIFIED BASIS | H42: =ROUND(H41*H28,0) -> 0 | I42: =ROUND(I41*I28,0) -> 0 | J42: =SUM(H42:I42) -> 0
I44: LIHTC EQUITY GAP > | J44: =D23-DEVBGT!F90 -> 0
I45: ALLOWABLE Credit from GAP ANALYSIS > | J45: =IF(OR(J41=0,J44>0),0,ROUND((($J44*-1)/$J49)/10,0)) -> 0
I47: MAX. ANNUAL CREDIT AMOUNT (a) | J47: =IF($J41=0,0,IF(J42>$J45,$J45,$J42)) -> 0
I48: Annual Credits Per Qualified Unit | J48: =IFERROR(J47/'Rental Income Calc Worksheet'!C52,0) -> 0
I49: Equity Raise ($ Yield / $1.00) | J49: 0
I50: ESTIM. LIHTC NET PROCEEDS | J50: =IF($J47=0,0,ROUND(($J47*10)*J49,0)) -> 0
I52: Overall Funding GAP | J52: =(D23+J50)-DEVBGT!F88 -> 0
A59: POST- CREDIT RESERVATION STATUS
A60: [ Credit Investor Contact Information: Name, Address, Principal Contact ]
A62: LIHTCs | D62: Max. Annual
D63: New Construction or | E63: Max. Annual
A64: Reservation Date | C64: Credit Year/s | D64: Rehabilitation Credits | F64: Acquisition Credits | H64: Reserved Amount/s
C66: 2008 | D66: 0 | F66: 0 | H66: =SUM(D66:F66) -> 0
C68: 2009 | D68: 0 | F68: 0 | H68: =SUM(D68:F68) -> 0
D69: =SUM(D66:D68) -> 0 | F69: =SUM(F66:F68) -> 0
I70: Credit Investor Term Sheet / Pricing Letter dated: [ INSERT DATE ]
H72: Max. Annual LIHTCs Available | I72: =+H66+H68 -> 0
H73: Investor / LP Ownership Interest % | I73: 0.9999
H74: Investor Credits | I74: =ROUND(I72*I73,0) -> 0
H75: x 10 Yrs. | I75: 10
H76: Total | I76: =I74*10 -> 0
H77: Net LIHTC Price ($ Yield / $1.00) | I77: 0.85
H78: NET LIHTC PROCEEDS | I78: =ROUND(I76*I77,0) -> 0
A80: HISTORIC CREDITS | H80: CREDITS AVAILABLE: | I80: 0
H81: Net Historic Credit Price ($Yield/$1.00) | I81: 0
H82: NET HISTORIC CREDIT PROCEEDS | I82: =ROUND(I80*I81,0) -> 0
H84: TOTAL EQUITY CAPITAL FROM TAX CREDITS | I84: =I78+I82 -> 0

Sheet Sources of Funds
W1: 1 | X1: =IF(COUNTIF('Sources of Funds'!$E$29:$E$38,W1)>=1,"",ROW()) -> 1 | Y1: =IF(ROW(W1)-ROW(W$1)+1>COUNT($X$1:$X$10),"",INDEX(W$1:W$10,SMALL($X$1:$X$10,1+ROW(W1)-ROW(W$1)))) -> 1
A2: Exhibit 6.5 - SOURCES OF FUNDS | W2: 2 | X2: =IF(COUNTIF('Sources of Funds'!$E$29:$E$38,W2)>=1,"",ROW()) -> 2 | Y2: 2
W3: 3 | X3: =IF(COUNTIF('Sources of Funds'!$E$29:$E$38,W3)>=1,"",ROW()) -> 3 | Y3: 3
W4: 4 | X4: =IF(COUNTIF('Sources of Funds'!$E$29:$E$38,W4)>=1,"",ROW()) -> 4 | Y4: 4
A5: DEVELOPMENT NAME | G5: =Application!D113 -> 0 | M5: APPLICANT | N5: =Application!D10 -> 0 | W5: 5 | X5: =IF(COUNTIF('Sources of Funds'!$E$29:$E$38,W5)>=1,"",ROW()) -> 5 | Y5: 5
W6: 6 | X6: =IF(COUNTIF('Sources of Funds'!$E$29:$E$38,W6)>=1,"",ROW()) -> 6 | Y6: 6
G7: Construction | I7: Permanent | J7: Construction | W7: 7 | X7: =IF(COUNTIF('Sources of Funds'!$E$29:$E$38,W7)>=1,"",ROW()) -> 7 | Y7: 7
A8: TAX CREDIT EQUITY, CAPITAL, GRANTS, Etc. | G8: Sources | I8: Sources | J8: Paydown | W8: 8 | X8: =IF(COUNTIF('Sources of Funds'!$E$29:$E$38,W8)>=1,"",ROW()) -> 8 | Y8: 8
W9: 9 | X9: =IF(COUNTIF('Sources of Funds'!$E$29:$E$38,W9)>=1,"",ROW()) -> 9 | Y9: =IF(ROW(W9)-ROW(W$1)+1>COUNT($X$1:$X$10),"",INDEX(W$1:W$10,SMALL($X$1:$X$10,1+ROW(W9)-ROW(W$1)))) -> 9
A10: DOH Grant Funding | J10: =I10-G10 -> 0 | W10: 10 | X10: =IF(COUNTIF('Sources of Funds'!$E$29:$E$38,W10)>=1,"",ROW()) -> 10 | Y10: =IF(ROW(W10)-ROW(W$1)+1>COUNT($X$1:$X$10),"",INDEX(W$1:W$10,SMALL($X$1:$X$10,1+ROW(W10)-ROW(W$1)))) -> 10
B11: CDBG Grant Funds: | C11: [Specify] | J11: 0
B12: Other Public Funds: | C12: [Specify] | J12: 0
B13: 4 | C13: % LIHTC Net Proceeds | I13: ='LIHTC Calculation'!J50 -> 0 | J13: 0 | W13: =IF(B13=9,G13,0) -> 0 | X13: =IF(B13=9,I13,0) -> 0
A14: Federal Historic Tax Credit Net Proceeds | J14: 0 | W14: =IF(B13=4,G13,0) -> 0 | X14: =IF(B13=4,I13,0) -> 0
A15: State Historic Tax Credit Net Proceeds | J15: 0
A16: CT Housing Tax Credit Contribution (HTCC) Proceeds | J16: 0
A17: Developer / Investor Cash Equity | J17: 0
A18: Homeownership Sales Proceeds | J18: 0
A19: Energy Rebates* | J19: 0
A20: Existing Property Reserves | J20: 0
B21: Other | C21: [Specify] | J21: 0
B22: Other | C22: [Specify] | J22: 0
A23: Sub-Total | G23: =SUM(G10:G22) -> 0 | I23: =SUM(I10:I22) -> 0 | J23: =SUM(J10:J22) -> 0
D25: Loan Priority | G25: Construction | I25: Permanent | J25: Construction | K25: Const. | L25: Perm. | M25: Perm. | N25: Fully | O25: Deferred | P25: Scheduled | Q25: Initial
G26: Sources | I26: Sources | J26: Paydown | K26: Interest | L26: Loan | M26: Interest | N26: Amortizing | O26: Payment | P26: Debt | Q26: Debt Service | R26: Financing Notes
A27: FINANCING [Sources w/ Notes and Mortgages ] | K27: Rate | L27: Amort. [Yrs.] | M27: Rate | N27: [Y] or [N] | O27: [Y] or [N] | P27: Service | Q27: Coverage | W27: Const Source | X27: Perm Source | Y27: Constr Rate | Z27: Perm Yrs | AA27: Perm Rate
B29: CHFA Loan | C29: Taxable Bonds | J29: =I29-G29 -> 0 | K29: 0 | L29: 30 | M29: 0.0497 | O29: N/A | P29: =IF(O29<>"Y",IF(I29=0,0,(PMT(M29/12,L29*12,I29*-1,0))*12),0) -> 0 | Q29: =IF(AND(I29>0,N29="Y"),'Cash Flow'!$G$30/SUMIFS($P$29:$P$38,$E$29:$E$38,"<="&E29),"N/A") -> N/A | R29: www.chfa.org | V29: Tax-Exempt Bonds | W29: =IF(C29="Tax-Exempt Bonds",G29,0) -> 0 | X29: =IF(C29="Tax-Exempt Bonds",I29,0) -> 0 | Y29: =IF(C29="Tax-Exempt Bonds",K29,0) -> 0 | Z29: =IF(C29="Tax-Exempt Bonds",L29,0) -> 0 | AA29: =IF(C29="Tax-Exempt Bonds",M29,0) -> 0
B30: CHFA Loan - Non-Bond Proceeds | C30: [Specify] | J30: 0 | O30: N/A | P30: =IF(O30<>"Y",IF(I30=0,0,(PMT(M30/12,L30*12,I30*-1,0))*12),0) -> 0 | Q30: =IF(AND(I30>0,N30="Y"),'Cash Flow'!$G$30/SUMIFS($P$29:$P$38,$E$29:$E$38,"<="&E30),"N/A") -> N/A | V30: Taxable Bonds | W30: =IF(C30="Tax-Exempt Bonds",G30,0) -> 0 | X30: =IF(C29="Taxable Bonds",I29,0) -> 0 | Y30: =IF(C29="Taxable Bonds",K29,0) -> 0 | Z30: =IF(C29="Taxable Bonds",L29,0) -> 30 | AA30: =IF(C29="Taxable Bonds",M29,0) -> 0.0497
A31: DOH Loan Funding | J31: 0 | N31: N | P31: 0 | Q31: =IF(AND(I31>0,N31="Y"),'Cash Flow'!$G$30/SUMIFS($P$29:$P$38,$E$29:$E$38,"<="&E31),"N/A") -> N/A
B32: CDBG Loan Funds: | C32: [Specify] | J32: 0 | P32: =IF(O32<>"Y",IF(I32=0,0,(PMT(M32/12,L32*12,I32*-1,0))*12),0) -> 0 | Q32: =IF(AND(I32>0,N32="Y"),'Cash Flow'!$G$30/SUMIFS($P$29:$P$38,$E$29:$E$38,"<="&E32),"N/A") -> N/A
B33: Other Public Funds: | C33: [Specify] | J33: 0 | P33: =IF(O33<>"Y",IF(I33=0,0,(PMT(M33/12,L33*12,I33*-1,0))*12),0) -> 0 | Q33: =IF(AND(I33>0,N33="Y"),'Cash Flow'!$G$30/SUMIFS($P$29:$P$38,$E$29:$E$38,"<="&E33),"N/A") -> N/A
A34: Deferred Developer Fee | J34: 0 | N34: N | P34: 0 | Q34: N/A
B35: Other Amortizing Debt | C35: [Specify] | J35: 0 | P35: =IF(O35<>"Y",IF(I35=0,0,(PMT(M35/12,L35*12,I35*-1,0))*12),0) -> 0 | Q35: =IF(AND(I35>0,N35="Y"),'Cash Flow'!$G$30/SUMIFS($P$29:$P$38,$E$29:$E$38,"<="&E35),"N/A") -> N/A
B36: Other Amortizing Debt | C36: [Specify] | J36: 0 | P36: =IF(O36<>"Y",IF(I36=0,0,(PMT(M36/12,L36*12,I36*-1,0))*12),0) -> 0 | Q36: =IF(AND(I36>0,N36="Y"),'Cash Flow'!$G$30/SUMIFS($P$29:$P$38,$E$29:$E$38,"<="&E36),"N/A") -> N/A
A37: Existing Debt | J37: 0 | P37: =IF(O37<>"Y",IF(I37=0,0,(PMT(M37/12,L37*12,I37*-1,0))*12),0) -> 0 | Q37: =IF(AND(I37>0,N37="Y"),'Cash Flow'!$G$30/SUMIFS($P$29:$P$38,$E$29:$E$38,"<="&E37),"N/A") -> N/A
A38: GP Loan | J38: 0 | P38: =IF(O38<>"Y",IF(I38=0,0,(PMT(M38/12,L38*12,I38*-1,0))*12),0) -> 0 | Q38: =IF(AND(I38>0,N38="Y"),'Cash Flow'!$G$30/SUMIFS($P$29:$P$38,$E$29:$E$38,"<="&E38),"N/A") -> N/A
A39: Sub-Total | G39: =SUM(G29:G38) -> 0 | I39: =SUM(I29:I38) -> 0 | J39: =SUM(J29:J38) -> 0 | O39: Total Scheduled Debt Service | P39: =SUM(P29:P38) -> 0
A41: TOTAL Sources | G41: =G23+G39 -> 0 | I41: =I23+I39 -> 0 | J41: =J23+J39 -> 0
A42: Total Commercial Cost (Dev. Budget) | G42: =DEVBGT!E89 -> 0 | I42: =DEVBGT!F89 -> 0 | L42: MAX Deferred Developer Fee | N42: Developer Fee Per Budget | P42: % of Total Developer Fee Deferred
A43: Total Development Budget | G43: =DEVBGT!E90 -> 0 | I43: =DEVBGT!F90 -> 0 | W43: Tax-Exempt Bonds
A44: Sources LESS Uses | G44: =G41-G43 -> 0 | I44: =I41-I43 -> 0 | L44: ='Cash Flow'!I98 -> 0 | N44: =DEVBGT!F65 -> 0 | P44: =IFERROR(L44/N44,0) -> 0 | W44: Taxable Bonds
A46: GRANTS: 3rd party sources for which no repayment is expected or required from other sources. Soft Debt: 3rd party sources secured by a mortgage and which may require partial or full repayment (with or without interest) are considered financing and should be scheduled under the FINANCING section above.
A47: Intra-Entity ( LP, LLC, etc.) loans to be repaid from approved Owner's Distributions are considered Developer / Investor Cash Equity.
A48: Deferred/Pledged Developer Fees ("DDF") are considered financing contributions. For transactions utilizing federal Low-Income Housing Tax Credits, the amount of the DDF will be limited to the amount that may be fully recovered by the mortgagor, without interest, from CHFA-approved annual distributions during the first fifteen (15) years of operations. CHFA, at its sole discretion, may approve a DDF for less than the permitted maximum.
A49: For construction / interim sources not fully converting to permanent sources, provide information on proposed permanent "paydown" source(s) including estimated paydown amount(s) and specific paydown terms and conditions as may be applicable.
A50: If the Permanent Interest Rate will vary throughout the repayment period, please contact CHFA and/or DOH with specific details to have forms revised
A51: *If there are questions on the Letter of Participation requirements, please contact the appropriate staff at Eversource or United Illuminating, per their respective websites.

Sheet Existing Debt
A2: Exhibit 6.6 - Existing Debt
A5: DEVELOPMENT NAME | B5: =Application!D113 -> 0 | C5: APPLICANT | D5: =Application!D10 -> 0
A7: Please describe the terms and conditions of all debt currently encumbering the property (including CHFA and/or DECD/DOH, if any). Please describe what, if any, revisions to such terms and conditions are contemplated by the Applicant. Please complete the corresponding table.
A8: Any applicant looking for consideration for prepayment, refinancing, or restructuring of existing CHFA debt should contact their CHFA Asset Manager immediately.
A10: Description of Existing Debt
A13: Loan 1 | C13: Current | D13: Proposed
A14: Mortgagee
A15: Lien Position
A16: Contemplated Action | D16: N/A
A17: Pay-off Source (If Applicable) | D17: N/A
A18: Original Principal Amount
A19: Fully Amortizing [Yes or No]
A20: Outstanding Principal Amount
A21: Accrued Interest Amount | D21: N/A
A22: Term - Number of Years Remaining
A23: Rate
A24: Annual Debt Service
A25: Status of Loan | D25: N/A
A26: Is Prepayment Allowed by Mortgagee [Yes or No]. If "Yes", please provide written consent from the Mortgagee. | D26: N/A
A27: Are there any additional fees associated with such prepayment [Yes or No]? If "Yes", please state the estimated amount of such costs. | D27: N/A
D28: N/A
A31: Loan 2 | C31: Current | D31: Proposed
A32: Mortgagee
A33: Lien Position
A34: Contemplated Action | D34: N/A
A35: Pay-off Source (If Applicable) | D35: N/A
A36: Original Principal Amount
A37: Fully Amortizing [Yes or No]
A38: Outstanding Principal Amount
A39: Accrued Interest Amount | D39: N/A
A40: Term - Number of Years Remaining
A41: Rate
A42: Annual Debt Service
A43: Status of Loan | D43: N/A
A44: Is Prepayment Allowed by Mortgagee [Yes or No]. If "Yes", please provide written consent from the Mortgagee. | D44: N/A
A45: Are there any additional fees associated with such prepayment [Yes or No]? If "Yes", please state the estimated amount of such costs. | D45: N/A
D46: N/A
A49: Loan 3 | C49: Current | D49: Proposed
A50: Mortgagee
A51: Lien Position
A52: Contemplated Action | D52: N/A
A53: Pay-off Source (If Applicable) | D53: N/A
A54: Original Principal Amount
A55: Fully Amortizing [Yes or No]
A56: Outstanding Principal Amount
A57: Accrued Interest Amount | D57: N/A
A58: Term - Number of Years Remaining
A59: Rate
A60: Annual Debt Service
A61: Status of Loan | D61: N/A
A62: Is Prepayment Allowed by Mortgagee [Yes or No]. If "Yes", please provide written consent from the Mortgagee. | D62: N/A
A63: Are there any additional fees associated with such prepayment [Yes or No]? If "Yes", please state the estimated amount of such costs. | D63: N/A
D64: N/A
A67: Loan 4 | C67: Current | D67: Proposed
A68: Mortgagee
A69: Lien Position
A70: Contemplated Action | D70: N/A
A71: Pay-off Source (If Applicable) | D71: N/A
A72: Original Principal Amount
A73: Fully Amortizing [Yes or No]
A74: Outstanding Principal Amount
A75: Accrued Interest Amount | D75: N/A
A76: Term - Number of Years Remaining
A77: Rate
A78: Annual Debt Service
A79: Status of Loan | D79: N/A
A80: Is Prepayment Allowed by Mortgagee [Yes or No]. If "Yes", please provide written consent from the Mortgagee. | D80: N/A
A81: Are there any additional fees associated with such prepayment [Yes or No]? If "Yes", please state the estimated amount of such costs. | D81: N/A
D82: N/A
A84: Total Annual Debt Service | B84: =SUM((IF(AND(C16<>"To Be Paid-Off",C19="Yes"),C24,0))+(IF(AND(C34<>"To Be Paid-Off",C37="Yes"),C42,0))+(IF(AND(C52<>"To Be Paid-Off",C55="Yes"),C60,0))+(IF(AND(C70<>"To Be Paid-Off",C73="Yes"),C78,0))) -> 0

Sheet HO Unit Descriptions
A2: Exhibit 7.1 - HOMEOWNERSHIP UNIT DESCRIPTIONS
B5: DEVELOPMENT NAME | C5: =Application!D113 -> 0 | H5: APPLICANT | I5: =Application!D10 -> 0
A7: Type of Unit* | B7: House Style Model (from HO Subsidy Wksht) | C7: Number of Units | D7: Sq. Footage of Unit Size | F7: Number of Bedrooms | G7: Number of Baths | H7: Lot Size (Sq. Foot) | I7: Expandability Potential (Sq. Foot) | J7: Energy Efficient | K7: Utilities Cost | L7: Sales Price By Model
A23: * Designate each unit as one or more of the following: MR: Market, SA: State Assisted, Other (Please Identify)
A25: Identify any energy efficient program | F25: Identify the Amenities that are included:
A26: Energy Efficiency Program | F26: Range | H26: Yes | I26: No
F27: Refrigerator | H27: Yes | I27: No
A28: Complete the following chart: | F28: Dishwasher | H28: Yes | I28: No
A29: Utilities | B29: Energy Source | F29: Garbage Disposal | H29: Yes | I29: No
A30: Heating | F30: Garage | H30: Yes | I30: No
A31: Hot Water | F31: Porch/Deck | H31: Yes | I31: No
A32: Cooking | F32: Basement | H32: Yes | I32: No
A33: Other: | F33: Other:

Sheet Homeownership Sales Proceeds
A2: Exhibit 7.2 - HOMEOWNERSHIP SALES PROCEEDS
B5: DEVELOPMENT NAME | C5: =Application!D113 -> 0 | F5: APPLICANT | G5: =Application!D10 -> 0
A7: SALES PROCEEDS
B9: HUD Metropolitan Area | F9: HUD AMI Year | I9: 2017 | M9: 0.25 | N9: 0
B10: Sales Proceeds from Land | F10: HUD Area Median Income | M10: 0.5 | N10: 1
B11: Number of Single Family Houses | E11: =SUM(D18:D22) -> 0 | F11: Sales Proceeds - Single Family Houses | I11: =SUMPRODUCT(D18:D22,F18:F22) -> 0 | M11: 0.6 | N11: 2
D12: Number of Multifamily Houses | E12: =COUNT(B34:B39) -> 0 | F12: Sales Proceeds - Multifamily Houses | I12: =SUM(E34:E39) -> 0 | M12: 0.8 | N12: 3
B13: Number of Rental Units in Multifamily Houses | E13: =COUNT(D65:D76) -> 0 | H13: Total Sales Proceeds (Land and Building) | I13: =SUM(I11:I12)+E10 -> 0 | M13: 1 | N13: 4
M14: 1.2 | N14: 5
A15: SINGLEFAMILY HOMEOWNERSHIP UNITS | M15: > 120%
B17: EXPECTED YEAR OF SALE | C17: TARGET HOMEOWNER AMI % | D17: NUMBER OF HOUSES | E17: NUMBER OF BEDROOMS | F17: PROPOSED SALE PRICE of UNIT | G17: CHFA SALES PRICE LIMIT | H17: DOH/HOME SALES PRICE LIMIT
A18: 1
A19: 2
A20: 3
A21: 4
A22: 5
B24: ESTIMATED CASH DOWN-PAYMENT AMOUNT | C24: ESTIMATED DOWNPAYMENT ASSISTANCE LOAN AMOUNT | D24: DOWNPAYMENT ASSITANCE LOAN INTEREST RATE | E24: ESTIMATED FIRST MORTGAGE LOAN AMOUNT | F24: FIRST MORTGAGE LOAN INTEREST RATE | G24: MONTHLY MORTGAGE AMOUNT | H24: ESTIMATED TAXES, INSURANCE AND/OR CONDO FEES | I24: PROPOSED MONTHLY COST (trended to Expected Year of Sale)* | J24: PROPOSED MONTHLY COST AS PERCENT OF INCOME
A25: 1 | G25: =-PMT(D25/12,30*12,C25,0)-PMT(F25/12,30*12,E25,0) -> 0 | I25: =-FV(3%,B18-$I$9,0,G25+H25) -> 0 | J25: =(I25*12)/($I$10*C18) -> 
A26: 2 | G26: =-PMT(D26/12,30*12,C26,0)-PMT(F26/12,30*12,E26,0) -> 0 | I26: =-FV(3%,B19-$I$9,0,G26+H26) -> 0 | J26: =(I26*12)/($I$10*C19) -> 
A27: 3 | G27: =-PMT(D27/12,30*12,C27,0)-PMT(F27/12,30*12,E27,0) -> 0 | I27: =-FV(3%,B20-$I$9,0,G27+H27) -> 0 | J27: =(I27*12)/($I$10*C20) -> 
A28: 4 | G28: =-PMT(D28/12,30*12,C28,0)-PMT(F28/12,30*12,E28,0) -> 0 | I28: =-FV(3%,B21-$I$9,0,G28+H28) -> 0 | J28: =(I28*12)/($I$10*C21) -> 
A29: 5 | G29: =-PMT(D29/12,30*12,C29,0)-PMT(F29/12,30*12,E29,0) -> 0 | I29: =-FV(3%,B22-$I$9,0,G29+H29) -> 0 | J29: =(I29*12)/($I$10*C22) -> 
A31: OWNER OCCUPIED MULTIFAMILY HOMEOWNERSHIP UNITS
A33: Address | B33: EXPECTED YEAR OF SALE | C33: NUMBER OF BEDROOMS IN HOMEOWNER UNIT | D33: TARGET HOMEOWNER AMI % | E33: PROPOSED SALE PRICE of HOUSE | F33: CHFA SALES PRICE LIMIT | G33: DOH SALES PRICE LIMIT | H33: ESTIMATED DOWNPAYMENT ASSISTANCE LOAN AMOUNT | I33: DOWNPAYMENT ASSISTANCE LOAN INTEREST RATE | J33: ESTIMATED FIRST MORTGAGE LOAN AMOUNT | K33: FIRST MORTGAGE LOAN INTEREST RATE
A34: Model 1
A35: Model 2
A36: Model 3
A37: Model 4
A38: Model 5
A39: Model 6
B41: MONTHLY MORTGAGE AMOUNT | C41: MONTHLY TAXES AND INSURANCE | D41: EXPECTED RENTAL INCOME (trended to Expected Year fo Sale) | E41: 75% of EXPECTED RENTAL INCOME | F41: PROPOSED MONTHLY COST (trended to Expected Year of Sale) | G41: PROPOSED MONTHLY COST AS PERCENT OF INCOME
A42: =A34 -> Model 1 | B42: =-PMT(I34/12,30*12,H34,0)-PMT(K34/12,30*12,J34,0) -> 0 | D42: =J65+J66 -> 0 | E42: =D42*75% -> 0 | F42: =-FV(3%,B34-$I$9,0,(B42+C42-E42)) -> 0 | G42: =F42*12/(D34*$I$10) -> 
A43: Model 2 | B43: 0 | D43: =J67+J68 -> 0 | E43: 0 | F43: 0
A44: Model 3 | B44: 0 | D44: =J69+J70 -> 0 | E44: 0 | F44: 0
A45: Model 4 | B45: 0 | D45: =J71+J72 -> 0 | E45: 0 | F45: 0
A46: Model 5 | B46: 0 | D46: =J73+J74 -> 0 | E46: 0 | F46: 0
A47: Model 6 | B47: 0 | D47: =J75+J76 -> 0 | E47: 0 | F47: 0
A49: RENTAL INCOME to MULTIFAMILY OWNER
A51: Utility Allowance
B53: "X" all that Apply | E53: Enter Tenant Paid Utility Allowance for the HUD AMI Year for all that Apply
B54: Energy Source (ie: gas, electric) | C54: Owner Paid | D54: Tenant Paid | E54: 0BR | F54: 1BR | G54: 2BR | H54: 3BR | I54: 4BR+
A55: Heating
A56: Hot Water
A57: Cooking
A58: Lighting
A59: Air Cond.
A60: Other
A61: Total | E61: =SUM(E55:E60) -> 0 | F61: =SUM(F55:F60) -> 0 | G61: =SUM(G55:G60) -> 0 | H61: =SUM(H55:H60) -> 0 | I61: =SUM(I55:I60) -> 0
B62: Source of Utility Calculation:
B64: TARGET RENTAL AMI % | C64: NUMBER OF BEDROOMS | D64: GROSS PROPOSED TENANT PAID RENT | E64: MAXIMUM ALLOWABLE GROSS RENT | F64: GROSS RENT TRENDED TO EXPECTED YEAR OF SALE | G64: UTILITY ALLOWANCE TRENDED TO EXPECTED YEAR OF SALE | H64: NET TENANT PAID RENT TRENDED TO EXPECTED YEAR OF SALE | I64: ESTIMATED MONTHLY RENTAL SUBSIDY per UNIT | J64: EXPECTED RENTAL INCOME (trended to Expected Year of Sale)
A65: =CONCATENATE(A34,"- Rental Unit 1") -> Model 1- Rental Unit 1 | F65: =-FV(2%,B34-$I$9,0,MIN(D65,E65),0) -> 0 | G65: =-FV(5%,B34-$I$9,0,IF(C65="",0,IF(C65=0,$E$61,IF(C65=1,$F$61,IF(C65=2,$G$61,IF(C65=3,$H$61,IF(C65=4,$I$61)))))),0) -> 0 | H65: =F65-G65 -> 0 | J65: =H65+I65 -> 0
A66: =CONCATENATE(A34,"- Rental Unit 2") -> Model 1- Rental Unit 2 | F66: =-FV(2%,B34-$I$9,0,MIN(D66,E66),0) -> 0 | G66: =-FV(5%,B34-$I$9,0,IF(C66="",0,IF(C66=0,$E$61,IF(C66=1,$F$61,IF(C66=2,$G$61,IF(C66=3,$H$61,IF(C66=4,$I$61)))))),0) -> 0 | H66: =F66-G66 -> 0 | J66: =H66+I66 -> 0
A67: =CONCATENATE(A35,"- Rental Unit 1") -> Model 2- Rental Unit 1 | F67: =-FV(2%,B35-$I$9,0,MIN(D67,E67),0) -> 0 | G67: =-FV(5%,B35-$I$9,0,IF(C67="",0,IF(C67=0,$E$61,IF(C67=1,$F$61,IF(C67=2,$G$61,IF(C67=3,$H$61,IF(C67=4,$I$61)))))),0) -> 0 | H67: 0 | J67: 0
A68: =CONCATENATE(A35,"- Rental Unit 2") -> Model 2- Rental Unit 2 | F68: =-FV(2%,B35-$I$9,0,MIN(D68,E68),0) -> 0 | G68: =-FV(5%,B35-$I$9,0,IF(C68="",0,IF(C68=0,$E$61,IF(C68=1,$F$61,IF(C68=2,$G$61,IF(C68=3,$H$61,IF(C68=4,$I$61)))))),0) -> 0 | H68: 0 | J68: 0
A69: =CONCATENATE(A36,"- Rental Unit 1") -> Model 3- Rental Unit 1 | F69: =-FV(2%,B36-$I$9,0,MIN(D69,E69),0) -> 0 | G69: =-FV(5%,B36-$I$9,0,IF(C69="",0,IF(C69=0,$E$61,IF(C69=1,$F$61,IF(C69=2,$G$61,IF(C69=3,$H$61,IF(C69=4,$I$61)))))),0) -> 0 | H69: 0 | J69: 0
A70: =CONCATENATE(A36,"- Rental Unit 2") -> Model 3- Rental Unit 2 | F70: =-FV(2%,B36-$I$9,0,MIN(D70,E70),0) -> 0 | G70: =-FV(5%,B36-$I$9,0,IF(C70="",0,IF(C70=0,$E$61,IF(C70=1,$F$61,IF(C70=2,$G$61,IF(C70=3,$H$61,IF(C70=4,$I$61)))))),0) -> 0 | H70: 0 | J70: 0
A71: =CONCATENATE(A37,"- Rental Unit 1") -> Model 4- Rental Unit 1 | F71: =-FV(2%,B37-$I$9,0,MIN(D71,E71),0) -> 0 | G71: =-FV(5%,B37-$I$9,0,IF(C71="",0,IF(C71=0,$E$61,IF(C71=1,$F$61,IF(C71=2,$G$61,IF(C71=3,$H$61,IF(C71=4,$I$61)))))),0) -> 0 | H71: 0 | J71: 0
A72: =CONCATENATE(A37,"- Rental Unit 2") -> Model 4- Rental Unit 2 | F72: =-FV(2%,B37-$I$9,0,MIN(D72,E72),0) -> 0 | G72: =-FV(5%,B37-$I$9,0,IF(C72="",0,IF(C72=0,$E$61,IF(C72=1,$F$61,IF(C72=2,$G$61,IF(C72=3,$H$61,IF(C72=4,$I$61)))))),0) -> 0 | H72: 0 | J72: 0
A73: =CONCATENATE(A38,"- Rental Unit 1") -> Model 5- Rental Unit 1 | F73: =-FV(2%,B38-$I$9,0,MIN(D73,E73),0) -> 0 | G73: =-FV(5%,B38-$I$9,0,IF(C73="",0,IF(C73=0,$E$61,IF(C73=1,$F$61,IF(C73=2,$G$61,IF(C73=3,$H$61,IF(C73=4,$I$61)))))),0) -> 0 | H73: 0 | J73: 0
A74: =CONCATENATE(A38,"- Rental Unit 2") -> Model 5- Rental Unit 2 | F74: =-FV(2%,B38-$I$9,0,MIN(D74,E74),0) -> 0 | G74: =-FV(5%,B38-$I$9,0,IF(C74="",0,IF(C74=0,$E$61,IF(C74=1,$F$61,IF(C74=2,$G$61,IF(C74=3,$H$61,IF(C74=4,$I$61)))))),0) -> 0 | H74: 0 | J74: 0
A75: =CONCATENATE(A39,"- Rental Unit 1") -> Model 6- Rental Unit 1 | F75: =-FV(2%,B39-$I$9,0,MIN(D75,E75),0) -> 0 | G75: =-FV(5%,B39-$I$9,0,IF(C75="",0,IF(C75=0,$E$61,IF(C75=1,$F$61,IF(C75=2,$G$61,IF(C75=3,$H$61,IF(C75=4,$I$61)))))),0) -> 0 | H75: 0 | J75: 0
A76: =CONCATENATE(A39,"- Rental Unit 2") -> Model 6- Rental Unit 2 | F76: =-FV(2%,B39-$I$9,0,MIN(D76,E76),0) -> 0 | G76: =-FV(5%,B39-$I$9,0,IF(C76="",0,IF(C76=0,$E$61,IF(C76=1,$F$61,IF(C76=2,$G$61,IF(C76=3,$H$61,IF(C76=4,$I$61)))))),0) -> 0 | H76: 0 | J76: 0

Sheet HO Subsidy Worksheet
A2: Exhibit 7.3.a - HOMEOWNERSHIP SUBSIDY WORKSHEET
A5: DEVELOPMENT NAME | B5: =Application!D113 -> 0 | E5: APPLICANT | F5: =Application!D10 -> 0
C8: Model 1 | D8: Model 2 | E8: Model 3 | F8: Model 4 | G8: Model 5 | H8: Model 6 | L8: AMI 60%
L9: AMI 80%
A10: Determining Per Unit - Developer's Subsidy | L10: AMI 100%
A11: Total Development Cost | L11: AMI 120%
A12: Fair Market Value
A13: Developer's Subsidy (Per Unit) | C13: =C11-C12 -> 0 | D13: 0 | E13: 0 | F13: 0 | G13: 0 | H13: 0 | L13: 3
A14: Determining Project - Developer's Subsidy
A15: Developer's Subsidy (Per Unit) | C15: =C13 -> 0 | D15: 0 | E15: 0 | F15: 0 | G15: 0 | H15: 0
A16: Number of DOH Units
A17: Developer's Subsidy (Per Model) | C17: =C15*C16 -> 0 | D17: 0 | E17: 0 | F17: 0 | G17: 0 | H17: 0
A18: Total Developer's Subsidy | H18: =SUM(C17:H17) -> 0
A20: Determining Per Unit - Homebuyer's Subsidy
A21: Fair Market Value (Sales Price) (Per Unit) | C21: =C12 -> 0 | D21: 0 | E21: 0 | F21: 0 | G21: 0 | H21: 0
A22: Affordable Price (Per Unit)*
A23: Homebuyer's Subsidy (Per Unit) | C23: =C21-C22 -> 0 | D23: 0 | E23: 0 | F23: 0 | G23: 0 | H23: 0
A24: Number of DOH Units
A25: Homebuyer's Subsidy (Per Model) | C25: =SUM(C23*C24) -> 0 | D25: 0 | E25: 0 | F25: 0 | G25: 0 | H25: 0
A26: Total Homebuyer's Subsidy | H26: =SUM(C25:H25) -> 0
A28: Total Developer's Subsidy | H28: =H18 -> 0
A29: Total Homebuyer's Subsidy | H29: =H26 -> 0
A30: Other Subsidy Sources from Sources of Funds
A31: Total DOH Subsidy to Project | H31: =H28+H29-H30 -> 0
A33: *Estimate only. The actual amount is based on the income of the family buying the unit.

Sheet HO Cash Flow
A2: Exhibit 7.3.b - DEVELOPMENT CASH FLOW ANALYSIS FOR SINGLE FAMILY HOUSING PROJECTS
A5: DEVELOPMENT NAME | D5: =Application!D113 -> 0 | K5: APPLICANT | L5: =Application!D10 -> 0
G7: CONSTRUCTION LOAN INFORMATION
G8: AMOUNT | H8: TERM | I8: ANNUAL RATE
A11: MONTH | D11: 1 | E11: 2 | F11: 3 | G11: 4 | H11: 5 | I11: 6 | J11: 7 | K11: 8 | L11: 9 | M11: 10 | N11: 11 | O11: 12 | P11: 13 | Q11: 14 | R11: 15 | S11: 16 | T11: 17 | U11: 18 | V11: 19 | W11: 20 | X11: 21 | Y11: 22 | Z11: 23 | AA11: 24 | AB11: 25 | AC11: 26 | AD11: 27 | AE11: 28 | AF11: 29 | AG11: 30 | AH11: 31 | AI11: 32 | AJ11: 33 | AK11: 34 | AL11: 35 | AM11: 36 | AN11: 37 | AO11: 38 | AP11: 39 | AQ11: 40
A12: NUMBER OF HOUSING STARTS | B12: Dev Budget | C12: Cumulative
A13: PROJECT EXPENSES
A14: CONSTRUCTION | B14: =DEVBGT!F18 -> 0 | C14: =SUM(D14:AQ14) -> 0
A15: CONSTRUCTION CONTINGENCY | B15: =SUM(DEVBGT!F21:F24) -> 0 | C15: =SUM(D15:AQ15) -> 0
A16: ARCH. & ENGINEERING | B16: =DEVBGT!F34 -> 0 | C16: 0
A17: FINANCE AND INTERIM | B17: =DEVBGT!F48 -> 0 | C17: 0
A18: SOFT COSTS | B18: =DEVBGT!F61 -> 0 | C18: 0
A19: DEVELOPER ALLOWANCE/FEE | B19: =ImpDevBudgetPermDeveloperAllowanceFee -> 0 | C19: 0
A20: LAND ACQUISITION | B20: =ImpDevBudgetPermLandCost+ImpDevBudgetPermExistingBuildings -> 0 | C20: 0
A21: TOTAL MONTHLY PROJECT EXPENSES | D21: =SUM(D14:D20) -> 0 | E21: 0 | F21: 0 | G21: 0 | H21: 0 | I21: 0 | J21: 0 | K21: 0 | L21: 0 | M21: 0 | N21: 0 | O21: 0 | P21: 0 | Q21: 0 | R21: 0 | S21: 0 | T21: 0 | U21: 0 | V21: 0 | W21: 0 | X21: 0 | Y21: 0 | Z21: 0 | AA21: 0 | AB21: 0 | AC21: 0 | AD21: 0 | AE21: 0 | AF21: 0 | AG21: 0 | AH21: 0 | AI21: 0 | AJ21: 0 | AK21: 0 | AL21: 0 | AM21: 0 | AN21: 0 | AO21: 0 | AP21: 0 | AQ21: 0
A22: CUMULATIVE PROJECT EXPENSES | D22: =D21 -> 0 | E22: =D22+E21 -> 0 | F22: 0 | G22: 0 | H22: 0 | I22: 0 | J22: 0 | K22: 0 | L22: 0 | M22: 0 | N22: 0 | O22: 0 | P22: 0 | Q22: 0 | R22: 0 | S22: 0 | T22: 0 | U22: 0 | V22: 0 | W22: 0 | X22: 0 | Y22: 0 | Z22: 0 | AA22: 0 | AB22: 0 | AC22: 0 | AD22: 0 | AE22: 0 | AF22: 0 | AG22: 0 | AH22: 0 | AI22: 0 | AJ22: 0 | AK22: 0 | AL22: 0 | AM22: 0 | AN22: 0 | AO22: 0 | AP22: 0 | AQ22: 0
A23: NUMBER OF HOME CLOSINGS | B23: =SUM(Application!G186+Application!G182) -> 0 | C23: =SUM(D23:U23) -> 0
A24: PROJECT REVENUE | D24: Cost of Sales | E24: 0
A25: SALES | D25: 0
A26: LESS COST OF SALES | D26: 0
A27: NET MONTHLY PROJECT REVENUE | D27: =D25-D26 -> 0 | E27: 0 | F27: 0 | G27: 0 | H27: 0 | I27: 0 | J27: 0 | K27: 0 | L27: 0 | M27: 0 | N27: 0 | O27: 0 | P27: 0 | Q27: 0 | R27: 0 | S27: 0 | T27: 0 | U27: 0 | V27: =V25-V26 -> 0 | W27: 0 | X27: 0 | Y27: 0 | Z27: 0 | AA27: 0 | AB27: 0 | AC27: 0 | AD27: 0 | AE27: 0 | AF27: 0 | AG27: 0 | AH27: 0 | AI27: 0 | AJ27: 0 | AK27: 0 | AL27: 0 | AM27: 0 | AN27: 0 | AO27: 0 | AP27: 0 | AQ27: 0
A28: CASH FLOW
A29: NET MONTHLY PROJECT REVENUE | D29: =D27 -> 0 | E29: 0 | F29: 0 | G29: 0 | H29: 0 | I29: 0 | J29: 0 | K29: 0 | L29: 0 | M29: 0 | N29: 0 | O29: 0 | P29: 0 | Q29: 0 | R29: 0 | S29: 0 | T29: 0 | U29: 0 | V29: =V27 -> 0 | W29: 0 | X29: 0 | Y29: 0 | Z29: 0 | AA29: 0 | AB29: 0 | AC29: 0 | AD29: 0 | AE29: 0 | AF29: 0 | AG29: 0 | AH29: 0 | AI29: 0 | AJ29: 0 | AK29: 0 | AL29: 0 | AM29: 0 | AN29: 0 | AO29: 0 | AP29: 0 | AQ29: 0
A30: LESS TOTAL MONTHLY PROJ. EXPEN. | D30: =D21 -> 0 | E30: 0 | F30: 0 | G30: 0 | H30: 0 | I30: 0 | J30: 0 | K30: 0 | L30: 0 | M30: 0 | N30: 0 | O30: 0 | P30: 0 | Q30: 0 | R30: 0 | S30: 0 | T30: 0 | U30: 0 | V30: =V21 -> 0 | W30: 0 | X30: 0 | Y30: 0 | Z30: 0 | AA30: 0 | AB30: 0 | AC30: 0 | AD30: 0 | AE30: 0 | AF30: 0 | AG30: 0 | AH30: 0 | AI30: 0 | AJ30: 0 | AK30: 0 | AL30: 0 | AM30: 0 | AN30: 0 | AO30: 0 | AP30: 0 | AQ30: 0
A31: CASH FLOW + ( - ) | D31: =D29-D30 -> 0 | E31: 0 | F31: 0 | G31: 0 | H31: 0 | I31: 0 | J31: 0 | K31: 0 | L31: 0 | M31: 0 | N31: 0 | O31: 0 | P31: 0 | Q31: 0 | R31: 0 | S31: 0 | T31: 0 | U31: 0 | V31: =V29-V30 -> 0 | W31: 0 | X31: 0 | Y31: 0 | Z31: 0 | AA31: 0 | AB31: 0 | AC31: 0 | AD31: 0 | AE31: 0 | AF31: 0 | AG31: 0 | AH31: 0 | AI31: 0 | AJ31: 0 | AK31: 0 | AL31: 0 | AM31: 0 | AN31: 0 | AO31: 0 | AP31: 0 | AQ31: 0
A32: USES OF CASH FLOW
A33: DEBT REPAYMENT | D33: =IF(AND(D31>0,D31<(D46+D48)),D31,IF(AND(D31>0,D31>=(D46+D48)),D46+D48,0)) -> 0 | E33: =IF(AND(E31>0,E31<(E46+E48)),E31,IF(AND(E31>0,E31>=(E46+E48)),E46+E48,0)) -> 0 | F33: 0 | G33: 0 | H33: 0 | I33: 0 | J33: 0 | K33: 0 | L33: 0 | M33: 0 | N33: 0 | O33: 0 | P33: 0 | Q33: 0 | R33: 0 | S33: 0 | T33: 0 | U33: 0 | V33: 0 | W33: 0 | X33: 0 | Y33: 0 | Z33: 0 | AA33: 0 | AB33: 0 | AC33: 0 | AD33: 0 | AE33: 0 | AF33: 0 | AG33: 0 | AH33: 0 | AI33: 0 | AJ33: 0 | AK33: 0 | AL33: 0 | AM33: 0 | AN33: 0 | AO33: 0 | AP33: 0 | AQ33: 0
A34: EQUITY REPAYMENT | D34: =IF(AND((D51+D53)>0,D31-D33>(D51+D53)),D51+D53,IF(AND(D31>0,(D51+D53)>0),D31-D33,0)) -> 0 | E34: 0 | F34: 0 | G34: 0 | H34: 0 | I34: 0 | J34: 0 | K34: 0 | L34: 0 | M34: 0 | N34: 0 | O34: 0 | P34: 0 | Q34: 0 | R34: 0 | S34: 0 | T34: 0 | U34: 0 | V34: 0 | W34: 0 | X34: 0 | Y34: 0 | Z34: 0 | AA34: 0 | AB34: 0 | AC34: 0 | AD34: 0 | AE34: 0 | AF34: 0 | AG34: 0 | AH34: 0 | AI34: 0 | AJ34: 0 | AK34: 0 | AL34: 0 | AM34: 0 | AN34: 0 | AO34: 0 | AP34: 0 | AQ34: 0
A35: DOH FUNDING REPAYMENT | D35: =IF(AND((D56+D58)>0,D31-D33-D34>(D56+D58)),D56+D58,IF(AND(D31>0,(D56+D58)>0),D31-D33-D34,0)) -> 0 | E35: =IF(AND((E56+E58)>0,E31-E33-E34>(E56+E58)),E56+E58,IF(AND(E31>0,(E56+E58)>0),E31-E33-E34,0)) -> 0 | F35: 0 | G35: 0 | H35: 0 | I35: 0 | J35: 0 | K35: 0 | L35: 0 | M35: 0 | N35: 0 | O35: 0 | P35: 0 | Q35: 0 | R35: 0 | S35: 0 | T35: 0 | U35: 0 | V35: 0 | W35: 0 | X35: 0 | Y35: 0 | Z35: 0 | AA35: 0 | AB35: 0 | AC35: 0 | AD35: 0 | AE35: 0 | AF35: 0 | AG35: 0 | AH35: 0 | AI35: 0 | AJ35: 0 | AK35: 0 | AL35: 0 | AM35: 0 | AN35: 0 | AO35: 0 | AP35: 0 | AQ35: 0
A36: OTHER SOURCES REPAYMENT | D36: =IF(AND((D61+D63)>0,D31-D33-D34-D35>(D61+D63)),D61+D63,IF(AND(D31>0,(D61+D63)>0),D31-D33-D34-D35,0)) -> 0 | E36: =IF(AND((E61+E63)>0,E31-E33-E34-E35>(E61+E63)),E61+E63,IF(AND(E31>0,(E61+E63)>0),E31-E33-E34-E35,0)) -> 0 | F36: 0 | G36: 0 | H36: 0 | I36: 0 | J36: 0 | K36: 0 | L36: 0 | M36: 0 | N36: 0 | O36: 0 | P36: 0 | Q36: 0 | R36: 0 | S36: 0 | T36: 0 | U36: 0 | V36: 0 | W36: 0 | X36: 0 | Y36: 0 | Z36: 0 | AA36: 0 | AB36: 0 | AC36: 0 | AD36: 0 | AE36: 0 | AF36: 0 | AG36: 0 | AH36: 0 | AI36: 0 | AJ36: 0 | AK36: 0 | AL36: 0 | AM36: 0 | AN36: 0 | AO36: 0 | AP36: 0 | AQ36: 0
A37: TOTAL USES OF MONTHLY CASH FLOW | D37: =SUM(D33:D36) -> 0 | E37: 0 | F37: 0 | G37: 0 | H37: 0 | I37: 0 | J37: 0 | K37: 0 | L37: 0 | M37: 0 | N37: 0 | O37: 0 | P37: 0 | Q37: 0 | R37: 0 | S37: 0 | T37: 0 | U37: 0 | V37: =SUM(V33:V36) -> 0 | W37: 0 | X37: 0 | Y37: 0 | Z37: 0 | AA37: 0 | AB37: 0 | AC37: 0 | AD37: 0 | AE37: 0 | AF37: 0 | AG37: 0 | AH37: 0 | AI37: 0 | AJ37: 0 | AK37: 0 | AL37: 0 | AM37: 0 | AN37: 0 | AO37: 0 | AP37: 0 | AQ37: 0
A38: SOURCES OF INVESTMENT
A39: DEBT
A40: + OWNER EQUITY
A41: + DOH FUNDING
A42: + OTHER SOURCES INVESTED
A43: TOTAL SOURCES OF MONTHLY INVEST. | D43: =SUM(D39:D42) -> 0 | E43: =SUM(E39:E41) -> 0 | F43: 0 | G43: 0 | H43: 0 | I43: 0 | J43: 0 | K43: 0 | L43: 0 | M43: 0 | N43: 0 | O43: 0 | P43: 0 | Q43: 0 | R43: 0 | S43: 0 | T43: 0 | U43: 0 | V43: 0 | W43: 0 | X43: 0 | Y43: 0 | Z43: 0 | AA43: 0 | AB43: 0 | AC43: 0 | AD43: 0 | AE43: 0 | AF43: 0 | AG43: 0 | AH43: 0 | AI43: 0 | AJ43: 0 | AK43: 0 | AL43: 0 | AM43: 0 | AN43: 0 | AO43: 0 | AP43: 0 | AQ43: 0
A44: INVESTMENT SUMMARY
A45: OUTSTANDING DEBT
A46: PREVIOUS MONTH'S OUTSTANDING DEBT | D46: 0 | E46: =D49 -> 0 | F46: =E49 -> 0 | G46: 0 | H46: 0 | I46: 0 | J46: 0 | K46: 0 | L46: 0 | M46: 0 | N46: 0 | O46: 0 | P46: 0 | Q46: 0 | R46: 0 | S46: 0 | T46: 0 | U46: 0 | V46: =U49 -> 0 | W46: 0 | X46: 0 | Y46: 0 | Z46: 0 | AA46: 0 | AB46: 0 | AC46: 0 | AD46: 0 | AE46: 0 | AF46: 0 | AG46: 0 | AH46: 0 | AI46: 0 | AJ46: 0 | AK46: 0 | AL46: 0 | AM46: 0 | AN46: 0 | AO46: 0 | AP46: 0 | AQ46: 0
A47: - CASH FLOW FOR DEBT REPAYMENT | D47: =D33 -> 0 | E47: 0 | F47: 0 | G47: 0 | H47: 0 | I47: 0 | J47: 0 | K47: 0 | L47: 0 | M47: 0 | N47: 0 | O47: 0 | P47: 0 | Q47: 0 | R47: 0 | S47: 0 | T47: 0 | U47: 0 | V47: 0 | W47: 0 | X47: 0 | Y47: 0 | Z47: 0 | AA47: 0 | AB47: 0 | AC47: 0 | AD47: 0 | AE47: 0 | AF47: 0 | AG47: 0 | AH47: 0 | AI47: 0 | AJ47: 0 | AK47: 0 | AL47: 0 | AM47: 0 | AN47: 0 | AO47: 0 | AP47: 0 | AQ47: 0
A48: + THIS MONTH'S INVESTED DEBT (7A) | D48: =D39 -> 0 | E48: 0 | F48: 0 | G48: 0 | H48: 0 | I48: 0 | J48: 0 | K48: 0 | L48: 0 | M48: 0 | N48: 0 | O48: 0 | P48: 0 | Q48: 0 | R48: 0 | S48: 0 | T48: 0 | U48: 0 | V48: 0 | W48: 0 | X48: 0 | Y48: 0 | Z48: 0 | AA48: 0 | AB48: 0 | AC48: 0 | AD48: 0 | AE48: 0 | AF48: 0 | AG48: 0 | AH48: 0 | AI48: 0 | AJ48: 0 | AK48: 0 | AL48: 0 | AM48: 0 | AN48: 0 | AO48: 0 | AP48: 0 | AQ48: 0
A49: = OUTSTANDING DEBT | D49: =D46-D47+D48 -> 0 | E49: =E46-E47+E48 -> 0 | F49: =F46-F47+F48 -> 0 | G49: 0 | H49: 0 | I49: 0 | J49: 0 | K49: 0 | L49: 0 | M49: 0 | N49: 0 | O49: 0 | P49: 0 | Q49: 0 | R49: 0 | S49: 0 | T49: 0 | U49: 0 | V49: =V46-V47+V48 -> 0 | W49: 0 | X49: 0 | Y49: 0 | Z49: 0 | AA49: 0 | AB49: 0 | AC49: 0 | AD49: 0 | AE49: 0 | AF49: 0 | AG49: 0 | AH49: 0 | AI49: 0 | AJ49: 0 | AK49: 0 | AL49: 0 | AM49: 0 | AN49: 0 | AO49: 0 | AP49: 0 | AQ49: 0
A50: EQUITY INVESTED
A51: PREVIOUS MONTH'S EQUITY INVESTED | D51: 0 | E51: =D54 -> 0 | F51: 0 | G51: 0 | H51: 0 | I51: 0 | J51: 0 | K51: 0 | L51: 0 | M51: 0 | N51: 0 | O51: 0 | P51: 0 | Q51: 0 | R51: 0 | S51: 0 | T51: 0 | U51: 0 | V51: =U54 -> 0 | W51: 0 | X51: 0 | Y51: 0 | Z51: 0 | AA51: 0 | AB51: 0 | AC51: 0 | AD51: 0 | AE51: 0 | AF51: 0 | AG51: 0 | AH51: 0 | AI51: 0 | AJ51: 0 | AK51: 0 | AL51: 0 | AM51: 0 | AN51: 0 | AO51: 0 | AP51: 0 | AQ51: 0
A52: - THIS MONTH'S EQUITY REPAYMENT | D52: =D34 -> 0 | E52: 0 | F52: 0 | G52: 0 | H52: 0 | I52: 0 | J52: 0 | K52: 0 | L52: 0 | M52: 0 | N52: 0 | O52: 0 | P52: 0 | Q52: 0 | R52: 0 | S52: 0 | T52: 0 | U52: 0 | V52: 0 | W52: 0 | X52: 0 | Y52: 0 | Z52: 0 | AA52: 0 | AB52: 0 | AC52: 0 | AD52: 0 | AE52: 0 | AF52: 0 | AG52: 0 | AH52: 0 | AI52: 0 | AJ52: 0 | AK52: 0 | AL52: 0 | AM52: 0 | AN52: 0 | AO52: 0 | AP52: 0 | AQ52: 0
A53: + THIS MONTHS EQUITY INVESTED | D53: =D40 -> 0 | E53: 0 | F53: 0 | G53: 0 | H53: 0 | I53: 0 | J53: 0 | K53: 0 | L53: 0 | M53: 0 | N53: 0 | O53: 0 | P53: 0 | Q53: 0 | R53: 0 | S53: 0 | T53: 0 | U53: 0 | V53: 0 | W53: 0 | X53: 0 | Y53: 0 | Z53: 0 | AA53: 0 | AB53: 0 | AC53: 0 | AD53: 0 | AE53: 0 | AF53: 0 | AG53: 0 | AH53: 0 | AI53: 0 | AJ53: 0 | AK53: 0 | AL53: 0 | AM53: 0 | AN53: 0 | AO53: 0 | AP53: 0 | AQ53: 0
A54: = EQUITY INVESTED | D54: =D51-D52+D53 -> 0 | E54: 0 | F54: 0 | G54: 0 | H54: 0 | I54: 0 | J54: 0 | K54: 0 | L54: 0 | M54: 0 | N54: 0 | O54: 0 | P54: 0 | Q54: 0 | R54: 0 | S54: 0 | T54: 0 | U54: 0 | V54: =V51-V52+V53 -> 0 | W54: 0 | X54: 0 | Y54: 0 | Z54: 0 | AA54: 0 | AB54: 0 | AC54: 0 | AD54: 0 | AE54: 0 | AF54: 0 | AG54: 0 | AH54: 0 | AI54: 0 | AJ54: 0 | AK54: 0 | AL54: 0 | AM54: 0 | AN54: 0 | AO54: 0 | AP54: 0 | AQ54: 0
A55: DOH FUNDING INVESTED
A56: PREVIOUS MONTH'S DOH INVESTED | D56: 0 | E56: =D59 -> 0 | F56: 0 | G56: 0 | H56: 0 | I56: 0 | J56: 0 | K56: 0 | L56: 0 | M56: 0 | N56: 0 | O56: 0 | P56: 0 | Q56: 0 | R56: 0 | S56: 0 | T56: 0 | U56: 0 | V56: =U59 -> 0 | W56: 0 | X56: 0 | Y56: 0 | Z56: 0 | AA56: 0 | AB56: 0 | AC56: 0 | AD56: 0 | AE56: 0 | AF56: 0 | AG56: 0 | AH56: 0 | AI56: 0 | AJ56: 0 | AK56: 0 | AL56: 0 | AM56: 0 | AN56: 0 | AO56: 0 | AP56: 0 | AQ56: 0
A57: - THIS MONTH'S DOH REPAYMENT | D57: =D35 -> 0 | E57: =E35 -> 0 | F57: 0 | G57: 0 | H57: 0 | I57: 0 | J57: 0 | K57: 0 | L57: 0 | M57: 0 | N57: 0 | O57: 0 | P57: 0 | Q57: 0 | R57: 0 | S57: 0 | T57: 0 | U57: 0 | V57: 0 | W57: 0 | X57: 0 | Y57: 0 | Z57: 0 | AA57: 0 | AB57: 0 | AC57: 0 | AD57: 0 | AE57: 0 | AF57: 0 | AG57: 0 | AH57: 0 | AI57: 0 | AJ57: 0 | AK57: 0 | AL57: 0 | AM57: 0 | AN57: 0 | AO57: 0 | AP57: 0 | AQ57: 0
A58: + THIS MONTH'S DOH INVTESTED | D58: =D41 -> 0 | E58: =E41 -> 0 | F58: 0 | G58: 0 | H58: 0 | I58: 0 | J58: 0 | K58: 0 | L58: 0 | M58: 0 | N58: 0 | O58: 0 | P58: 0 | Q58: 0 | R58: 0 | S58: 0 | T58: 0 | U58: 0 | V58: 0 | W58: 0 | X58: 0 | Y58: 0 | Z58: 0 | AA58: 0 | AB58: 0 | AC58: 0 | AD58: 0 | AE58: 0 | AF58: 0 | AG58: 0 | AH58: 0 | AI58: 0 | AJ58: 0 | AK58: 0 | AL58: 0 | AM58: 0 | AN58: 0 | AO58: 0 | AP58: 0 | AQ58: 0
A59: = TOTAL DOH INVESTED | D59: =+D56-D57+D58 -> 0 | E59: =+E56-E57+E58 -> 0 | F59: 0 | G59: 0 | H59: 0 | I59: 0 | J59: 0 | K59: 0 | L59: 0 | M59: 0 | N59: 0 | O59: 0 | P59: 0 | Q59: 0 | R59: 0 | S59: 0 | T59: 0 | U59: 0 | V59: 0 | W59: 0 | X59: 0 | Y59: 0 | Z59: 0 | AA59: 0 | AB59: 0 | AC59: 0 | AD59: 0 | AE59: 0 | AF59: 0 | AG59: 0 | AH59: 0 | AI59: 0 | AJ59: 0 | AK59: 0 | AL59: 0 | AM59: 0 | AN59: 0 | AO59: 0 | AP59: 0 | AQ59: 0
A60: OTHER SOURCES INVESTED
A61: PREVIOUS MONTH'S OTHER INVESTED | D61: 0 | E61: =D64 -> 0 | F61: 0 | G61: 0 | H61: 0 | I61: 0 | J61: 0 | K61: 0 | L61: 0 | M61: 0 | N61: 0 | O61: 0 | P61: 0 | Q61: 0 | R61: 0 | S61: 0 | T61: 0 | U61: 0 | V61: 0 | W61: 0 | X61: 0 | Y61: 0 | Z61: 0 | AA61: 0 | AB61: 0 | AC61: 0 | AD61: 0 | AE61: 0 | AF61: 0 | AG61: 0 | AH61: 0 | AI61: 0 | AJ61: 0 | AK61: 0 | AL61: 0 | AM61: 0 | AN61: 0 | AO61: 0 | AP61: 0 | AQ61: 0
A62: - THIS MONTH'S OTHER REPAYMENT | D62: =D36 -> 0 | E62: =E36 -> 0 | F62: 0 | G62: 0 | H62: 0 | I62: 0 | J62: 0 | K62: 0 | L62: 0 | M62: 0 | N62: 0 | O62: 0 | P62: 0 | Q62: 0 | R62: 0 | S62: 0 | T62: 0 | U62: 0 | V62: 0 | W62: 0 | X62: 0 | Y62: 0 | Z62: 0 | AA62: 0 | AB62: 0 | AC62: 0 | AD62: 0 | AE62: 0 | AF62: 0 | AG62: 0 | AH62: 0 | AI62: 0 | AJ62: 0 | AK62: 0 | AL62: 0 | AM62: 0 | AN62: 0 | AO62: 0 | AP62: 0 | AQ62: 0
A63: + THIS MONTH'S OTHER INVTESTED | D63: =D42 -> 0 | E63: =E42 -> 0 | F63: 0 | G63: 0 | H63: 0 | I63: 0 | J63: 0 | K63: 0 | L63: 0 | M63: 0 | N63: 0 | O63: 0 | P63: 0 | Q63: 0 | R63: 0 | S63: 0 | T63: 0 | U63: 0 | V63: 0 | W63: 0 | X63: 0 | Y63: 0 | Z63: 0 | AA63: 0 | AB63: 0 | AC63: 0 | AD63: 0 | AE63: 0 | AF63: 0 | AG63: 0 | AH63: 0 | AI63: 0 | AJ63: 0 | AK63: 0 | AL63: 0 | AM63: 0 | AN63: 0 | AO63: 0 | AP63: 0 | AQ63: 0
A64: = TOTAL HOME INVESTED | D64: =D61-D62+D63 -> 0 | E64: 0 | F64: 0 | G64: 0 | H64: 0 | I64: 0 | J64: 0 | K64: 0 | L64: 0 | M64: 0 | N64: 0 | O64: 0 | P64: 0 | Q64: 0 | R64: 0 | S64: 0 | T64: 0 | U64: 0 | V64: 0 | W64: 0 | X64: 0 | Y64: 0 | Z64: 0 | AA64: 0 | AB64: 0 | AC64: 0 | AD64: 0 | AE64: 0 | AF64: 0 | AG64: 0 | AH64: 0 | AI64: 0 | AJ64: 0 | AK64: 0 | AL64: 0 | AM64: 0 | AN64: 0 | AO64: 0 | AP64: 0 | AQ64: 0

Sheet Points Calculation Worksheet
A3: Exhibit 13.1 - POINTS CALCULATION WORKSHEET - 9% LIHTC | J3: Yes
J4: No
B6: DEVELOPMENT NAME | C6: =Application!D113 -> 0 | E6: APPLICANT | G6: =Application!D10 -> 0
E8: ="= Applicant Entered Data" -> = Applicant Entered Data
E10: ="= CHFA Entered Data" -> = CHFA Entered Data
A12: Category | B12: Title | C12: Points Calculation | E12: Applicant Points | F12: CHFA Points | G12: Explanation of Points Calculation and Required Documentation | H12: Possible Points
A13: 1 | B13: RENTAL AFFORDABILITY | E13: =SUM(E14:E42) -> 0 | F13: =SUM(F14:F42) -> 0 | H13: =H17+H20+H27+H33+H38+H40 -> 31
A14: a. | B14: Supportive Housing Units | E14: =IFERROR(D18,0) -> 0 | F14: =E14 -> 0 | G14: Points will be awarded based on documentation of supportive services from a "Qualified Service Provider" specifically for residents identified as homeless or chronically homeless, as defined in the Supportive Housing Guideline.(See CHFA Supportive Housing Guideline). Documentation must include a Services Plan, a description of funding sources, and a budget for supportive services. (Reference must be made to the current supportive Housing Guideline for definitions, service funding criteria and the list of Qualified Service Providers) Attach and label as "Exhibit 13.1.1.a"
C15: Number of units documented as receiving supportive services from a specified funding source | D15: =Application!G178 -> 0
C16: Total number of units | D16: ='Rental Income Calc Worksheet'!D50 -> 0
C17: Percentage | D17: =ROUND(D15/D16,3) ->  | G17: ≥ 20% | H17: 6
C18: Points Earned | D18: =IF(D17>=20%,H17,IF(AND(D17>=10%,D17<20%),H18,0)) ->  | G18: ≥ 10% and < 20% | H18: 2
A19: b. | B19: Households at or below 30 Percent of Aggregate Median Income | C19: Number of units that serve households below 30% of AMI and satisfy HUD rent guidelines | E19: =IFERROR(D23,0) -> 0 | F19: =E19 -> 0 | G19: Points will be awarded based on the percentage of qualified units that serve households at or below 30 percent of AMI and provide rents pursuant to HUD guidelines adjusted for family size throughout the extended use period.
D20: =SUMIF('Rental Income Calc Worksheet'!$B$31:$B$49,"20%",'Rental Income Calc Worksheet'!$D$31:$D$49)+SUMIF('Rental Income Calc Worksheet'!$B$31:$B$49,"25%",'Rental Income Calc Worksheet'!$D$31:$D$49)+SUMIF('Rental Income Calc Worksheet'!$B$31:$B$49,"30%",'Rental Income Calc Worksheet'!$D$31:$D$49) -> 0 | G20: ≥ 25% | H20: 8
C21: Total number of qualified units | D21: ='Rental Income Calc Worksheet'!C52 -> 0 | G21: ≥ 20% and < 25% | H21: 5
C22: Percentage | D22: =ROUND(D20/D21,3) ->  | G22: ≥ 15% and < 20% | H22: 3
C23: Points Earned | D23: =IF(D22>=25%,H20,IF(AND(D22>=20%,D22<25%),H21,IF(AND(D22>=15%,D22<20%),H22,IF(AND(D22>=10%,D22<15%),H23,0)))) ->  | G23: ≥ 10% and < 15% | H23: 2
A24: c. | B24: Households above 30 and at or below 50 Percent of AMI | E24: =IFERROR(D29,0) -> 0 | F24: =E24 -> 0 | G24: Points will be awarded based on the percentage of total units that serve households above 30 and at or below 50 percent of AMI and provides rents pursuant to HUD guidelines adjusted for family size throughout the extended use period.
C25: Number of units that serve households between 30 & 50% of AMI and satisfy HUD rent guidelines
D26: =SUMIF('Rental Income Calc Worksheet'!$B$31:$B$49,"40%",'Rental Income Calc Worksheet'!$D$31:$D$49)+SUMIF('Rental Income Calc Worksheet'!$B$31:$B$49,"50%",'Rental Income Calc Worksheet'!$D$31:$D$49) -> 0
C27: Total number of units | D27: ='Rental Income Calc Worksheet'!D50 -> 0 | G27: ≥ 40% | H27: 7
C28: Percentage | D28: =ROUND(D26/D27,3) ->  | G28: ≥ 30% and < 40% | H28: 4
C29: Points Earned | D29: =IF(D28>=40%,H27,IF(AND(D28>=30%,D28<40%),H28,IF(AND(D28>20%,D28<30%),H29,0))) ->  | G29: > 20% and < 30% | H29: 3
A30: d. | B30: Mixed Income Housing | C30: Number of non-qualified units | E30: =IFERROR(D34,0) -> 0 | F30: =E30 -> 0 | G30: Proposed Developments that promote economic integration by creating mixed income housing will receive points based on the percent of non-qualified units (market rate housing without income restrictions) included.
D31: ='Rental Income Calc Worksheet'!J52 -> 0
C32: Total number of units | D32: =+D16 -> 0
C33: Percentage | D33: =ROUND(D31/D32,3) ->  | G33: ≥ 20% | H33: 6
C34: Points Earned | D34: =IF(D33>=20%,H33,IF(AND(D33>=10%,D33<20%),H34,0)) ->  | G34: ≥ 10% and < 20% | H34: 2
A35: e. | B35: Extended Affordability Commitment | E35: =D38 -> 0 | F35: =E35 -> 0 | G35: Proposed Developments that: (i) are awarded at least 6 points in the "Opportunity Characteristics" category of "Development Located in an Area of Opportunity" (See QAP) and (ii) include a commitment of at least 50 years of affordability by virtue of an ELIHC, will be awarded points | J35: Substantial Rehabilitation
C36: Opportunity Characteristics Points | D36: =E120 -> 0
C37: Greater than 50 Years of affordability | D37: =ImpYearsAffordable -> 0 | J37: Moderate Rehabilitation
C38: Points Earned | D38: =IF(AND(D36>=6,D37>=50),H38,0) -> 0 | G38: Meets qualifications | H38: 2 | J38: New Construction
A39: f. | B39: On-Site Resident Services Coordinator | E39: =D42 -> 0 | F39: =E39 -> 0 | G39: Resident service coordinators should be engaged in accordance with the Authority Guidelines, the objectives of the Plan, to increase diversity and bridge differences amongst residents regardless of race, disability, social, educational or cultural backgrounds, and to provide outreach and incentives necessary to attract and retain, as residents, individuals and families from historically marginalized racial and ethnic groups, immigrants, and those least likely to apply for housing at the Proposed Development. "Attach and label as "Exhibit 13.1.1.f"
G40: Full-Time: On-site resident services coordinator staff, working a minimum of one full-time equivalent hours per week, and a property budget line item or evidence of arrangement with a third party provider specifying the funding source for the resident services coordinator salary, benefits and annual training is required, as well as an executed “Acknowledgement of Guidelines for Resident Services Coordinators.” | H40: 2
C41: On-site resident services coordinator; Full-Time, Part-Time, or N/A | G41: Part-Time: On-site resident services coordinator working a minimum of .5 full time equivalent hours per week and a property budget line item or evidence of arrangement with a third party provider specifying the funding source for resident services coordinator salary, benefits and annual training is required, as well as an | H41: 1
C42: Points Earned | D42: =IF(D41="Full-Time",H40,IF(D41="Part-Time",H41,0)) -> 0
A43: 2 | B43: FINANCIAL EFFICIENCY & SUSTAINABILITY | E43: =SUM(E44:E81) -> 0 | F43: =SUM(F44:F81) -> 0 | H43: =H46+H51+H59+H64+H68+SUM(H71:H75)+H80 -> 25
A44: a. | B44: Cost Effectiveness, Hard Costs | E44: =IFERROR(+D48,0) -> 0 | F44: =E44 -> 0 | G44: CHFA determination - Points may be awarded based upon deviation from the Authority's anticipated construction square foot cost. (For additional information please refer to the Construction Standards.) Costs are reviewed in the context of development location and any applicable constraints in the marketplace including regional labor and material costs and applicability of prevailing wage statutory requirements. Determination of the acceptable range of hard costs shall be at the Authority's discretion.
C45: Actual per square foot cost
C46: Authority anticipated per square foot cost | G46: % Deviation Between -5% and 5% | H46: 2
C47: % Deviation | D47: =(+D45-D46)/D46 ->  | G47: Between >5% and 10% or | H47: 1
C48: Points Earned | D48: =IF(AND(D47>=-0.05,D47<=0.05),H46,IF(OR(AND(D47>0.05,D47<=0.1),AND(D47<-0.05,D47>=-0.1)),H47,0)) ->  | G48: Between <-5% and -10%
A49: b. | B49: Credits Per Qualified Bedroom | E49: =D53 -> 0 | F49: =E49 -> 0 | G49: CHFA determination - Proposed Developments will be ranked lowest to highest credits per LIHTC Program qualified bedroom and awarded incremental Points in accordance with their ranking. Points will be awarded in rank order accordingly with the lowest credits per qualified bedroom receiving 4 Points and the highest receiving 0 Points. Per-bedroom figures may be modified by the results of the Authority's financial feasibility analysis. With respect to any Proposed Hybrid Development, Points in this category will be calculated based on the total number of qualified bedrooms in the Proposed Hybrid Development and the sum of the Proposed Hybrid Development's 9% Credits and 4% Credits.
G51: Lowest credits per bedroom | H51: 4 | J51: 1st
C52: Credits/Bedroom Quarter ranking | G52: Rank Order | H52: 3-1 | J52: 2nd
C53: Points Earned | D53: =IF(D52="1st",H51,IF(D52="2nd",3,IF(D52="3rd",2,IF(D52="4th",1,IF(D52="5th",H53,0))))) -> 0 | G53: Highest credits per bedroom | H53: 0 | J53: 3rd
A54: c. | B54: Credit Equity less than 50% of Total Uses | E54: =IFERROR(D59,0) -> 0 | F54: =E54 -> 0 | J54: 4th
C55: Located in QCT or DDA, yes or no | D55: =ImpQCT -> 0 | G55: 9% Credit equity estimated by the Authority for any one Proposed Development which do not exceed 50 percent of total uses will receive Points. 9% Credit equity estimated by the Authority for developments located in federally designated Qualified Census Tracts (each a "QCT") or Difficult Development Areas (each a "DDA"), as defined in Section 42(d)(5)(B)(ii) of the Code, which do not exceed 65 percent of total uses as recognized by the Authority will receive Points. | J55: 5th or lower
C56: Credit Equity | D56: ='LIHTC Calculation'!$J$50 -> 0
C57: Total Residential Uses | D57: =DEVBGT!F88 -> 0
C58: Percentage | D58: =ROUND(D56/D57,3) -> 
C59: Points Earned | D59: =IF(AND(D58<=50%,D55="no"),H59,IF(AND(D58<=65%,D55="yes"),H59,0)) ->  | G59: ≤ 50% (or ≤ 65% as applicable) | H59: 2
A60: d. | B60: Other Permanent Funding Sources | E60: =IFERROR(D65,0) -> 0 | F60: =E60 -> 0 | G60: Commitment(s) for non-debt permanent funding sources in excess of 5% of a Proposed Development's total development resources, including local housing trust funds, grants, foundation awards, or other non-debt commitments such as land contributions, tax abatement, block-grant funds, or an AHP award will qualify for 1 Point if written documentation is provided. State or state-administered funds, including but not limited to funding from DOH, Urban Act, Brownfields, HTCC, State Historic Tax Credits, and CRDA are not eligible sources of permanent funding for purposes of qualifying for this Point.
C62: $ Amount of commitment from eligible perm. source
C63: Total Development Resources | D63: ='Sources of Funds'!I41-'Sources of Funds'!I13-ImpPermDDF-ImpPermExistingPropertyReserves -> 0 | G63: Attach and label as "Exhibit 13.1.2.d"
C64: Percentage | D64: =ROUND(D62/D63,3) ->  | G64: ≥ 5% Eligible Permanent Commitment | H64: 1
C65: Points Earned | D65: =IF(D64>=5%,H64,H65) ->  | G65: < 5% Eligible Permanent Commitment | H65: 0
